Workbook

Sheet Information
A1: =Main!A1 -> ERA, GDS Tariff Model, Final Decision, November 2019
A3: Prior to using this model
B4: The Excel VBA macro must be enabled prior to opening this model to allow the use of macro to perform computation.
B5: (File -> Option -> Trust Centre -> Trust Centre Setting -> Macro Setting)
B6: Solver Add-in must also be installed and switched on. (File -> Option -> Add-in -> Go -> Solver Ad-in)
A8: Annual update of Trailing Average DRP
B9: For each year prior to the variation year (of tariff variation) there will be an annual update of the Trailing Average DRP.
B10: Update of Annual DRP is entered at Input worksheet, Cells(AE12:AI12).
B11: After entry of the annual update, click on the [Calculate X-Factor] button. Trailing Averaged DRP is calculated in the WACC sheet.
B12: The X-Factor for the variation year and the revised tariffs at 31-Dec-2019 $ will be computed.
B13: Apply the tariff variation mechanism based on the ERA approved document:
B14: "ERA - GDS AA5 Access Arrangement.pdf", November 2019 at Annexure B
A16: Cost Pass Through Entries
B17: Cost Pass Through related to capital expenditure can be entered at Input worksheet, Cells(AE438:AI451).
B18: Cost Pass Through related to operating expenditure can be entered at Input worksheet, Cells(AE475:AI490).
B19: After all entries of the Cost Pass Through and annual update of Trailing Average DRP, click on the [Calculate X-Factor] button .
A21: Color codes:
B22: Number | C22: ===> Hard coded data
B23: Number | C23: ===> Number or texts that are linked to other sheet
B24: Number | C24: ===> Contains formula that is not consistent with the others in the same row
B25: -Number | C25: ===> Excel formatting for negative number
A27: Tariff model method: Principles
B28: End of year cashflow assumption
B29: Unless otherwise stated all real dollars are in real $ December 2019
A31: Depreciation
B32: For AA1 period depreciation began in the year of acquisition but the ERA has modified the asset life in subsequent AA periods to
B33: assume asset depreciation began in the year after acquisition effectively adding one year to asset life for capex 2000 to 2004
B34: For all subsequent AA periods depreciation began in the year after acquisition
B35: Regulatory depreciation is rolled forward on forecast basis
B36: ICB tax assets as at 30 June 2000 (not 1 Jan 2000)
A38: Tax Depreciation
B39: Tax Depreciation is in nominal straight line.
A41: Taxation
B42: Revenue is based on cost of service or unsmoothed revenue
A44: Other
B45: AA4 Equity raising costs per last ERA tariff variation model (1 January 2019)
B46: Input data from 2019 onwards are forecast.
A48: Tariff Variation
B49: Tariff Variation for the following year tariff is performed in October
B50: The Annual Debt Risk Premium updated at Cells(AE12:AI12). The Trailing Average DRP is calculated at Input worksheet Row 46
B51: The September CPI is updated at Input worksheet Cells(AE27:AH27).
B52: After all entries, click on the [Calculate X-Factor] button .
A54: Worksheets
B56: Worksheet | C56: Description
B57: Main | C57: Summary of outputs
B58: WACC | C58: Contains the relevant parameters related to computing the WACC
B59: Input | C59: Contains general inputs of assumptions, capital expenditures, operating expenditures, UAFG expense, approved depreciations
B60: CoS | C60: Computations of total revenue building block (cost of service), inflationary gain and Credit Foncier Check
B61: Price_path_AA5 | C61: Contains the macro to calculate the price path necessary to equate in NPV terms the cost of service and expected tariff revenue
B62: Load_Tariffs | C62: Contains inputs of gas volumes, customer connections and other relevant information required to compute the reference tariffs
B63: Revenue | C63: Contains calculation of tariffs and revenue
B64: Working_Capital | C64: Contains calculation of working capital
B65: Tax_CoRE | C65: Contains calculation of tax, imputation credit and cost of raising equity
B66: Asset | C66: Contains regulatory asset base. Includes initial capital base, capital expenditure account, Vines and Westnet. Computations in Real 31-Dec-2019 $m
B67: Tax_Asset | C67: Contains tax asset base. Includes Initial Capital Base per E&Y less commercial meters, capital expenditure account, Vines and Westnet. Computations in nominal $m
B68: SolverSheet | C68: Contains inputs, target outputs and settings for Solver to compute the X-Factor and tariffs after the annual update of Trailing Average DRP
B69: TariffVariation | C69: Tariff Variation sheet produces the tariff published for 2020 and performs checks on the annual tariffs proposed by ATCO for 2021 to 2024

Sheet Main
A1: ERA, GDS Tariff Model, Final Decision, November 2019
A2: Main Summary
A3: Ref | C3: =COLUMN() -> 3 | D3: =COLUMN() -> 4 | E3: =COLUMN() -> 5 | F3: =COLUMN() -> 6 | G3: =COLUMN() -> 7 | H3: =COLUMN() -> 8
A4: WACC
A5: =ROW() -> 5 | E5: ="Real at "&Input!$G$43 -> Real at 31/12/2019 | F5: Nominal
A6: =ROW() -> 6 | D6: Post-tax WACC | E6: =WACC!$AA$38 -> 0.02981411904 | F6: =WACC!$AA$37 -> 0.041554
A7: =ROW() -> 7
A8: Closing Regulated Asset Base
A9: =ROW() -> 9 | E9: December 2019 | F9: December 2024
A10: =ROW() -> 10 | D10: Closing Asset Value [Real $m 30/6/2014] | E10: =Asset!$AD$24 -> 1292.379265 | F10: =Asset!$AI$24 -> 1425.951566
A11: =ROW() -> 11
A12: Revenue Building Block
A13: =ROW() -> 13 | E13: ="Real at "&Input!$G$43&" [m$]" -> Real at 31/12/2019 [m$] | F13: Nominal [m$] | G13: Real % | H13: Nominal % | S13: Instruction:
A14: =ROW() -> 14 | C14: PV of Cost of Service | S14: (1) Macro must be enabled
A15: =ROW() -> 15 | D15: Operating Expenditure | E15: =CoS!$F65 -> 294.051109 | F15: =CoS!$F38 -> 294.051109 | G15: =E15/E$22 -> 0.3962330121 | H15: 0.3962330121 | S15: (2) Update the annual DRP and Sep CPI in the Input sheet
A16: =ROW() -> 16 | D16: Return on Asset | E16: =CoS!$F68 -> 184.8775185 | F16: =CoS!$F42 -> 254.772183 | G16: 0.2491219172 | H16: 0.3433047738 | S16: (3) Click the "Calculate X-Factor" button to recalculate the model
A17: =ROW() -> 17 | D17: Depreciation | E17: =CoS!$F66 -> 252.6559447 | F17: =CoS!$F39 -> 252.6559447 | G17: 0.3404531489 | H17: 0.3404531489 | S17: Solver is used to calculate X-Factor, Cost of Raising Equity and tariffs so that Delta=0
A18: =ROW() -> 18 | D18: Inflationary Gain | F18: =CoS!$F40 -> -69.89466444 | H18: =F18/F$22 -> -0.09418285656 | S18: (4) The future tariff change will be identical to the latest calculated X-Factor
A19: =ROW() -> 19 | D19: Tax | E19: =CoS!$F70 -> 13.59941869 | F19: =CoS!$F44 -> 13.59941869 | G19: =E19/E$22 -> 0.01832517704 | H19: =F19/F$22 -> 0.01832517704 | S19: (5) The output will be a new tariff starting 1 January of the following year
A20: =ROW() -> 20 | D20: Imputation Credits | E20: =CoS!$F71 -> -6.799709344 | F20: =CoS!$F45 -> -6.799709344 | G20: =E20/E$22 -> -0.009162588518 | H20: =F20/F$22 -> -0.009162588518
A21: =ROW() -> 21 | D21: Return on Working Capital | E21: =CoS!$F69 -> 3.732351849 | F21: =CoS!$F43 -> 3.732351849 | G21: =E21/E$22 -> 0.005029333235 | H21: =F21/F$22 -> 0.005029333235 | U21: Recalculate for years: | V21: =Recalc_From_Year&" to 2014" -> 2020 to 2014
A22: =ROW() -> 22 | D22: Cost of Service (Total Revenue Required) | E22: =SUM(E15:E21) -> 742.1166334 | F22: =SUM(F15:F21) -> 742.1166334 | G22: =E22/E$22 -> 1 | H22: =F22/F$22 -> 1 | V22: ="X-Factor_"&Input!AE6 -> X-Factor_2020 | W22: ="X-Factor_"&Input!AF6 -> X-Factor_2021 | X22: ="X-Factor_"&Input!AG6 -> X-Factor_2022 | Y22: ="X-Factor_"&Input!AH6 -> X-Factor_2023 | Z22: ="X-Factor_"&Input!AI6 -> X-Factor_2024
A23: =ROW() -> 23 | U23: A1 to B2: X-Factor (Real) = | V23: =SolverSheet!I12 -> 0.015 | W23: =SolverSheet!J12 -> 0.01404671681 | X23: =SolverSheet!K12 -> 0 | Y23: =SolverSheet!L12 -> 0 | Z23: =SolverSheet!M12 -> 0
A24: =ROW() -> 24 | U24: B3: X-Factor (Real) = | V24: =SolverSheet!I13 -> 0 | W24: =SolverSheet!J13 -> 0.01404671681 | X24: =SolverSheet!K13 -> 0 | Y24: =SolverSheet!L13 -> 0 | Z24: =SolverSheet!M13 -> 0
A25: =ROW() -> 25 | U25: Delta = | V25: =CoS!$F$48 -> 0
A26: PV of Forecast Revenue
A27: =ROW() -> 27 | E27: ="Real at "&Input!$G$43&" [m$]" -> Real at 31/12/2019 [m$] | F27: Nominal [m$] | G27: % of Total Forecast Revenue
A28: =ROW() -> 28 | D28: A1 | E28: =Revenue!$F$133 -> 30.99960047 | F28: =Revenue!$F$231 -> 30.99960047 | G28: =E28/$E$36 -> 0.04177187126
A29: =ROW() -> 29 | D29: A2 | E29: =Revenue!$F$134 -> 20.0456008 | F29: =Revenue!$F$232 -> 20.0456008 | G29: 0.02701138864
A30: =ROW() -> 30 | D30: B1 | E30: =Revenue!$F$135 -> 43.61126491 | F30: =Revenue!$F$233 -> 43.61126491 | G30: 0.05876605232
A31: =ROW() -> 31 | D31: B2 | E31: =Revenue!$F$136 -> 42.90374161 | F31: =Revenue!$F$234 -> 42.90374161 | G31: 0.05781266674
A32: =ROW() -> 32 | D32: B3 | E32: =Revenue!$F$137 -> 587.9901492 | F32: =Revenue!$F$235 -> 587.9901492 | G32: 0.7923150118
A33: =ROW() -> 33 | D33: Total Tariff Revenue | E33: =SUM(E28:E32) -> 725.550357 | F33: =SUM(F28:F32) -> 725.550357 | G33: 0.9776769908
A34: =ROW() -> 34 | D34: Revenue from Prudent Discounts | E34: =Revenue!F$139 -> 1.075479176 | F34: =Revenue!F$237 -> 1.075479176 | G34: 0.001449205054
A35: =ROW() -> 35 | D35: Revenue from Ancillary Services | E35: =Revenue!$F$140 -> 15.49079729 | F35: =Revenue!$F$238 -> 15.49079729 | G35: 0.02087380419
A36: =ROW() -> 36 | D36: Total Forecast Revenue | E36: =SUM(E33:E35) -> 742.1166334 | F36: =SUM(F33:F35) -> 742.1166334 | G36: 1
A37: =ROW() -> 37
A38: =ROW() -> 38 | D38: Check: PV CoS = PV Tot. Fore. Rev. | E38: =IF(ROUND(E22-E36,4)=0,"OK","Wrong") -> OK | F38: =IF(ROUND(F22-F36,4)=0,"OK","Wrong") -> OK
A39: =ROW() -> 39
A40: =ROW() -> 40
A41: Tariffs | M41: CHECK only - Remove from publication
A42: =ROW() -> 42 | O42: Year on Year increase
A43: =ROW() -> 43 | D43: ="Charging parameter (" & Input!$G$43&" $)" -> Charging parameter (31/12/2019 $) | E43: Units $ real | F43: 2020 | G43: 2021 | H43: 2022 | I43: 2023 | J43: 2024 | M43: 2020 | N43: 2021 | O43: 2022 | P43: 2023 | Q43: 2024
A44: =ROW() -> 44 | D44: Reference tariff A1
A45: =ROW() -> 45 | D45: Standing charge | E45: $/year | F45: =Price_path_AA5!G121 -> 32931.52 | G45: =Price_path_AA5!H121 -> 33394.09974 | H45: =Price_path_AA5!I121 -> 33863.1772 | I45: =Price_path_AA5!J121 -> 34338.84366 | J45: =Price_path_AA5!K121 -> 34821.19167 | M45: =Price_path_AA5!N121 -> 0 | N45: =Price_path_AA5!O121 -> 0 | O45: =Price_path_AA5!P121 -> 0 | P45: =Price_path_AA5!Q121 -> 0 | Q45: =Price_path_AA5!R121 -> 0
A46: =ROW() -> 46 | D46: Demand charge
A47: =ROW() -> 47 | D47: First 10 km | E47: $/GJ km | F47: =Price_path_AA5!G123 -> 138.8 | G47: =Price_path_AA5!H123 -> 140.7496843 | H47: =Price_path_AA5!I123 -> 142.7267552 | I47: =Price_path_AA5!J123 -> 144.7315976 | J47: =Price_path_AA5!K123 -> 146.7646013 | M47: =Price_path_AA5!N123 -> 0 | N47: =Price_path_AA5!O123 -> 0 | O47: =Price_path_AA5!P123 -> 0 | P47: =Price_path_AA5!Q123 -> 0 | Q47: =Price_path_AA5!R123 -> 0
A48: =ROW() -> 48 | D48: Distance > 10 km | E48: $/GJ km | F48: =Price_path_AA5!G124 -> 73.06 | G48: =Price_path_AA5!H124 -> 74.08625313 | H48: =Price_path_AA5!I124 -> 75.12692175 | I48: =Price_path_AA5!J124 -> 76.18220834 | J48: =Price_path_AA5!K124 -> 77.25231825 | M48: =Price_path_AA5!N124 -> 0 | N48: =Price_path_AA5!O124 -> 0 | O48: =Price_path_AA5!P124 -> 0 | P48: =Price_path_AA5!Q124 -> 0 | Q48: =Price_path_AA5!R124 -> 0
A49: =ROW() -> 49 | D49: Usage charge
A50: =ROW() -> 50 | D50: First 10 km | E50: $/GJ km | F50: =Price_path_AA5!G126 -> 0.02936 | G50: =Price_path_AA5!H126 -> 0.02977241161 | H50: =Price_path_AA5!I126 -> 0.03019061624 | I50: =Price_path_AA5!J126 -> 0.03061469528 | J50: =Price_path_AA5!K126 -> 0.03104473123 | M50: =Price_path_AA5!N126 -> 0 | N50: =Price_path_AA5!O126 -> 0 | O50: =Price_path_AA5!P126 -> 0 | P50: =Price_path_AA5!Q126 -> 0 | Q50: =Price_path_AA5!R126 -> 0
A51: =ROW() -> 51 | D51: Distance > 10 km | E51: $/GJ km | F51: =Price_path_AA5!G127 -> 0.0148 | G51: =Price_path_AA5!H127 -> 0.01500789141 | H51: =Price_path_AA5!I127 -> 0.01521870301 | I51: =Price_path_AA5!J127 -> 0.01543247582 | J51: =Price_path_AA5!K127 -> 0.01564925144 | M51: =Price_path_AA5!N127 -> 0 | N51: =Price_path_AA5!O127 -> 0 | O51: =Price_path_AA5!P127 -> 0 | P51: =Price_path_AA5!Q127 -> 0 | Q51: =Price_path_AA5!R127 -> 0
A52: =ROW() -> 52 | D52: Reference tariff A2
A53: =ROW() -> 53 | D53: Standing charge | E53: $/Year | F53: =Price_path_AA5!G129 -> 18221.28 | G53: =Price_path_AA5!H129 -> 18477.22916 | H53: =Price_path_AA5!I129 -> 18736.77357 | I53: =Price_path_AA5!J129 -> 18999.96372 | J53: =Price_path_AA5!K129 -> 19266.85083 | M53: =Price_path_AA5!N129 -> 0 | N53: =Price_path_AA5!O129 -> 0 | O53: =Price_path_AA5!P129 -> 0 | P53: =Price_path_AA5!Q129 -> 0 | Q53: =Price_path_AA5!R129 -> 0
A54: =ROW() -> 54 | D54: First 10 TJ | E54: $/GJ | F54: =Price_path_AA5!G130 -> 1.77 | G54: =Price_path_AA5!H130 -> 1.794862689 | H54: =Price_path_AA5!I130 -> 1.820074617 | I54: =Price_path_AA5!J130 -> 1.845640689 | J54: =Price_path_AA5!K130 -> 1.871565881 | M54: =Price_path_AA5!N130 -> 0 | N54: =Price_path_AA5!O130 -> 0 | O54: =Price_path_AA5!P130 -> 0 | P54: =Price_path_AA5!Q130 -> 0 | Q54: =Price_path_AA5!R130 -> 0
A55: =ROW() -> 55 | D55: Volume > 10 TJ | E55: $/GJ | F55: =Price_path_AA5!G131 -> 0.94 | G55: =Price_path_AA5!H131 -> 0.9532039138 | H55: =Price_path_AA5!I131 -> 0.9665932992 | I55: =Price_path_AA5!J131 -> 0.9801707616 | J55: =Price_path_AA5!K131 -> 0.9939389427 | M55: =Price_path_AA5!N131 -> 0 | N55: =Price_path_AA5!O131 -> 0 | O55: =Price_path_AA5!P131 -> 0 | P55: =Price_path_AA5!Q131 -> 0 | Q55: =Price_path_AA5!R131 -> 0
A56: =ROW() -> 56 | D56: Reference tariff B1
A57: =ROW() -> 57 | D57: Standing charge | E57: $/Year | F57: =Price_path_AA5!G133 -> 921.16 | G57: =Price_path_AA5!H133 -> 934.0992737 | H57: =Price_path_AA5!I133 -> 947.2203016 | I57: =Price_path_AA5!J133 -> 960.525637 | J57: =Price_path_AA5!K133 -> 974.0178686 | M57: =Price_path_AA5!N133 -> 0 | N57: =Price_path_AA5!O133 -> 0 | O57: =Price_path_AA5!P133 -> 0 | P57: =Price_path_AA5!Q133 -> 0 | Q57: =Price_path_AA5!R133 -> 0
A58: =ROW() -> 58 | D58: First 5 TJ | E58: $/GJ | F58: =Price_path_AA5!G134 -> 3.5 | G58: =Price_path_AA5!H134 -> 3.549163509 | H58: =Price_path_AA5!I134 -> 3.599017604 | I58: =Price_path_AA5!J134 -> 3.649571985 | J58: =Price_path_AA5!K134 -> 3.700836489 | M58: =Price_path_AA5!N134 -> 0 | N58: =Price_path_AA5!O134 -> 0 | O58: =Price_path_AA5!P134 -> 0 | P58: =Price_path_AA5!Q134 -> 0 | Q58: =Price_path_AA5!R134 -> 0
A59: =ROW() -> 59 | D59: Volume > 5 TJ | E59: $/GJ | F59: =Price_path_AA5!G135 -> 3.01 | G59: =Price_path_AA5!H135 -> 3.052280618 | H59: =Price_path_AA5!I135 -> 3.095155139 | I59: =Price_path_AA5!J135 -> 3.138631907 | J59: =Price_path_AA5!K135 -> 3.18271938 | M59: =Price_path_AA5!N135 -> 0 | N59: =Price_path_AA5!O135 -> 0 | O59: =Price_path_AA5!P135 -> 0 | P59: =Price_path_AA5!Q135 -> 0 | Q59: =Price_path_AA5!R135 -> 0
A60: =ROW() -> 60 | D60: Reference tariff B2
A61: =ROW() -> 61 | D61: Standing charge | E61: $/Year | F61: =Price_path_AA5!G137 -> 230.14 | G61: =Price_path_AA5!H137 -> 233.3727114 | H61: =Price_path_AA5!I137 -> 236.6508318 | I61: =Price_path_AA5!J137 -> 239.974999 | J61: =Price_path_AA5!K137 -> 243.3458599 | M61: =Price_path_AA5!N137 -> 0 | N61: =Price_path_AA5!O137 -> 0 | O61: =Price_path_AA5!P137 -> 0 | P61: =Price_path_AA5!Q137 -> 0 | Q61: =Price_path_AA5!R137 -> 0
A62: =ROW() -> 62 | D62: First 100 GJ | E62: $/GJ | F62: =Price_path_AA5!G138 -> 5.86 | G62: =Price_path_AA5!H138 -> 5.942313761 | H62: =Price_path_AA5!I138 -> 6.025783759 | I62: =Price_path_AA5!J138 -> 6.110426237 | J62: =Price_path_AA5!K138 -> 6.196257664 | M62: =Price_path_AA5!N138 -> 0 | N62: =Price_path_AA5!O138 -> 0 | O62: =Price_path_AA5!P138 -> 0 | P62: =Price_path_AA5!Q138 -> 0 | Q62: =Price_path_AA5!R138 -> 0
A63: =ROW() -> 63 | D63: Volume > 100 GJ | E63: $/GJ | F63: =Price_path_AA5!G139 -> 3.49 | G63: =Price_path_AA5!H139 -> 3.539023042 | H63: =Price_path_AA5!I139 -> 3.588734696 | I63: =Price_path_AA5!J139 -> 3.639144636 | J63: =Price_path_AA5!K139 -> 3.69026267 | M63: =Price_path_AA5!N139 -> 0 | N63: =Price_path_AA5!O139 -> 0 | O63: =Price_path_AA5!P139 -> 0 | P63: =Price_path_AA5!Q139 -> 0 | Q63: =Price_path_AA5!R139 -> 0
A64: =ROW() -> 64 | D64: Reference tariff B3
A65: =ROW() -> 65 | D65: Standing charge | E65: $/Year | F65: =Price_path_AA5!G141 -> 116.84 | G65: =Price_path_AA5!H141 -> 116.84 | H65: =Price_path_AA5!I141 -> 116.84 | I65: =Price_path_AA5!J141 -> 116.84 | J65: =Price_path_AA5!K141 -> 116.84 | M65: =Price_path_AA5!N141 -> 0 | N65: =Price_path_AA5!O141 -> 0 | O65: =Price_path_AA5!P141 -> 0 | P65: =Price_path_AA5!Q141 -> 0 | Q65: =Price_path_AA5!R141 -> 0
A66: =ROW() -> 66 | D66: First 1.81.8255 GJ | E66: $/GJ | F66: =Price_path_AA5!G142 -> 0 | G66: =Price_path_AA5!H142 -> 0 | H66: =Price_path_AA5!I142 -> 0 | I66: =Price_path_AA5!J142 -> 0 | J66: =Price_path_AA5!K142 -> 0 | M66: =Price_path_AA5!N142 -> 0 | N66: =Price_path_AA5!O142 -> 0 | O66: =Price_path_AA5!P142 -> 0 | P66: =Price_path_AA5!Q142 -> 0 | Q66: =Price_path_AA5!R142 -> 0
A67: =ROW() -> 67 | D67: Volume > 1.825 <9.855 GJ | E67: $/GJ | F67: =Price_path_AA5!G143 -> 5.39 | G67: =Price_path_AA5!H143 -> 5.465711804 | H67: =Price_path_AA5!I143 -> 5.542487109 | I67: =Price_path_AA5!J143 -> 5.620340856 | J67: =Price_path_AA5!K143 -> 5.699288193 | M67: =Price_path_AA5!N143 -> 0 | N67: =Price_path_AA5!O143 -> 0 | O67: =Price_path_AA5!P143 -> 0 | P67: =Price_path_AA5!Q143 -> 0 | Q67: =Price_path_AA5!R143 -> 0
A68: =ROW() -> 68 | D68: Volume > 9.855 GJ | E68: $/GJ | F68: =Price_path_AA5!G144 -> 3.6 | G68: =Price_path_AA5!H144 -> 3.650568181 | H68: =Price_path_AA5!I144 -> 3.701846678 | I68: =Price_path_AA5!J144 -> 3.75384547 | J68: =Price_path_AA5!K144 -> 3.806574674 | M68: =Price_path_AA5!N144 -> 0 | N68: =Price_path_AA5!O144 -> 0 | O68: =Price_path_AA5!P144 -> 0 | P68: =Price_path_AA5!Q144 -> 0 | Q68: =Price_path_AA5!R144 -> 0

Sheet WACC
A1: =Main!A1 -> ERA, GDS Tariff Model, Final Decision, November 2019
A2: Determination of the Weighted Average Cost of Capital (WACC)
A3: Ref | B3: =COLUMN() -> 2 | C3: =COLUMN() -> 3 | E3: =COLUMN() -> 5 | G3: =COLUMN() -> 7 | H3: =COLUMN() -> 8 | I3: =COLUMN() -> 9 | J3: =COLUMN() -> 10 | K3: =COLUMN() -> 11 | M3: =COLUMN() -> 13 | O3: =COLUMN() -> 15 | P3: =COLUMN() -> 16 | Q3: =COLUMN() -> 17 | S3: =COLUMN() -> 19 | U3: =COLUMN() -> 21 | V3: =COLUMN() -> 22 | W3: =COLUMN() -> 23 | AA3: =COLUMN() -> 27 | AB3: =COLUMN() -> 28 | AC3: =COLUMN() -> 29 | AD3: =COLUMN() -> 30 | AE3: =COLUMN() -> 31
A4: =ROW() -> 4 | E4: OffGAR | G4: ERA | H4: ERA | I4: ERA | J4: ERA | K4: ERA | M4: WAGN | O4: ERA | Q4: WAGN | S4: ERA | U4: ERA | V4: ERA | W4: ERA | X4: ERA | Y4: ERA | Z4: ERA | AA4: ERA | AB4: ERA | AC4: ERA | AD4: ERA | AE4: ERA
A5: =ROW() -> 5 | E5: FD1 | G5: FD2 - Lo | H5: FD 2 - Hi | I5: FD 2 Lo + Range*10% | J5: FD 2 Hi - Range*10% | K5: FD 2 | M5: AA3 | O5: AA3 DD 3 | Q5: AA3 Post DD3 | S5: AA3 FD | U5: AA4 Jul - Dec 2014 | V5: AA4 2015 | W5: AA4 2016 | X5: AA4 2017 | Y5: AA4 2018 | Z5: AA4 2019 | AA5: AA5 2020 | AB5: AA5 2021 | AC5: AA5 2022 | AD5: AA5 2023 | AE5: AA5 2024
A6: =ROW() -> 6 | G6: 2005-06-30 | H6: =G6 -> 2005-06-30 | I6: 2005-06-30 | J6: 2005-06-30 | K6: 2005-06-30 | O6: 2010-07-30 | S6: 2012-06-28 | U6: 2015-04-02 | V6: 2015-06-12 | W6: 2016-09-30 | X6: 2017-09-30 | Y6: 2018-09-30 | Z6: 2019-09-30 | AA6: 2018-11-30 | AB6: 2021-09-30 | AC6: 2022-09-30 | AD6: 2023-09-30 | AE6: 2024-09-30
C7: Return on Debt
A8: =ROW() -> 8 | C8: Debt: Nominal Risk Free Rate (DRfn) | E8: 0.0627 | G8: 0.0515 | H8: =G8 -> 0.0515 | I8: =H8 -> 0.0515 | J8: =I8 -> 0.0515 | K8: =J8 -> 0.0515 | M8: 0.0559 | O8: 0.0516 | S8: 0.0561 | U8: 0.0196 | V8: =U8 -> 0.0196 | W8: 0.0196 | X8: 0.0196 | Y8: 0.0196 | Z8: 0.0196
A9: =ROW() -> 9 | C9: Debt: Real Risk Free Rate (DRfr) | E9: =(1+E8)/(1+E28)-1 -> 0.03395602257 | G9: 0.0258 | H9: 0.0258 | I9: 0.0258 | J9: 0.0258 | K9: 0.0258 | M9: =(1+M8)/(1+M28)-1 -> 0.03044793598 | O9: =(1+O8)/(1+O28)-1 -> 0.02495126706 | S9: =(1+S8)/(1+S28)-1 -> 0.02933723197 | U9: =(1+U8)/(1+U28)-1 -> 0.0005888125613 | V9: 0.0005888125613 | W9: 0.0005888125613 | X9: 0.0005888125613 | Y9: 0.0005888125613 | Z9: 0.007631244252
A10: =ROW() -> 10 | C10: Cost of Debt; 5 year Interest Rate Swap Spread | U10: 0.00471 | V10: =U10 -> 0.00471 | W10: 0.00471 | X10: =W10 -> 0.00471 | Y10: =X10 -> 0.00471 | Z10: =Y10 -> 0.00471 | AA10: 0.00961 | AB10: =AA10 -> 0.00961 | AC10: =AB10 -> 0.00961 | AD10: =AC10 -> 0.00961 | AE10: =AD10 -> 0.00961
A11: =ROW() -> 11 | C11: Cost of Debt; Debt Risk Premium (Drp) | G11: 0.0123 | H11: 0.0133 | M11: 0.045 | O11: 0.03293 | S11: 0.02893 | U11: 0.02429 | V11: 0.02502 | W11: =W42 -> 0.02467 | X11: =X42 -> 0.02326 | Y11: =Y42 -> 0.01689 | Z11: =Z42 -> 0.01663 | AA11: 0.02273 | AB11: =AB42 -> 0.02273 | AC11: =AC42 -> 0.02273 | AD11: =AD42 -> 0.02273 | AE11: =AE42 -> 0.02273
A12: =ROW() -> 12 | C12: Cost of Debt; Debt Issuing Cost (Disc) | G12: 0.0008 | H12: 0.00125 | M12: 0.00228 | O12: 0.00125 | S12: 0.00125 | U12: 0.00125 | V12: =U12 -> 0.00125 | W12: 0.00125 | X12: 0.00125 | Y12: 0.00125 | Z12: 0.00125 | AA12: 0.001 | AB12: =AA12 -> 0.001 | AC12: 0.001 | AD12: =AC12 -> 0.001 | AE12: =AD12 -> 0.001
A13: =ROW() -> 13 | C13: Cost of Debt; Hedging Cost | U13: 0.00114 | V13: 0.00114 | W13: 0.00114 | X13: 0.00114 | Y13: 0.00114 | Z13: 0.00114 | AA13: 0.00114 | AB13: 0.00114 | AC13: 0.00114 | AD13: 0.00114 | AE13: 0.00114
A14: =ROW() -> 14 | C14: Cost of Debt; Risk Margin (Rm) -- Nominal Return on Debt (DPn) | E14: 0.012 | G14: =G11+G12+G13+G10 -> 0.0131 | H14: =H11+H12+H13+H10 -> 0.01455 | M14: =M11+M12+M13+M10 -> 0.04728 | O14: =O11+O12+O13+O10 -> 0.03418 | S14: =S11+S12+S13+S10 -> 0.03018 | U14: =U11+U12+U13+U10 -> 0.03139 | V14: 0.03212 | W14: 0.03177 | X14: 0.03036 | Y14: 0.02399 | Z14: 0.02373 | AA14: 0.03448 | AB14: 0.03448 | AC14: 0.03448 | AD14: 0.03448 | AE14: 0.03448
A15: =ROW() -> 15 | C15: Nominal Cost of Debt (DPn) | E15: =E8+E14 -> 0.0747 | G15: =G8+G14 -> 0.0646 | M15: =M8+M14 -> 0.10318 | O15: =O8+O14 -> 0.08578 | S15: =S8+S14 -> 0.08628 | U15: =U8+U14 -> 0.05099 | V15: 0.05172 | W15: 0.05137 | X15: 0.04996 | Y15: 0.04359 | Z15: 0.04333 | AA15: =AA14 -> 0.03448 | AB15: 0.03448 | AC15: 0.03448 | AD15: 0.03448 | AE15: 0.03448
A16: =ROW() -> 16
A17: =ROW() -> 17 | C17: Return on Equity
A18: =ROW() -> 18 | C18: Equity: Nominal Risk Free Rate (ERfn) | E18: =E8 -> 0.0627 | G18: =G8 -> 0.0515 | H18: =H8 -> 0.0515 | I18: =I8 -> 0.0515 | M18: =M8 -> 0.0559 | O18: =O8 -> 0.0516 | S18: =S8 -> 0.0561 | U18: 0.0196 | V18: =U18 -> 0.0196 | W18: 0.0196 | X18: 0.0196 | Y18: 0.0196 | Z18: 0.0196 | AA18: 0.0082 | AB18: =AA18 -> 0.0082 | AC18: 0.0082 | AD18: =AC18 -> 0.0082 | AE18: =AD18 -> 0.0082
A19: =ROW() -> 19 | C19: Australian Market Risk Premium (Rp) | E19: 0.06 | G19: 0.05 | H19: 0.06 | M19: 0.08 | O19: 0.06 | S19: 0.06 | U19: =7.6%-0.1% -> 0.075 | V19: =U19 -> 0.075 | W19: 0.075 | X19: 0.075 | Y19: 0.075 | Z19: 0.075 | AA19: 0.06 | AB19: =AA19 -> 0.06 | AC19: 0.06 | AD19: 0.06 | AE19: 0.06
A20: =ROW() -> 20 | C20: Equity Beta (Be) | E20: 1.075 | G20: 0.8 | H20: 1 | O20: 0.8 | S20: 0.8 | U20: 0.7 | V20: =U20 -> 0.7 | W20: =V20 -> 0.7 | X20: =W20 -> 0.7 | Y20: =X20 -> 0.7 | Z20: =Y20 -> 0.7 | AA20: 0.7 | AB20: 0.7 | AC20: 0.7 | AD20: 0.7 | AE20: 0.7
A21: =ROW() -> 21 | C21: Nominal Pre Tax Cost of Equity (EPn) | E21: =E22/(1-E29*(1-E30)) -> 0.1508896797 | G21: =G22/(1-G29*(1-G30)) -> 0.1039772727 | H21: =H22/(1-H29*(1-H30)) -> 0.1411392405 | O21: =O22/(1-O29*(1-O30)) -> 0.1131818182 | S21: =S22/(1-S29*(1-S30)) -> 0.1343225806 | U21: =U22/(1-U29*(1-U30)) -> 0.09303225806 | V21: 0.09303225806 | W21: 0.09303225806 | X21: 0.09303225806 | Y21: 0.09303225806 | Z21: 0.09303225806 | AA21: 0.05905882353 | AB21: 0.05905882353 | AC21: 0.05905882353 | AD21: 0.05905882353 | AE21: 0.05905882353
A22: =ROW() -> 22 | C22: Nominal After Tax Cost of Equity (EAn) -- Nominal return on Equity | E22: =E18+(E19*E20) -> 0.1272 | G22: =G18+(G19*G20) -> 0.0915 | H22: =H18+(H19*H20) -> 0.1115 | O22: =O18+(O19*O20) -> 0.0996 | S22: =S18+(S19*S20) -> 0.1041 | U22: =U18+(U19*U20) -> 0.0721 | V22: 0.0721 | W22: 0.0721 | X22: 0.0721 | Y22: 0.0721 | Z22: 0.0721 | AA22: 0.0502 | AB22: 0.0502 | AC22: 0.0502 | AD22: 0.0502 | AE22: 0.0502
A23: =ROW() -> 23
A24: =ROW() -> 24 | C24: Other Parameter
A25: =ROW() -> 25 | C25: Debt Proportion (D) | E25: 0.6 | G25: 0.6 | H25: =G25 -> 0.6 | I25: =H25 -> 0.6 | J25: =I25 -> 0.6 | K25: =J25 -> 0.6 | M25: =G25 -> 0.6 | O25: 0.6 | S25: 0.6 | U25: 0.6 | V25: =U25 -> 0.6 | W25: 0.6 | X25: 0.6 | Y25: 0.6 | Z25: 0.6 | AA25: 0.55 | AB25: =AA25 -> 0.55 | AC25: 0.55 | AD25: =AC25 -> 0.55 | AE25: =AD25 -> 0.55
A26: =ROW() -> 26 | C26: Equity Proportion (E) | E26: =1-E25 -> 0.4 | G26: =1-G25 -> 0.4 | H26: =1-H25 -> 0.4 | I26: =1-I25 -> 0.4 | J26: =1-J25 -> 0.4 | K26: =1-K25 -> 0.4 | M26: =1-M25 -> 0.4 | O26: =1-O25 -> 0.4 | S26: =1-S25 -> 0.4 | U26: =1-U25 -> 0.4 | V26: =1-V25 -> 0.4 | W26: =1-W25 -> 0.4 | X26: =1-X25 -> 0.4 | Y26: =1-Y25 -> 0.4 | Z26: =1-Z25 -> 0.4 | AA26: =1-AA25 -> 0.45 | AB26: =1-AB25 -> 0.45 | AC26: =1-AC25 -> 0.45 | AD26: 0.45 | AE26: 0.45
A27: =ROW() -> 27 | C27: Equity: Real Risk Free Rate (ERfr) | E27: =(1+E18)/(1+E28)-1 -> 0.03395602257 | G27: =G9 -> 0.0258 | H27: =H9 -> 0.0258 | I27: =I9 -> 0.0258 | M27: =(1+M18)/(1+M28)-1 -> 0.03044793598 | O27: =(1+O18)/(1+O28)-1 -> 0.02495126706 | S27: =(1+S18)/(1+S28)-1 -> 0.02933723197 | U27: =(1+U18)/(1+U28)-1 -> 0.0005888125613 | V27: 0.0005888125613 | W27: 0.0005888125613 | X27: 0.0005888125613 | Y27: 0.0005888125613 | Z27: 0.007631244252 | AA27: -0.003163931184 | AB27: -0.003163931184 | AC27: -0.003163931184 | AD27: -0.003163931184 | AE27: -0.003163931184
A28: =ROW() -> 28 | C28: Inflation Rate for WACC (I) | E28: 0.0278 | G28: =(1+G8)/(1+G9)-1 -> 0.02505361669 | H28: =(1+H8)/(1+H9)-1 -> 0.02505361669 | I28: =(1+I8)/(1+I9)-1 -> 0.02505361669 | J28: =(1+J8)/(1+J9)-1 -> 0.02505361669 | K28: =(1+K8)/(1+K9)-1 -> 0.02505361669 | M28: 0.0247 | O28: 0.026 | Q28: 0.026 | S28: 0.026 | U28: 0.019 | V28: =U28 -> 0.019 | W28: =V28 -> 0.019 | X28: =W28 -> 0.019 | Y28: =X28 -> 0.019 | Z28: =Input!AD35 -> 0.01187811098 | AA28: 0.0114 | AB28: =AA28 -> 0.0114 | AC28: =AB28 -> 0.0114 | AD28: =AC28 -> 0.0114 | AE28: =AD28 -> 0.0114
A29: =ROW() -> 29 | C29: Corporate Tax Rate (T) | E29: 0.314 | G29: 0.3 | H29: 0.3 | I29: 0.3 | J29: 0.3 | K29: 0.3 | M29: 0.3 | O29: 0.3 | S29: 0.3 | U29: 0.3 | V29: =U29 -> 0.3 | W29: 0.3 | X29: 0.3 | Y29: 0.3 | Z29: 0.3 | AA29: 0.3 | AB29: =AA29 -> 0.3 | AC29: 0.3 | AD29: =AC29 -> 0.3 | AE29: =AD29 -> 0.3
A30: =ROW() -> 30 | C30: Franking Credit (g) | E30: 0.5 | G30: 0.6 | H30: 0.3 | M30: 0.2 | O30: 0.6 | S30: 0.25 | U30: =40%*0 + 25% -> 0.25 | V30: 0.25 | W30: 0.25 | X30: 0.25 | Y30: 0.25 | Z30: 0.25 | AA30: 0.5 | AB30: 0.5 | AC30: 0.5 | AD30: 0.5 | AE30: 0.5
A31: =ROW() -> 31 | C31: Imputation Adj (G) | E31: =(1-E29)/(1-E29*(1-E30)) -> 0.8137603796 | G31: =(1-G29)/(1-G29*(1-G30)) -> 0.7954545455 | H31: =(1-H29)/(1-H29*(1-H30)) -> 0.8860759494 | M31: =(1-M29)/(1-M29*(1-M30)) -> 0.9210526316 | O31: =(1-O29)/(1-O29*(1-O30)) -> 0.7954545455 | S31: =(1-S29)/(1-S29*(1-S30)) -> 0.9032258065 | U31: =(1-U29)/(1-U29*(1-U30)) -> 0.9032258065 | V31: =(1-V29)/(1-V29*(1-V30)) -> 0.9032258065 | W31: 0.9032258065 | X31: 0.9032258065 | Y31: 0.9032258065 | Z31: 0.9032258065 | AA31: =(1-AA29)/(1-AA29*(1-AA30)) -> 0.8235294118 | AB31: 0.8235294118 | AC31: 0.8235294118 | AD31: 0.8235294118 | AE31: 0.8235294118
A32: =ROW() -> 32
A33: =ROW() -> 33 | C33: WACC; Pre-tax Officer (Market Practise or Forward Transformation)
A34: =ROW() -> 34 | C34: Nominal Pre Tax WACC (WPn) | E34: =E21*E26+E15*E25 -> 0.1051758719 | G34: =G21*G26+G15*G25 -> 0.08035090909 | H34: =H21*H26+H15*H25 -> 0.0564556962 | I34: =G34+(H34-G34)*0.1 -> 0.0779613878 | J34: =H34-(H34-G34)*0.1 -> 0.05884521749 | K34: =(1+K35)*(1+K28)-1 -> 0.0945522519 | M34: =(1+M35)*(1+M28)-1 -> 0.1384417 | O34: =O21*O26+O15*O25 -> 0.09674072727 | S34: =S21*S26+S15*S25 -> 0.1054970323 | U34: =U21*U26+U15*U25 -> 0.06780690323 | V34: 0.06824490323 | W34: 0.06803490323 | X34: 0.06718890323 | Y34: 0.06336690323 | Z34: 0.06321090323 | AA34: 0.04554047059 | AB34: 0.04554047059 | AC34: 0.04554047059 | AD34: 0.04554047059 | AE34: 0.04554047059
A35: =ROW() -> 35 | C35: Real Pre Tax WACC (WPr) | E35: =(1+E34)/(1+E28)-1 -> 0.07528300436 | G35: =(1+G34)/(1+G28)-1 -> 0.05394575611 | H35: =(1+H34)/(1+H28)-1 -> 0.03063457267 | I35: =(1+I34)/(1+I28)-1 -> 0.05161463776 | J35: =(1+J34)/(1+J28)-1 -> 0.03296569102 | K35: 0.0678 | M35: 0.111 | O35: =(1+O34)/(1+O28)-1 -> 0.06894807726 | Q35: 0.096 | S35: =(1+S34)/(1+S28)-1 -> 0.07748248758 | U35: =(1+U34)/(1+U28)-1 -> 0.04789686283 | V35: 0.048326696 | W35: 0.04812061161 | X35: 0.04729038589 | Y35: 0.04353964988 | Z35: 0.05073021314 | AA35: 0.03375565611 | AB35: 0.03375565611 | AC35: 0.03375565611 | AD35: 0.03375565611 | AE35: 0.03375565611
A36: =ROW() -> 36 | C36: WACC: Vanilla
A37: =ROW() -> 37 | C37: Nominal After Tax WACC | E37: =E25*E15+E26*E22 -> 0.0957 | G37: =G25*G15+G26*G22 -> 0.07536 | H37: =H25*H15+H26*H22 -> 0.0446 | O37: =O25*O15+O26*O22 -> 0.091308 | S37: =S25*S15+S26*S22 -> 0.093408 | U37: =U25*U15+U26*U22 -> 0.059434 | V37: 0.059872 | W37: 0.059662 | X37: 0.058816 | Y37: 0.054994 | Z37: 0.054838 | AA37: 0.041554 | AB37: 0.041554 | AC37: 0.041554 | AD37: 0.041554 | AE37: 0.041554
A38: =ROW() -> 38 | C38: Real After Tax WACC | E38: =(1+E37)/(1+E28)-1 -> 0.06606343647 | G38: =(1+G37)/(1+G28)-1 -> 0.04907683119 | H38: =(1+H37)/(1+H28)-1 -> 0.01906864479 | O38: =(1+O37)/(1+O28)-1 -> 0.06365302144 | S38: =(1+S37)/(1+S28)-1 -> 0.06569980507 | U38: =(1+U37)/(1+U28)-1 -> 0.03968007851 | V38: 0.04010991168 | W38: 0.03990382728 | X38: 0.03907360157 | Y38: 0.03532286555 | Z38: 0.04245559673 | AA38: 0.02981411904 | AB38: 0.02981411904 | AC38: 0.02981411904 | AD38: 0.02981411904 | AE38: 0.02981411904
A39: =ROW() -> 39
A40: =ROW() -> 40 | C40: Cost of Debt; Debt Risk Premium (Drp)
A41: =ROW() -> 41 | C41: Trailing Average DRP | U41: =U11 -> 0.02429 | V41: =V11 -> 0.02502 | W41: =IF(Input!AA12="","",Input!AA12) -> 0.02467 | X41: =IF(Input!AB12="","",Input!AB12) -> 0.02326 | Y41: =IF(Input!AC12="","",Input!AC12) -> 0.01689 | Z41: =IF(Input!AD12="","",Input!AD12) -> 0.01663 | AA41: =IF(Input!AE13="","",Input!AE13) -> 0.02273 | AB41: =IF(Input!AF13="","",Input!AF13) ->  | AC41: =IF(Input!AG13="","",Input!AG13) ->  | AD41: =IF(Input!AH13="","",Input!AH13) ->  | AE41: =IF(Input!AI13="","",Input!AI13) -> 
A42: =ROW() -> 42 | C42: Modelled DRP | U42: =IF(U41="",T42,U41) -> 0.02429 | V42: =IF(V41="",U42,V41) -> 0.02502 | W42: 0.02467 | X42: 0.02326 | Y42: 0.01689 | Z42: 0.01663 | AA42: 0.02273 | AB42: 0.02273 | AC42: 0.02273 | AD42: 0.02273 | AE42: 0.02273
A43: =ROW() -> 43 | W43: If change these then change the Recalc_From_Date
A44: =ROW() -> 44
A45: =ROW() -> 45 | C45: Annual Update of Debt Risk Premium | U45: 2014 | V45: =U45+1 -> 2015 | W45: =V45+1 -> 2016 | X45: 2017 | Y45: =X45+1 -> 2018 | Z45: 2019 | AA45: 2020 | AB45: 2021 | AC45: 2022 | AD45: =AC45+1 -> 2023 | AE45: 2024
A46: =ROW() -> 46 | C46: Trailing Average DRP | V46: =IF(V58="","",ROUND(AVERAGE(V49:V67),5)) -> 0.02502 | W46: =IF(W57="","",ROUND(AVERAGE(W49:W67),5)) -> 0.02676 | X46: =IF(X56="","",ROUND(AVERAGE(X49:X67),5)) -> 0.02785 | Y46: =IF(Y55="","",ROUND(AVERAGE(Y49:Y67),5)) -> 0.02605 | Z46: =IF(Z54="","",ROUND(AVERAGE(Z49:Z67),5)) -> 0.02309 | AA46: =IF(AA53="","",ROUND(AVERAGE(AA49:AA67),5)) -> 0.02273 | AB46: =IF(AB52="","",ROUND(AVERAGE(AB49:AB67),5)) ->  | AC46: =IF(AC52="","",ROUND(AVERAGE(AC49:AC67),5)) -> 
A47: =ROW() -> 47
A48: =ROW() -> 48 | C48: Annual Debt Risk Premium, Year | U48: 2014 | V48: =U48+1 -> 2015 | W48: =V48+1 -> 2016 | X48: 2017 | Y48: 2018 | Z48: 2019 | AA48: 2020 | AB48: 2021 | AC48: 2022 | AD48: 2023 | AE48: 2024
A49: =ROW() -> 49 | C49: 2024 | AE49: =IF(Input!AI$12="","",Input!AI$12) -> 
A50: =ROW() -> 50 | C50: =C49-1 -> 2023 | AD50: =IF(Input!AH$12="","",Input!AH$12) ->  | AE50: =AD50 -> 
A51: =ROW() -> 51 | C51: 2022 | AC51: =IF(Input!AG$12="","",Input!AG$12) -> 
A52: =ROW() -> 52 | C52: 2021 | AB52: =IF(Input!AF$12="","",Input!AF$12) -> 
A53: =ROW() -> 53 | C53: 2020 | AA53: =IF(Input!AE$12="","",Input!AE$12) -> 0.0177 | AB53: 0.0177 | AC53: 0.0177 | AD53: 0.0177 | AE53: 0.0177
A54: =ROW() -> 54 | C54: =C53-1 -> 2019 | Z54: 0.01663 | AA54: 0.01663 | AB54: 0.01663 | AC54: 0.01663 | AD54: 0.01663 | AE54: 0.01663
A55: =ROW() -> 55 | C55: 2018 | Y55: 0.01689 | Z55: 0.01689 | AA55: 0.01689 | AB55: 0.01689 | AC55: 0.01689 | AD55: 0.01689 | AE55: 0.01689
A56: =ROW() -> 56 | C56: 2017 | X56: 0.02326 | Y56: 0.02326 | Z56: 0.02326 | AA56: 0.02326 | AB56: 0.02326 | AC56: 0.02326 | AD56: 0.02326 | AE56: 0.02326
A57: =ROW() -> 57 | C57: 2016 | W57: 0.02467 | X57: 0.02467 | Y57: 0.02467 | Z57: 0.02467 | AA57: 0.02467 | AB57: 0.02467 | AC57: 0.02467 | AD57: 0.02467 | AE57: 0.02467
A58: =ROW() -> 58 | C58: 2015 | V58: 0.01953 | W58: 0.01953 | X58: 0.01953 | Y58: 0.01953 | Z58: 0.01953 | AA58: 0.01953 | AB58: 0.01953 | AC58: 0.01953 | AD58: 0.01953 | AE58: 0.01953
A59: =ROW() -> 59 | C59: 2014 | U59: 0.0225 | V59: 0.0225 | W59: 0.0225 | X59: 0.0225 | Y59: 0.0225 | Z59: 0.0225 | AA59: 0.0225 | AB59: 0.0225 | AC59: 0.0225 | AD59: 0.0225
A60: =ROW() -> 60 | C60: 2013 | U60: 0.03068 | V60: 0.03068 | W60: 0.03068 | X60: 0.03068 | Y60: 0.03068 | Z60: 0.03068 | AA60: 0.03068 | AB60: 0.03068 | AC60: 0.03068
A61: =ROW() -> 61 | C61: 2012 | U61: 0.03172 | V61: 0.03172 | W61: 0.03172 | X61: 0.03172 | Y61: 0.03172 | Z61: 0.03172 | AA61: 0.03172 | AB61: 0.03172
A62: =ROW() -> 62 | C62: 2011 | U62: 0.02371 | V62: 0.02371 | W62: 0.02371 | X62: 0.02371 | Y62: 0.02371 | Z62: 0.02371 | AA62: 0.02371
A63: =ROW() -> 63 | C63: 2010 | U63: 0.02127 | V63: 0.02127 | W63: 0.02127 | X63: 0.02127 | Y63: 0.02127 | Z63: 0.02127
A64: =ROW() -> 64 | C64: 2009 | U64: 0.04624 | V64: 0.04624 | W64: 0.04624 | X64: 0.04624 | Y64: 0.04624
A65: =ROW() -> 65 | C65: 2008 | U65: 0.03489 | V65: 0.03489 | W65: 0.03489 | X65: 0.03489
A66: =ROW() -> 66 | C66: 2007 | U66: 0.01241 | V66: 0.01241 | W66: 0.01241
A67: =ROW() -> 67 | C67: 2006 | U67: 0.00724 | V67: 0.00724

Sheet Input
A1: =Main!A1 -> ERA, GDS Tariff Model, Final Decision, November 2019
A2: Inputs
A3: Ref | C3: =COLUMN() -> 3 | D3: =COLUMN() -> 4 | E3: =COLUMN() -> 5 | F3: =COLUMN() -> 6 | G3: =COLUMN() -> 7 | H3: =COLUMN() -> 8 | I3: =COLUMN() -> 9 | J3: =COLUMN() -> 10 | K3: =COLUMN() -> 11 | L3: =COLUMN() -> 12 | M3: =COLUMN() -> 13 | N3: =COLUMN() -> 14 | O3: =COLUMN() -> 15 | P3: =COLUMN() -> 16 | Q3: =COLUMN() -> 17 | R3: =COLUMN() -> 18 | S3: =COLUMN() -> 19 | T3: =COLUMN() -> 20 | U3: =COLUMN() -> 21 | V3: =COLUMN() -> 22 | W3: =COLUMN() -> 23 | X3: =COLUMN() -> 24 | Y3: =COLUMN() -> 25 | Z3: =COLUMN() -> 26 | AA3: =COLUMN() -> 27 | AB3: =COLUMN() -> 28 | AC3: =COLUMN() -> 29 | AD3: =COLUMN() -> 30 | AE3: =COLUMN() -> 31 | AF3: =COLUMN() -> 32 | AG3: =COLUMN() -> 33 | AH3: =COLUMN() -> 34 | AI3: =COLUMN() -> 35
A4: =ROW() -> 4 | J4: Year ending 31 December | O4: Year ending 31 December | T4: Year Ending 30 June | Y4: Year Ending 31 December | AG4: Year Ending 31 December
A5: Regulatory Period | J5: 1 | K5: 1 | L5: 1 | M5: 1 | N5: 1 | O5: 2 | P5: 2 | Q5: 2 | R5: 2 | S5: 2 | T5: 3 | U5: 3 | V5: 3 | W5: 3 | X5: 3 | Y5: 4 | Z5: 4 | AA5: 4 | AB5: 4 | AC5: 4 | AD5: 4 | AE5: 5 | AF5: 5 | AG5: 5 | AH5: 5 | AI5: 5
A6: Year ending | I6: 1999 | J6: 2000 | K6: 2001 | L6: 2002 | M6: 2003 | N6: 2004 | O6: 2005 | P6: 2006 | Q6: 2007 | R6: 2008 | S6: =1+R6 -> 2009 | T6: =1+S6 -> 2010 | U6: =T6+1 -> 2011 | V6: =U6+1 -> 2012 | W6: =V6+1 -> 2013 | X6: =W6+1 -> 2014 | Y6: 2014 | Z6: =Y6+1 -> 2015 | AA6: 2016 | AB6: 2017 | AC6: 2018 | AD6: 2019 | AE6: 2020 | AF6: 2021 | AG6: 2022 | AH6: 2023 | AI6: 2024
A7: Months | I7: 1 to 12 | J7: 1 to 12 | K7: 1 to 12 | L7: 1 to 12 | M7: 1 to 12 | N7: 1 to 12 | O7: 1 to 12 | P7: 1 to 12 | Q7: 1 to 12 | R7: 1 to 12 | S7: 1 to 12 | T7: 1 to 6 | U7: 7 to 6 | V7: 7 to 6 | W7: 7 to 6 | X7: 7 to 6 | Y7: 7 to 12 | Z7: 1 to 12 | AA7: 1 to 12 | AB7: 1 to 12 | AC7: 1 to 12 | AD7: 1 to 12 | AE7: 1 to 12 | AF7: 1 to 12 | AG7: 1 to 12 | AH7: 1 to 12 | AI7: 1 to 12
A8: Days | I8: 365 | J8: 366 | K8: 365 | L8: 365 | M8: 365 | N8: 366 | O8: 365 | P8: 365 | Q8: 365 | R8: 366 | S8: 365 | T8: 181 | U8: 365 | V8: 366 | W8: 365 | X8: 365 | Y8: =DATEVALUE("31/12/2014")-DATEVALUE("30/6/2014") -> 184 | Z8: 365 | AA8: 366 | AB8: 365 | AC8: 365 | AD8: 365 | AE8: 366 | AF8: 365 | AG8: 365 | AH8: 365 | AI8: 366
A9: Year portion | I9: 1 | J9: =I9 -> 1 | K9: =J9 -> 1 | L9: 1 | M9: 1 | N9: 1 | O9: 1 | P9: 1 | Q9: 1 | R9: 1 | S9: 1 | T9: =T8/365 -> 0.495890411 | U9: 1 | V9: =U9 -> 1 | W9: =V9 -> 1 | X9: 1 | Y9: =Y8/365 -> 0.504109589 | Z9: 1 | AA9: =Z9 -> 1 | AB9: =AA9 -> 1 | AC9: 1 | AD9: 1 | AE9: 1 | AF9: =AE9 -> 1 | AG9: =AF9 -> 1 | AH9: =AG9 -> 1 | AI9: =AH9 -> 1
A10: General Inputs
A11: =ROW() -> 11 | C11: Tariff Recalculation | F11: =IF(ISNUMBER($AI$12),$AI$6,IF(ISNUMBER($AH$12),$AH$6,IF(ISNUMBER($AG$12),$AG$6,IF(ISNUMBER($AF$12),$AF$6,$AE$6)))) -> 2020 | G11: =AI6 -> 2024
A12: =ROW() -> 12 | C12: Annual DRP | Y12: =WACC!U41 -> 0.02429 | Z12: 0.01953 | AA12: 0.02467 | AB12: 0.02326 | AC12: 0.01689 | AD12: 0.01663 | AE12: 0.0177
A13: =ROW() -> 13 | C13: Trailing Average DRP (10 year ave, modelled) | Y13: =WACC!U11 -> 0.02429 | Z13: =WACC!V11 -> 0.02502 | AA13: =WACC!W11 -> 0.02467 | AB13: =WACC!X11 -> 0.02326 | AC13: =WACC!Y11 -> 0.01689 | AD13: =WACC!Z11 -> 0.01663 | AE13: =IF(WACC!AA46="","",WACC!AA46) -> 0.02273 | AF13: =IF(WACC!AB46="","",WACC!AB46) ->  | AG13: =IF(WACC!AC46="","",WACC!AC46) ->  | AH13: =IF(WACC!AD46="","",WACC!AD46) ->  | AI13: =IF(WACC!AE46="","",WACC!AE46) -> 
A14: =ROW() -> 14 | C14: X-Factor (A1 to B2, Real) | AE14: =X_Factor_2020 -> 0.015 | AF14: =X_Factor_2021 -> 0.01404671681 | AG14: =X_Factor_2022 -> 0 | AH14: =X_Factor_2023 -> 0 | AI14: =X_Factor_2024 -> 0
A15: =ROW() -> 15 | C15: X-Factor (B3, Real) | AE15: =SolverSheet!I13 -> 0 | AF15: =SolverSheet!J13 -> 0.01404671681 | AG15: =SolverSheet!K13 -> 0 | AH15: =SolverSheet!L13 -> 0 | AI15: =SolverSheet!M13 -> 0
A16: =ROW() -> 16
A17: 8 Cities Inflation
A18: =ROW() -> 18 | I18: Actual | J18: Actual | K18: Actual | L18: Actual | M18: Actual | N18: Actual | O18: Actual | P18: Actual | Q18: Actual | R18: Actual | S18: Actual | T18: Actual | U18: Actual | V18: Actual | W18: Actual | X18: Actual | Y18: Actual | Z18: Actual | AA18: Actual | AB18: Actual | AC18: Actual | AD18: Forecast | AE18: Forecast | AF18: Forecast | AG18: Forecast | AH18: Forecast | AI18: Forecast
A19: =ROW() -> 19 | C19: Actual June and Forecast Inflation | I19: 1999-06-30 | J19: 2000-06-30 | K19: 2001-06-30 | L19: 2002-06-30 | M19: 2003-06-30 | N19: 2004-06-30 | O19: 2005-06-30 | P19: 2006-06-30 | Q19: 2007-06-30 | R19: 2008-06-30 | S19: 2009-06-30 | T19: 2010-06-30 | U19: 2011-06-30 | V19: 2012-06-30 | W19: 2013-06-30 | X19: 2014-06-30 | Y19: =X19 -> 2014-06-30 | Z19: 2015-06-30 | AA19: 2016-06-30 | AB19: 2017-06-30 | AC19: 2018-06-30 | AD19: 2019-06-30 | AE19: 2020-06-30 | AF19: 2021-06-30 | AG19: 2022-06-30 | AH19: 2023-06-30 | AI19: 2024-06-30
A20: =ROW() -> 20 | D20: June CPI All Groups, 8 Capital Cities - (Pre-2012 index) | I20: =J20/(1+J21) -> 122.3 | J20: 126.2 | K20: 133.8 | L20: 137.6 | M20: 141.3 | N20: 144.8 | O20: 148.4 | P20: 154.3 | Q20: 157.5 | R20: 164.6 | S20: 167 | T20: 172.1 | U20: 178.3 | V20: 180.4 | AC20: 113 | AD20: 114.8
A21: =ROW() -> 21 | D21: June inflation All Groups, 8 Capital Cities - (Pre-2012 index) | J21: 0.03188879804 | K21: 0.06022187005 | L21: 0.02840059791 | M21: 0.02688953488 | N21: 0.02476999292 | O21: 0.02486187845 | P21: 0.0397574124 | Q21: 0.02073882048 | R21: 0.04507936508 | S21: 0.01458080194 | T21: =T20/S20-1 -> 0.03053892216 | U21: =U20/T20-1 -> 0.03602556653 | V21: =V20/U20-1 -> 0.01177790241
A22: =ROW() -> 22 | D22: June CPI All Groups, 8 Capital Cities - published Mar-2014 | I22: =J22/(1+J21) -> 68.03058637 | J22: 70.2 | K22: 74.5 | L22: 76.6 | M22: 78.6 | N22: 80.6 | O22: 82.6 | P22: 85.9 | Q22: 87.7 | R22: 91.6 | S22: 92.9 | T22: 95.8 | U22: 99.2 | V22: 100.4 | W22: 102.8 | X22: 105.9 | Y22: =X22 -> 105.9 | Z22: 107.5 | AA22: 108.6 | AB22: 110.7 | AC22: 113 | AD22: 114.8 | AE22: =AC22*(1+AE23) -> 114.2882 | AF22: =AE22*(1+AF23) -> 115.5910855 | AG22: =AF22*(1+AG23) -> 116.9088239 | AH22: =AG22*(1+AH23) -> 118.2415844 | AI22: =AH22*(1+AI23) -> 119.5895385
A23: =ROW() -> 23 | D23: June inflation All Groups, 8 Capital Cities - (Sep-2012 base index) | J23: =J22/I22-1 -> 0.03188879804 | K23: =K22/J22-1 -> 0.06125356125 | L23: =L22/K22-1 -> 0.02818791946 | M23: =M22/L22-1 -> 0.02610966057 | N23: =N22/M22-1 -> 0.02544529262 | O23: =O22/N22-1 -> 0.02481389578 | P23: =P22/O22-1 -> 0.03995157385 | Q23: =Q22/P22-1 -> 0.02095459837 | R23: =R22/Q22-1 -> 0.04446978335 | S23: 0.01419213974 | T23: 0.03121636168 | U23: =U22/T22-1 -> 0.03549060543 | V23: 0.01209677419 | W23: =W22/V22-1 -> 0.02390438247 | X23: 0.03015564202 | Y23: =X23 -> 0.03015564202 | Z23: =Z22/Y22-1 -> 0.01510859301 | AA23: =AA22/Z22-1 -> 0.01023255814 | AB23: =AB22/AA22-1 -> 0.01933701657 | AC23: =AC22/AB22-1 -> 0.02077687444 | AD23: 0.01592920354 | AE23: =WACC!AA$28 -> 0.0114 | AF23: =WACC!AB$28 -> 0.0114 | AG23: =WACC!AC$28 -> 0.0114 | AH23: =WACC!AD$28 -> 0.0114 | AI23: =WACC!AE$28 -> 0.0114
A24: =ROW() -> 24
A25: =ROW() -> 25 | W25: Actual | X25: Actual | Y25: Actual | Z25: Actual | AA25: Actual | AB25: Actual | AC25: Actual | AD25: Forecast | AE25: Actual | AF25: Actual | AG25: Actual | AH25: Actual
A26: =ROW() -> 26 | C26: Actual September and Forecast Inflation | W26: 2013-09-30 | X26: 2014-09-30 | Y26: 2014-09-30 | Z26: 2015-09-30 | AA26: 2016-09-30 | AB26: 2017-09-30 | AC26: 2018-09-30 | AD26: 2019-09-30 | AE26: 2020-09-30 | AF26: 2021-09-30 | AG26: 2022-09-30 | AH26: 2023-09-30
A27: =ROW() -> 27 | D27: September CPI All Groups, 8 Capital Cities | W27: 104 | X27: 106.4035952 | Y27: =X27 -> 106.4035952 | Z27: 108 | AA27: 109.4 | AB27: 111.4 | AC27: 113.5 | AD27: =AC27*(1+AD28) -> 115.3079646
A28: =ROW() -> 28 | D28: September inflation All Groups, 8 Capital Cities | X28: =X27/W27-1 -> 0.02311149251 | Y28: =X28 -> 0.02311149251 | Z28: =Z27/Y27-1 -> 0.01500329736 | AA28: =AA27/Z27-1 -> 0.01296296296 | AB28: =AB27/AA27-1 -> 0.01828153565 | AC28: 0.01885098743 | AD28: =114.8/113-1 -> 0.01592920354 | AE28: =IF(AE27="","",AE27/AD27-1) ->  | AF28: =IF(AF27="","",AF27/AE27-1) -> 
A29: =ROW() -> 29
A30: =ROW() -> 30 | I30: Actual | J30: Actual | K30: Actual | L30: Actual | M30: Actual | N30: Actual | O30: Actual | P30: Actual | Q30: Actual | R30: Actual | S30: Actual | T30: Actual | U30: Actual | V30: Actual | W30: Actual | X30: Actual | Y30: Actual | Z30: Actual | AA30: Actual | AB30: Actual | AC30: Actual | AD30: Forecast | AE30: Forecast | AF30: Forecast | AG30: Forecast | AH30: Forecast | AI30: Forecast
A31: =ROW() -> 31 | C31: Actual December and Forecast Inflation | I31: 1999-12-31 | J31: 2000-12-31 | K31: 2001-12-31 | L31: 2002-12-31 | M31: 2003-12-31 | N31: 2004-12-31 | O31: 2005-12-31 | P31: 2006-12-31 | Q31: 2007-12-31 | R31: 2008-12-31 | S31: 2009-12-31 | T31: 2010-12-31 | U31: 2011-12-31 | V31: 2012-12-31 | W31: 2013-12-31 | X31: 2014-12-31 | Y31: =X31 -> 2014-12-31 | Z31: 2015-12-31 | AA31: 2016-12-31 | AB31: 2017-12-31 | AC31: 2018-12-31 | AD31: 2019-12-31 | AE31: 2020-12-31 | AF31: 2021-12-31 | AG31: 2022-12-31 | AH31: 2023-12-31 | AI31: 2024-12-03
A32: =ROW() -> 32 | D32: December CPI All Groups, 8 Capital Cities - (Pre-2012 index) | I32: 124.1 | J32: 131.3 | K32: 135.4 | L32: 139.5 | M32: 142.8 | N32: 146.5 | O32: 150.6 | P32: 155.5 | Q32: 160.1 | R32: 166 | S32: 169.5 | T32: 174 | U32: 179.4
A33: =ROW() -> 33 | D33: December inflation All Groups, 8 Capital Cities - (Pre-2012 index) | J33: 0.05801772764 | K33: 0.03122619954 | L33: 0.03028064993 | M33: 0.02365591398 | N33: 0.02591036415 | O33: 0.02798634812 | P33: 0.03253652058 | Q33: 0.02958199357 | R33: 0.03685196752 | S33: 0.02108433735 | T33: =T32/S32-1 -> 0.02654867257 | U33: =U32/T32-1 -> 0.03103448276
A34: =ROW() -> 34 | D34: December CPI All Groups, 8 Capital Cities | I34: 69.1 | J34: 73.1 | K34: 75.4 | L34: 77.6 | M34: 79.5 | N34: 81.5 | O34: 83.8 | P34: 86.6 | Q34: 89.1 | R34: 92.4 | S34: 94.3 | T34: 96.9 | U34: 99.8 | V34: 102 | W34: 104.8 | X34: 106.6 | Y34: =X34 -> 106.6 | Z34: 108.4 | AA34: 110 | AB34: 112.1 | AC34: 114.1 | AD34: =AD20*(1+AE35/4)^2 -> 115.4552925 | AE34: =AD34*(1+AE35) -> 116.7714828 | AF34: 118.1026777 | AG34: 119.4490482 | AH34: 120.8107674 | AI34: 122.1880101
A35: =ROW() -> 35 | D35: December inflation All Groups , 8 Capital Cities - (Sep-2012 base index) | J35: =J34/I34-1 -> 0.05788712012 | K35: 0.03146374829 | L35: 0.02917771883 | M35: 0.02448453608 | N35: 0.0251572327 | O35: 0.0282208589 | P35: 0.03341288783 | Q35: 0.02886836028 | R35: 0.03703703704 | S35: 0.02056277056 | T35: =T34/S34-1 -> 0.02757158006 | U35: 0.02992776058 | V35: =V34/U34-1 -> 0.02204408818 | W35: =W34/V34-1 -> 0.02745098039 | X35: =(X34/W34-1) -> 0.01717557252 | Y35: =X35*1+(Y34/W34-1)*0 -> 0.01717557252 | Z35: =Z34/Y34-1 -> 0.01688555347 | AA35: =AA34/Z34-1 -> 0.0147601476 | AB35: =AB34/AA34-1 -> 0.01909090909 | AC35: 0.0178412132 | AD35: =AD34/AC34-1 -> 0.01187811098 | AE35: =WACC!AA$28 -> 0.0114 | AF35: =WACC!AB$28 -> 0.0114 | AG35: =WACC!AC$28 -> 0.0114 | AH35: =WACC!AD$28 -> 0.0114 | AI35: =WACC!AE$28 -> 0.0114
A36: =ROW() -> 36
A37: =ROW() -> 37 | C37: Modelled Inflation
A38: =ROW() -> 38 | D38: Selected CPI period | F38: Base period: | G38: =AD38 -> 2019-12-31 | I38: =I31 -> 1999-12-31 | J38: 2000-12-31 | K38: 2001-12-31 | L38: 2002-12-31 | M38: 2003-12-31 | N38: 2004-12-31 | O38: 2005-12-31 | P38: 2006-12-31 | Q38: 2007-12-31 | R38: 2008-12-31 | S38: 2009-12-31 | T38: =T19 -> 2010-06-30 | U38: =U19 -> 2011-06-30 | V38: =V19 -> 2012-06-30 | W38: =W19 -> 2013-06-30 | X38: =X19 -> 2014-06-30 | Y38: =Y31 -> 2014-12-31 | Z38: 2015-12-31 | AA38: 2016-12-31 | AB38: 2017-12-31 | AC38: 2018-12-31 | AD38: 2019-12-31 | AE38: =AE31 -> 2020-12-31 | AF38: 2021-12-31 | AG38: 2022-12-31 | AH38: 2023-12-31 | AI38: 2024-12-03
A39: =ROW() -> 39 | D39: CPI | I39: =J39/(J40+1) -> 69.06674058 | J39: 73.07383592 | K39: 75.3556541 | L39: 77.63747228 | M39: 79.47405765 | N39: 81.53325942 | O39: 83.81507761 | P39: 86.5421286 | Q39: 89.10221729 | R39: 92.38580931 | S39: 94.33370288 | T39: 95.78070953 | U39: 99.23126386 | V39: =V22 -> 100.4 | W39: =W22 -> 102.8 | X39: =X22 -> 105.9 | Y39: =Y34 -> 106.6 | Z39: 108.4 | AA39: 110 | AB39: 112.1 | AC39: 114.1 | AD39: 115.4552925 | AE39: =AE34 -> 116.7714828 | AF39: 118.1026777 | AG39: 119.4490482 | AH39: 120.8107674 | AI39: 122.1880101
A40: =ROW() -> 40 | D40: Inflation | J40: =J$33 -> 0.05801772764 | K40: =K$33 -> 0.03122619954 | L40: 0.03028064993 | M40: 0.02365591398 | N40: 0.02591036415 | O40: 0.02798634812 | P40: 0.03253652058 | Q40: 0.02958199357 | R40: 0.03685196752 | S40: 0.02108433735 | T40: =T$20/S$32-1 -> 0.01533923304 | U40: =U$21 -> 0.03602556653 | V40: =V$21 -> 0.01177790241 | W40: =W39/V39-1 -> 0.02390438247 | X40: 0.03015564202 | Y40: 0.006610009443 | Z40: 0.01688555347 | AA40: 0.0147601476 | AB40: 0.01909090909 | AC40: 0.0178412132 | AD40: 0.01187811098 | AE40: =AE39/AD39-1 -> 0.0114 | AF40: =AF39/AE39-1 -> 0.0114 | AG40: =AG39/AF39-1 -> 0.0114 | AH40: =AH39/AG39-1 -> 0.0114 | AI40: =AI39/AH39-1 -> 0.0114
A41: Financial Parameters
A42: =ROW() -> 42 | C42: Inflation factor | L42: Actual 1 | Q42: Actual 2 | V42: Actual 3 | AA42: Actual 4 | AD42: Forecast | AG42: Forecast
A43: =ROW() -> 43 | D43: ="Inflation Factor (convert to real "&$G$43&" $)" -> Inflation Factor (convert to real 31/12/2019 $) | F43: Real $ at | G43: =TEXT($G$38,"dd/mm/yyyy") -> 31/12/2019 | I43: =HLOOKUP($G$38,$I$38:$AD$39,2,FALSE)/I$39 -> 1.671648199 | J43: 1.579981275 | K43: 1.532138415 | L43: 1.487107824 | M43: 1.452741887 | N43: 1.416051477 | O43: 1.377500275 | P43: 1.334093514 | Q43: 1.295762283 | R43: 1.249708081 | S43: 1.223902899 | T43: 1.205412792 | U43: 1.163497148 | V43: 1.149953112 | W43: 1.123105958 | X43: 1.090229391 | Y43: 1.083070286 | Z43: 1.065085724 | AA43: 1.049593568 | AB43: 1.029931244 | AC43: 1.011878111 | AD43: 1 | AE43: 0.9887284952 | AF43: 0.9775840371 | AG43: 0.9665651939 | AH43: 0.9556705497 | AI43: 0.9448987044
A44: =ROW() -> 44 | D44: ="Inflation Factor (convert " &$G$43& " $ to nominal $)" -> Inflation Factor (convert 31/12/2019 $ to nominal $) | I44: =1/I43 -> 0.5982119927 | J44: 0.6329188932 | K44: 0.6526825449 | L44: 0.6724461965 | M44: 0.6883535259 | N44: 0.7061890164 | O44: 0.7259526681 | P44: 0.749572642 | Q44: 0.7717464951 | R44: 0.8001868718 | S44: 0.8170582818 | T44: =1/T43 -> 0.8295913292 | U44: =1/U43 -> 0.8594778268 | V44: 0.8696006728 | W44: 0.8903879398 | X44: 0.9172381598 | Y44: 0.9233011127 | Z44: 0.938891563 | AA44: 0.9527497411 | AB44: 0.9709385998 | AC44: 0.9882613223 | AD44: 1 | AE44: =1/AE43 -> 1.0114 | AF44: 1.02292996 | AG44: 1.034591362 | AH44: 1.046385703 | AI44: 1.0583145
A45: =ROW() -> 45 | C45: Real Pre-tax WACC | L45: Approved 1 | Q45: Approved 2 | V45: Actual 3 | AA45: Actual 4 | AD45: Forecast | AG45: Forecast
A46: =ROW() -> 46 | D46: WACC | J46: =WACC!E35 -> 0.07528300436 | K46: =J46 -> 0.07528300436 | L46: =K46 -> 0.07528300436 | M46: =L46 -> 0.07528300436 | N46: =M46 -> 0.07528300436 | O46: =WACC!K35 -> 0.0678 | P46: =O46 -> 0.0678 | Q46: =P46 -> 0.0678 | R46: =Q46 -> 0.0678 | S46: =R46 -> 0.0678 | T46: =(1+U46)^(T$8/365)-1 -> 0.03770024064 | U46: =WACC!$S$35 -> 0.07748248758 | V46: =U46 -> 0.07748248758 | W46: =V46 -> 0.07748248758 | X46: =W46 -> 0.07748248758
A47: =ROW() -> 47 | D47: Discounting Factor | J47: =K47*(1+J46) -> 1.868846251 | K47: 1.738004082 | L47: 1.61632247 | M47: 1.503160065 | N47: 1.397920416 | O47: 1.300048834 | P47: 1.217502186 | Q47: 1.14019684 | R47: 1.0678 | S47: 1 | T47: =S47/(1+T46) -> 0.9636694306 | U47: =T47/(1+U46) -> 0.8943713162 | V47: =U47/(1+V46) -> 0.8300564756 | W47: =V47/(1+W46) -> 0.7703665583 | X47: =W47/(1+X46) -> 0.714968983
A48: =ROW() -> 48 | C48: Real Post Tax WACC
A49: =ROW() -> 49 | D49: WACC | T49: =(1+U49)^(T$8/365)-1 -> 0.03205745465 | U49: =WACC!$S$38 -> 0.06569980507 | V49: =U49 -> 0.06569980507 | W49: =V49 -> 0.06569980507 | X49: =W49 -> 0.06569980507 | Y49: =(1+WACC!U$38)^Y$9-1 -> 0.0198101078 | Z49: =WACC!V$38 -> 0.04010991168 | AA49: =WACC!W$38 -> 0.03990382728 | AB49: =WACC!X$38 -> 0.03907360157 | AC49: =WACC!Y$38 -> 0.03532286555 | AD49: =WACC!Z$38 -> 0.04245559673 | AE49: =WACC!AA$38 -> 0.02981411904 | AF49: =WACC!AA$38 -> 0.02981411904 | AG49: =WACC!AB$38 -> 0.02981411904 | AH49: =WACC!AC$38 -> 0.02981411904 | AI49: =WACC!AD$38 -> 0.02981411904
A50: =ROW() -> 50 | D50: Discounting Factor | T50: =1/(1+T49) -> 0.9689383043 | U50: =T50/(1+U49) -> 0.9092037923 | V50: =U50/(1+V49) -> 0.8531518801 | W50: =V50/(1+W49) -> 0.8005555374 | X50: =W50/(1+X49) -> 0.7512017301 | Y50: =1/(1+Y49) -> 0.9805747093 | Z50: =Y50/(1+Z49) -> 0.9427606624 | AA50: =Z50/(1+AA49) -> 0.9065844722 | AB50: =AA50/(1+AB49) -> 0.8724930273 | AC50: =AB50/(1+AC49) -> 0.8427255461 | AD50: =AC50/(1+AD49) -> 0.8084042608 | AE50: =1/(1+AE49) -> 0.9710490287 | AF50: =AE50/(1+AF49) -> 0.9429362161 | AG50: =AF50/(1+AG49) -> 0.9156372967 | AH50: =AG50/(1+AH49) -> 0.8891287076 | AI50: =AH50/(1+AI49) -> 0.8633875678
A51: =ROW() -> 51 | C51: Nominal Post Tax WACC
A52: =ROW() -> 52 | D52: WACC | T52: =(1+U52)^(T$8/365)-1 -> 0.04527784254 | U52: =WACC!$S$37 -> 0.093408 | V52: =U52 -> 0.093408 | W52: =V52 -> 0.093408 | X52: =W52 -> 0.093408 | Y52: =(1+WACC!U$37)^Y$9-1 -> 0.02953234787 | Z52: =WACC!V$37 -> 0.059872 | AA52: =WACC!W$37 -> 0.059662 | AB52: =WACC!X$37 -> 0.058816 | AC52: =WACC!Y$37 -> 0.054994 | AD52: =WACC!Z$37 -> 0.054838 | AE52: =WACC!AA$37 -> 0.041554 | AF52: =WACC!AA$37 -> 0.041554 | AG52: =WACC!AB$37 -> 0.041554 | AH52: =WACC!AC$37 -> 0.041554 | AI52: =WACC!AD$37 -> 0.041554
A53: =ROW() -> 53 | D53: Discounting Factor | T53: =1/(1+T52) -> 0.9566834379 | U53: =T53/(1+U52) -> 0.8749555865 | V53: =U53/(1+V52) -> 0.8002096075 | W53: =V53/(1+W52) -> 0.7318490513 | X53: =W53/(1+X52) -> 0.6693284221 | Y53: =1/(1+Y52) -> 0.9713147936 | Z53: =Y53/(1+Z52) -> 0.9164453761 | AA53: =Z53/(1+AA52) -> 0.8648468814 | AB53: =AA53/(1+AB52) -> 0.8168056409 | AC53: =AB53/(1+AC52) -> 0.7742277595 | AD53: =AC53/(1+AD52) -> 0.7339778804 | AE53: =1/(1+AE52) -> 0.9601038448 | AF53: =AE53/(1+AF52) -> 0.9217993929 | AG53: =AF53/(1+AG52) -> 0.8850231412 | AH53: =AG53/(1+AH52) -> 0.8497141207 | AI53: =AH53/(1+AI52) -> 0.8158137943
A54: =ROW() -> 54
A55: Assets Life
A56: =ROW() -> 56 | J56: 1999-2013/14 | Y56: Capex from Jun-2014 onwards | Z56: Capex from 2020 onwards | AB56: Capex up to Dec-2007 | AC56: Capex from 2008 Onwards | AD56: Capex from 2020 Onwards
A57: =ROW() -> 57 | C57: Asset Life for new Capex (years) | J57: Economic Life | Y57: Economic Life | Z57: Economic Life | AB57: Tax Asset Life | AC57: Tax Asset Life | AD57: Tax Asset Life
A58: =ROW() -> 58 | D58: High Pressure Mains - Steel | J58: 120 | Y58: 80 | Z58: =Y58 -> 80 | AB58: 20 | AC58: 20 | AD58: 20
A59: =ROW() -> 59 | D59: High Pressure Mains - PE | J59: 120 | Y59: 60 | Z59: =Y59 -> 60 | AB59: 20 | AC59: 20 | AD59: 20
A60: =ROW() -> 60 | D60: Medium Pressure Mains | J60: 60 | Y60: 60 | Z60: 60 | AB60: 20 | AC60: 20 | AD60: 20
A61: =ROW() -> 61 | D61: Medium / Low Pressure Mains | J61: 60 | Y61: 60 | Z61: 60 | AB61: 20 | AC61: 20 | AD61: 20
A62: =ROW() -> 62 | D62: Low Pressure Mains | J62: 60 | Y62: 60 | Z62: 60 | AB62: 20 | AC62: 20 | AD62: 20
A63: =ROW() -> 63 | D63: Regulators | J63: 40 | Y63: 40 | Z63: 40 | AB63: 40 | AC63: 40 | AD63: 40
A64: =ROW() -> 64 | D64: Secondary Gate Stations | J64: 40 | Y64: 40 | Z64: 40 | AB64: 40 | AC64: 40 | AD64: 40
A65: =ROW() -> 65 | D65: Buildings | J65: 40 | Y65: 40 | Z65: 40 | AB65: 40 | AC65: 40 | AD65: 40
A66: =ROW() -> 66 | D66: Meter and Services Pipes | J66: 25 | Y66: 25 | Z66: 25 | AB66: 25 | AC66: 15 | AD66: 15
A67: =ROW() -> 67 | D67: Equipment & Vehicles | J67: 10 | Y67: 10 | Z67: 10 | AB67: 10 | AC67: 10 | AD67: 10
A68: =ROW() -> 68 | D68: Vehicle | J68: 10 | Y68: 10 | Z68: =Y68 -> 10 | AB68: 10 | AC68: 10 | AD68: 10
A69: =ROW() -> 69 | D69: Information Technology | J69: 5 | Y69: 5 | Z69: 5 | AB69: 4 | AC69: 4 | AD69: 5
A70: =ROW() -> 70 | D70: Miscellaneous IT equipment | J70: 5 | Y70: 5 | Z70: =Y70 -> 5 | AB70: 4 | AC70: 4 | AD70: 5
A71: =ROW() -> 71 | D71: Telemetry and Monitoring | J71: 10 | Y71: 10 | Z71: 10 | AB71: 10 | AC71: 10 | AD71: 10
A72: =ROW() -> 72 | D72: FRC | J72: 5 | Y72: 5 | Z72: 5 | AB72: 4 | AC72: 4 | AD72: 4
A73: =ROW() -> 73 | D73: Land | J73: 0 | Y73: 0 | Z73: 0 | AB73: 0 | AC73: 0 | AD73: 0
A74: =ROW() -> 74 | D74: Equity Raising Cost | J74: =SUMPRODUCT($J$58:$J$72,Asset!$Y$55:$Y$69)/SUM(Asset!$Y$55:$Y$69) -> 65.84000521 | Y74: =J74 -> 65.84000521 | Z74: =SUMPRODUCT($Z$58:$Z$72,Asset!$AE$55:$AE$69)/SUM(Asset!$AE$55:$AE$69) -> 53.49284883 | AB74: 5 | AC74: 5 | AD74: 5
A75: Initial Capital Base | N75: ICB as at 31/12/2004 | S75: ICB as at 31/12/2009
A76: =ROW() -> 76 | C76: Initial Capital Base | F76: Life 31/12/98 | G76: BT E&Y Tax Asset Life 31/12/1998 | I76: Initial Value at 1999 m$ 31/12/99 | M76: ="Initial Value at 1999 m$ 31/12/04" -> Initial Value at 1999 m$ 31/12/04 | N76: WDV in 2004 m$ 31/12/04 | O76: Over depreciation correction | R76: ="Initial Value at 1999 m$ 31/12/09" -> Initial Value at 1999 m$ 31/12/09 | S76: WDV in 2004 m$ 31/12/09 | T76: Over depreciation correction | W76: ="Initial Value at 1999 m$ "&$G$43 -> Initial Value at 1999 m$ 31/12/2019 | X76: ="WDV in 2004 m$ "&$G$43 -> WDV in 2004 m$ 31/12/2019
A77: =ROW() -> 77 | D77: High Pressure Mains - Steel | F77: 106 | G77: 106 | I77: 149.0525001 | M77: =I77*$I$43/$N$43 -> 175.9564163 | N77: 167.7680127 | O77: 0 | R77: =M77*$N$43/$S$43 -> 203.5809732 | S77: 194.1070181 | T77: =O77*$N$43 -> 0 | W77: =R77*$S$43/$X$43 -> 228.5421265 | X77: =N77*$N$43 -> 237.5681423 | Y77: =O77*$N$43 -> 0
A78: =ROW() -> 78 | D78: High Pressure Mains - PE | F78: 106 | M78: =I78*$I$43/$N$43 -> 0 | R78: =M78*$N$43/$S$43 -> 0 | T78: =O78*$N$43 -> 0 | W78: =R78*$S$43/$X$43 -> 0 | X78: 0 | Y78: 0
A79: =ROW() -> 79 | D79: Medium Pressure Mains | F79: 51 | G79: 51 | I79: 176.9970506 | M79: 208.944947 | N79: 188.6930491 | O79: 0 | R79: 241.7485905 | S79: 218.3172139 | T79: =O79*$N$43 -> 0 | W79: 271.3894924 | X79: 267.199071 | Y79: 0
A80: =ROW() -> 80 | D80: Medium / Low Pressure Mains | F80: 41 | G80: 41 | I80: 96.15873274 | M80: 113.5153453 | N80: 99.14965429 | O80: 0 | R80: 131.336867 | S80: 114.7158116 | T80: =O80*$N$43 -> 0 | W80: 147.4401385 | X80: 140.4010144 | Y80: 0
A81: =ROW() -> 81 | D81: Low Pressure Mains | F81: 33 | G81: 33 | I81: 27.7917523 | M81: 32.80815239 | N81: 27.64155259 | O81: -0.5911241171 | R81: 37.95892035 | S81: 31.98118201 | T81: -0.683928586 | W81: 42.61308039 | X81: 39.14186139 | Y81: -0.8370621793
A82: =ROW() -> 82 | D82: Regulators | F82: 28 | G82: 28 | I82: 9.716025086 | M82: 11.4697637 | N82: 9.535022566 | O82: 0 | R82: 13.27047745 | S82: 11.03198857 | T82: 0 | W82: 14.89757658 | X82: 13.50208279 | Y82: 0
A83: =ROW() -> 83 | D83: Secondary Gate Stations | F83: 25 | G83: 25 | I83: 1.972158078 | M83: 2.328131817 | N83: 1.837078987 | O83: -0.04208879663 | R83: 2.693640566 | S83: 2.125494118 | T83: -0.04869659406 | W83: 3.02390903 | X83: 2.601398414 | Y83: -0.05959990266
A84: =ROW() -> 84 | D84: Buildings | F84: 24 | G84: 24 | I84: 1.739642739 | M84: 2.053647553 | N84: 1.601656344 | O84: 0 | R84: 2.376063209 | S84: 1.853110923 | T84: 0 | W84: 2.667393373 | X84: 2.268027832 | Y84: 0
A85: =ROW() -> 85 | D85: Meter and Services Pipes | F85: 11 | G85: 11 | I85: 52.79515012 | M85: 62.32465345 | N85: 35.72045608 | O85: 0 | R85: 72.10941132 | S85: 41.32844578 | T85: 0 | W85: 80.9507782 | X85: 50.58200461 | Y85: 0
A86: =ROW() -> 86 | D86: Equipment & Vehicles | F86: 11 | G86: 6 | I86: 15.06392605 | M86: 17.78295863 | N86: 2.494216868 | O86: -5.384402837 | R86: 20.57482245 | S86: 2.885800404 | T86: -6.229735706 | W86: 23.09751054 | X86: 3.531939481 | Y86: -7.624591593
A87: =ROW() -> 87 | D87: Vehicle | F87: 11 | M87: 0 | R87: 0 | S87: 0 | T87: =O87*$N$43 -> 0 | W87: 0 | X87: 0 | Y87: 0
A88: =ROW() -> 88 | D88: Information Technology | F88: 6 | I88: 0 | M88: 0 | N88: 0 | O88: 0 | R88: 0 | S88: 0 | T88: 0 | W88: 0 | X88: 0 | Y88: 0
A89: =ROW() -> 89 | D89: Miscellaneous IT equipment | F89: 0 | I89: 0 | M89: =I89*$I$43/$N$43 -> 0 | N89: 0 | O89: 0 | R89: =M89*$N$43/$S$43 -> 0 | S89: 0 | T89: =O89*$N$43 -> 0 | W89: =R89*$S$43/$X$43 -> 0 | X89: =N89*$N$43 -> 0 | Y89: =O89*$N$43 -> 0
A90: =ROW() -> 90 | D90: Telemetry and Monitoring | F90: 0 | I90: 0 | M90: =I90*$I$43/$N$43 -> 0 | N90: 0 | O90: 0 | R90: =M90*$N$43/$S$43 -> 0 | S90: 0 | T90: 0 | W90: =R90*$S$43/$X$43 -> 0 | X90: =N90*$N$43 -> 0 | Y90: =O90*$N$43 -> 0
A91: =ROW() -> 91 | D91: FRC | F91: 6 | I91: 0 | M91: 0 | N91: 0 | O91: 0 | R91: 0 | S91: 0 | T91: 0 | W91: 0 | X91: 0 | Y91: 0
A92: =ROW() -> 92 | D92: Land | F92: 0 | I92: 4.470241902 | M92: =I92*$I$43/$N$43 -> 5.277118764 | N92: 5.277118764 | O92: 0 | R92: =M92*$N$43/$S$43 -> 6.105608399 | S92: 6.105608399 | T92: 0 | W92: =R92*$S$43/$X$43 -> 6.854219751 | X92: =N92*$N$43 -> 7.472671822 | Y92: =O92*$N$43 -> 0
A93: =ROW() -> 93 | D93: Equity Raising Cost | F93: 0 | M93: 0 | O93: 0 | R93: 0 | T93: 0 | W93: 0 | X93: 0 | Y93: 0
A94: =ROW() -> 94 | D94: Total | I94: =SUM(I77:I93) -> 535.7571798 | M94: =SUM(M77:M93) -> 632.4611349 | N94: =SUM(N77:N93) -> 539.7178184 | O94: =SUM(O77:O93) -> -6.017615751 | R94: =SUM(R77:R93) -> 731.7553745 | S94: =SUM(S77:S93) -> 624.4516738 | T94: =SUM(T77:T93) -> -6.962360886 | W94: =SUM(W77:W93) -> 821.4762253 | X94: =SUM(X77:X93) -> 764.2682141 | Y94: =SUM(Y77:Y93) -> -8.521253675
A95: =ROW() -> 95
A96: Vines, New Assets
A97: =ROW() -> 97 | C97: CAPEX | P97: Life at 31/12/09 | Q97: Tax Asset Life at 31/12/09 | R97: m$ 31/12/09 | S97: ="m$ "&TEXT($G$43,"d/m/yy") -> m$ 31/12/19
A98: =ROW() -> 98 | D98: High Pressure Mains - Steel | P98: 0 | Q98: 0 | R98: 0 | S98: =R98*$S$43 -> 0
A99: =ROW() -> 99 | D99: High Pressure Mains - PE | P99: 0 | Q99: 0 | R99: 0 | S99: =R99*$S$43 -> 0
A100: =ROW() -> 100 | D100: Medium Pressure Mains | P100: 0 | Q100: 0 | R100: 0 | S100: 0
A101: =ROW() -> 101 | D101: Medium / Low Pressure Mains | P101: 50.34 | Q101: =$AC61-($J61-P101)-1 -> 9.34 | R101: 0.426991 | S101: 0.5225955229
A102: =ROW() -> 102 | D102: Low Pressure Mains | P102: 0 | Q102: 0 | R102: 0 | S102: 0
A103: =ROW() -> 103 | D103: Regulators | P103: 0 | Q103: 0 | R103: 0 | S103: 0
A104: =ROW() -> 104 | D104: Secondary Gate Stations | P104: 0 | Q104: 0 | R104: 0 | S104: 0
A105: =ROW() -> 105 | D105: Buildings | P105: 0 | Q105: 0 | R105: 0 | S105: 0
A106: =ROW() -> 106 | D106: Meter and Services Pipes | P106: 15.34 | Q106: =$AC66-($J66-P106)-1 -> 4.34 | R106: 0.152832 | S106: 0.1870515279
A107: =ROW() -> 107 | D107: Equipment & Vehicles | P107: 0 | Q107: 0 | R107: 0 | S107: 0
A108: =ROW() -> 108 | D108: Vehicle | P108: 0 | Q108: 0 | S108: 0
A109: =ROW() -> 109 | D109: Information Technology | P109: 0 | Q109: 0 | R109: 0 | S109: 0
A110: =ROW() -> 110 | D110: Miscellaneous IT equipment | P110: 0 | Q110: 0 | R110: 0 | S110: =R110*$S$43 -> 0
A111: =ROW() -> 111 | D111: Telemetry and Monitoring | P111: 0 | Q111: 0 | R111: 0 | S111: =R111*$S$43 -> 0
A112: =ROW() -> 112 | D112: FRC | P112: 0 | Q112: 0 | R112: 0 | S112: 0
A113: =ROW() -> 113 | D113: Land | P113: 0 | Q113: 0 | R113: 0 | S113: 0
A114: =ROW() -> 114 | D114: Equity Raising Cost | P114: 0 | Q114: 0 | R114: 0 | S114: 0
A115: =ROW() -> 115 | D115: Total | R115: =SUM(R98:R114) -> 0.579823 | S115: =SUM(S98:S114) -> 0.7096470508 | X115: =SUM(X98:X114) -> 0
A116: West Net Energy, New Assets
A117: =ROW() -> 117 | C117: CAPEX | R117: Life 30/06/10 | S117: Tax Asset Life at 30/6/10 | T117: m$ 30/6/10 | U117: ="m$ "&TEXT($G$43,"d/m/yy") -> m$ 31/12/19
A118: =ROW() -> 118 | D118: High Pressure Mains - Steel | R118: 0 | S118: 0 | T118: 0
A119: =ROW() -> 119 | D119: High Pressure Mains - PE | R119: 0 | S119: 0 | T119: 0
A120: =ROW() -> 120 | D120: Medium Pressure Mains | R120: 0 | S120: 0 | T120: 0
A121: =ROW() -> 121 | D121: Medium / Low Pressure Mains | R121: 0 | S121: 0 | T121: 0
A122: =ROW() -> 122 | D122: Low Pressure Mains | R122: 0 | S122: 0 | T122: 0
A123: =ROW() -> 123 | D123: Regulators | R123: 0 | S123: 0 | T123: 0
A124: =ROW() -> 124 | D124: Secondary Gate Stations | R124: 0 | S124: 0 | T124: 0
A125: =ROW() -> 125 | D125: Buildings | R125: 35.09881279 | S125: =$AC65-($J65-R125)-0.5 -> 34.59881279 | T125: =0.0130522132542073 -> 0.01305221325 | U125: =T125*$T$43 -> 0.01573330482
A126: =ROW() -> 126 | D126: Meter and Services Pipes | R126: 0 | S126: 0 | T126: 0
A127: =ROW() -> 127 | D127: Equipment & Vehicles | R127: 6.536661454 | S127: =$AC67-($J67-R127)-0.5 -> 6.036661454 | T127: =2.88462274182994 -> 2.884622742 | U127: =T127*$T$43 -> 3.477161152
A128: =ROW() -> 128 | D128: Vehicle | R128: 0 | S128: 0 | T128: 0
A129: =ROW() -> 129 | D129: Information Technology | R129: 4.021920327 | S129: =$AC69-($J69-R129)-0.5 -> 2.521920327 | T129: =0.104081321679867 -> 0.1040813217 | U129: =T129*$T$43 -> 0.1254609565
A130: =ROW() -> 130 | D130: Miscellaneous IT equipment | R130: 0 | S130: 0 | T130: 0 | U130: =T130*$T$43 -> 0
A131: =ROW() -> 131 | D131: Telemetry and Monitoring | R131: 0 | S131: 0 | T131: 0
A132: =ROW() -> 132 | D132: FRC | R132: 0 | S132: 0 | T132: 0
A133: =ROW() -> 133 | D133: Land | R133: 0 | S133: 0 | T133: 0
A134: =ROW() -> 134 | D134: Equity Raising Cost | R134: 0 | S134: 0 | T134: 0
A135: =ROW() -> 135 | D135: Total | T135: =SUM(T118:T134) -> 3.001756277 | U135: =SUM(U118:U134) -> 3.618355413 | Y135: =SUM(Y118:Y134) -> 0
A136: Redundant Assets (ICB)
A137: =ROW() -> 137 | C137: Redundant Asset | O137: Actual 2 [m$ 30/6/2014] | T137: Actual 3 [m$ 30/6/2014] | Z137: Actual 4 [m$ 31/12/2019] | AD137: Forecast [m$ 31/12/2019] | AG137: Forecast 5 [m$ 31/12/2019]
A138: =ROW() -> 138 | D138: High Pressure Mains - Steel | O138: 0 | P138: 0 | Q138: 0 | R138: 0 | S138: 0 | T138: 0 | U138: 0 | V138: 0 | W138: 0 | X138: 0 | Y138: 0 | Z138: 0 | AA138: 0 | AB138: 0 | AC138: 0 | AD138: 0 | AE138: 0 | AF138: 0 | AG138: 0 | AH138: 0 | AI138: 0
A139: =ROW() -> 139 | D139: High Pressure Mains - PE | O139: 0 | P139: 0 | Q139: 0 | R139: 0 | S139: 0 | T139: 0 | U139: 0 | V139: 0 | W139: 0 | X139: 0 | Y139: 0 | Z139: 0 | AA139: 0 | AB139: 0 | AC139: 0 | AD139: 0 | AE139: 0 | AF139: 0 | AG139: 0 | AH139: 0 | AI139: 0
A140: =ROW() -> 140 | D140: Medium Pressure Mains | O140: 0 | P140: 0 | Q140: 0 | R140: 0 | S140: 0 | T140: 0 | U140: 0 | V140: 0 | W140: 0 | X140: 0 | Y140: 0 | Z140: 0 | AA140: 0 | AB140: 0 | AC140: 0 | AD140: 0 | AE140: 0 | AF140: 0 | AG140: 0 | AH140: 0 | AI140: 0
A141: =ROW() -> 141 | D141: Medium / Low Pressure Mains | O141: 0 | P141: 0 | Q141: 0 | R141: 0 | S141: 0 | T141: 0 | U141: 0 | V141: 0 | W141: 0 | X141: 0 | Y141: 0 | Z141: 0 | AA141: 0 | AB141: 0 | AC141: 0 | AD141: 0 | AE141: 0 | AF141: 0 | AG141: 0 | AH141: 0 | AI141: 0
A142: =ROW() -> 142 | D142: Low Pressure Mains | O142: 0 | P142: 0 | Q142: 0 | R142: 0 | S142: 0 | T142: 0 | U142: 0 | V142: 0 | W142: 0 | X142: 0 | Y142: 0 | Z142: 0 | AA142: 0 | AB142: 0 | AC142: 0 | AD142: 0 | AE142: 0 | AF142: 0 | AG142: 0 | AH142: 0 | AI142: 0
A143: =ROW() -> 143 | D143: Regulators | O143: 0 | P143: 0 | Q143: 0 | R143: 0 | S143: 0 | T143: 0 | U143: 0 | V143: 0 | W143: 0 | X143: 0 | Y143: 0 | Z143: 0 | AA143: 0 | AB143: 0 | AC143: 0 | AD143: 0 | AE143: 0 | AF143: 0 | AG143: 0 | AH143: 0 | AI143: 0
A144: =ROW() -> 144 | D144: Secondary Gate Stations | O144: 0 | P144: 0 | Q144: 0 | R144: 0 | S144: 0 | T144: 0 | U144: 0 | V144: 0 | W144: 0 | X144: 0 | Y144: 0 | Z144: 0 | AA144: 0 | AB144: 0 | AC144: 0 | AD144: 0 | AE144: 0 | AF144: 0 | AG144: 0 | AH144: 0 | AI144: 0
A145: =ROW() -> 145 | D145: Buildings | O145: 0 | P145: 0 | Q145: 0 | R145: 0 | S145: 0 | T145: 0 | U145: 0 | V145: 0 | W145: 0 | X145: 0 | Y145: 0 | Z145: 0 | AA145: 0 | AB145: 0 | AC145: 0 | AD145: 0 | AE145: 0 | AF145: 0 | AG145: 0 | AH145: 0 | AI145: 0
A146: =ROW() -> 146 | D146: Meter and Services Pipes | O146: 0 | P146: 0 | Q146: 0 | R146: 0 | S146: 0 | T146: 0 | U146: 0 | V146: 0 | W146: 0 | X146: 0 | Y146: 0 | Z146: 0 | AA146: 0 | AB146: 0 | AC146: 0 | AD146: 0 | AE146: 0 | AF146: 0 | AG146: 0 | AH146: 0 | AI146: 0
A147: =ROW() -> 147 | D147: Equipment & Vehicles | O147: 0 | P147: 0 | Q147: 0 | R147: 0 | S147: 0 | T147: 0 | U147: 0 | V147: 0 | W147: 0 | X147: 0 | Y147: 0 | Z147: 0 | AA147: 0 | AB147: 0 | AC147: 0 | AD147: 0 | AE147: 0 | AF147: 0 | AG147: 0 | AH147: 0 | AI147: 0
A148: =ROW() -> 148 | D148: Vehicle | O148: 0 | P148: 0 | Q148: 0 | R148: 0 | S148: 0 | T148: 0 | U148: 0 | V148: 0 | W148: 0 | X148: 0 | Y148: 0 | Z148: 0 | AA148: 0 | AB148: 0 | AC148: 0 | AD148: 0 | AE148: 0 | AF148: 0 | AG148: 0 | AH148: 0 | AI148: 0
A149: =ROW() -> 149 | D149: Information Technology | O149: 0 | P149: 0 | Q149: 0 | R149: 0 | S149: 0 | T149: 0 | U149: 0 | V149: 0 | W149: 0 | X149: 0 | Y149: 0 | Z149: 0 | AA149: 0 | AB149: 0 | AC149: 0 | AD149: 0 | AE149: 0 | AF149: 0 | AG149: 0 | AH149: 0 | AI149: 0
A150: =ROW() -> 150 | D150: Miscellaneous IT equipment | O150: 0 | P150: 0 | Q150: 0 | R150: 0 | S150: 0 | T150: 0 | U150: 0 | V150: 0 | W150: 0 | X150: 0 | Y150: 0 | Z150: 0 | AA150: 0 | AB150: 0 | AC150: 0 | AD150: 0 | AE150: 0 | AF150: 0 | AG150: 0 | AH150: 0 | AI150: 0
A151: =ROW() -> 151 | D151: Telemetry and Monitoring
A152: =ROW() -> 152 | D152: FRC | O152: 0 | P152: 0 | Q152: 0 | R152: 0 | S152: 0 | T152: 0 | U152: 0 | V152: 0 | W152: 0 | X152: 0 | Y152: 0 | Z152: 0 | AA152: 0 | AB152: 0 | AC152: 0 | AD152: 0 | AE152: 0 | AF152: 0 | AG152: 0 | AH152: 0 | AI152: 0
A153: =ROW() -> 153 | D153: Land | O153: 0 | P153: 0 | Q153: 0 | R153: 0 | S153: 0 | T153: 0 | U153: 0 | V153: 0 | W153: 0 | X153: 0 | Y153: 0 | Z153: 0 | AA153: 0 | AB153: 0 | AC153: 0 | AD153: 0 | AE153: 0 | AF153: 0 | AG153: 0 | AH153: 0 | AI153: 0
A154: =ROW() -> 154 | D154: Equity Raising Cost | O154: 0 | P154: 0 | Q154: 0 | R154: 0 | S154: 0 | T154: 0 | U154: 0 | V154: 0 | W154: 0 | X154: 0 | Y154: 0 | Z154: 0 | AA154: 0 | AB154: 0 | AC154: 0 | AD154: 0 | AE154: 0 | AF154: 0 | AG154: 0 | AH154: 0 | AI154: 0
A155: =ROW() -> 155 | D155: Total | O155: =SUM(O138:O154) -> 0 | P155: 0 | Q155: 0 | R155: 0 | S155: 0 | T155: 0 | U155: 0 | V155: 0 | W155: 0 | X155: 0 | Y155: =SUM(Y138:Y154) -> 0 | Z155: 0 | AA155: 0 | AB155: 0 | AC155: 0 | AD155: 0 | AE155: =SUM(AE138:AE154) -> 0 | AF155: 0 | AG155: 0 | AH155: 0 | AI155: 0
A156: Asset Disposal (ICB)
A157: =ROW() -> 157 | N157: WAGN Inflation from 2005 to 2009 OD to 31/12/09 | O157: 1.159945318 | P157: 1.10770235 | Q157: 1.074050633 | R157: 1.027861902 | S157: 1.013739546
A158: =ROW() -> 158 | C158: Redundant Asset | N158: Using Perth Inflation and (Estim Dec)/(Actual Jun) Adjustment for 2005-2009 | O158: WAGN Actual 2 [m$ 31/12/2009] | T158: Actual 3 [m$ 30/6/2014] | Z158: Actual 4 [m$ 31/12/2019] | AD158: Forecast [m$ 31/12/2019] | AG158: Forecast 5 [m$ 31/12/2019]
A159: =ROW() -> 159 | D159: High Pressure Mains - Steel | O159: 0 | P159: 0 | Q159: 0 | R159: 0 | S159: 0 | T159: 0 | U159: 0 | V159: 0 | W159: 0 | X159: 0 | Y159: 0 | Z159: 0 | AA159: 0 | AB159: 0 | AC159: 0 | AD159: 0 | AE159: 0 | AF159: 0 | AG159: 0 | AH159: 0 | AI159: 0
A160: =ROW() -> 160 | D160: High Pressure Mains - PE | O160: 0 | P160: 0 | Q160: 0 | R160: 0 | S160: 0 | T160: 0 | U160: 0 | V160: 0 | W160: 0 | X160: 0 | Y160: 0 | Z160: 0 | AA160: 0 | AB160: 0 | AC160: 0 | AD160: 0 | AE160: 0 | AF160: 0 | AG160: 0 | AH160: 0 | AI160: 0
A161: =ROW() -> 161 | D161: Medium Pressure Mains | O161: 0 | P161: 0 | Q161: 0 | R161: 0 | S161: 0 | T161: 0 | U161: 0 | V161: 0 | W161: 0 | X161: 0 | Y161: 0 | Z161: 0 | AA161: 0 | AB161: 0 | AC161: 0 | AD161: 0 | AE161: 0 | AF161: 0 | AG161: 0 | AH161: 0 | AI161: 0
A162: =ROW() -> 162 | D162: Medium / Low Pressure Mains | O162: 0 | P162: 0 | Q162: 0 | R162: 0 | S162: 0 | T162: 0 | U162: 0 | V162: 0 | W162: 0 | X162: 0 | Y162: 0 | Z162: 0 | AA162: 0 | AB162: 0 | AC162: 0 | AD162: 0 | AE162: 0 | AF162: 0 | AG162: 0 | AH162: 0 | AI162: 0
A163: =ROW() -> 163 | D163: Low Pressure Mains | O163: 0 | P163: 0 | Q163: 0 | R163: 0 | S163: 0 | T163: 0 | U163: 0 | V163: 0 | W163: 0 | X163: 0 | Y163: 0 | Z163: 0 | AA163: 0 | AB163: 0 | AC163: 0 | AD163: 0 | AE163: 0 | AF163: 0 | AG163: 0 | AH163: 0 | AI163: 0
A164: =ROW() -> 164 | D164: Regulators | O164: 0 | P164: 0 | Q164: 0 | R164: 0 | S164: 0 | T164: 0 | U164: 0 | V164: 0 | W164: 0 | X164: 0 | Y164: 0 | Z164: 0 | AA164: 0 | AB164: 0 | AC164: 0 | AD164: 0 | AE164: 0 | AF164: 0 | AG164: 0 | AH164: 0 | AI164: 0
A165: =ROW() -> 165 | D165: Secondary Gate Stations | O165: 0 | P165: 0 | Q165: 0 | R165: 0 | S165: 0 | T165: 0 | U165: 0 | V165: 0 | W165: 0 | X165: 0 | Y165: 0 | Z165: 0 | AA165: 0 | AB165: 0 | AC165: 0 | AD165: 0 | AE165: 0 | AF165: 0 | AG165: 0 | AH165: 0 | AI165: 0
A166: =ROW() -> 166 | D166: Buildings | O166: 0 | P166: 0 | Q166: 0 | R166: 0 | S166: 1.042 | T166: 0 | U166: 0 | V166: 0 | W166: 0 | X166: 0 | Y166: 0 | Z166: 0 | AA166: 0 | AB166: 0 | AC166: 0 | AD166: 0 | AE166: 0 | AF166: 0 | AG166: 0 | AH166: 0 | AI166: 0
A167: =ROW() -> 167 | D167: Meter and Services Pipes | O167: 0 | P167: 0 | Q167: 0 | R167: 0 | S167: 0 | T167: 0 | U167: 0 | V167: 0 | W167: 0 | X167: 0 | Y167: 0 | Z167: 0 | AA167: 0 | AB167: 0 | AC167: 0 | AD167: 0 | AE167: 0 | AF167: 0 | AG167: 0 | AH167: 0 | AI167: 0
A168: =ROW() -> 168 | D168: Equipment & Vehicles | O168: 0 | P168: 0 | Q168: 0 | R168: 0 | S168: 0 | T168: 0 | U168: 0 | V168: 0 | W168: 0 | X168: 0 | Y168: 0 | Z168: 0 | AA168: 0 | AB168: 0 | AC168: 0 | AD168: 0 | AE168: 0 | AF168: 0 | AG168: 0 | AH168: 0 | AI168: 0
A169: =ROW() -> 169 | D169: Vehicle | O169: 0 | P169: 0 | Q169: 0 | R169: 0 | S169: 0 | T169: 0 | U169: 0 | V169: 0 | W169: 0 | X169: 0 | Y169: 0 | Z169: 0 | AA169: 0 | AB169: 0 | AC169: 0 | AD169: 0 | AE169: 0 | AF169: 0 | AG169: 0 | AH169: 0 | AI169: 0
A170: =ROW() -> 170 | D170: Information Technology | O170: 0 | P170: 0 | Q170: 0 | R170: 0 | S170: 0 | T170: 0 | U170: 0 | V170: 0 | W170: 0 | X170: 0 | Y170: 0 | Z170: 0 | AA170: 0 | AB170: 0 | AC170: 0 | AD170: 0 | AE170: 0 | AF170: 0 | AG170: 0 | AH170: 0 | AI170: 0
A171: =ROW() -> 171 | D171: Miscellaneous IT equipment | O171: 0 | P171: 0 | Q171: 0 | R171: 0 | S171: 0 | T171: 0 | U171: 0 | V171: 0 | W171: 0 | X171: 0 | Y171: 0 | Z171: 0 | AA171: 0 | AB171: 0 | AC171: 0 | AD171: 0 | AE171: 0 | AF171: 0 | AG171: 0 | AH171: 0 | AI171: 0
A172: =ROW() -> 172 | D172: Telemetry and Monitoring
A173: =ROW() -> 173 | D173: FRC | O173: 0 | P173: 0 | Q173: 0 | R173: 0 | S173: 0 | T173: 0 | U173: 0 | V173: 0 | W173: 0 | X173: 0 | Y173: 0 | Z173: 0 | AA173: 0 | AB173: 0 | AC173: 0 | AD173: 0 | AE173: 0 | AF173: 0 | AG173: 0 | AH173: 0 | AI173: 0
A174: =ROW() -> 174 | D174: Land | O174: 0 | P174: 0 | Q174: 0 | R174: 0 | S174: 3.428 | T174: 0 | U174: 0 | V174: 0 | W174: 0 | X174: 0 | Y174: 0 | Z174: 0 | AA174: 0 | AB174: 0 | AC174: 0 | AD174: 0 | AE174: 0 | AF174: 0 | AG174: 0 | AH174: 0 | AI174: 0
A175: =ROW() -> 175 | D175: Equity Raising Cost | O175: 0 | P175: 0 | Q175: 0 | R175: 0 | S175: 0 | T175: 0 | U175: 0 | V175: 0 | W175: 0 | X175: 0 | Y175: 0 | Z175: 0 | AA175: 0 | AB175: 0 | AC175: 0 | AD175: 0 | AE175: 0 | AF175: 0 | AG175: 0 | AH175: 0 | AI175: 0
A176: =ROW() -> 176 | D176: Total | O176: =SUM(O159:O175) -> 0 | P176: =SUM(P159:P175) -> 0 | Q176: =SUM(Q159:Q175) -> 0 | R176: =SUM(R159:R175) -> 0 | S176: =SUM(S159:S175) -> 4.47 | T176: =SUM(T159:T175) -> 0 | U176: 0 | V176: 0 | W176: 0 | X176: 0 | Y176: 0 | Z176: 0 | AA176: 0 | AB176: 0 | AC176: 0 | AD176: 0 | AE176: =SUM(AE159:AE175) -> 0 | AF176: 0 | AG176: 0 | AH176: 0 | AI176: 0
A177: =ROW() -> 177 | C177: Redundant Asset | O177: ="Actual 2 [m$ "&$G$43&"]" -> Actual 2 [m$ 31/12/2019] | T177: ="Actual 3 [m$ "&$G$43&"]" -> Actual 3 [m$ 31/12/2019] | Z177: Actual 4 [m$ 31/12/2019] | AD177: Forecast [m$ 31/12/2019] | AG177: ="Forecast 5 [m$ "&$G$43&"]" -> Forecast 5 [m$ 31/12/2019]
A178: =ROW() -> 178 | D178: High Pressure Mains - Steel | O178: =O159/$S$157*$S$43 -> 0 | P178: 0 | Q178: 0 | R178: 0 | S178: 0 | T178: =T159*$X$43 -> 0 | U178: 0 | V178: 0 | W178: 0 | X178: 0 | Y178: 0 | Z178: 0 | AA178: 0 | AB178: 0 | AC178: 0 | AD178: 0 | AE178: =AE159*$X$43 -> 0 | AF178: 0 | AG178: 0 | AH178: 0 | AI178: 0
A179: =ROW() -> 179 | D179: High Pressure Mains - PE | O179: 0 | P179: 0 | Q179: 0 | R179: 0 | S179: 0 | T179: =T160*$X$43 -> 0 | U179: 0 | V179: 0 | W179: 0 | X179: 0 | Y179: 0 | Z179: 0 | AA179: 0 | AB179: 0 | AC179: 0 | AD179: 0 | AE179: =AE160*$X$43 -> 0 | AF179: 0 | AG179: 0 | AH179: 0 | AI179: 0
A180: =ROW() -> 180 | D180: Medium Pressure Mains | O180: 0 | P180: 0 | Q180: 0 | R180: 0 | S180: 0 | T180: =T161*$X$43 -> 0 | U180: 0 | V180: 0 | W180: 0 | X180: 0 | Y180: 0 | Z180: 0 | AA180: 0 | AB180: 0 | AC180: 0 | AD180: 0 | AE180: =AE161*$X$43 -> 0 | AF180: 0 | AG180: 0 | AH180: 0 | AI180: 0
A181: =ROW() -> 181 | D181: Medium / Low Pressure Mains | O181: 0 | P181: 0 | Q181: 0 | R181: 0 | S181: 0 | T181: =T162*$X$43 -> 0 | U181: 0 | V181: 0 | W181: 0 | X181: 0 | Y181: 0 | Z181: 0 | AA181: 0 | AB181: 0 | AC181: 0 | AD181: 0 | AE181: =AE162*$X$43 -> 0 | AF181: 0 | AG181: 0 | AH181: 0 | AI181: 0
A182: =ROW() -> 182 | D182: Low Pressure Mains | O182: 0 | P182: 0 | Q182: 0 | R182: 0 | S182: 0 | T182: =T163*$X$43 -> 0 | U182: 0 | V182: 0 | W182: 0 | X182: 0 | Y182: 0 | Z182: 0 | AA182: 0 | AB182: 0 | AC182: 0 | AD182: 0 | AE182: =AE163*$X$43 -> 0 | AF182: 0 | AG182: 0 | AH182: 0 | AI182: 0
A183: =ROW() -> 183 | D183: Regulators | O183: 0 | P183: 0 | Q183: 0 | R183: 0 | S183: 0 | T183: =T164*$X$43 -> 0 | U183: 0 | V183: 0 | W183: 0 | X183: 0 | Y183: 0 | Z183: 0 | AA183: 0 | AB183: 0 | AC183: 0 | AD183: 0 | AE183: =AE164*$X$43 -> 0 | AF183: 0 | AG183: 0 | AH183: 0 | AI183: 0
A184: =ROW() -> 184 | D184: Secondary Gate Stations | O184: 0 | P184: 0 | Q184: 0 | R184: 0 | S184: 0 | T184: =T165*$X$43 -> 0 | U184: 0 | V184: 0 | W184: 0 | X184: 0 | Y184: 0 | Z184: 0 | AA184: 0 | AB184: 0 | AC184: 0 | AD184: 0 | AE184: =AE165*$X$43 -> 0 | AF184: 0 | AG184: 0 | AH184: 0 | AI184: 0
A185: =ROW() -> 185 | D185: Buildings | O185: 0 | P185: 0 | Q185: 0 | R185: 0 | S185: 1.258022168 | T185: =T166*$X$43 -> 0 | U185: 0 | V185: 0 | W185: 0 | X185: 0 | Y185: 0 | Z185: 0 | AA185: 0 | AB185: 0 | AC185: 0 | AD185: 0 | AE185: =AE166*$X$43 -> 0 | AF185: 0 | AG185: 0 | AH185: 0 | AI185: 0
A186: =ROW() -> 186 | D186: Meter and Services Pipes | O186: 0 | P186: 0 | Q186: 0 | R186: 0 | S186: 0 | T186: =T167*$X$43 -> 0 | U186: 0 | V186: 0 | W186: 0 | X186: 0 | Y186: 0 | Z186: 0 | AA186: 0 | AB186: 0 | AC186: 0 | AD186: 0 | AE186: =AE167*$X$43 -> 0 | AF186: 0 | AG186: 0 | AH186: 0 | AI186: 0
A187: =ROW() -> 187 | D187: Equipment & Vehicles | O187: 0 | P187: 0 | Q187: 0 | R187: 0 | S187: 0 | T187: =T168*$X$43 -> 0 | U187: 0 | V187: 0 | W187: 0 | X187: 0 | Y187: 0 | Z187: 0 | AA187: 0 | AB187: 0 | AC187: 0 | AD187: 0 | AE187: =AE168*$X$43 -> 0 | AF187: 0 | AG187: 0 | AH187: 0 | AI187: 0
A188: =ROW() -> 188 | D188: Vehicle | O188: 0 | P188: 0 | Q188: 0 | R188: 0 | S188: 0 | T188: =T169*$X$43 -> 0 | U188: 0 | V188: 0 | W188: 0 | X188: 0 | Y188: 0 | Z188: 0 | AA188: 0 | AB188: 0 | AC188: 0 | AD188: 0 | AE188: =AE169*$X$43 -> 0 | AF188: 0 | AG188: 0 | AH188: 0 | AI188: 0
A189: =ROW() -> 189 | D189: Information Technology | O189: 0 | P189: 0 | Q189: 0 | R189: 0 | S189: 0 | T189: =T170*$X$43 -> 0 | U189: 0 | V189: 0 | W189: 0 | X189: 0 | Y189: 0 | Z189: 0 | AA189: 0 | AB189: 0 | AC189: 0 | AD189: 0 | AE189: =AE170*$X$43 -> 0 | AF189: 0 | AG189: 0 | AH189: 0 | AI189: 0
A190: =ROW() -> 190 | D190: Miscellaneous IT equipment | O190: 0 | P190: 0 | Q190: 0 | R190: 0 | S190: 0 | T190: 0 | U190: 0 | V190: 0 | W190: 0 | X190: 0 | Y190: 0 | Z190: 0 | AA190: 0 | AB190: 0 | AC190: 0 | AD190: 0 | AE190: 0 | AF190: 0 | AG190: 0 | AH190: 0 | AI190: 0
A191: =ROW() -> 191 | D191: Telemetry and Monitoring | O191: 0 | P191: 0 | Q191: 0 | R191: 0 | S191: 0 | T191: 0 | U191: 0 | V191: 0 | W191: 0 | X191: 0 | Y191: 0 | Z191: 0 | AA191: 0 | AB191: 0 | AC191: 0 | AD191: 0 | AE191: 0 | AF191: 0 | AG191: 0 | AH191: 0 | AI191: 0
A192: =ROW() -> 192 | D192: FRC | O192: =O173/$S$157*$S$43 -> 0 | P192: 0 | Q192: 0 | R192: 0 | S192: 0 | T192: =T173*$X$43 -> 0 | U192: 0 | V192: 0 | W192: 0 | X192: 0 | Y192: 0 | Z192: 0 | AA192: 0 | AB192: 0 | AC192: 0 | AD192: 0 | AE192: =AE173*$X$43 -> 0 | AF192: 0 | AG192: 0 | AH192: 0 | AI192: 0
A193: =ROW() -> 193 | D193: Land | O193: 0 | P193: 0 | Q193: 0 | R193: 0 | S193: 4.138675615 | T193: =T174*$X$43 -> 0 | U193: 0 | V193: 0 | W193: 0 | X193: 0 | Y193: 0 | Z193: 0 | AA193: 0 | AB193: 0 | AC193: 0 | AD193: 0 | AE193: =AE174*$X$43 -> 0 | AF193: 0 | AG193: 0 | AH193: 0 | AI193: 0
A194: =ROW() -> 194 | D194: Equity Raising Cost | O194: 0 | P194: 0 | Q194: 0 | R194: 0 | S194: 0 | T194: =T175*$X$43 -> 0 | U194: 0 | V194: 0 | W194: 0 | X194: 0 | Y194: 0 | Z194: 0 | AA194: 0 | AB194: 0 | AC194: 0 | AD194: 0 | AE194: =AE175*$X$43 -> 0 | AF194: 0 | AG194: 0 | AH194: 0 | AI194: 0
A195: =ROW() -> 195 | D195: Total | O195: =SUM(O178:O194) -> 0 | P195: 0 | Q195: 0 | R195: 0 | S195: 5.396697783 | T195: 0 | U195: 0 | V195: 0 | W195: 0 | X195: 0 | Y195: =SUM(Y178:Y194) -> 0 | Z195: 0 | AA195: 0 | AB195: 0 | AC195: 0 | AD195: 0 | AE195: =SUM(AE178:AE194) -> 0 | AF195: 0 | AG195: 0 | AH195: 0 | AI195: 0
A196: AA2 Asset Adjustment(ICB), Redundant Assets(ICB) & Asset Disposal (ICB)
A197: =ROW() -> 197 | C197: Redundant Asset | O197: =O$177 -> Actual 2 [m$ 31/12/2019] | T197: =T$177 -> Actual 3 [m$ 31/12/2019] | Z197: Actual 4 [m$ 31/12/2019] | AD197: Forecast [m$ 31/12/2019] | AG197: ="Forecast 5 [m$ "&$G$43&"]" -> Forecast 5 [m$ 31/12/2019]
A198: =ROW() -> 198 | D198: High Pressure Mains - Steel | O198: =-O138-O178 -> 0 | P198: =-P138-P178 -> 0 | Q198: 0 | R198: 0 | S198: 0 | T198: 0 | U198: 0 | V198: 0 | W198: 0 | X198: 0 | Y198: =-Y138-Y178 -> 0 | Z198: 0 | AA198: 0 | AB198: 0 | AC198: 0 | AD198: 0 | AE198: =-AE138-AE178 -> 0 | AF198: 0 | AG198: 0 | AH198: 0 | AI198: 0
A199: =ROW() -> 199 | D199: High Pressure Mains - PE | O199: =-O139-O179 -> 0 | P199: =-P139-P179 -> 0 | Q199: 0 | R199: 0 | S199: 0 | T199: 0 | U199: 0 | V199: 0 | W199: 0 | X199: 0 | Y199: 0 | Z199: 0 | AA199: 0 | AB199: 0 | AC199: 0 | AD199: 0 | AE199: =-AE139-AE179 -> 0 | AF199: 0 | AG199: 0 | AH199: 0 | AI199: 0
A200: =ROW() -> 200 | D200: Medium Pressure Mains | O200: =-O140-O180 -> 0 | P200: =-P140-P180 -> 0 | Q200: 0 | R200: 0 | S200: 0 | T200: 0 | U200: 0 | V200: 0 | W200: 0 | X200: 0 | Y200: 0 | Z200: 0 | AA200: 0 | AB200: 0 | AC200: 0 | AD200: 0 | AE200: =-AE140-AE180 -> 0 | AF200: 0 | AG200: 0 | AH200: 0 | AI200: 0
... 1510 more rows

Sheet CoS
A1: =Main!A1 -> ERA, GDS Tariff Model, Final Decision, November 2019
A2: Building Block of Total Revenue Required
A3: Ref | C3: =COLUMN() -> 3 | D3: =COLUMN() -> 4 | E3: =COLUMN() -> 5 | F3: =COLUMN() -> 6 | G3: =COLUMN() -> 7 | H3: =COLUMN() -> 8 | I3: =COLUMN() -> 9 | J3: =COLUMN() -> 10 | K3: =COLUMN() -> 11 | L3: =COLUMN() -> 12 | M3: =COLUMN() -> 13 | N3: =COLUMN() -> 14 | O3: =COLUMN() -> 15 | P3: =COLUMN() -> 16 | Q3: =COLUMN() -> 17 | R3: =COLUMN() -> 18 | S3: =COLUMN() -> 19 | T3: =COLUMN() -> 20 | U3: =COLUMN() -> 21 | V3: =COLUMN() -> 22 | W3: =COLUMN() -> 23 | X3: =COLUMN() -> 24 | Y3: =COLUMN() -> 25 | Z3: =COLUMN() -> 26 | AA3: =COLUMN() -> 27 | AB3: =COLUMN() -> 28 | AC3: =COLUMN() -> 29 | AD3: =COLUMN() -> 30 | AE3: =COLUMN() -> 31 | AF3: =COLUMN() -> 32 | AG3: =COLUMN() -> 33 | AH3: =COLUMN() -> 34 | AI3: =COLUMN() -> 35 | AJ3: =COLUMN() -> 36 | AK3: =COLUMN() -> 37
A4: Regulatory Period | J4: 1 | K4: 1 | L4: 1 | M4: 1 | N4: 1 | O4: 2 | P4: 2 | Q4: 2 | R4: 2 | S4: 2 | T4: 3 | U4: 3 | V4: 3 | W4: 3 | X4: 3 | Y4: 4 | Z4: 4 | AA4: 4 | AB4: 4 | AC4: 4 | AD4: 4 | AE4: 4 | AF4: 4 | AG4: 5 | AH4: 5 | AI4: 5 | AJ4: 5 | AK4: 5
A5: Year ending | I5: 1999 | J5: 2000 | K5: 2001 | L5: 2002 | M5: 2003 | N5: 2004 | O5: 2005 | P5: 2006 | Q5: 2007 | R5: 2008 | S5: =1+R5 -> 2009 | T5: =1+S5 -> 2010 | U5: =T5+1 -> 2011 | V5: =U5+1 -> 2012 | W5: =V5+1 -> 2013 | X5: =W5+1 -> 2014 | Y5: 2014 | Z5: =Load_Tariffs!AB6 -> 2015 | AA5: =Load_Tariffs!AC6 -> 2015 | AB5: =Y5+1 -> 2015 | AC5: =AB5+1 -> 2016 | AD5: 2017 | AE5: 2018 | AF5: 2019 | AG5: 2020 | AH5: 2021 | AI5: 2022 | AJ5: 2023 | AK5: 2024
A6: Months | I6: 1 to 12 | J6: 1 to 12 | K6: 1 to 12 | L6: 1 to 12 | M6: 1 to 12 | N6: 1 to 12 | O6: 1 to 12 | P6: 1 to 12 | Q6: 1 to 12 | R6: 1 to 12 | S6: 1 to 12 | T6: 1 to 6 | U6: 7 to 6 | V6: 7 to 6 | W6: 7 to 6 | X6: 7 to 6 | Y6: 7 to 12 | Z6: =Load_Tariffs!AB7 -> 1 to 9 | AA6: =Load_Tariffs!AC7 -> 10 to 12 | AB6: 1 to 12 | AC6: 1 to 12 | AD6: 1 to 12 | AE6: 1 to 12 | AF6: 1 to 12 | AG6: 1 to 12 | AH6: 1 to 12 | AI6: 1 to 12 | AJ6: 1 to 12 | AK6: 1 to 12
A7: Days | I7: =Input!I$8 -> 365 | J7: =Input!J$8 -> 366 | K7: =Input!K$8 -> 365 | L7: =Input!L$8 -> 365 | M7: =Input!M$8 -> 365 | N7: =Input!N$8 -> 366 | O7: =Input!O$8 -> 365 | P7: =Input!P$8 -> 365 | Q7: =Input!Q$8 -> 365 | R7: =Input!R$8 -> 366 | S7: =Input!S$8 -> 365 | T7: =Input!T$8 -> 181 | U7: =Input!U$8 -> 365 | V7: =Input!V$8 -> 366 | W7: =Input!W$8 -> 365 | X7: =Input!X$8 -> 365 | Y7: =Input!Y$8 -> 184 | Z7: =Load_Tariffs!AB8 -> 273 | AA7: =Load_Tariffs!AC8 -> 92 | AB7: =Input!Z$8 -> 365 | AC7: =Input!AA$8 -> 366 | AD7: =Input!AB$8 -> 365 | AE7: =Input!AC$8 -> 365 | AF7: =Input!AD$8 -> 365 | AG7: =Input!AE$8 -> 366 | AH7: =Input!AF$8 -> 365 | AI7: =Input!AG$8 -> 365 | AJ7: =Input!AH$8 -> 365 | AK7: =Input!AI$8 -> 366
A8: Year portion | I8: =Input!I$9 -> 1 | J8: =Input!J$9 -> 1 | K8: =Input!K$9 -> 1 | L8: =Input!L$9 -> 1 | M8: =Input!M$9 -> 1 | N8: =Input!N$9 -> 1 | O8: =Input!O$9 -> 1 | P8: =Input!P$9 -> 1 | Q8: =Input!Q$9 -> 1 | R8: =Input!R$9 -> 1 | S8: =Input!S$9 -> 1 | T8: =Input!T$9 -> 0.495890411 | U8: =Input!U$9 -> 1 | V8: =Input!V$9 -> 1 | W8: =Input!W$9 -> 1 | X8: =Input!X$9 -> 1 | Y8: =Input!Y$9 -> 0.504109589 | Z8: =Load_Tariffs!AB9 -> 0.7479452055 | AA8: =Load_Tariffs!AC9 -> 0.2520547945 | AB8: =Input!Z$9 -> 1 | AC8: =Input!AA$9 -> 1 | AD8: =Input!AB$9 -> 1 | AE8: =Input!AC$9 -> 1 | AF8: =Input!AD$9 -> 1 | AG8: =Input!AE$9 -> 1 | AH8: =Input!AF$9 -> 1 | AI8: =Input!AG$9 -> 1 | AJ8: =Input!AH$9 -> 1 | AK8: =Input!AI$9 -> 1
A9: Financial Parameters
A10: =ROW() -> 10 | C10: Modelled Inflation | J10: Actual 1 | O10: Actual 2 | T10: Actual 3 | AA10: Actual 4 | AF10: Forecast | AI10: Forecast 5
A11: =ROW() -> 11 | D11: Inflation | J11: =Input!J$40 -> 0.05801772764 | K11: =Input!K$40 -> 0.03122619954 | L11: =Input!L$40 -> 0.03028064993 | M11: =Input!M$40 -> 0.02365591398 | N11: =Input!N$40 -> 0.02591036415 | O11: =Input!O$40 -> 0.02798634812 | P11: =Input!P$40 -> 0.03253652058 | Q11: =Input!Q$40 -> 0.02958199357 | R11: =Input!R$40 -> 0.03685196752 | S11: =Input!S$40 -> 0.02108433735 | T11: =Load_Tariffs!T14 -> 0.01533923304 | U11: =Load_Tariffs!W14 -> 0.03602556653 | V11: =Load_Tariffs!X14 -> 0.01177790241 | W11: =Load_Tariffs!Y14 -> 0.02390438247 | X11: =Load_Tariffs!Z14 -> 0.03015564202 | Y11: =Load_Tariffs!AA14 -> 0.006610009443 | Z11: =Load_Tariffs!AB14 -> 0.01688555347 | AA11: =Load_Tariffs!AC14 -> 0.01688555347 | AB11: =Load_Tariffs!AD14 -> 0.01688555347 | AC11: =Load_Tariffs!AE14 -> 0.0147601476 | AD11: =Load_Tariffs!AF14 -> 0.01909090909 | AE11: =Load_Tariffs!AG14 -> 0.0178412132 | AF11: =Load_Tariffs!AH14 -> 0.01187811098 | AG11: =Load_Tariffs!AI14 -> 0.0114 | AH11: =Load_Tariffs!AJ14 -> 0.0114 | AI11: =Load_Tariffs!AK14 -> 0.0114 | AJ11: =Load_Tariffs!AL14 -> 0.0114 | AK11: =Load_Tariffs!AM14 -> 0.0114
A12: =ROW() -> 12 | D12: Inflation Factor (convert to nominal $) | J12: =Input!J$44 -> 0.6329188932 | K12: =Input!K$44 -> 0.6526825449 | L12: =Input!L$44 -> 0.6724461965 | M12: =Input!M$44 -> 0.6883535259 | N12: =Input!N$44 -> 0.7061890164 | O12: =Input!O$44 -> 0.7259526681 | P12: =Input!P$44 -> 0.749572642 | Q12: =Input!Q$44 -> 0.7717464951 | R12: =Input!R$44 -> 0.8001868718 | S12: =Input!S$44 -> 0.8170582818 | T12: =Load_Tariffs!T17 -> 0.8295913292 | U12: =Load_Tariffs!W17 -> 0.8594778268 | V12: =Load_Tariffs!X17 -> 0.8696006728 | W12: =Load_Tariffs!Y17 -> 0.8903879398 | X12: =Load_Tariffs!Z17 -> 0.9172381598 | Y12: =Load_Tariffs!AA17 -> 0.9233011127 | Z12: =Load_Tariffs!AB17 -> 0.938891563 | AA12: =Load_Tariffs!AC17 -> 0.938891563 | AB12: =Load_Tariffs!AD17 -> 0.938891563 | AC12: =Load_Tariffs!AE17 -> 0.9527497411 | AD12: =Load_Tariffs!AF17 -> 0.9709385998 | AE12: =Load_Tariffs!AG17 -> 0.9882613223 | AF12: =Load_Tariffs!AH17 -> 1 | AG12: =Load_Tariffs!AI17 -> 1.0114 | AH12: =Load_Tariffs!AJ17 -> 1.02292996 | AI12: =Load_Tariffs!AK17 -> 1.034591362 | AJ12: =Load_Tariffs!AL17 -> 1.046385703 | AK12: =Load_Tariffs!AM17 -> 1.0583145
A13: =ROW() -> 13 | C13: Real Post Tax WACC
A14: =ROW() -> 14 | D14: WACC | T14: =Revenue!T16 -> 0.04527784254 | U14: =Revenue!W16 -> 0.06569980507 | V14: =Revenue!X16 -> 0.06569980507 | W14: =Revenue!Y16 -> 0.06569980507 | X14: =Revenue!Z16 -> 0.06569980507 | Y14: =Revenue!AA16 -> 0.0198101078 | Z14: =Revenue!AB16 -> 0.04010991168 | AA14: =Revenue!AC16 -> 0.04010991168 | AB14: =Revenue!AD16 -> 0.04010991168 | AC14: =Revenue!AE16 -> 0.03990382728 | AD14: =Revenue!AF16 -> 0.03907360157 | AE14: =Revenue!AG16 -> 0.03532286555 | AF14: =Revenue!AH16 -> 0.04245559673 | AG14: =Revenue!AI16 -> 0.02981411904 | AH14: =Revenue!AJ16 -> 0.02981411904 | AI14: =Revenue!AK16 -> 0.02981411904 | AJ14: =Revenue!AL16 -> 0.02981411904 | AK14: =Revenue!AM16 -> 0.02981411904
A15: =ROW() -> 15 | D15: Discounting Factor | T15: =Revenue!T17 -> 0.9566834379 | U15: =Revenue!W17 -> 0.8977044318 | V15: =Revenue!X17 -> 0.8423614488 | W15: =Revenue!Y17 -> 0.7904303302 | X15: =Revenue!Z17 -> 0.7417007364 | Y15: =Revenue!AA17 -> 0.9805747093 | Z15: =Revenue!AB17 -> 0.9427606624 | AA15: =Revenue!AC17 -> 0.9427606624 | AB15: =Revenue!AD17 -> 0.9427606624 | AC15: =Revenue!AE17 -> 0.9065844722 | AD15: =Revenue!AF17 -> 0.8724930273 | AE15: =Revenue!AG17 -> 0.8427255461 | AF15: =Revenue!AH17 -> 0.8084042608 | AG15: =Revenue!AI17 -> 0.9710490287 | AH15: =Revenue!AJ17 -> 0.9429362161 | AI15: =Revenue!AK17 -> 0.9156372967 | AJ15: =Revenue!AL17 -> 0.8891287076 | AK15: =Revenue!AM17 -> 0.8633875678
A16: =ROW() -> 16 | C16: Nominal Post Tax WACC
A17: =ROW() -> 17 | D17: WACC | T17: =Revenue!T19 -> 0.04527784254 | U17: =Revenue!W19 -> 0.093408 | V17: =Revenue!X19 -> 0.093408 | W17: =Revenue!Y19 -> 0.093408 | X17: =Revenue!Z19 -> 0.093408 | Y17: =Revenue!AA19 -> 0.02953234787 | Z17: =Revenue!AB19 -> 0.059872 | AA17: =Revenue!AC19 -> 0.059872 | AB17: =Revenue!AD19 -> 0.059872 | AC17: =Revenue!AE19 -> 0.059662 | AD17: =Revenue!AF19 -> 0.058816 | AE17: =Revenue!AG19 -> 0.054994 | AF17: =Revenue!AH19 -> 0.054838 | AG17: =Revenue!AI19 -> 0.041554 | AH17: =Revenue!AJ19 -> 0.041554 | AI17: =Revenue!AK19 -> 0.041554 | AJ17: =Revenue!AL19 -> 0.041554 | AK17: =Revenue!AM19 -> 0.041554
A18: =ROW() -> 18 | D18: Discounting Factor | T18: =Revenue!T20 -> 0.9566834379 | U18: =Revenue!W20 -> 0.8749555865 | V18: =Revenue!X20 -> 0.8002096075 | W18: =Revenue!Y20 -> 0.7318490513 | X18: =Revenue!Z20 -> 0.6693284221 | Y18: =Revenue!AA20 -> 0.9713147936 | Z18: =Revenue!AB20 -> 0.9164453761 | AA18: =Revenue!AC20 -> 0.9164453761 | AB18: =Revenue!AD20 -> 0.9164453761 | AC18: =Revenue!AE20 -> 0.8648468814 | AD18: =Revenue!AF20 -> 0.8168056409 | AE18: =Revenue!AG20 -> 0.7742277595 | AF18: =Revenue!AH20 -> 0.7339778804 | AG18: =Revenue!AI20 -> 0.9601038448 | AH18: =Revenue!AJ20 -> 0.9217993929 | AI18: =Revenue!AK20 -> 0.8850231412 | AJ18: =Revenue!AL20 -> 0.8497141207 | AK18: =Revenue!AM20 -> 0.8158137943
A19: ="Capital Base [m$ "&Input!$G$43&"] - CCA" -> Capital Base [m$ 31/12/2019] - CCA
A20: =ROW() -> 20 | C20: Asset Account
A21: =ROW() -> 21 | D21: Opening Value | O21: =Asset!O$15 -> 941.2274478 | P21: =Asset!P$15 -> 931.3199029 | Q21: =Asset!Q$15 -> 934.6017451 | R21: =Asset!R$15 -> 937.8913953 | S21: =Asset!S$15 -> 940.2993189 | T21: =Asset!T$15 -> 956.9796693 | U21: =Asset!U$15 -> 977.3890051 | V21: =Asset!V$15 -> 993.5088594 | W21: =Asset!W$15 -> 1004.065497 | X21: =Asset!X$15 -> 1056.288373 | Y21: =Asset!Y$15 -> 1096.179473 | AB21: =Asset!Z$15 -> 1120.524302 | AC21: =Asset!AA$15 -> 1154.437088 | AD21: =Asset!AB$15 -> 1194.376622 | AE21: =Asset!AC$15 -> 1231.285938 | AF21: =Asset!AD$15 -> 1266.404369 | AG21: =Asset!AE$15 -> 1292.379265 | AH21: =Asset!AF$15 -> 1333.388783 | AI21: =Asset!AG$15 -> 1359.950558 | AJ21: =Asset!AH$15 -> 1383.642776 | AK21: =Asset!AI$15 -> 1405.259302
A22: =ROW() -> 22 | D22: Capex | O22: =Asset!O$17 -> 33.69195848 | P22: =Asset!P$17 -> 40.59402756 | Q22: =Asset!Q$17 -> 42.66375051 | R22: =Asset!R$17 -> 43.45808455 | S22: =Asset!S$17 -> 51.93467917 | T22: =Asset!T$17 -> 30.18987591 | U22: =Asset!U$17 -> 45.15436748 | V22: =Asset!V$17 -> 42.20759945 | W22: =Asset!W$17 -> 86.44672586 | X22: =Asset!X$17 -> 76.63326397 | Y22: =Asset!Y$17 -> 42.3197225 | AB22: =Asset!Z$17 -> 73.53482948 | AC22: =Asset!AA$17 -> 84.09309613 | AD22: =Asset!AB$17 -> 84.09700081 | AE22: =Asset!AC$17 -> 85.4114486 | AF22: =Asset!AD$17 -> 78.84082652 | AG22: =Asset!AE$17 -> 87.13333229 | AH22: =Asset!AF$17 -> 81.88809007 | AI22: =Asset!AG$17 -> 80.48943965 | AJ22: =Asset!AH$17 -> 79.63982843 | AK22: =Asset!AI$17 -> 81.0387843
A23: =ROW() -> 23 | D23: Depreciation | O23: =Asset!O$21 -> -35.07824973 | P23: =Asset!P$21 -> -37.31218534 | Q23: =Asset!Q$21 -> -39.37410031 | R23: =Asset!R$21 -> -41.05016094 | S23: =Asset!S$21 -> -43.19242396 | T23: =Asset!T$21 -> -13.39889553 | U23: =Asset!U$21 -> -29.03451315 | V23: =Asset!V$21 -> -31.65096199 | W23: =Asset!W$21 -> -34.22384968 | X23: =Asset!X$21 -> -36.74216363 | Y23: =Asset!Y$21 -> -17.93241639 | AB23: =Asset!Z$21 -> -39.6065768 | AC23: =Asset!AA$21 -> -43.95069471 | AD23: =Asset!AB$21 -> -46.97408089 | AE23: =Asset!AC$21 -> -49.77738719 | AF23: =Asset!AD$21 -> -52.8659311 | AG23: =Asset!AE$21 -> -46.12381338 | AH23: =Asset!AF$21 -> -55.32631549 | AI23: =Asset!AG$21 -> -56.79722214 | AJ23: =Asset!AH$21 -> -58.02330193 | AK23: =Asset!AI$21 -> -60.34652054
A24: =ROW() -> 24 | D24: Asset Adjustment, Redundant Assets & Asset Disposal | O24: =Asset!O$20 -> 0 | P24: =Asset!P$20 -> 0 | Q24: =Asset!Q$20 -> 0 | R24: =Asset!R$20 -> 0 | S24: =Asset!S$20 -> -5.396697783 | T24: =Asset!T$20 -> 0 | U24: =Asset!U$20 -> 0 | V24: =Asset!V$20 -> 0 | W24: =Asset!W$20 -> 0 | X24: =Asset!X$20 -> 0 | Y24: =Asset!Y$20 -> -0.0424773683 | AB24: =Asset!Z$20 -> -0.01546661101 | AC24: =Asset!AA$20 -> -0.2028672662 | AD24: =Asset!AB$20 -> -0.2136045275 | AE24: =Asset!AC$20 -> -0.5156300225 | AF24: =Asset!AD$20 -> 0 | AG24: =Asset!AE$20 -> 0 | AH24: =Asset!AF$20 -> 0 | AI24: =Asset!AG$20 -> 0 | AJ24: =Asset!AH$20 -> 0 | AK24: =Asset!AI$20 -> 0
A25: =ROW() -> 25 | D25: Closing Value | N25: =Asset!N$24 -> 941.2274478 | O25: =Asset!O$24 -> 931.3199029 | P25: =Asset!P$24 -> 934.6017451 | Q25: =Asset!Q$24 -> 937.8913953 | R25: =Asset!R$24 -> 940.2993189 | S25: =Asset!S$24 -> 956.9796693 | T25: =Asset!T$24 -> 977.3890051 | U25: =Asset!U$24 -> 993.5088594 | V25: =Asset!V$24 -> 1004.065497 | W25: =Asset!W$24 -> 1056.288373 | X25: =Asset!X$24 -> 1096.179473 | Y25: =Asset!Y$24 -> 1120.524302 | AB25: =Asset!Z$24 -> 1154.437088 | AC25: =Asset!AA$24 -> 1194.376622 | AD25: =Asset!AB$24 -> 1231.285938 | AE25: =Asset!AC$24 -> 1266.404369 | AF25: =Asset!AD$24 -> 1292.379265 | AG25: =Asset!AE$24 -> 1333.388783 | AH25: =Asset!AF$24 -> 1359.950558 | AI25: =Asset!AG$24 -> 1383.642776 | AJ25: =Asset!AH$24 -> 1405.259302 | AK25: =Asset!AI$24 -> 1425.951566
A26: Capital Base [m$ nominal] - CCA
A27: =ROW() -> 27 | C27: Asset Account
A28: =ROW() -> 28 | D28: Opening Value (start period) | O28: =N34 -> 664.6844856 | P28: 676.0941683 | Q28: 700.5518993 | R28: 723.8143971 | S28: 752.4151706 | T28: =S34 -> 781.9081643 | U28: 810.8334439 | V28: 853.8988354 | W28: 873.1360316 | X28: =W34 -> 940.5064284 | Y28: =X34 -> 1005.457643 | AB28: =Y34 -> 1034.581335 | AC28: 1083.891242 | AD28: 1137.942018 | AE28: 1195.503044 | AF28: 1251.538456 | AG28: =AF34 -> 1292.379265 | AH28: 1348.589416 | AI28: =AH34 -> 1391.13417 | AJ28: =AI34 -> 1431.504863 | AK28: =AJ34 -> 1470.443243
A29: =ROW() -> 29 | D29: Inflation on Opening Value (start period) | O29: =O28*O$11 -> 18.60209141 | P29: 21.99775182 | Q29: 20.72372178 | R29: 26.67398465 | S29: 15.86417528 | T29: 11.99387155 | U29: 29.21073418 | V29: 10.05713715 | W29: 20.87177765 | X29: 28.36157517 | Y29: 6.646084515 | AB29: 17.46947845 | AC29: 15.99839472 | AD29: 21.72434761 | AE29: 21.3292247 | AF29: 14.86591268 | AG29: =AG28*AG$11 -> 14.73312362 | AH29: 15.37391934 | AI29: 15.85892954 | AJ29: 16.31915544 | AK29: 16.76305297
A30: =ROW() -> 30 | D30: Opening Value (end period) | O30: =SUM(O28:O29) -> 683.286577 | P30: =SUM(P28:P29) -> 698.0919201 | Q30: =SUM(Q28:Q29) -> 721.2756211 | R30: =SUM(R28:R29) -> 750.4883817 | S30: =SUM(S28:S29) -> 768.2793459 | T30: =SUM(T28:T29) -> 793.9020358 | U30: =SUM(U28:U29) -> 840.044178 | V30: =SUM(V28:V29) -> 863.9559726 | W30: =SUM(W28:W29) -> 894.0078092 | X30: =SUM(X28:X29) -> 968.8680035 | Y30: 1012.103728 | AB30: 1052.050813 | AC30: 1099.889637 | AD30: 1159.666365 | AE30: 1216.832269 | AF30: 1266.404369 | AG30: =SUM(AG28:AG29) -> 1307.112388 | AH30: 1363.963335 | AI30: 1406.993099 | AJ30: 1447.824018 | AK30: 1487.206296
A31: =ROW() -> 31 | D31: Capex | O31: =O22*O$12 -> 24.45876715 | P31: 30.42817248 | Q31: 32.92559992 | R31: 34.77458873 | S31: 42.43365973 | T31: 25.04525929 | U31: 38.80917763 | V31: 36.70375687 | W31: 76.97112215 | X31: 70.29095403 | Y31: 39.07384688 | AB31: 69.04123098 | AC31: 80.11967557 | AD31: 81.65302421 | AE31: 84.40883113 | AF31: 78.84082652 | AG31: =AG22*AG$12 -> 88.12665228 | AH31: 83.7657807 | AI31: 83.27367896 | AJ31: 83.33397787 | AK31: 85.7645205
A32: =ROW() -> 32 | D32: Depreciation | O32: =O23*O$12 -> -25.46514898 | P32: -27.96819334 | Q32: -30.38682391 | R32: -32.84779987 | S32: -35.29072771 | T32: -11.11560755 | U32: -24.95452027 | V32: -27.52369784 | W32: -30.47250301 | X32: -33.70131456 | Y32: -16.55702001 | AB32: -37.1862808 | AC32: -41.87401301 | AD32: -45.60894832 | AE32: -49.19306649 | AF32: -52.8659311 | AG32: =AG23*AG$12 -> -46.64962486 | AH32: -56.59494569 | AI32: -58.76191538 | AJ32: -60.71475358 | AK32: -63.86559771
A33: =ROW() -> 33 | D33: Asset Adjustment, Redundant Assets & Asset Disposal | O33: =O24*O$12 -> 0 | P33: 0 | Q33: 0 | R33: 0 | S33: -4.409416618 | T33: 0 | U33: 0 | V33: 0 | W33: 0 | X33: 0 | Y33: -0.03921940141 | AB33: -0.01452147058 | AC33: -0.1932817354 | AD33: -0.2073968808 | AE33: -0.5095772079 | AF33: 0 | AG33: =AG24*AG$12 -> 0 | AH33: 0 | AI33: 0 | AJ33: 0 | AK33: 0
A34: =ROW() -> 34 | D34: Closing Value | N34: =Asset!N24*N$12 -> 664.6844856 | O34: =Asset!O24*O$12 -> 676.0941683 | P34: =Asset!P24*P$12 -> 700.5518993 | Q34: =Asset!Q24*Q$12 -> 723.8143971 | R34: =Asset!R24*R$12 -> 752.4151706 | S34: =Asset!S24*S$12 -> 781.9081643 | T34: =Asset!T24*T$12 -> 810.8334439 | U34: =Asset!U24*U$12 -> 853.8988354 | V34: =Asset!V24*V$12 -> 873.1360316 | W34: =Asset!W24*W$12 -> 940.5064284 | X34: =Asset!X24*X$12 -> 1005.457643 | Y34: =Asset!Y24*Y$12 -> 1034.581335 | AB34: =Asset!Z24*AB$12 -> 1083.891242 | AC34: =Asset!AA24*AC$12 -> 1137.942018 | AD34: =Asset!AB24*AD$12 -> 1195.503044 | AE34: =Asset!AC24*AE$12 -> 1251.538456 | AF34: =Asset!AD24*AF$12 -> 1292.379265 | AG34: =Asset!AE24*AG$12 -> 1348.589416 | AH34: =Asset!AF24*AH$12 -> 1391.13417 | AI34: =Asset!AG24*AI$12 -> 1431.504863 | AJ34: =Asset!AH24*AJ$12 -> 1470.443243 | AK34: =Asset!AI24*AK$12 -> 1509.105219
A35: =ROW() -> 35 | D35: Check closing value (should be 0) | O35: =SUM(O30:O33)-O34 -> 6.18602684 | P35: =SUM(P30:P33)-P34 -> 0 | Q35: 0 | R35: 0 | S35: -10.89530303 | T35: -3.001756277 | U35: 0 | V35: 0 | W35: 0 | X35: 0 | Y35: 0 | AB35: 0 | AC35: 0 | AD35: 0 | AE35: 0 | AF35: 0 | AG35: =SUM(AG30:AG33)-AG34 -> 0 | AH35: 0 | AI35: 0 | AJ35: 0 | AK35: 0
A36: Cost of Service, Allowable Revenue [m$ nominal]
A37: =ROW() -> 37 | C37: Cost of Service | F37: PV
A38: =ROW() -> 38 | D38: OPEX | F38: =SUMPRODUCT($AG$18:$AK$18,AG38:AK38) -> 294.051109 | AG38: =Input!AE$1592*AG$12 -> 62.20780145 | AH38: =Input!AF$1592*AH$12 -> 64.40740973 | AI38: =Input!AG$1592*AI$12 -> 66.52150407 | AJ38: =Input!AH$1592*AJ$12 -> 68.9614954 | AK38: =Input!AI$1592*AK$12 -> 70.46193863
A39: =ROW() -> 39 | D39: Depreciation | F39: =SUMPRODUCT($AG$18:$AK$18,AG39:AK39) -> 252.6559447 | AG39: =-AG$32 -> 46.64962486 | AH39: 56.59494569 | AI39: 58.76191538 | AJ39: 60.71475358 | AK39: 63.86559771
A40: =ROW() -> 40 | D40: Inflationary Gain in Return on Asset | F40: -69.89466444 | AG40: =-AG$29 -> -14.73312362 | AH40: -15.37391934 | AI40: -15.85892954 | AJ40: -16.31915544 | AK40: -16.76305297
A41: =ROW() -> 41 | D41: Asset Disposal | F41: 0 | AG41: =-Asset!AE$20*AG$12 -> 0 | AH41: =-Asset!AF$20*AH$12 -> 0 | AI41: =-Asset!AG$20*AI$12 -> 0 | AJ41: =-Asset!AH$20*AJ$12 -> 0 | AK41: =-Asset!AI$20*AK$12 -> 0
A42: =ROW() -> 42 | D42: Return on Asset | F42: 254.772183 | AG42: =AG$17*AG$28 -> 53.70352796 | AH42: 56.03928458 | AI42: 57.8071893 | AJ42: 59.48475308 | AK42: 61.10279851
A43: =ROW() -> 43 | D43: Return on Working Capital | F43: 3.732351849 | AG43: =Working_Capital!AE$35 -> 0.7577428737 | AH43: =Working_Capital!AF$35 -> 0.7577428737 | AI43: =Working_Capital!AG$35 -> 0.8687885861 | AJ43: =Working_Capital!AH$35 -> 0.9062439446 | AK43: =Working_Capital!AI$35 -> 0.9406641649
A44: =ROW() -> 44 | D44: Tax | F44: 13.59941869 | AG44: =-Tax_CoRE!AE$51 -> 1.001463431 | AH44: =-Tax_CoRE!AF$51 -> 3.355534884 | AI44: =-Tax_CoRE!AG$51 -> 3.664074885 | AJ44: =-Tax_CoRE!AH$51 -> 3.64780634 | AK44: =-Tax_CoRE!AI$51 -> 3.925400846
A45: =ROW() -> 45 | D45: Imputation Credits | F45: -6.799709344 | AG45: =-AG44*WACC!AA$30 -> -0.5007317156 | AH45: =-AH44*WACC!AB$30 -> -1.677767442 | AI45: =-AI44*WACC!AC$30 -> -1.832037442 | AJ45: =-AJ44*WACC!AD$30 -> -1.82390317 | AK45: =-AK44*WACC!AE$30 -> -1.962700423
A46: =ROW() -> 46 | D46: Net Cost of Service | F46: =SUMPRODUCT($AG$18:$AK$18,AG46:AK46) -> 742.1166334 | AG46: =SUM(AG38:AG45) -> 149.0863052 | AH46: =SUM(AH38:AH45) -> 164.103231 | AI46: =SUM(AI38:AI45) -> 169.9325052 | AJ46: =SUM(AJ38:AJ45) -> 175.5719937 | AK46: =SUM(AK38:AK45) -> 181.5706465
A47: =ROW() -> 47 | D47: Total Smoothed Revenue | F47: =Revenue!F$239 -> 742.1166334 | AG47: =Revenue!AI$239 -> 159.6874562 | AH47: =Revenue!AJ$239 -> 163.6493791 | AI47: =Revenue!AK$239 -> 167.4463359 | AJ47: =Revenue!AL$239 -> 171.5924535 | AK47: =Revenue!AM$239 -> 176.4493105
A48: =ROW() -> 48 | D48: Check CoS - Revenue (should be 0) | F48: =ROUND(F46-F47,5) -> 0
A49: =ROW() -> 49
A50: =ROW() -> 50 | C50: Cost of Service | F50: PV | AG50: PV | AH50: PV | AI50: PV | AJ50: PV | AK50: PV
A51: =ROW() -> 51 | D51: OPEX | F51: =SUM(AG51:AK51) -> 294.051109 | AG51: =AG38*AG$18 -> 59.72594935 | AH51: 59.37071119 | AI51: 58.87307049 | AJ51: 58.59755643 | AK51: 57.48382151
A52: =ROW() -> 52 | D52: Depreciation | F52: =SUM(AG52:AK52) -> 252.6559447 | AG52: 44.78848418 | AH52: 52.16918658 | AI52: 52.00565494 | AJ52: 51.59018345 | AK52: 52.1024356
A53: =ROW() -> 53 | D53: Inflationary Gain in Return on Asset | F53: -69.89466444 | AG53: -14.14532863 | AH53: -14.17166951 | AI53: -14.03551964 | AJ53: -13.86661681 | AK53: -13.67552985
A54: =ROW() -> 54 | D54: Asset Disposal | F54: 0 | AG54: 0 | AH54: 0 | AI54: 0 | AJ54: 0 | AK54: 0
A55: =ROW() -> 55 | D55: Return on Asset | F55: 254.772183 | AG55: 51.56096367 | AH55: 51.6569785 | AI55: 51.16070026 | AJ55: 50.54503466 | AK55: 49.84850589
A56: =ROW() -> 56 | D56: Return on Working Capital | F56: 3.732351849 | AG56: 0.7275118464 | AH56: 0.6984869209 | AI56: 0.7688980036 | AJ56: 0.7700482765 | AK56: 0.7674068015
A57: =ROW() -> 57 | D57: Tax | F57: 13.59941869 | AG57: 0.9615088908 | AH57: 3.093130019 | AI57: 3.242791064 | AJ57: 3.099592557 | AK57: 3.202396158
A58: =ROW() -> 58 | D58: Imputation Credits | F58: -6.799709344 | AG58: -0.4807544454 | AH58: -1.546565009 | AI58: -1.621395532 | AJ58: -1.549796278 | AK58: -1.601198079
A59: =ROW() -> 59 | D59: Net Cost of Service | F59: 742.1166334 | AG59: 143.1383349 | AH59: 151.2702587 | AI59: 150.3941996 | AJ59: 149.1860023 | AK59: 148.127838
A60: =ROW() -> 60 | D60: Total Smoothed Revenue | F60: 742.1166334 | AG60: 153.3165407 | AH60: 150.8518983 | AI60: 148.1938822 | AJ60: 145.8045308 | AK60: 143.9497815
A61: =ROW() -> 61 | D61: Check CoS - Revenue (should be 0) | F61: =ROUND(F59-F60,5) -> 0
A62: =ROW() -> 62
A63: ="CHECK -- Cost of Service, Allowable Revenue [m$ "&Input!$G$43&"]" -> CHECK -- Cost of Service, Allowable Revenue [m$ 31/12/2019]
A64: =ROW() -> 64 | C64: Cost of Service | F64: PV
A65: =ROW() -> 65 | D65: OPEX | F65: =SUMPRODUCT($AG$15:$AK$15,AG65:AK65) -> 294.051109 | AG65: =Input!AE1592 -> 61.50662591 | AH65: =Input!AF1592 -> 62.96365563 | AI65: =Input!AG1592 -> 64.29737048 | AJ65: =Input!AH1592 -> 65.90447022 | AK65: =Input!AI1592 -> 66.57939453
A66: =ROW() -> 66 | D66: Depreciation | F66: =SUMPRODUCT($AG$15:$AK$15,AG66:AK66) -> 252.6559447 | AG66: =-AG23 -> 46.12381338 | AH66: =-AH23 -> 55.32631549 | AI66: =-AI23 -> 56.79722214 | AJ66: =-AJ23 -> 58.02330193 | AK66: =-AK23 -> 60.34652054
A67: =ROW() -> 67 | D67: Asset Disposal | F67: 0 | AG67: =Asset!AE20 -> 0 | AH67: =Asset!AF20 -> 0 | AI67: =Asset!AG20 -> 0 | AJ67: =Asset!AH20 -> 0 | AK67: =Asset!AI20 -> 0
A68: =ROW() -> 68 | D68: Return on Asset | F68: 184.8775185 | AG68: =AG$14*AG$21 -> 38.53114924 | AH68: 39.75381192 | AI68: 40.54572783 | AJ68: 41.25209042 | AK68: 41.89656812
A69: =ROW() -> 69 | D69: Return on Working Capital | F69: 3.732351849 | AG69: =AG43/AG$12 -> 0.7492019712 | AH69: 0.7407573376 | AI69: 0.8397408082 | AJ69: 0.8660706487 | AK69: 0.8888323507
A70: =ROW() -> 70 | D70: Tax | F70: 13.59941869 | AG70: 0.9901754313 | AH70: 3.280317338 | AI70: 3.541567252 | AJ70: 3.48610109 | AK70: 3.709106174
A71: =ROW() -> 71 | D71: Imputation Credits | F71: -6.799709344 | AG71: =-AG70*WACC!AA$30 -> -0.4950877156 | AH71: =-AH70*WACC!AA$30 -> -1.640158669 | AI71: =-AI70*WACC!AB$30 -> -1.770783626 | AJ71: =-AJ70*WACC!AC$30 -> -1.743050545 | AK71: =-AK70*WACC!AD$30 -> -1.854553087
A72: =ROW() -> 72 | D72: Net Cost of Service | F72: 742.1166334 | AG72: =SUM(AG65:AG71) -> 147.4058782 | AH72: 160.424699 | AI72: 164.2508449 | AJ72: 167.7889838 | AK72: 171.5658686
A73: =ROW() -> 73 | D73: Total Smoothed Revenue | F73: =Revenue!F$141 -> 742.1166334 | AG73: =Revenue!AI$141 -> 157.8875383 | AH73: =Revenue!AJ$141 -> 159.9810207 | AI73: =Revenue!AK$141 -> 161.8478001 | AJ73: =Revenue!AL$141 -> 163.9858544 | AK73: =Revenue!AM$141 -> 166.7267249
A74: =ROW() -> 74 | D74: Check CoS - Revenue (should be 0) | F74: =ROUND(F72-F73,5) -> 0 | AG74: =AG73-AG72 -> 10.48166004 | AH74: -0.4436783259 | AI74: -2.40304475 | AJ74: -3.803129391 | AK74: -4.839143715
A75: =ROW() -> 75
A76: =ROW() -> 76 | C76: Cost of Service | F76: PV | AG76: PV | AH76: PV | AI76: PV | AJ76: PV | AK76: PV
A77: =ROW() -> 77 | D77: OPEX | F77: =SUM(AG77:AK77) -> 294.051109 | AG77: =AG65*AG$15 -> 59.72594935 | AH77: 59.37071119 | AI77: 58.87307049 | AJ77: 58.59755643 | AK77: 57.48382151
A78: =ROW() -> 78 | D78: Depreciation | F78: =SUM(AG78:AK78) -> 252.6559447 | AG78: =AG66*AG$15 -> 44.78848418 | AH78: 52.16918658 | AI78: 52.00565494 | AJ78: 51.59018345 | AK78: 52.1024356
A79: =ROW() -> 79 | D79: Asset Disposal | F79: 0 | AG79: =AG67*AG$15 -> 0 | AH79: 0 | AI79: 0 | AJ79: 0 | AK79: 0
A80: =ROW() -> 80 | D80: Return on Asset | F80: 184.8775185 | AG80: =AG68*AG$15 -> 37.41563504 | AH80: 37.48530899 | AI80: 37.12518062 | AJ80: 36.67841784 | AK80: 36.17297605
A81: =ROW() -> 81 | D81: Return on Working Capital | F81: 3.732351849 | AG81: =AG69*AG$15 -> 0.7275118464 | AH81: 0.6984869209 | AI81: 0.7688980036 | AJ81: 0.7700482765 | AK81: 0.7674068015
A82: =ROW() -> 82 | D82: Tax | F82: 13.59941869 | AG82: =AG70*AG$15 -> 0.9615088908 | AH82: 3.093130019 | AI82: 3.242791064 | AJ82: 3.099592557 | AK82: 3.202396158
A83: =ROW() -> 83 | D83: Imputation Credits | F83: -6.799709344 | AG83: =AG71*AG$15 -> -0.4807544454 | AH83: -1.546565009 | AI83: -1.621395532 | AJ83: -1.549796278 | AK83: -1.601198079
A84: =ROW() -> 84 | D84: Net Cost of Service | F84: 742.1166334 | AG84: =AG72*AG$15 -> 143.1383349 | AH84: 151.2702587 | AI84: 150.3941996 | AJ84: 149.1860023 | AK84: 148.127838
A85: =ROW() -> 85 | D85: Total Smoothed Revenue | F85: 742.1166334 | AG85: =AG73*AG$15 -> 153.3165407 | AH85: 150.8518983 | AI85: 148.1938822 | AJ85: 145.8045308 | AK85: 143.9497815
A86: =ROW() -> 86 | D86: Check CoS - Revenue (should be 0) | F86: =ROUND(F84-F85,5) -> 0 | AG86: =AG85-AG84 -> 10.1782058 | AH86: -0.4183603618 | AI86: -2.200317399 | AJ86: -3.38147152 | AK86: -4.178056523
A87: =ROW() -> 87
A88: Credit Foncier Check (nominal)
A89: =ROW() -> 89 | C89: Net Cash Flow | F89: PV
A90: =ROW() -> 90 | D90: Total Smoothed Revenue | F90: =AF90+SUMPRODUCT($AG$18:$AK$18,AG90:AK90) -> 742.1166334 | AG90: =AG$47 -> 159.6874562 | AH90: =AH$47 -> 163.6493791 | AI90: 167.4463359 | AJ90: 171.5924535 | AK90: 176.4493105
A91: =ROW() -> 91 | D91: Opex | F91: =AF91+SUMPRODUCT($AG$18:$AK$18,AG91:AK91) -> -294.051109 | AG91: =-AG$38 -> -62.20780145 | AH91: =-AH$38 -> -64.40740973 | AI91: -66.52150407 | AJ91: -68.9614954 | AK91: -70.46193863
A92: =ROW() -> 92 | D92: Tax | F92: -13.59941869 | AG92: =-AG$44 -> -1.001463431 | AH92: =-AH$44 -> -3.355534884 | AI92: -3.664074885 | AJ92: -3.64780634 | AK92: -3.925400846
A93: =ROW() -> 93 | D93: Imputation Credits | F93: 6.799709344 | AG93: =-AG$45 -> 0.5007317156 | AH93: =-AH$45 -> 1.677767442 | AI93: 1.832037442 | AJ93: 1.82390317 | AK93: 1.962700423
A94: =ROW() -> 94 | D94: Asset Opening Value | F94: -1292.379265 | AF94: =-AF34 -> -1292.379265
A95: =ROW() -> 95 | D95: Capex | F95: -376.303053 | AG95: =-AG$31 -> -88.12665228 | AH95: =-AH$31 -> -83.7657807 | AI95: -83.27367896 | AJ95: -83.33397787 | AK95: -85.7645205
A96: =ROW() -> 96 | D96: Asset Residual Value | F96: 1231.148854 | AK96: =AK34 -> 1509.105219
A97: =ROW() -> 97 | D97: Working Capital Opening Value | F97: -18.23513678 | AF97: =-Working_Capital!AE29 -> -18.23513678
A98: =ROW() -> 98 | D98: Working Capital Variation | F98: -4.596277964 | AG98: =-Working_Capital!AE30 -> 0 | AH98: =-Working_Capital!AF30 -> -2.67232306 | AI98: =-Working_Capital!AG30 -> -0.9013658965 | AJ98: =-Working_Capital!AH30 -> -0.8283250777 | AK98: =-Working_Capital!AI30 -> -0.7739057641
A99: =ROW() -> 99 | D99: Working Capital Residual Value | F99: =AF99+SUMPRODUCT($AG$18:$AK$18,AG99:AK99) -> 19.09906289 | AK99: =Working_Capital!AI31 -> 23.41105658
A100: =ROW() -> 100 | D100: Net Cash Flow (should be 0) | F100: -6.684786058e-11 | AF100: =SUM(AF90:AF99) -> -1310.614401 | AG100: 8.852270762 | AH100: 11.12609819 | AI100: 14.91774953 | AJ100: 16.644752 | AK100: 1550.00252

Sheet Price_path_AA5
A1: =Main!A1 -> ERA, GDS Tariff Model, Final Decision, November 2019
A2: Price Path
A3: Ref | B3: =COLUMN() -> 2 | C3: =COLUMN() -> 3 | D3: =COLUMN() -> 4 | E3: =COLUMN() -> 5 | F3: =COLUMN() -> 6 | G3: =COLUMN() -> 7 | H3: =COLUMN() -> 8 | I3: =COLUMN() -> 9 | J3: =COLUMN() -> 10 | K3: =COLUMN() -> 11
A4: =ROW() -> 4
A5: =ROW() -> 5 | B5: Smoothing parameters | F5: Annual price movements (Real % change)
A6: =ROW() -> 6 | B6: Rounding decimal places A1 usage tariff (Year 2020 only) | C6: 5 | D6: 5 | F6: Tariff class | G6: P0 | H6: X_Factor_2021 | I6: X_Factor_2022 | J6: X_Factor_2023 | K6: X_Factor_2024
A7: =ROW() -> 7 | B7: Rounding decimal places all other tariffs (Year 2020 only) | C7: 2 | D7: 2 | F7: A1 - B2 | G7: =SolverSheet!I12 -> 0.015 | H7: =X_Factor_2021 -> 0.01404671681 | I7: =X_Factor_2022 -> 0 | J7: =X_Factor_2023 -> 0 | K7: =X_Factor_2024 -> 0
A8: =ROW() -> 8 | B8: B3 tariff smoothing (0=Same as A1-B2; 1=Fixed in 2020 = 2019) | C8: 1 | D8: B3 target revenue | F8: B3 | G8: =SolverSheet!I13 -> 0 | H8: =H7 -> 0.01404671681 | I8: =I7 -> 0 | J8: 0 | K8: 0
A9: =ROW() -> 9 | B9: NPV of AA5 B3 revenue under B3 revenue smoothing same as A1-B2 | C9: 673.0357548 | D9: =Revenue!F247*81% -> 587.6957892
A10: =ROW() -> 10 | D10: =Revenue!F246/Revenue!F247 -> 0.8104057059
A11: =ROW() -> 11 | N11: Price path button to run macro
A12: =ROW() -> 12 | B12: Conditional formatting key | C12: X
A13: =ROW() -> 13 | D13: AA5 | F13: 2019 | G13: 2020 | H13: 2021 | I13: 2022 | J13: 2023 | K13: 2024
A14: =ROW() -> 14 | B14: WACC | C14: Real post tax | G14: =CoS!AG14 -> 0.02981411904 | H14: =CoS!AH14 -> 0.02981411904 | I14: =CoS!AI14 -> 0.02981411904 | J14: =CoS!AJ14 -> 0.02981411904 | K14: =CoS!AK14 -> 0.02981411904
A15: =ROW() -> 15 | B15: Discount factor | C15: Real post tax | G15: =CoS!AG15 -> 0.9710490287 | H15: =CoS!AH15 -> 0.9429362161 | I15: =CoS!AI15 -> 0.9156372967 | J15: =CoS!AJ15 -> 0.8891287076 | K15: =CoS!AK15 -> 0.8633875678
A16: =ROW() -> 16 | B16: Price change | C16: % | G16: =G7 -> 0.015 | H16: =$H$7 -> 0.01404671681 | I16: =IF(I13=Recalc_From_Year,I$7,H16) -> 0.01404671681 | J16: =IF(J13=Recalc_From_Year,J$7,I16) -> 0.01404671681 | K16: =IF(K13=Recalc_From_Year,K$7,J16) -> 0.01404671681
A17: =ROW() -> 17 | B17: CPI | C17: % | G17: =Input!AE40 -> 0.0114 | H17: =Input!AF40 -> 0.0114 | I17: =Input!AG40 -> 0.0114 | J17: =Input!AH40 -> 0.0114 | K17: =Input!AI40 -> 0.0114
A18: =ROW() -> 18 | B18: B3 price change | D18: =ROUND(Revenue!F246-Price_path_AA5!C9,6) -> -85.045606 | G18: =$G$8 -> 0 | H18: =$H$8 -> 0.01404671681 | I18: =IF(I15=Recalc_From_Year,I$8,H18) -> 0.01404671681 | J18: =IF(J15=Recalc_From_Year,J$8,I18) -> 0.01404671681 | K18: =IF(K15=Recalc_From_Year,K$8,J18) -> 0.01404671681
A19: =ROW() -> 19
A20: =ROW() -> 20 | B20: Cost of service | D20: PV
A21: =ROW() -> 21 | B21: OPEX | C21: $ m real | D21: =SUMPRODUCT($G$15:$K$15,$G21:$K21) -> 294.051109 | G21: =CoS!AG65 -> 61.50662591 | H21: =CoS!AH65 -> 62.96365563 | I21: =CoS!AI65 -> 64.29737048 | J21: =CoS!AJ65 -> 65.90447022 | K21: =CoS!AK65 -> 66.57939453
A22: =ROW() -> 22 | B22: Depreciation | C22: $ m real | D22: 252.6559447 | G22: =CoS!AG66 -> 46.12381338 | H22: =CoS!AH66 -> 55.32631549 | I22: =CoS!AI66 -> 56.79722214 | J22: =CoS!AJ66 -> 58.02330193 | K22: =CoS!AK66 -> 60.34652054
A23: =ROW() -> 23 | B23: Asset Disposal | C23: $ m real | D23: 0 | G23: =CoS!AG67 -> 0 | H23: =CoS!AH67 -> 0 | I23: =CoS!AI67 -> 0 | J23: =CoS!AJ67 -> 0 | K23: =CoS!AK67 -> 0
A24: =ROW() -> 24 | B24: Return on Asset | C24: $ m real | D24: 184.8775185 | G24: =CoS!AG68 -> 38.53114924 | H24: =CoS!AH68 -> 39.75381192 | I24: =CoS!AI68 -> 40.54572783 | J24: =CoS!AJ68 -> 41.25209042 | K24: =CoS!AK68 -> 41.89656812
A25: =ROW() -> 25 | B25: Return on Working Capital | C25: $ m real | D25: 3.732351849 | G25: =CoS!AG69 -> 0.7492019712 | H25: =CoS!AH69 -> 0.7407573376 | I25: =CoS!AI69 -> 0.8397408082 | J25: =CoS!AJ69 -> 0.8660706487 | K25: =CoS!AK69 -> 0.8888323507
A26: =ROW() -> 26 | B26: Tax | C26: $ m real | D26: 13.59941869 | G26: =CoS!AG70 -> 0.9901754313 | H26: =CoS!AH70 -> 3.280317338 | I26: =CoS!AI70 -> 3.541567252 | J26: =CoS!AJ70 -> 3.48610109 | K26: =CoS!AK70 -> 3.709106174
A27: =ROW() -> 27 | B27: Imputation Credits | C27: $ m real | D27: -6.799709344 | G27: =CoS!AG71 -> -0.4950877156 | H27: =CoS!AH71 -> -1.640158669 | I27: =CoS!AI71 -> -1.770783626 | J27: =CoS!AJ71 -> -1.743050545 | K27: =CoS!AK71 -> -1.854553087
A28: =ROW() -> 28 | B28: Net Cost of Service | C28: $ m real | D28: 742.1166334 | G28: =SUM(G21:G27) -> 147.4058782 | H28: =SUM(H21:H27) -> 160.424699 | I28: =SUM(I21:I27) -> 164.2508449 | J28: =SUM(J21:J27) -> 167.7889838 | K28: =SUM(K21:K27) -> 171.5658686
A29: =ROW() -> 29 | B29: Total Tariff Revenue | C29: $ m real | D29: 742.1166334 | G29: =CoS!AG73 -> 157.8875383 | H29: =CoS!AH73 -> 159.9810207 | I29: =CoS!AI73 -> 161.8478001 | J29: =CoS!AJ73 -> 163.9858544 | K29: =CoS!AK73 -> 166.7267249
A30: =ROW() -> 30 | B30: Check CoS - Revenue rounded to nearest $100k (should be 0) | C30: $ m real | D30: =ROUND(D28-D29,6) -> 0
A31: =ROW() -> 31
A32: =ROW() -> 32 | F32: AAP4 closing tariff | G32: Fixed $ Increments
A33: =ROW() -> 33 | B33: Charging parameter ($ real at 31 December 2019) | C33: Units | F33: 2019 | G33: 2020 | H33: 2021 | I33: 2022 | J33: 2023 | K33: 2024
A34: =ROW() -> 34 | B34: Reference tariff A1
A35: =ROW() -> 35 | B35: Standing charge | C35: $/year | F35: =Load_Tariffs!AH201 -> 32444.85
A36: =ROW() -> 36 | B36: Demand charge
A37: =ROW() -> 37 | B37: First 10 km | C37: $/GJ km | F37: =Load_Tariffs!AH202 -> 136.75
A38: =ROW() -> 38 | B38: Distance > 10 km | C38: $/GJ km | F38: =Load_Tariffs!AH203 -> 71.98
A39: =ROW() -> 39 | B39: Usage charge
A40: =ROW() -> 40 | B40: First 10 km | C40: $/GJ km | F40: =Load_Tariffs!AH204 -> 0.02893
A41: =ROW() -> 41 | B41: Distance > 10 km | C41: $/GJ km | F41: =Load_Tariffs!AH205 -> 0.01458
A42: =ROW() -> 42 | B42: Reference tariff A2
A43: =ROW() -> 43 | B43: Standing charge | C43: $/Year | F43: =Load_Tariffs!AH207 -> 17952
A44: =ROW() -> 44 | B44: First 10 TJ | C44: $/GJ | F44: =Load_Tariffs!AH211 -> 1.74
A45: =ROW() -> 45 | B45: Volume > 10 TJ | C45: $/GJ | F45: =Load_Tariffs!AH212 -> 0.93
A46: =ROW() -> 46 | B46: Reference tariff B1
A47: =ROW() -> 47 | B47: Standing charge | C47: $/Year | F47: =Load_Tariffs!AH214 -> 907.55
A48: =ROW() -> 48 | B48: First 5 TJ | C48: $/GJ | F48: =Load_Tariffs!AH215 -> 3.45
A49: =ROW() -> 49 | B49: Volume > 5 TJ | C49: $/GJ | F49: =Load_Tariffs!AH217 -> 2.97
A50: =ROW() -> 50 | B50: Reference tariff B2
A51: =ROW() -> 51 | B51: Standing charge | C51: $/Year | F51: =Load_Tariffs!AH219 -> 226.74
A52: =ROW() -> 52 | B52: First 100 GJ | C52: $/GJ | F52: =Load_Tariffs!AH220 -> 5.77
A53: =ROW() -> 53 | B53: Volume > 100 GJ | C53: $/GJ | F53: =Load_Tariffs!AH221 -> 3.44
A54: =ROW() -> 54 | B54: Reference tariff B3
A55: =ROW() -> 55 | B55: Standing charge | C55: $/Year | F55: =Load_Tariffs!AH223 -> 116.84
A56: =ROW() -> 56 | B56: First 1.818255 GJ | C56: $/GJ | F56: =Load_Tariffs!AH227 -> 0
A57: =ROW() -> 57 | B57: Volume > 1.825 <9.855 GJ | C57: $/GJ | F57: =Load_Tariffs!AH228 -> 4.89 | G57: =ROUND(G58/3,$C$7) -> 0.5
A58: =ROW() -> 58 | B58: Volume > 9.855 GJ | C58: $/GJ | F58: =Load_Tariffs!AH229 -> 2.11 | G58: =ROUND(SolverSheet!I15,$C$7)*0 +SolverSheet!$F$15 -> 1.49
A59: =ROW() -> 59
A60: =ROW() -> 60 | F60: AAP4 closing tariff | G60: Tariffs to which X factor applied (X Factor will be applied to any cell containing "X")
A61: =ROW() -> 61 | B61: Charging parameter ($ real at 30 June 2019) | C61: Units $ real | F61: 2019 | G61: 2020 | H61: 2021 | I61: 2022 | J61: 2023 | K61: 2024
A62: =ROW() -> 62 | B62: Reference tariff A1
A63: =ROW() -> 63 | B63: Standing charge | C63: $/year | F63: =F35 -> 32444.85 | G63: =IF(G35<>0,0,"x") -> x | H63: =IF(H35<>0,0,"x") -> x | I63: =IF(I35<>0,0,"x") -> x | J63: =IF(J35<>0,0,"x") -> x | K63: =IF(K35<>0,0,"x") -> x
A64: =ROW() -> 64 | B64: Demand charge
A65: =ROW() -> 65 | B65: First 10 km | C65: $/GJ km | F65: 136.75 | G65: =IF(G37<>0,0,"x") -> x | H65: x | I65: x | J65: x | K65: x
A66: =ROW() -> 66 | B66: Distance > 10 km | C66: $/GJ km | F66: 71.98 | G66: x | H66: x | I66: x | J66: x | K66: x
A67: =ROW() -> 67 | B67: Usage charge | F67: 0
A68: =ROW() -> 68 | B68: First 10 km | C68: $/GJ km | F68: 0.02893 | G68: =IF(G40<>0,0,"x") -> x | H68: x | I68: x | J68: x | K68: x
A69: =ROW() -> 69 | B69: Distance > 10 km | C69: $/GJ km | F69: 0.01458 | G69: x | H69: x | I69: x | J69: x | K69: x
A70: =ROW() -> 70 | B70: Reference tariff A2 | F70: 0
A71: =ROW() -> 71 | B71: Standing charge | C71: $/Year | F71: 17952 | G71: =IF(G43<>0,0,"x") -> x | H71: x | I71: x | J71: x | K71: x
A72: =ROW() -> 72 | B72: First 10 TJ | C72: $/GJ | F72: 1.74 | G72: x | H72: x | I72: x | J72: x | K72: x
A73: =ROW() -> 73 | B73: Volume > 10 TJ | C73: $/GJ | F73: 0.93 | G73: x | H73: x | I73: x | J73: x | K73: x
A74: =ROW() -> 74 | B74: Reference tariff B1 | F74: 0
A75: =ROW() -> 75 | B75: Standing charge | C75: $/Year | F75: 907.55 | G75: =IF(G47<>0,0,"x") -> x | H75: x | I75: x | J75: x | K75: x
A76: =ROW() -> 76 | B76: First 5 TJ | C76: $/GJ | F76: 3.45 | G76: x | H76: x | I76: x | J76: x | K76: x
A77: =ROW() -> 77 | B77: Volume > 5 TJ | C77: $/GJ | F77: 2.97 | G77: x | H77: x | I77: x | J77: x | K77: x
A78: =ROW() -> 78 | B78: Reference tariff B2 | F78: 0
A79: =ROW() -> 79 | B79: Standing charge | C79: $/Year | F79: 226.74 | G79: =IF(G51<>0,0,"x") -> x | H79: x | I79: x | J79: x | K79: x
A80: =ROW() -> 80 | B80: First 100 GJ | C80: $/GJ | F80: 5.77 | G80: x | H80: x | I80: x | J80: x | K80: x
A81: =ROW() -> 81 | B81: Volume > 100 GJ | C81: $/GJ | F81: 3.44 | G81: x | H81: x | I81: x | J81: x | K81: x
A82: =ROW() -> 82 | B82: Reference tariff B3 | F82: 0
A83: =ROW() -> 83 | B83: Standing charge | C83: $/Year | F83: 116.84 | G83: =IF(G55<>0,0,"x") -> x | H83: x | I83: x | J83: x | K83: x
A84: =ROW() -> 84 | B84: First 1.818255 GJ | C84: $/GJ | F84: 0 | G84: x | H84: x | I84: x | J84: x | K84: x
A85: =ROW() -> 85 | B85: Volume > 1.825 <9.855 GJ | C85: $/GJ | F85: 4.89 | G85: 0 | H85: x | I85: x | J85: x | K85: x
A86: =ROW() -> 86 | B86: Volume > 9.855 GJ | C86: $/GJ | F86: 2.11 | G86: 0 | H86: x | I86: x | J86: x | K86: x
A87: =ROW() -> 87
A88: =ROW() -> 88 | B88: Manual tariff adjustment to balance NPV = 0 (necessary due to tariff rounding)
A89: =ROW() -> 89 | F89: AAP4 closing tariff | G89: Forecast tariffs ($ real)
A90: =ROW() -> 90 | B90: Charging parameter ($ real at 31 December 2019) | C90: Units $ real | F90: 2019 | G90: 2020 | H90: 2021 | I90: 2022 | J90: 2023 | K90: 2024
A91: =ROW() -> 91 | B91: Reference tariff A1
A92: =ROW() -> 92 | B92: Standing charge | C92: $/year
A93: =ROW() -> 93 | B93: Demand charge
A94: =ROW() -> 94 | B94: First 10 km | C94: $/GJ km
A95: =ROW() -> 95 | B95: Distance > 10 km | C95: $/GJ km
A96: =ROW() -> 96 | B96: Usage charge
A97: =ROW() -> 97 | B97: First 10 km | C97: $/GJ km
A98: =ROW() -> 98 | B98: Distance > 10 km | C98: $/GJ km
A99: =ROW() -> 99 | B99: Reference tariff A2
A100: =ROW() -> 100 | B100: Standing charge | C100: $/Year
A101: =ROW() -> 101 | B101: First 10 TJ | C101: $/GJ
A102: =ROW() -> 102 | B102: Volume > 10 TJ | C102: $/GJ
A103: =ROW() -> 103 | B103: Reference tariff B1
A104: =ROW() -> 104 | B104: Standing charge | C104: $/Year
A105: =ROW() -> 105 | B105: First 5 TJ | C105: $/GJ
A106: =ROW() -> 106 | B106: Volume > 5 TJ | C106: $/GJ
A107: =ROW() -> 107 | B107: Reference tariff B2
A108: =ROW() -> 108 | B108: Standing charge | C108: $/Year
A109: =ROW() -> 109 | B109: First 100 GJ | C109: $/GJ
A110: =ROW() -> 110 | B110: Volume > 100 GJ | C110: $/GJ
A111: =ROW() -> 111 | B111: Reference tariff B3
A112: =ROW() -> 112 | B112: Standing charge | C112: $/Year
A113: =ROW() -> 113 | B113: First 1.818255 GJ | C113: $/GJ
A114: =ROW() -> 114 | B114: Volume > 1.825 <9.855 GJ | C114: $/GJ
A115: =ROW() -> 115 | B115: Volume > 9.855 GJ | C115: $/GJ
A116: =ROW() -> 116
A117: =ROW() -> 117 | B117: Proposed Tariffs
A118: =ROW() -> 118 | F118: AAP4 closing tariff | G118: ="Forecast tariffs (Real "&Input!G43&" $)" -> Forecast tariffs (Real 31/12/2019 $)
A119: =ROW() -> 119 | B119: Charging parameter ($ real at 31 December 2019) | C119: Units $ real | F119: 2019 | G119: 2020 | H119: 2021 | I119: 2022 | J119: 2023 | K119: 2024
A120: =ROW() -> 120 | B120: Reference tariff A1
A121: =ROW() -> 121 | B121: Standing charge | C121: $/year | F121: =F63 -> 32444.85 | G121: =ROUND(IF(G35<>0,F121+G35,F121*(1+G$16)),$C$7)+G92 -> 32931.52 | H121: =IF(H35<>0,G121+H35,G121*(1+H$16))+H92 -> 33394.09974 | I121: =IF(I35<>0,H121+I35,H121*(1+I$16))+I92 -> 33863.1772 | J121: 34338.84366 | K121: 34821.19167
A122: =ROW() -> 122 | B122: Demand charge
A123: =ROW() -> 123 | B123: First 10 km | C123: $/GJ km | F123: =F65 -> 136.75 | G123: =ROUND(IF(G37<>0,F123+G37,F123*(1+G$16)),$C$7)+G94 -> 138.8 | H123: =IF(H37<>0,G123+H37,G123*(1+H$16))+H94 -> 140.7496843 | I123: =IF(I37<>0,H123+I37,H123*(1+I$16))+I94 -> 142.7267552 | J123: 144.7315976 | K123: 146.7646013
A124: =ROW() -> 124 | B124: Distance > 10 km | C124: $/GJ km | F124: =F66 -> 71.98 | G124: 73.06 | H124: =IF(H38<>0,G124+H38,G124*(1+H$16))+H95 -> 74.08625313 | I124: =IF(I38<>0,H124+I38,H124*(1+I$16))+I95 -> 75.12692175 | J124: 76.18220834 | K124: 77.25231825
A125: =ROW() -> 125 | B125: Usage charge
A126: =ROW() -> 126 | B126: First 10 km | C126: $/GJ km | F126: =F68 -> 0.02893 | G126: =ROUND(IF(G40<>0,F126+G40,F126*(1+G$16)),$C$6)+G97 -> 0.02936 | H126: =IF(H40<>0,G126+H40,G126*(1+H$16))+H97 -> 0.02977241161 | I126: =IF(I40<>0,H126+I40,H126*(1+I$16))+I97 -> 0.03019061624 | J126: 0.03061469528 | K126: 0.03104473123
A127: =ROW() -> 127 | B127: Distance > 10 km | C127: $/GJ km | F127: =F69 -> 0.01458 | G127: 0.0148 | H127: =IF(H41<>0,G127+H41,G127*(1+H$16))+H98 -> 0.01500789141 | I127: =IF(I41<>0,H127+I41,H127*(1+I$16))+I98 -> 0.01521870301 | J127: 0.01543247582 | K127: 0.01564925144
A128: =ROW() -> 128 | B128: Reference tariff A2
A129: =ROW() -> 129 | B129: Standing charge | C129: $/Year | F129: =F71 -> 17952 | G129: =ROUND(IF(G43<>0,F129+G43,F129*(1+G$16)),$C$7)+G100 -> 18221.28 | H129: =IF(H43<>0,G129+H43,G129*(1+H$16))+H100 -> 18477.22916 | I129: =IF(I43<>0,H129+I43,H129*(1+I$16))+I100 -> 18736.77357 | J129: 18999.96372 | K129: 19266.85083
A130: =ROW() -> 130 | B130: First 10 TJ | C130: $/GJ | F130: 1.74 | G130: 1.77 | H130: =IF(H44<>0,G130+H44,G130*(1+H$16))+H101 -> 1.794862689 | I130: =IF(I44<>0,H130+I44,H130*(1+I$16))+I101 -> 1.820074617 | J130: 1.845640689 | K130: 1.871565881
A131: =ROW() -> 131 | B131: Volume > 10 TJ | C131: $/GJ | F131: 0.93 | G131: 0.94 | H131: =IF(H45<>0,G131+H45,G131*(1+H$16))+H102 -> 0.9532039138 | I131: =IF(I45<>0,H131+I45,H131*(1+I$16))+I102 -> 0.9665932992 | J131: 0.9801707616 | K131: 0.9939389427
A132: =ROW() -> 132 | B132: Reference tariff B1 | F132: 0
A133: =ROW() -> 133 | B133: Standing charge | C133: $/Year | F133: 907.55 | G133: =ROUND(IF(G47<>0,F133+G47,F133*(1+G$16)),$C$7)+G104 -> 921.16 | H133: =IF(H47<>0,G133+H47,G133*(1+H$16))+H104 -> 934.0992737 | I133: =IF(I47<>0,H133+I47,H133*(1+I$16))+I104 -> 947.2203016 | J133: 960.525637 | K133: 974.0178686
A134: =ROW() -> 134 | B134: First 5 TJ | C134: $/GJ | F134: 3.45 | G134: 3.5 | H134: =IF(H48<>0,G134+H48,G134*(1+H$16))+H105 -> 3.549163509 | I134: =IF(I48<>0,H134+I48,H134*(1+I$16))+I105 -> 3.599017604 | J134: 3.649571985 | K134: 3.700836489
A135: =ROW() -> 135 | B135: Volume > 5 TJ | C135: $/GJ | F135: 2.97 | G135: 3.01 | H135: =IF(H49<>0,G135+H49,G135*(1+H$16))+H106 -> 3.052280618 | I135: =IF(I49<>0,H135+I49,H135*(1+I$16))+I106 -> 3.095155139 | J135: 3.138631907 | K135: 3.18271938
A136: =ROW() -> 136 | B136: Reference tariff B2
A137: =ROW() -> 137 | B137: Standing charge | C137: $/Year | F137: =F79 -> 226.74 | G137: =ROUND(IF(G51<>0,F137+G51,F137*(1+G$16)),$C$7)+G108 -> 230.14 | H137: =IF(H51<>0,G137+H51,G137*(1+H$16))+H108 -> 233.3727114 | I137: =IF(I51<>0,H137+I51,H137*(1+I$16))+I108 -> 236.6508318 | J137: 239.974999 | K137: 243.3458599
A138: =ROW() -> 138 | B138: First 100 GJ | C138: $/GJ | F138: =F80 -> 5.77 | G138: 5.86 | H138: =IF(H52<>0,G138+H52,G138*(1+H$16))+H109 -> 5.942313761 | I138: =IF(I52<>0,H138+I52,H138*(1+I$16))+I109 -> 6.025783759 | J138: 6.110426237 | K138: 6.196257664
A139: =ROW() -> 139 | B139: Volume > 100 GJ | C139: $/GJ | F139: =F81 -> 3.44 | G139: 3.49 | H139: =IF(H53<>0,G139+H53,G139*(1+H$16))+H110 -> 3.539023042 | I139: =IF(I53<>0,H139+I53,H139*(1+I$16))+I110 -> 3.588734696 | J139: 3.639144636 | K139: 3.69026267
A140: =ROW() -> 140 | B140: Reference tariff B3
A141: =ROW() -> 141 | B141: Standing charge | C141: $/Year | F141: =F83 -> 116.84 | G141: =ROUND(IF(G55<>0,F141+G55,IF($C$8=0,F141*(1+G$16),$F$141)),$C$7) -> 116.84 | H141: =IF(H55<>0,G141+H55,IF($C$8=0,G141*(1+H$16),$F$141)) -> 116.84 | I141: =IF(I55<>0,H141+I55,IF($C$8=0,H141*(1+I$16),$F$141)) -> 116.84 | J141: 116.84 | K141: 116.84
A142: =ROW() -> 142 | B142: First 1.818255 GJ | C142: $/GJ | F142: =F84 -> 0 | G142: =ROUND(IF(G56<>0,F142+G56,F142*(1+IF($C$8=0,G$16,G$18))),$C$7) -> 0 | H142: =IF(H56<>0,G142+H56,G142*(1+IF($C$8=0,H$16,H$18))) -> 0 | I142: =IF(I56<>0,H142+I56,H142*(1+IF($C$8=0,I$16,I$18))) -> 0 | J142: 0 | K142: 0
A143: =ROW() -> 143 | B143: Volume > 1.825 <9.855 GJ | C143: $/GJ | F143: =F85 -> 4.89 | G143: =ROUND(IF(G57<>0,F143+G57,F143*(1+IF($C$8=0,G$16,G$18))),$C$7)+G114 -> 5.39 | H143: =IF(H57<>0,G143+H57,G143*(1+IF($C$8=0,H$16,H$18)))+H114 -> 5.465711804 | I143: =IF(I57<>0,H143+I57,H143*(1+IF($C$8=0,I$16,I$18)))+I114 -> 5.542487109 | J143: 5.620340856 | K143: 5.699288193
A144: =ROW() -> 144 | B144: Volume > 9.855 GJ | C144: $/GJ | F144: =F86 -> 2.11 | G144: =ROUND(IF(G58<>0,F144+G58,F144*(1+IF($C$8=0,G$16,G$18))),$C$7)+G115 -> 3.6 | H144: =IF(H58<>0,G144+H58,G144*(1+IF($C$8=0,H$16,H$18)))+H115 -> 3.650568181 | I144: =IF(I58<>0,H144+I58,H144*(1+IF($C$8=0,I$16,I$18)))+I115 -> 3.701846678 | J144: 3.75384547 | K144: 3.806574674
A145: =ROW() -> 145
A146: =ROW() -> 146 | B146: Average B3 customer bill ($ real December 2019)
A147: =ROW() -> 147
A148: =ROW() -> 148 | B148: Charging parameter ($ real at 31 December 2019) | C148: Units $ real | D148: B3 ave consumption in GJ | F148: 2019 | G148: 2020 | H148: 2021 | I148: 2022 | J148: 2023 | K148: 2024
A149: =ROW() -> 149 | B149: Standing charge | C149: $/Year | F149: =F141 -> 116.84 | G149: =G141 -> 116.84 | H149: 116.84 | I149: 116.84 | J149: 116.84 | K149: 116.84
A150: =ROW() -> 150 | B150: First 1.818255 GJ | C150: $/GJ | D150: 1.818255 | F150: =$D150*F142 -> 0 | G150: 0 | H150: 0 | I150: 0 | J150: 0 | K150: 0
A151: =ROW() -> 151 | B151: Volume > 1.825 <9.855 GJ | C151: $/GJ | D151: 9.855 | F151: =($D151-$D150)*F143 -> 39.29968305 | G151: 43.31805555 | H151: 43.92653201 | I151: 44.54355556 | J151: 45.16924628 | K151: 45.80372589
A152: =ROW() -> 152 | B152: Volume > 9.855 GJ | C152: $/GJ | D152: 13.5 | F152: 7.69095 | G152: 13.122 | H152: 13.30632102 | I152: 13.49323114 | J152: 13.68276674 | K152: 13.87496469
A153: =ROW() -> 153 | B153: Total | F153: =SUM(F149:F152) -> 163.830633 | G153: =SUM(G149:G152) -> 173.2800555 | H153: 174.072853 | I153: 174.8767867 | J153: 175.692013 | K153: 176.5186906

Sheet Load_Tariffs
A1: =Main!A1 -> ERA, GDS Tariff Model, Final Decision, November 2019
A2: Inputs for Tariff Revenue
A3: Ref | C3: =COLUMN() -> 3 | D3: =COLUMN() -> 4 | E3: =COLUMN() -> 5 | F3: =COLUMN() -> 6 | G3: =COLUMN() -> 7 | H3: =COLUMN() -> 8 | I3: =COLUMN() -> 9 | J3: =COLUMN() -> 10 | K3: =COLUMN() -> 11 | L3: =COLUMN() -> 12 | M3: =COLUMN() -> 13 | N3: =COLUMN() -> 14 | O3: =COLUMN() -> 15 | P3: =COLUMN() -> 16 | Q3: =COLUMN() -> 17 | R3: =COLUMN() -> 18 | S3: =COLUMN() -> 19 | T3: =COLUMN() -> 20 | U3: =COLUMN() -> 21 | V3: =COLUMN() -> 22 | W3: =COLUMN() -> 23 | X3: =COLUMN() -> 24 | Y3: =COLUMN() -> 25 | Z3: =COLUMN() -> 26 | AA3: =COLUMN() -> 27 | AB3: =COLUMN() -> 28 | AC3: =COLUMN() -> 29 | AD3: =COLUMN() -> 30 | AE3: =COLUMN() -> 31 | AF3: =COLUMN() -> 32 | AG3: =COLUMN() -> 33 | AH3: =COLUMN() -> 34 | AI3: =COLUMN() -> 35 | AJ3: =COLUMN() -> 36 | AK3: =COLUMN() -> 37 | AL3: =COLUMN() -> 38 | AM3: =COLUMN() -> 39
A4: =ROW() -> 4 | J4: Year ending 31 December | O4: Year ending 31 December | W4: Year Ending 30 June | AD4: Year ending 31 December | AI4: Year ending 31 December
A5: Regulatory Period | J5: 1 | K5: 1 | L5: 1 | M5: 1 | N5: 1 | O5: 2 | P5: 2 | Q5: 2 | R5: 2 | S5: 2 | T5: 3 | U5: 3 | V5: 3 | W5: 3 | X5: 3 | Y5: 3 | Z5: 3 | AA5: 4 | AB5: 4 | AC5: 4 | AD5: 4 | AE5: 4 | AF5: 4 | AG5: 4 | AH5: 4 | AI5: 4 | AJ5: 4 | AK5: 4 | AL5: 4 | AM5: 4
A6: Year ending | I6: 1999 | J6: 2000 | K6: 2001 | L6: 2002 | M6: 2003 | N6: 2004 | O6: 2005 | P6: 2006 | Q6: 2007 | R6: 2008 | S6: =1+R6 -> 2009 | T6: =1+S6 -> 2010 | U6: 2010 | V6: =1+U6 -> 2011 | W6: =T6+1 -> 2011 | X6: =1+V6 -> 2012 | Y6: =1+X6 -> 2013 | Z6: =1+Y6 -> 2014 | AA6: 2014 | AB6: 2015 | AC6: 2015 | AD6: 2015 | AE6: =1+AD6 -> 2016 | AF6: 2017 | AG6: 2018 | AH6: 2019 | AI6: 2020 | AJ6: 2021 | AK6: 2022 | AL6: 2023 | AM6: 2024
A7: Months | I7: 1 to 12 | J7: 1 to 12 | K7: 1 to 12 | L7: 1 to 12 | M7: 1 to 12 | N7: 1 to 12 | O7: 1 to 12 | P7: 1 to 12 | Q7: 1 to 12 | R7: 1 to 12 | S7: 1 to 12 | T7: 1 to 6 | U7: 7 to 12 | V7: 1 to 6 | W7: 7 to 6 | X7: 7 to 6 | Y7: 7 to 6 | Z7: 7 to 6 | AA7: 7 to 12 | AB7: 1 to 9 | AC7: 10 to 12 | AD7: 1 to 12 | AE7: 1 to 12 | AF7: 1 to 12 | AG7: 1 to 12 | AH7: 1 to 12 | AI7: 1 to 12 | AJ7: 1 to 12 | AK7: 1 to 12 | AL7: 1 to 12 | AM7: 1 to 12
A8: Days | I8: =Input!I8 -> 365 | J8: =Input!J8 -> 366 | K8: =Input!K8 -> 365 | L8: =Input!L8 -> 365 | M8: =Input!M8 -> 365 | N8: =Input!N8 -> 366 | O8: =Input!O8 -> 365 | P8: =Input!P8 -> 365 | Q8: =Input!Q8 -> 365 | R8: =Input!R8 -> 366 | S8: =Input!S8 -> 365 | T8: =Input!T8 -> 181 | U8: 184 | V8: 181 | W8: =Input!U8 -> 365 | X8: =Input!V8 -> 366 | Y8: =Input!W8 -> 365 | Z8: =Input!X8 -> 365 | AA8: =DATEVALUE("31/12/2014")-DATEVALUE("30/6/2014") -> 184 | AB8: =DATEVALUE("30/9/2015")-DATEVALUE("31/12/2014") -> 273 | AC8: =DATEVALUE("31/12/2015")-DATEVALUE("30/9/2015") -> 92 | AD8: =Input!Z8 -> 365 | AE8: =Input!AA8 -> 366 | AF8: =Input!AB8 -> 365 | AG8: =Input!AC8 -> 365 | AH8: =Input!AD8 -> 365 | AI8: =Input!AE8 -> 366 | AJ8: =Input!AF8 -> 365 | AK8: =Input!AG8 -> 365 | AL8: =Input!AH8 -> 365 | AM8: =Input!AI8 -> 366
A9: Year portion | I9: =Input!I9 -> 1 | J9: =Input!J9 -> 1 | K9: =Input!K9 -> 1 | L9: =Input!L9 -> 1 | M9: =Input!M9 -> 1 | N9: =Input!N9 -> 1 | O9: =Input!O9 -> 1 | P9: =Input!P9 -> 1 | Q9: =Input!Q9 -> 1 | R9: =Input!R9 -> 1 | S9: =Input!S9 -> 1 | T9: =Input!T9 -> 0.495890411 | U9: =U8/365 -> 0.504109589 | V9: =1-U9 -> 0.495890411 | W9: =Input!U9 -> 1 | X9: =Input!V9 -> 1 | Y9: =Input!W9 -> 1 | Z9: =Input!X9 -> 1 | AA9: =Input!Y9 -> 0.504109589 | AB9: =AB8/365 -> 0.7479452055 | AC9: =1-AB9 -> 0.2520547945 | AD9: =Input!Z9 -> 1 | AE9: =Input!AA9 -> 1 | AF9: =Input!AB9 -> 1 | AG9: =Input!AC9 -> 1 | AH9: =Input!AD9 -> 1 | AI9: =Input!AE9 -> 1 | AJ9: =Input!AF9 -> 1 | AK9: =Input!AG9 -> 1 | AL9: =Input!AH9 -> 1 | AM9: =Input!AI9 -> 1
A10: Financial Parameters
A11: =ROW() -> 11 | C11: Actual and Forecast Inflations used in calculation
A12: =ROW() -> 12 | D12: Selected CPI period | I12: =Input!I38 -> 1999-12-31 | J12: =Input!J38 -> 2000-12-31 | K12: =Input!K38 -> 2001-12-31 | L12: =Input!L38 -> 2002-12-31 | M12: =Input!M38 -> 2003-12-31 | N12: =Input!N38 -> 2004-12-31 | O12: =Input!O38 -> 2005-12-31 | P12: =Input!P38 -> 2006-12-31 | Q12: =Input!Q38 -> 2007-12-31 | R12: =Input!R38 -> 2008-12-31 | S12: =Input!S38 -> 2009-12-31 | T12: =Input!T38 -> 2010-06-30 | U12: 2010-12-31 | V12: 2011-06-06 | W12: =Input!U38 -> 2011-06-30 | X12: =Input!V38 -> 2012-06-30 | Y12: =Input!W38 -> 2013-06-30 | Z12: =Input!X38 -> 2014-06-30 | AA12: =Input!Y38 -> 2014-12-31 | AB12: =AD12 -> 2015-12-31 | AC12: 2015-12-31 | AD12: =Input!Z38 -> 2015-12-31 | AE12: =Input!AA38 -> 2016-12-31 | AF12: =Input!AB38 -> 2017-12-31 | AG12: =Input!AC38 -> 2018-12-31 | AH12: =Input!AD38 -> 2019-12-31 | AI12: =Input!AE38 -> 2020-12-31 | AJ12: =Input!AF38 -> 2021-12-31 | AK12: =Input!AG38 -> 2022-12-31 | AL12: =Input!AH38 -> 2023-12-31 | AM12: =Input!AI38 -> 2024-12-03
A13: =ROW() -> 13 | D13: CPI | I13: =Input!I39 -> 69.06674058 | J13: =Input!J39 -> 73.07383592 | K13: =Input!K39 -> 75.3556541 | L13: =Input!L39 -> 77.63747228 | M13: =Input!M39 -> 79.47405765 | N13: =Input!N39 -> 81.53325942 | O13: =Input!O39 -> 83.81507761 | P13: =Input!P39 -> 86.5421286 | Q13: =Input!Q39 -> 89.10221729 | R13: =Input!R39 -> 92.38580931 | S13: =Input!S39 -> 94.33370288 | T13: =Input!T39 -> 95.78070953 | U13: =T13*(1+U14) -> 96.83813747 | V13: =U13*(1+V14) -> 99.23126386 | W13: =Input!U39 -> 99.23126386 | X13: =Input!V39 -> 100.4 | Y13: =Input!W39 -> 102.8 | Z13: =Input!X39 -> 105.9 | AA13: =Input!Y39 -> 106.6 | AB13: =AD13 -> 108.4 | AC13: =AD13 -> 108.4 | AD13: =Input!Z$39 -> 108.4 | AE13: =Input!AA$39 -> 110 | AF13: =Input!AB$39 -> 112.1 | AG13: =Input!AC$39 -> 114.1 | AH13: =Input!AD$39 -> 115.4552925 | AI13: =Input!AE$39 -> 116.7714828 | AJ13: =Input!AF$39 -> 118.1026777 | AK13: =Input!AG$39 -> 119.4490482 | AL13: =Input!AH$39 -> 120.8107674 | AM13: =Input!AI$39 -> 122.1880101
A14: =ROW() -> 14 | D14: Inflation | J14: =J13/I13-1 -> 0.05801772764 | K14: 0.03122619954 | L14: 0.03028064993 | M14: 0.02365591398 | N14: 0.02591036415 | O14: 0.02798634812 | P14: 0.03253652058 | Q14: 0.02958199357 | R14: 0.03685196752 | S14: 0.02108433735 | T14: 0.01533923304 | U14: 0.01104009297 | V14: 0.02471264368 | W14: =W13/T13-1 -> 0.03602556653 | X14: =X13/W13-1 -> 0.01177790241 | Y14: 0.02390438247 | Z14: 0.03015564202 | AA14: 0.006610009443 | AB14: 0.01688555347 | AC14: =AD14 -> 0.01688555347 | AD14: =AD13/AA13-1 -> 0.01688555347 | AE14: 0.0147601476 | AF14: 0.01909090909 | AG14: 0.0178412132 | AH14: 0.01187811098 | AI14: =AI13/AH13-1 -> 0.0114 | AJ14: 0.0114 | AK14: =AK13/AJ13-1 -> 0.0114 | AL14: =AL13/AK13-1 -> 0.0114 | AM14: =AM13/AL13-1 -> 0.0114
A15: =ROW() -> 15 | C15: Inflation to Convert from the end of the period
A16: =ROW() -> 16 | D16: ="Inflation Factor (convert to real "&Input!$G$43&" $)" -> Inflation Factor (convert to real 31/12/2019 $) | G16: Base period | H16: =Input!G38 -> 2019-12-31 | I16: =Input!I43 -> 1.671648199 | J16: =Input!J43 -> 1.579981275 | K16: =Input!K43 -> 1.532138415 | L16: =Input!L43 -> 1.487107824 | M16: =Input!M43 -> 1.452741887 | N16: =Input!N43 -> 1.416051477 | O16: =Input!O43 -> 1.377500275 | P16: =Input!P43 -> 1.334093514 | Q16: =Input!Q43 -> 1.295762283 | R16: =Input!R43 -> 1.249708081 | S16: =Input!S43 -> 1.223902899 | T16: =HLOOKUP($H$16,$I$12:$AH$13,2,FALSE)/T$13 -> 1.205412792 | U16: =HLOOKUP($H$16,$I$12:$AH$13,2,FALSE)/U$13 -> 1.192250238 | V16: =HLOOKUP($H$16,$I$12:$AH$13,2,FALSE)/V$13 -> 1.163497148 | W16: =Input!U43 -> 1.163497148 | X16: =Input!V43 -> 1.149953112 | Y16: =Input!W43 -> 1.123105958 | Z16: =Input!X43 -> 1.090229391 | AA16: =Input!Y43 -> 1.083070286 | AB16: =AC16 -> 1.065085724 | AC16: =AD16 -> 1.065085724 | AD16: =Input!Z43 -> 1.065085724 | AE16: =Input!AA43 -> 1.049593568 | AF16: =Input!AB43 -> 1.029931244 | AG16: =Input!AC43 -> 1.011878111 | AH16: =Input!AD43 -> 1 | AI16: =Input!AE43 -> 0.9887284952 | AJ16: =Input!AF43 -> 0.9775840371 | AK16: =Input!AG43 -> 0.9665651939 | AL16: =Input!AH43 -> 0.9556705497 | AM16: =Input!AI43 -> 0.9448987044
A17: =ROW() -> 17 | D17: ="Inflation Factor (convert " &Input!$G$43& " $ to nominal $)" -> Inflation Factor (convert 31/12/2019 $ to nominal $) | I17: =1/I16 -> 0.5982119927 | J17: 0.6329188932 | K17: 0.6526825449 | L17: 0.6724461965 | M17: 0.6883535259 | N17: 0.7061890164 | O17: 0.7259526681 | P17: 0.749572642 | Q17: 0.7717464951 | R17: 0.8001868718 | S17: 0.8170582818 | T17: =1/T16 -> 0.8295913292 | U17: 0.8387500946 | V17: 0.8594778268 | W17: 0.8594778268 | X17: 0.8696006728 | Y17: 0.8903879398 | Z17: 0.9172381598 | AA17: =1/AA16 -> 0.9233011127 | AB17: =1/AB16 -> 0.938891563 | AC17: 0.938891563 | AD17: 0.938891563 | AE17: 0.9527497411 | AF17: 0.9709385998 | AG17: 0.9882613223 | AH17: 1 | AI17: =1/AI16 -> 1.0114 | AJ17: 1.02292996 | AK17: 1.034591362 | AL17: 1.046385703 | AM17: 1.0583145
A18: =ROW() -> 18
A19: Volume & Customer Num by Tariff Class
A20: =ROW() -> 20 | O20: Actual 2 | T20: Actual 3 and est for 2013/14 | AD20: Actuals | AG20: Forecast | AK20: Forecast
A21: =ROW() -> 21 | C21: Customers Including Prudent Discounts
A22: =ROW() -> 22 | D22: Tariff class A1 | O22: =O29+O43 -> 70.5 | P22: 72.5 | Q22: 72 | R22: 73 | S22: 75.5 | T22: =T29+T36 -> 75.33333333 | U22: 75 | V22: 75.16666667 | W22: 75.16666667 | X22: 72.91666667 | Y22: 75.66666667 | Z22: 74.5 | AA22: 72.5 | AD22: =AD29+AD36 -> 73.5 | AE22: 76 | AF22: 75.5 | AG22: 74.5 | AH22: 75 | AI22: =AI29+AI36 -> 75 | AJ22: 75 | AK22: 74.5 | AL22: 74 | AM22: 74
A23: =ROW() -> 23 | D23: Tariff class A2 | O23: 93 | P23: 96 | Q23: 97 | R23: 98 | S23: 99 | T23: 102.1666667 | U23: 100.5 | V23: 105 | W23: 105 | X23: 112.5 | Y23: 109.0833333 | Z23: 107.5 | AA23: 107 | AD23: =AD30+AD37 -> 106.5 | AE23: 102 | AF23: 99 | AG23: 103 | AH23: 105 | AI23: =AI30+AI37 -> 105.5 | AJ23: 106 | AK23: 106.5 | AL23: 107 | AM23: 107.5
A24: =ROW() -> 24 | D24: Tariff class B1 | O24: 1074 | P24: 1084.5 | Q24: 1106.5 | R24: 1136.5 | S24: 1184.5 | T24: 1225.166667 | U24: 1244.5 | V24: 1258.833333 | W24: 1258.833333 | X24: 1298.916667 | Y24: 1335.416667 | Z24: 1365 | AA24: 1400 | AD24: =AD31+AD38 -> 1445 | AE24: 1519.5 | AF24: 1600 | AG24: 1670.5 | AH24: 1728.409426 | AI24: =AI31+AI38 -> 1780.006732 | AJ24: 1834.193575 | AK24: 1888.489968 | AL24: 1943.392253 | AM24: 1998.918607
A25: =ROW() -> 25 | D25: Tariff class B2 | O25: 5988 | P25: 5810 | Q25: 6218 | R25: 6677 | S25: 7248.505679 | T25: 7702.5 | U25: 7898 | V25: 8110.083333 | W25: 8110.083333 | X25: 8713.75 | Y25: 9267.25 | Z25: 9801.5 | AA25: 10224.5 | AD25: =AD32+AD39 -> 10624.5 | AE25: 11114.5 | AF25: 11496.5 | AG25: 11740 | AH25: 11957.43869 | AI25: =AI32+AI39 -> 12238.84289 | AJ25: 12519.27429 | AK25: 12795.99349 | AL25: 13095.75427 | AM25: 13402.12108
A26: =ROW() -> 26 | D26: Tariff class B3 | O26: 515677.5 | P26: 536107.5 | Q26: 556115.5 | R26: 573808.5 | S26: 589563.5 | T26: 601247 | U26: 609163.8988 | V26: 614525 | W26: 614525 | X26: 629900.5833 | Y26: 642710.8333 | Z26: 657672.5 | AA26: 671182 | AD26: =AD33+AD40 -> 686910.5 | AE26: 705512.5 | AF26: 718910.5 | AG26: 728627 | AH26: 735064.5288 | AI26: =AI33+AI40 -> 740372.081 | AJ26: 747882.7006 | AK26: 757221.4797 | AL26: 769292.6773 | AM26: 783000.3496
A27: =ROW() -> 27 | D27: Total | O27: =SUM(O22:O26) -> 522903 | P27: =SUM(P22:P26) -> 543170.5 | Q27: =SUM(Q22:Q26) -> 563609 | R27: =SUM(R22:R26) -> 581793 | S27: =SUM(S22:S26) -> 598171.0057 | T27: =SUM(T22:T26) -> 610352.1667 | U27: 618481.8988 | V27: 624074.0833 | W27: 624074.0833 | X27: 640098.6667 | Y27: 653498.25 | Z27: 669021 | AA27: 682986 | AD27: =SUM(AD22:AD26) -> 699160 | AE27: 718324.5 | AF27: 732181.5 | AG27: 742215 | AH27: 748930.3769 | AI27: =SUM(AI22:AI26) -> 754571.4307 | AJ27: 762417.1685 | AK27: 772086.9631 | AL27: 784512.8238 | AM27: 798582.8893
A28: =ROW() -> 28 | C28: Customers Receiving Prudent Discounts
A29: =ROW() -> 29 | D29: Tariff class A1 | O29: 29 | P29: 30.5 | Q29: 29.5 | R29: 28 | S29: 27 | T29: 25 | U29: =W29 -> 22 | V29: =W29 -> 22 | W29: 22 | X29: 17 | Y29: 13 | Z29: 10 | AA29: 8 | AD29: 7 | AE29: 4 | AF29: 3 | AG29: 2 | AH29: 2 | AI29: 2 | AJ29: 2 | AK29: 2 | AL29: 2 | AM29: 2
A30: =ROW() -> 30 | D30: Tariff class A2 | O30: 12 | P30: 11.5 | Q30: 10 | R30: 7.5 | S30: 5 | T30: 5 | U30: =W30 -> 4 | V30: =W30 -> 4 | W30: 4 | X30: 3 | Y30: 2.5 | Z30: 3 | AA30: 4 | AD30: 4 | AE30: 3.5 | AF30: 2 | AG30: 1 | AH30: 0 | AI30: 0 | AJ30: 0 | AK30: 0 | AL30: 0 | AM30: 0
A31: =ROW() -> 31 | D31: Tariff class B1 | O31: 4 | P31: 4 | Q31: 4 | R31: 4 | S31: 3.5 | T31: 3 | U31: 2.5 | V31: 2.5 | W31: 2.5 | X31: 1.5 | Y31: 1 | Z31: 1 | AA31: 1 | AD31: 1 | AE31: 1 | AF31: 0.5 | AG31: 0 | AH31: 0 | AI31: 0 | AJ31: 0 | AK31: 0 | AL31: 0 | AM31: 0
A32: =ROW() -> 32 | D32: Tariff class B2 | O32: 5 | P32: 5 | Q32: 5 | R32: 5 | S32: 5.005679466 | T32: 5 | U32: 5 | V32: 5 | W32: 5 | X32: 5 | Y32: 5 | Z32: 4.5 | AA32: 3 | AD32: 2 | AE32: 2 | AF32: 2 | AG32: 1.5 | AH32: 0 | AI32: 0 | AJ32: 0 | AK32: 0 | AL32: 0 | AM32: 0
A33: =ROW() -> 33 | D33: Tariff class B3 | O33: 1 | P33: 1 | Q33: 1 | R33: 1 | S33: 1 | T33: 1 | U33: 1 | V33: 1 | W33: 1 | X33: 1 | Y33: 1 | Z33: 1 | AA33: 1 | AD33: 1 | AE33: 0.5 | AF33: 0 | AG33: 0 | AH33: 0 | AI33: 0 | AJ33: 0 | AK33: 0 | AL33: 0 | AM33: 0
A34: =ROW() -> 34 | D34: Total | O34: =SUM(O29:O33) -> 51 | P34: =SUM(P29:P33) -> 52 | Q34: =SUM(Q29:Q33) -> 49.5 | R34: =SUM(R29:R33) -> 45.5 | S34: =SUM(S29:S33) -> 41.50567947 | T34: =SUM(T29:T33) -> 39 | U34: 34.5 | V34: 34.5 | W34: 34.5 | X34: 27.5 | Y34: 22.5 | Z34: 19.5 | AA34: =SUM(AA29:AA33) -> 17 | AD34: 15 | AE34: 11 | AF34: 7.5 | AG34: 4.5 | AH34: 2 | AI34: =SUM(AI29:AI33) -> 2 | AJ34: 2 | AK34: 2 | AL34: 2 | AM34: 2
A35: =ROW() -> 35 | C35: Customers (Excluding Prudent Discounts)
A36: =ROW() -> 36 | D36: Tariff class A1 | O36: 41.5 | P36: 42 | Q36: 42.5 | R36: 45 | S36: 48.5 | T36: 50.33333333 | U36: 53 | V36: =W36 -> 53.16666667 | W36: 53.16666667 | X36: 55.91666667 | Y36: 62.66666667 | Z36: 64.5 | AA36: 64.5 | AD36: 66.5 | AE36: 72 | AF36: 72.5 | AG36: 72.5 | AH36: 73 | AI36: 73 | AJ36: 73 | AK36: 72.5 | AL36: 72 | AM36: 72
A37: =ROW() -> 37 | D37: Tariff class A2 | O37: 81 | P37: 84.5 | Q37: 87 | R37: 90.5 | S37: 94 | T37: 97.16666667 | U37: 96.5 | V37: =W37 -> 101 | W37: 101 | X37: 109.5 | Y37: 106.5833333 | Z37: 104.5 | AA37: 103 | AD37: 102.5 | AE37: 98.5 | AF37: 97 | AG37: 102 | AH37: 105 | AI37: 105.5 | AJ37: 106 | AK37: 106.5 | AL37: 107 | AM37: 107.5
A38: =ROW() -> 38 | D38: Tariff class B1 | O38: 1070 | P38: 1080.5 | Q38: 1102.5 | R38: 1132.5 | S38: 1181 | T38: 1222.166667 | U38: 1242 | V38: 1256.333333 | W38: 1256.333333 | X38: 1297.416667 | Y38: 1334.416667 | Z38: 1364 | AA38: 1399 | AD38: 1444 | AE38: 1518.5 | AF38: 1599.5 | AG38: 1670.5 | AH38: 1728.409426 | AI38: 1780.006732 | AJ38: 1834.193575 | AK38: 1888.489968 | AL38: 1943.392253 | AM38: 1998.918607
A39: =ROW() -> 39 | D39: Tariff class B2 | O39: 5983 | P39: 5805 | Q39: 6213 | R39: 6672 | S39: 7243.5 | T39: 7697.5 | U39: 7893 | V39: 8105.083333 | W39: 8105.083333 | X39: 8708.75 | Y39: 9262.25 | Z39: 9797 | AA39: 10221.5 | AD39: 10622.5 | AE39: 11112.5 | AF39: 11494.5 | AG39: 11738.5 | AH39: 11957.43869 | AI39: 12238.84289 | AJ39: 12519.27429 | AK39: 12795.99349 | AL39: 13095.75427 | AM39: 13402.12108
A40: =ROW() -> 40 | D40: Tariff class B3 | O40: 515676.5 | P40: 536106.5 | Q40: 556114.5 | R40: 573807.5 | S40: 589562.5 | T40: 601246 | U40: 609162.8988 | V40: 614524 | W40: 614524 | X40: 629899.5833 | Y40: 642709.8333 | Z40: 657671.5 | AA40: 671181 | AD40: 686909.5 | AE40: 705512 | AF40: 718910.5 | AG40: 728627 | AH40: 735064.5288 | AI40: 740372.081 | AJ40: 747882.7006 | AK40: 757221.4797 | AL40: 769292.6773 | AM40: 783000.3496
A41: =ROW() -> 41 | D41: Total | O41: =SUM(O36:O40) -> 522852 | P41: =SUM(P36:P40) -> 543118.5 | Q41: =SUM(Q36:Q40) -> 563559.5 | R41: =SUM(R36:R40) -> 581747.5 | S41: =SUM(S36:S40) -> 598129.5 | T41: 610313.1667 | U41: 618447.3988 | V41: 624039.5833 | W41: 624039.5833 | X41: 640071.1667 | Y41: 653475.75 | Z41: 669001.5 | AA41: =SUM(AA36:AA40) -> 682969 | AD41: 699145 | AE41: 718313.5 | AF41: 732174 | AG41: 742210.5 | AH41: 748928.3769 | AI41: =SUM(AI36:AI40) -> 754569.4307 | AJ41: 762415.1685 | AK41: 772084.9631 | AL41: 784510.8238 | AM41: 798580.8893
A42: =ROW() -> 42 | C42: Customers (Excluding Prudent Discounts)
A43: =ROW() -> 43 | D43: Tariff class A1 | O43: =O36 -> 41.5 | P43: 42 | Q43: 42.5 | R43: 45 | S43: 48.5 | T43: 50.33333333 | U43: 53 | V43: 53.16666667 | W43: 53.16666667 | X43: 55.91666667 | Y43: 62.66666667 | Z43: 64.5 | AA43: 64.5 | AD43: =AD36 -> 66.5 | AE43: 72 | AF43: 72.5 | AG43: 72.5 | AH43: 73 | AI43: =AI36 -> 73 | AJ43: 73 | AK43: 72.5 | AL43: 72 | AM43: 72
A44: =ROW() -> 44 | D44: Tariff class A2 | O44: 81 | P44: 84.5 | Q44: 87 | R44: 90.5 | S44: 94 | T44: 97.16666667 | U44: 96.5 | V44: 101 | W44: 101 | X44: =X37 -> 109.5 | Y44: 106.5833333 | Z44: 104.5 | AA44: 103 | AD44: =AD37 -> 102.5 | AE44: 98.5 | AF44: 97 | AG44: 102 | AH44: 105 | AI44: =AI37 -> 105.5 | AJ44: 106 | AK44: 106.5 | AL44: 107 | AM44: 107.5
A45: =ROW() -> 45 | D45: Tariff class B1 | O45: 1070 | P45: 1080.5 | Q45: 1102.5 | R45: 1132.5 | S45: 1181 | T45: 1222.166667 | U45: 1242 | V45: 1256.333333 | W45: 1256.333333 | X45: 1297.416667 | Y45: 1334.416667 | Z45: 1364 | AA45: 1399 | AD45: =AD38 -> 1444 | AE45: 1518.5 | AF45: 1599.5 | AG45: 1670.5 | AH45: 1728.409426 | AI45: =AI38 -> 1780.006732 | AJ45: 1834.193575 | AK45: 1888.489968 | AL45: 1943.392253 | AM45: 1998.918607
A46: =ROW() -> 46 | D46: Tariff class B2 | O46: 5983 | P46: 5805 | Q46: 6213 | R46: 6672 | S46: 7243.5 | T46: 7697.5 | U46: 7893 | V46: 8105.083333 | W46: 8105.083333 | X46: 8708.75 | Y46: 9262.25 | Z46: 9797 | AA46: 10221.5 | AD46: =AD39 -> 10622.5 | AE46: 11112.5 | AF46: 11494.5 | AG46: 11738.5 | AH46: 11957.43869 | AI46: =AI39 -> 12238.84289 | AJ46: 12519.27429 | AK46: 12795.99349 | AL46: 13095.75427 | AM46: 13402.12108
A47: =ROW() -> 47 | D47: Tariff class B3 | O47: 515676.5 | P47: 536106.5 | Q47: 556114.5 | R47: 573807.5 | S47: 589562.5 | T47: 601246 | U47: 609162.8988 | V47: 614524 | W47: 614524 | X47: 629899.5833 | Y47: 642709.8333 | Z47: 657671.5 | AA47: 671181 | AD47: =AD40 -> 686909.5 | AE47: 705512 | AF47: 718910.5 | AG47: 728627 | AH47: 735064.5288 | AI47: =AI40 -> 740372.081 | AJ47: 747882.7006 | AK47: 757221.4797 | AL47: 769292.6773 | AM47: 783000.3496
A48: =ROW() -> 48 | D48: Total | O48: =SUM(O43:O47) -> 522852 | P48: 543118.5 | Q48: 563559.5 | R48: 581747.5 | S48: 598129.5 | T48: 610313.1667 | U48: 618447.3988 | V48: 624039.5833 | W48: 624039.5833 | X48: 640071.1667 | Y48: 653475.75 | Z48: 669001.5 | AA48: =SUM(AA43:AA47) -> 682969 | AD48: =SUM(AD43:AD47) -> 699145 | AE48: 718313.5 | AF48: 732174 | AG48: 742210.5 | AH48: 748928.3769 | AI48: =SUM(AI43:AI47) -> 754569.4307 | AJ48: 762415.1685 | AK48: 772084.9631 | AL48: 784510.8238 | AM48: 798580.8893
A49: =ROW() -> 49 | C49: Volume (Including Prudent Discounts) [TJ]
A50: =ROW() -> 50 | D50: Tariff class A1 | O50: 16191.68504 | P50: 15869.0038 | Q50: 15601.67466 | R50: 12400.4278 | S50: 12209.3604 | T50: 6031.337349 | U50: 6214.313395 | V50: =W50-U50 -> 6292.668281 | W50: 12506.98168 | X50: 12071.65486 | Y50: 11296.60722 | Z50: 11362.13068 | AA50: 6025.896565 | AD50: 11398.21581 | AE50: 10777.96142 | AF50: 10338.17915 | AG50: 11225.07152 | AH50: 11611.95361 | AI50: 11537.73739 | AJ50: 11850.73891 | AK50: 11509.45386 | AL50: 11200.53691 | AM50: 11140.72914
A51: =ROW() -> 51 | D51: Tariff class A2 | O51: 2239.295585 | P51: 2067.887482 | Q51: 2111.61597 | R51: 1945.340459 | S51: 1956.817742 | T51: 936.9033746 | U51: 1052.735121 | V51: =W51-U51 -> 870.5179483 | W51: 1923.253069 | X51: 2092.299763 | Y51: 2040.058109 | Z51: 1927.568029 | AA51: 971.99815 | AD51: 1854.028603 | AE51: 1819.923627 | AF51: 1814.45347 | AG51: 1787.967278 | AH51: 1837.033731 | AI51: 1818.993685 | AJ51: 1801.24529 | AK51: 1783.783703 | AL51: 1766.604158 | AM51: 1749.701965
A52: =ROW() -> 52 | D52: Tariff class B1 | O52: 1890.602 | P52: 1703.088083 | Q52: 1717.715314 | R52: 1649.406131 | S52: 1636.164865 | T52: 745.5632319 | U52: 910.7456253 | V52: 683.8857193 | W52: 1594.631345 | X52: 1553.663922 | Y52: 1640.269951 | Z52: 1629.429407 | AA52: 889.2586427 | AD52: 1720.802873 | AE52: 1930.425315 | AF52: 1874.796319 | AG52: 2004.555894 | AH52: 2062.435359 | AI52: 2111.5876 | AJ52: 2150.393291 | AK52: 2190.620271 | AL52: 2224.660071 | AM52: 2247.163994
A53: =ROW() -> 53 | D53: Tariff class B2 | O53: 1068.909 | P53: 1109.032828 | Q53: 1134.902225 | R53: 1196.891861 | S53: 1158.582311 | T53: 552.7825543 | U53: 646.6664185 | V53: 522.0128637 | W53: 1168.679282 | X53: 1189.664699 | Y53: 1232.063588 | Z53: 1255.113315 | AA53: 663.227406 | AD53: 1292.02506 | AE53: 1368.908476 | AF53: 1343.140615 | AG53: 1353.684433 | AH53: 1349.535143 | AI53: 1373.368721 | AJ53: 1386.833188 | AK53: 1404.33802 | AL53: 1418.240316 | AM53: 1425.212431
A54: =ROW() -> 54 | D54: Tariff class B3 | O54: 10302.854 | P54: 9974.977966 | Q54: 10147.42947 | R54: 10602.50509 | S54: 10434.25466 | T54: 4589.274683 | U54: 6078.261289 | V54: 3691.503785 | W54: 9769.765074 | X54: 9645.962254 | Y54: 9905.950696 | Z54: 9840.84139 | AA54: 5226.947008 | AD54: 9796.899664 | AE54: 10874.77906 | AF54: 9932.181873 | AG54: 10077.69828 | AH54: 9989.969718 | AI54: 9973.31802 | AJ54: 9925.997324 | AK54: 9878.782808 | AL54: 9820.169127 | AM54: 9798.951517
A55: =ROW() -> 55 | D55: Total | O55: =SUM(O50:O54) -> 31693.34562 | P55: =SUM(P50:P54) -> 30723.99016 | Q55: =SUM(Q50:Q54) -> 30713.33764 | R55: =SUM(R50:R54) -> 27794.57134 | S55: =SUM(S50:S54) -> 27395.17998 | T55: 12855.86119 | U55: 14902.72185 | V55: 12060.5886 | W55: 26963.31045 | X55: 26553.2455 | Y55: 26114.94957 | Z55: 26015.08283 | AA55: =SUM(AA50:AA54) -> 13777.32777 | AD55: 26061.97201 | AE55: 26771.99789 | AF55: 25302.75142 | AG55: 26448.9774 | AH55: 26850.92756 | AI55: =SUM(AI50:AI54) -> 26815.00542 | AJ55: 27115.208 | AK55: 26766.97866 | AL55: 26430.21058 | AM55: 26361.75905
A56: =ROW() -> 56 | C56: Authority adjustments to volume (Including Prudent Discounts) [TJ] | O56: Actual 2 | T56: Estimate | AD56: Actuals | AG56: Forecast | AK56: Forecast
A57: =ROW() -> 57 | D57: Tariff class A1
A58: =ROW() -> 58 | D58: Tariff class A2
A59: =ROW() -> 59 | D59: Tariff class B1
A60: =ROW() -> 60 | D60: Tariff class B2
A61: =ROW() -> 61 | D61: Tariff class B3 | N61: WAGN submission 24/12/2010 | T61: =4589.27118678824-T54 -> -0.003496266674 | U61: =5806-U54 -> -272.2612895 | V61: =W61-U61 -> 272.2612895
A62: =ROW() -> 62 | D62: Total | O62: =SUM(O57:O61) -> 0 | P62: 0 | Q62: 0 | R62: 0 | S62: 0 | T62: -0.003496266674 | U62: -272.2612895 | V62: 272.2612895 | W62: 0 | X62: 0 | Y62: 0 | Z62: 0 | AD62: =SUM(AD57:AD61) -> 0 | AE62: 0 | AF62: 0 | AG62: 0 | AH62: 0 | AI62: =SUM(AI57:AI61) -> 0 | AJ62: 0 | AK62: 0 | AL62: 0 | AM62: 0
A63: =ROW() -> 63 | C63: Modelled Volume (Including Prudent Discounts) [TJ] | O63: Actual 2 | T63: Actual 3 and est for 2013/14 | AD63: Actuals | AG63: Forecast | AK63: Forecast
A64: =ROW() -> 64 | D64: Tariff class A1 | O64: =O50+O57 -> 16191.68504 | P64: =P50+P57 -> 15869.0038 | Q64: =Q50+Q57 -> 15601.67466 | R64: =R50+R57 -> 12400.4278 | S64: =S50+S57 -> 12209.3604 | T64: =T50+T57 -> 6031.337349 | U64: 6214.313395 | V64: 6292.668281 | W64: 12506.98168 | X64: 12071.65486 | Y64: 11296.60722 | Z64: 11362.13068 | AA64: 6025.896565 | AD64: =AD50+AD57 -> 11398.21581 | AE64: 10777.96142 | AF64: 10338.17915 | AG64: 11225.07152 | AH64: 11611.95361 | AI64: =AI50+AI57 -> 11537.73739 | AJ64: 11850.73891 | AK64: 11509.45386 | AL64: 11200.53691 | AM64: 11140.72914
A65: =ROW() -> 65 | D65: Tariff class A2 | O65: =O51+O58 -> 2239.295585 | P65: 2067.887482 | Q65: 2111.61597 | R65: 1945.340459 | S65: 1956.817742 | T65: 936.9033746 | U65: 1052.735121 | V65: 870.5179483 | W65: 1923.253069 | X65: 2092.299763 | Y65: 2040.058109 | Z65: 1927.568029 | AA65: 971.99815 | AD65: =AD51+AD58 -> 1854.028603 | AE65: 1819.923627 | AF65: 1814.45347 | AG65: 1787.967278 | AH65: 1837.033731 | AI65: =AI51+AI58 -> 1818.993685 | AJ65: 1801.24529 | AK65: 1783.783703 | AL65: 1766.604158 | AM65: 1749.701965
A66: =ROW() -> 66 | D66: Tariff class B1 | O66: 1890.602 | P66: 1703.088083 | Q66: 1717.715314 | R66: 1649.406131 | S66: 1636.164865 | T66: 745.5632319 | U66: 910.7456253 | V66: 683.8857193 | W66: 1594.631345 | X66: 1553.663922 | Y66: 1640.269951 | Z66: 1629.429407 | AA66: 889.2586427 | AD66: =AD52+AD59 -> 1720.802873 | AE66: 1930.425315 | AF66: 1874.796319 | AG66: 2004.555894 | AH66: 2062.435359 | AI66: =AI52+AI59 -> 2111.5876 | AJ66: 2150.393291 | AK66: 2190.620271 | AL66: 2224.660071 | AM66: 2247.163994
A67: =ROW() -> 67 | D67: Tariff class B2 | O67: 1068.909 | P67: 1109.032828 | Q67: 1134.902225 | R67: 1196.891861 | S67: 1158.582311 | T67: 552.7825543 | U67: 646.6664185 | V67: 522.0128637 | W67: 1168.679282 | X67: 1189.664699 | Y67: 1232.063588 | Z67: 1255.113315 | AA67: 663.227406 | AD67: =AD53+AD60 -> 1292.02506 | AE67: 1368.908476 | AF67: 1343.140615 | AG67: 1353.684433 | AH67: 1349.535143 | AI67: =AI53+AI60 -> 1373.368721 | AJ67: 1386.833188 | AK67: 1404.33802 | AL67: 1418.240316 | AM67: 1425.212431
A68: =ROW() -> 68 | D68: Tariff class B3 | O68: 10302.854 | P68: 9974.977966 | Q68: 10147.42947 | R68: 10602.50509 | S68: 10434.25466 | T68: 4589.271187 | U68: 5806 | V68: 3963.765074 | W68: 9769.765074 | X68: 9645.962254 | Y68: 9905.950696 | Z68: 9840.84139 | AA68: 5226.947008 | AD68: =AD54+AD61 -> 9796.899664 | AE68: 10874.77906 | AF68: 9932.181873 | AG68: 10077.69828 | AH68: 9989.969718 | AI68: =AI54+AI61 -> 9973.31802 | AJ68: 9925.997324 | AK68: 9878.782808 | AL68: 9820.169127 | AM68: 9798.951517
A69: =ROW() -> 69 | D69: Total | O69: =SUM(O64:O68) -> 31693.34562 | P69: 30723.99016 | Q69: 30713.33764 | R69: 27794.57134 | S69: 27395.17998 | T69: 12855.8577 | U69: 14630.46056 | V69: 12332.84989 | W69: 26963.31045 | X69: 26553.2455 | Y69: 26114.94957 | Z69: 26015.08283 | AA69: =SUM(AA64:AA68) -> 13777.32777 | AD69: =SUM(AD64:AD68) -> 26061.97201 | AE69: 26771.99789 | AF69: 25302.75142 | AG69: 26448.9774 | AH69: 26850.92756 | AI69: =SUM(AI64:AI68) -> 26815.00542 | AJ69: 27115.208 | AK69: 26766.97866 | AL69: 26430.21058 | AM69: 26361.75905
A70: =ROW() -> 70 | C70: Volume of Prudent Discounts [TJ]
A71: =ROW() -> 71 | D71: Tariff class A1 | O71: 11296.79104 | P71: 10770.79694 | Q71: 10049.11316 | R71: 6739.789882 | S71: 6558.942626 | T71: 3042.31029 | U71: 2828.607685 | V71: =W71-U71 -> 2616.601033 | W71: 5445.208718 | X71: 3509.122373 | Y71: 2818.078397 | Z71: 2692.272436 | AA71: 1365.485083 | AD71: 2555.292333 | AE71: 1303.226657 | AF71: 1045.562486 | AG71: 1300.164276 | AH71: 2000 | AI71: 2000 | AJ71: 2000 | AK71: 2000 | AL71: 2000 | AM71: 2000
A72: =ROW() -> 72 | D72: Tariff class A2 | O72: 365.01537 | P72: 329.50928 | Q72: 350.493518 | R72: 243.118371 | S72: 175.3598537 | T72: 49.906037 | U72: 60.16105509 | V72: =W72-U72 -> 46.87684991 | W72: 107.037905 | X72: 72.247343 | Y72: 56.564383 | Z72: 43.053627 | AA72: 23.578265 | AD72: 49.569611 | AE72: 49.199402 | AF72: 20.702943 | AG72: 0 | AH72: 0 | AI72: 0 | AJ72: 0 | AK72: 0 | AL72: 0 | AM72: 0
A73: =ROW() -> 73 | D73: Tariff class B1 | O73: 10.517 | P73: 10.376937 | Q73: 10.00596632 | R73: 8.315351313 | S73: 9.59728022 | T73: 1.809206 | U73: 1.970497382 | V73: 0.4672086183 | W73: 2.437706 | X73: 7.6e-05 | Y73: 0 | Z73: 0 | AA73: 0 | AD73: 0 | AE73: 0 | AF73: 0 | AG73: 0 | AH73: 0 | AI73: 0 | AJ73: 0 | AK73: 0 | AL73: 0 | AM73: 0
A74: =ROW() -> 74 | D74: Tariff class B2 | O74: =5.169-0.86 -> 4.309 | P74: =3.131383-0.95 -> 2.181383 | Q74: =1.74440634963386-0.02 -> 1.72440635 | R74: 1.797894512 | S74: 1.741422764 | T74: 0.6762485319 | U74: 1.19580294 | V74: 0.3562082316 | W74: 1.552011171 | X74: 1.196401906 | Y74: 0.4597468801 | Z74: 0.4452877621 | AA74: 0.2171567033 | AD74: 0.3885947692 | AE74: 0.3911495833 | AF74: 0.3908289794 | AG74: 0 | AH74: 0 | AI74: 0 | AJ74: 0 | AK74: 0 | AL74: 0 | AM74: 0
A75: =ROW() -> 75 | D75: Tariff class B3 | O75: 0.5 | P75: 0 | Q75: 0.0066 | R75: 0.0047 | S75: 0.007345700984 | T75: 0 | U75: 0 | V75: 0 | W75: 0 | X75: 0.001401 | Y75: 0.000307 | Z75: 0.000113 | AA75: 0 | AD75: 0 | AE75: 0 | AF75: 0 | AG75: 0 | AH75: 0 | AI75: 0 | AJ75: 0 | AK75: 0 | AL75: 0 | AM75: 0
A76: =ROW() -> 76 | D76: Total | O76: =SUM(O71:O75) -> 11677.13241 | P76: =SUM(P71:P75) -> 11112.86454 | Q76: =SUM(Q71:Q75) -> 10411.34365 | R76: =SUM(R71:R75) -> 6993.026199 | S76: =SUM(S71:S75) -> 6745.648528 | T76: =SUM(T71:T75) -> 3094.701782 | U76: 2891.935041 | V76: 2664.301299 | W76: 5556.23634 | X76: 3582.567595 | Y76: 2875.102834 | Z76: 2735.771464 | AA76: =SUM(AA71:AA75) -> 1389.280505 | AD76: 2605.250539 | AE76: 1352.817209 | AF76: 1066.656258 | AG76: 1300.164276 | AH76: 2000 | AI76: =SUM(AI71:AI75) -> 2000 | AJ76: 2000 | AK76: 2000 | AL76: 2000 | AM76: 2000
A77: =ROW() -> 77 | C77: Volume Excluding Prudent Discounts [TJ]
A78: =ROW() -> 78 | D78: Tariff class A1 | O78: =O64-O71 -> 4894.893999 | P78: 5098.206856 | Q78: 5552.561498 | R78: 5660.63792 | S78: 5650.417774 | T78: 2989.027059 | U78: 3385.705709 | V78: 3676.067249 | W78: 7061.772958 | X78: 8562.532485 | Y78: 8478.528824 | Z78: 8669.858249 | AA78: 4660.411482 | AD78: =AD64-AD71 -> 8842.923473 | AE78: 9474.73476 | AF78: 9292.61666 | AG78: 9924.907241 | AH78: 9611.953607 | AI78: =AI64-AI71 -> 9537.737393 | AJ78: 9850.738909 | AK78: 9509.45386 | AL78: 9200.536907 | AM78: 9140.72914
A79: =ROW() -> 79 | D79: Tariff class A2 | O79: 1874.280215 | P79: 1738.378202 | Q79: 1761.122452 | R79: 1702.222088 | S79: 1781.457888 | T79: 886.9973376 | U79: 992.574066 | V79: 823.6410984 | W79: 1816.215164 | X79: 2020.05242 | Y79: 1983.493726 | Z79: 1884.514402 | AA79: 948.419885 | AD79: =AD65-AD72 -> 1804.458992 | AE79: 1770.724225 | AF79: 1793.750527 | AG79: 1787.967278 | AH79: 1837.033731 | AI79: =AI65-AI72 -> 1818.993685 | AJ79: 1801.24529 | AK79: 1783.783703 | AL79: 1766.604158 | AM79: 1749.701965
A80: =ROW() -> 80 | D80: Tariff class B1 | O80: 1880.085 | P80: 1692.711146 | Q80: 1707.709348 | R80: 1641.09078 | S80: 1626.567585 | T80: 743.7540259 | U80: 908.7751279 | V80: 683.4185106 | W80: 1592.193639 | X80: 1553.663846 | Y80: 1640.269951 | Z80: 1629.429407 | AA80: 889.2586427 | AD80: =AD66-AD73 -> 1720.802873 | AE80: 1930.425315 | AF80: 1874.796319 | AG80: 2004.555894 | AH80: 2062.435359 | AI80: =AI66-AI73 -> 2111.5876 | AJ80: 2150.393291 | AK80: 2190.620271 | AL80: 2224.660071 | AM80: 2247.163994
A81: =ROW() -> 81 | D81: Tariff class B2 | O81: 1064.6 | P81: 1106.851445 | Q81: 1133.177818 | R81: 1195.093966 | S81: 1156.840888 | T81: 552.1063057 | U81: 645.4706156 | V81: 521.6566555 | W81: 1167.127271 | X81: 1188.468297 | Y81: 1231.603841 | Z81: 1254.668028 | AA81: 663.0102493 | AD81: =AD67-AD74 -> 1291.636465 | AE81: 1368.517326 | AF81: 1342.749786 | AG81: 1353.684433 | AH81: 1349.535143 | AI81: =AI67-AI74 -> 1373.368721 | AJ81: 1386.833188 | AK81: 1404.33802 | AL81: 1418.240316 | AM81: 1425.212431
A82: =ROW() -> 82 | D82: Tariff class B3 | O82: 10302.354 | P82: 9974.977966 | Q82: 10147.42287 | R82: 10602.50039 | S82: 10434.24731 | T82: 4589.271187 | U82: 5806 | V82: 3963.765074 | W82: =W68-W75 -> 9769.765074 | X82: 9645.960853 | Y82: 9905.950389 | Z82: 9840.841277 | AA82: 5226.947008 | AD82: =AD68-AD75 -> 9796.899664 | AE82: 10874.77906 | AF82: 9932.181873 | AG82: 10077.69828 | AH82: 9989.969718 | AI82: =AI68-AI75 -> 9973.31802 | AJ82: 9925.997324 | AK82: 9878.782808 | AL82: 9820.169127 | AM82: 9798.951517
A83: =ROW() -> 83 | D83: Total | O83: =SUM(O78:O82) -> 20016.21321 | P83: =SUM(P78:P82) -> 19611.12562 | Q83: =SUM(Q78:Q82) -> 20301.99398 | R83: =SUM(R78:R82) -> 20801.54514 | S83: =SUM(S78:S82) -> 20649.53145 | T83: =SUM(T78:T82) -> 9761.155915 | U83: 11738.52552 | V83: 9668.548587 | W83: 21407.07411 | X83: 22970.6779 | Y83: 23239.84673 | Z83: 23279.31136 | AA83: 12388.04727 | AD83: =SUM(AD78:AD82) -> 23456.72147 | AE83: 25419.18069 | AF83: 24236.09517 | AG83: 25148.81313 | AH83: 24850.92756 | AI83: =SUM(AI78:AI82) -> 24815.00542 | AJ83: 25115.208 | AK83: 24766.97866 | AL83: 24430.21058 | AM83: 24361.75905
A84: Volume Excluding Prudent Discount & Customer Num by Bands
A85: =ROW() -> 85 | T85: Actual 3 and est for 2013/14 | AD85: Actuals | AG85: Forecast | AK85: Forecast
A86: =ROW() -> 86 | C86: A1
A87: =ROW() -> 87 | D87: Customers | T87: =T43 -> 50.33333333 | U87: 53 | V87: 53.16666667 | W87: 53.16666667 | X87: 55.91666667 | Y87: 62.66666667 | Z87: 64.5 | AA87: 64.5 | AD87: =AD43 -> 66.5 | AE87: 72 | AF87: 72.5 | AG87: 72.5 | AH87: 73 | AI87: 73 | AJ87: 73 | AK87: 72.5 | AL87: 72 | AM87: 72
A88: =ROW() -> 88 | D88: Demand 1 [GJ km Year] | T88: 4810.674978 | W88: 9941.092845 | X88: 11680.59719 | Y88: 12196.77594 | Z88: 12836.93546 | AA88: 6908.508355 | AD88: 13355.22104 | AE88: 15366.25762 | AF88: 15901.48185 | AG88: 16933.5405 | AH88: 16451.6396 | AI88: 17062.4266 | AJ88: 17077.6136 | AK88: 15164.6136 | AL88: 13454.8136 | AM88: 13474.8136
A89: =ROW() -> 89 | D89: Demand 2 [GJ km Year] | T89: 1022.982247 | W89: 2395.216712 | X89: 6559.023452 | Y89: 5974.018389 | Z89: 6077.220082 | AA89: 3742.059419 | AD89: 7362.087342 | AE89: 7594.702027 | AF89: 6938.869589 | AG89: 6587.707562 | AH89: 6375.082 | AI89: 6557.322 | AJ89: 6562.522 | AK89: 6562.522 | AL89: 6159.422 | AM89: 6164.622
A90: =ROW() -> 90 | D90: Usage 1 [TJ km] | T90: 10466.01377 | W90: 23453.57172 | X90: 30807.77556 | Y90: 28099.35376 | Z90: 29939.8747 | AA90: 16267.79064 | AD90: 31828.34975 | AE90: 37584.49962 | AF90: 37057.85173 | AG90: 42709.11395 | AH90: 39983.58965 | AI90: 41246.94015 | AJ90: 44810.78326 | AK90: 42975.20601 | AL90: 41945.49333 | AM90: 41647.88055
A91: =ROW() -> 91 | D91: Usage 2 [TJ km] | T91: 1432.245102 | W91: 2792.582836 | X91: 22417.44889 | Y91: 10456.27511 | Z91: 9608.150919 | AA91: 5860.346571 | AD91: 14173.39355 | AE91: 17215.38124 | AF91: 18631.62799 | AG91: 24799.91344 | AH91: 23537.28294 | AI91: 23927.09602 | AJ91: 24860.07907 | AK91: 24541.18881 | AL91: 23972.87112 | AM91: 23586.1967
A92: =ROW() -> 92 | D92: Modelled [GJ per Annum] | T92: =T78*1000 -> 2989027.059 | U92: 3385705.709 | V92: 3676067.249 | W92: 7061772.958 | X92: 8562532.485 | Y92: 8478528.824 | Z92: 8669858.249 | AA92: 4660411.482 | AD92: =AD78*1000 -> 8842923.473 | AE92: 9474734.76 | AF92: 9292616.66 | AG92: 9924907.241 | AH92: 9611953.607 | AI92: 9537737.393 | AJ92: 9850738.909 | AK92: 9509453.86 | AL92: 9200536.907 | AM92: 9140729.14
A93: =ROW() -> 93 | D93: Adjustment [GJ per Annum] | T93: 0 | U93: 0 | V93: 0 | W93: 0 | X93: 0 | Y93: 0 | Z93: 0 | AA93: 0 | AD93: 0 | AE93: 0 | AF93: 0 | AG93: 0 | AH93: 0 | AI93: 0 | AJ93: 0 | AK93: 0 | AL93: 0 | AM93: 0
A94: =ROW() -> 94 | D94: Total [GJ per Annum] | T94: =T92+T93 -> 2989027.059 | U94: 3385705.709 | V94: 3676067.249 | W94: 7061772.958 | X94: 8562532.485 | Y94: 8478528.824 | Z94: 8669858.249 | AA94: 4660411.482 | AD94: =AD92+AD93 -> 8842923.473 | AE94: 9474734.76 | AF94: 9292616.66 | AG94: 9924907.241 | AH94: 9611953.607 | AI94: =AI92+AI93 -> 9537737.393 | AJ94: 9850738.909 | AK94: 9509453.86 | AL94: 9200536.907 | AM94: 9140729.14
A95: =ROW() -> 95 | D95: Volume per Customer [GJ per customer] | T95: =T94/T87 -> 59384.64356 | U95: 63881.2398 | V95: 69142.3307 | W95: 132823.3158 | X95: 153130.2382 | Y95: 135295.6727 | Z95: 134416.407 | AA95: 72254.44158 | AD95: =AD94/AD87 -> 132976.2928 | AE95: 131593.5383 | AF95: 128174.0229 | AG95: 136895.2723 | AH95: 131670.5974 | AI95: 130653.9369 | AJ95: 134941.6289 | AK95: 131164.8808 | AL95: 127785.2348 | AM95: 126954.5714
A96: =ROW() -> 96 | C96: A2
A97: =ROW() -> 97 | D97: A2 Customers | T97: =T44 -> 97.16666667 | U97: 96.5 | V97: 101 | W97: 101 | X97: 109.5 | Y97: 106.5833333 | Z97: 104.5 | AA97: 103 | AD97: =AD44 -> 102.5 | AE97: 98.5 | AF97: 97 | AG97: 102 | AH97: 105 | AI97: 105.5 | AJ97: 106 | AK97: 106.5 | AL97: 107 | AM97: 107.5
A98: =ROW() -> 98 | D98: Band 1 | T98: 228196.5464 | W98: 439801.477 | X98: 851175.004 | Y98: 838543.447 | Z98: 815846.866
A99: =ROW() -> 99 | D99: Band 2 | T99: 203649.7527 | W99: 383576.215 | X99: 1168877.416 | Y99: 1144950.279 | Z99: 1068670.536
A100: =ROW() -> 100 | D100: Band 3 | T100: 455151.0385 | W100: 992837.4724
A101: =ROW() -> 101 | D101: Band 1* | AA101: 405625.606 | AD101: 785654.977 | AE101: 762671.7419 | AF101: 768684.569 | AG101: 777864.024 | AH101: 792767.7198 | AI101: 784982.5789 | AJ101: 777323.2998 | AK101: 769787.7917 | AL101: 762373.9981 | AM101: 755079.8954
A102: =ROW() -> 102 | D102: Band 2* | AA102: 542794.279 | AD102: 1018804.015 | AE102: 1008052.483 | AF102: 1025065.958 | AG102: 1010103.254 | AH102: 1044266.011 | AI102: 1034011.106 | AJ102: 1023921.99 | AK102: 1013995.911 | AL102: 1004230.16 | AM102: 994622.0699
A103: =ROW() -> 103 | D103: Total [GJ per Annum] | T103: =SUM(T98:T100) -> 886997.3376 | U103: 0 | V103: 0 | W103: 1816215.164 | X103: 2020052.42 | Y103: 1983493.726 | Z103: 1884517.402 | AA103: =SUM(AA98:AA102) -> 948419.885 | AD103: =SUM(AD98:AD102) -> 1804458.992 | AE103: 1770724.225 | AF103: 1793750.527 | AG103: 1787967.278 | AH103: 1837033.731 | AI103: =SUM(AI98:AI102) -> 1818993.685 | AJ103: 1801245.29 | AK103: 1783783.703 | AL103: 1766604.158 | AM103: 1749701.965
A104: =ROW() -> 104 | D104: Adjustment [GJ per Annum] | T104: 0 | U104: 0 | V104: 0 | W104: 0 | X104: 0 | Y104: 0 | Z104: 0 | AA104: 0 | AD104: 0 | AE104: 0 | AF104: 0 | AG104: 0 | AH104: 0 | AI104: 0 | AJ104: 0 | AK104: 0 | AL104: 0 | AM104: 0
A105: =ROW() -> 105 | D105: Modelled [GJ per Annum] | T105: =T103+T104 -> 886997.3376 | U105: 0 | V105: 0 | W105: 1816215.164 | X105: 2020052.42 | Y105: 1983493.726 | Z105: 1884517.402 | AA105: 948419.885 | AD105: =AD103+AD104 -> 1804458.992 | AE105: 1770724.225 | AF105: 1793750.527 | AG105: 1787967.278 | AH105: 1837033.731 | AI105: =AI103+AI104 -> 1818993.685 | AJ105: 1801245.29 | AK105: 1783783.703 | AL105: 1766604.158 | AM105: 1749701.965
A106: =ROW() -> 106 | D106: Volume per Customer [GJ per customer] | T106: =T105/T97 -> 9128.61754 | U106: 0 | V106: 0 | W106: 17982.32836 | X106: 18447.96731 | Y106: 18609.79258 | Z106: 18033.65935 | AA106: 9207.960049 | AD106: =AD105/AD97 -> 17604.47797 | AE106: 17976.89569 | AF106: 18492.27347 | AG106: 17529.09096 | AH106: 17495.55934 | AI106: =AI105/AI97 -> 17241.6463 | AJ106: 16992.88009 | AK106: 16749.14275 | AL106: 16510.31923 | AM106: 16276.29735
A107: =ROW() -> 107 | C107: B1
A108: =ROW() -> 108 | D108: Customers | T108: =T45 -> 1222.166667 | U108: 1242 | V108: 1256.333333 | W108: 1256.333333 | X108: 1297.416667 | Y108: 1334.416667 | Z108: 1364 | AA108: 1399 | AD108: =AD45 -> 1444 | AE108: 1518.5 | AF108: 1599.5 | AG108: 1670.5 | AH108: 1728.409426 | AI108: 1780.006732 | AJ108: 1834.193575 | AK108: 1888.489968 | AL108: 1943.392253 | AM108: 1998.918607
A109: =ROW() -> 109 | D109: Band 1 | T109: 649493.4631 | W109: 1389540.322 | X109: 1385587.464 | Y109: 1463332.441 | Z109: 1472170.211 | AA109: 791288.4815 | AD109: 1523036.72 | AE109: 1664051.405 | AF109: 1632990.466 | AG109: 1714526.397 | AH109: 1811006.692 | AI109: 1862188.325 | AJ109: 1907538.198 | AK109: 1947553.394 | AL109: 1979324.775 | AM109: 2000485.254
A110: =ROW() -> 110 | D110: Band 2 | T110: 94260.5628 | W110: 202653.3169 | X110: 168076.3819 | Y110: 176654.1947 | Z110: 175019.4857
A111: =ROW() -> 111 | D111: Band 2* | AA111: 97970.16121 | AD111: 197766.1523 | AE111: 266373.9094 | AF111: 241805.8528 | AG111: 290029.4973 | AH111: 251428.6675 | AI111: 249399.2756 | AJ111: 242855.0933 | AK111: 243066.877 | AL111: 245335.2958 | AM111: 246678.7396
A112: =ROW() -> 112 | D112: Total [GJ per Annum] | T112: =SUM(T109:T110) -> 743754.0259 | U112: 0 | V112: 0 | W112: 1592193.639 | X112: 1553663.846 | Y112: 1639986.635 | Z112: 1647189.697 | AA112: =SUM(AA109:AA111) -> 889258.6427 | AD112: =SUM(AD109:AD111) -> 1720802.873 | AE112: 1930425.315 | AF112: 1874796.319 | AG112: 2004555.894 | AH112: 2062435.359 | AI112: =SUM(AI109:AI111) -> 2111587.6 | AJ112: 2150393.291 | AK112: 2190620.271 | AL112: 2224660.071 | AM112: 2247163.994
A113: =ROW() -> 113 | D113: Adjustment [GJ per Annum] | T113: 0 | U113: =W113*J113 -> 0 | V113: =W113*L113 -> 0 | W113: 0 | X113: 0 | Y113: 0 | Z113: 0 | AA113: 0 | AD113: 0 | AE113: 0 | AF113: 0 | AG113: 0 | AH113: 0 | AI113: 0 | AJ113: 0 | AK113: 0 | AL113: 0 | AM113: 0
A114: =ROW() -> 114 | D114: Modelled [GJ per Annum] | T114: =T112+T113 -> 743754.0259 | U114: 0 | V114: 0 | W114: 1592193.639 | X114: 1553663.846 | Y114: 1639986.635 | Z114: 1647189.697 | AA114: 889258.6427 | AD114: =AD112+AD113 -> 1720802.873 | AE114: 1930425.315 | AF114: 1874796.319 | AG114: 2004555.894 | AH114: 2062435.359 | AI114: =AI112+AI113 -> 2111587.6 | AJ114: 2150393.291 | AK114: 2190620.271 | AL114: 2224660.071 | AM114: 2247163.994
A115: =ROW() -> 115 | D115: Volume per Customer [GJ per customer] | T115: =T114/T108 -> 608.5536827 | U115: 0 | V115: 0 | W115: 1267.333753 | X115: 1197.505694 | Y115: 1228.991421 | Z115: 1207.61708 | AA115: 635.6387725 | AD115: =AD114/AD108 -> 1191.69174 | AE115: 1271.271198 | AF115: 1172.113985 | AG115: 1199.973597 | AH115: 1193.256256 | AI115: =AI114/AI108 -> 1186.280682 | AJ115: 1172.391682 | AK115: 1159.985125 | AL115: 1144.730338 | AM115: 1124.189843
A116: =ROW() -> 116 | C116: B2
A117: =ROW() -> 117 | D117: B2 Customers | T117: =T46 -> 7697.5 | U117: 7893 | V117: 8105.083333 | W117: 8105.083333 | X117: 8708.75 | Y117: 9262.25 | Z117: 9797 | AA117: 10221.5 | AD117: =AD46 -> 10622.5 | AE117: 11112.5 | AF117: 11494.5 | AG117: 11738.5 | AH117: 11957.43869 | AI117: 12238.84289 | AJ117: 12519.27429 | AK117: 12795.99349 | AL117: 13095.75427 | AM117: 13402.12108
A118: =ROW() -> 118 | D118: Band 1 | T118: 185987.7142 | W118: 389585.8249 | X118: 403522.1127 | Y118: 418531.9016 | Z118: 430255.2483 | AA118: 228811.0652 | AD118: 454358.7074 | AE118: 481672.4814 | AF118: 480578.9736 | AG118: 490073.3326 | AH118: 493541.6991 | AI118: 510865.2847 | AJ118: 524544.5302 | AK118: 540009.9469 | AL118: 554013.675 | AM118: 562698.1234
A119: =ROW() -> 119 | D119: Band 2 | T119: 366118.5915 | W119: 777541.4461 | X119: 784946.1842 | Y119: 812884.7301 | Z119: 825273.9552 | AA119: 434199.1841 | AD119: 837277.7577 | AE119: 886844.8449 | AF119: 862170.8128 | AG119: 863611.1006 | AH119: 855993.4437 | AI119: 862503.4366 | AJ119: 862288.6573 | AK119: 864328.0732 | AL119: 864226.6406 | AM119: 862514.3074
A120: =ROW() -> 120 | D120: Total [GJ per Annum] | T120: =SUM(T118:T119) -> 552106.3057 | U120: 0 | V120: 0 | W120: 1167127.271 | X120: 1188468.297 | Y120: 1231416.632 | Z120: 1255529.203 | AA120: 663010.2493 | AD120: =SUM(AD118:AD119) -> 1291636.465 | AE120: 1368517.326 | AF120: 1342749.786 | AG120: 1353684.433 | AH120: 1349535.143 | AI120: =SUM(AI118:AI119) -> 1373368.721 | AJ120: 1386833.188 | AK120: 1404338.02 | AL120: 1418240.316 | AM120: 1425212.431
A121: =ROW() -> 121 | D121: Adjustment [GJ per Annum] | T121: 0 | U121: =W121*J121 -> 0 | V121: =W121*L121 -> 0 | W121: 0 | X121: 0 | Y121: 0 | Z121: 0 | AA121: 0 | AD121: 0 | AE121: 0 | AF121: 0 | AG121: 0 | AH121: 0 | AI121: 0 | AJ121: 0 | AK121: 0 | AL121: 0 | AM121: 0
A122: =ROW() -> 122 | D122: Modelled [GJ per Annum] | T122: =T120+T121 -> 552106.3057 | U122: 0 | V122: 0 | W122: 1167127.271 | X122: 1188468.297 | Y122: 1231416.632 | Z122: 1255529.203 | AA122: 663010.2493 | AD122: =AD120+AD121 -> 1291636.465 | AE122: 1368517.326 | AF122: 1342749.786 | AG122: 1353684.433 | AH122: 1349535.143 | AI122: =AI120+AI121 -> 1373368.721 | AJ122: 1386833.188 | AK122: 1404338.02 | AL122: 1418240.316 | AM122: 1425212.431
A123: =ROW() -> 123 | D123: Volume per Customer [GJ per customer] | T123: =T122/T117 -> 71.7254051 | U123: 0 | V123: 0 | W123: 143.9994165 | X123: 136.4682988 | Y123: 132.9500534 | Z123: 128.1544558 | AA123: 64.86428111 | AD123: =AD122/AD117 -> 121.5943954 | AE123: 123.1511655 | AF123: 116.8167199 | AG123: 115.3200522 | AH123: 112.8615565 | AI123: =AI122/AI117 -> 112.2139351 | AJ123: 110.775845 | AK123: 109.74826 | AL123: 108.297719 | AM123: 106.3423038
A124: =ROW() -> 124
A125: =ROW() -> 125 | D125: Modelled Band 1 | T125: =T118 -> 185987.7142 | W125: =W118 -> 389585.8249 | X125: 403522.1127 | Y125: 418531.9016 | Z125: 430255.2483 | AA125: 228811.0652 | AD125: =AD118 -> 454358.7074 | AE125: 481672.4814 | AF125: 480578.9736 | AG125: 490073.3326 | AH125: 493541.6991 | AI125: =AI$122*AI129 -> 510865.2847 | AJ125: =AJ$122*AJ129 -> 524544.5302 | AK125: 540009.9469 | AL125: 554013.675 | AM125: 562698.1234
A126: =ROW() -> 126 | D126: Modelled Band 2 | T126: =T119 -> 366118.5915 | W126: =W119 -> 777541.4461 | X126: 784946.1842 | Y126: 812884.7301 | Z126: 825273.9552 | AA126: 434199.1841 | AD126: =AD119 -> 837277.7577 | AE126: 886844.8449 | AF126: 862170.8128 | AG126: 863611.1006 | AH126: 855993.4437 | AI126: =AI$122*AI130 -> 862503.4366 | AJ126: 862288.6573 | AK126: 864328.0732 | AL126: 864226.6406 | AM126: 862514.3074
A127: =ROW() -> 127 | D127: Total [GJ per Annum] | T127: =SUM(T125:T126) -> 552106.3057 | U127: 0 | V127: 0 | W127: 1167127.271 | X127: 1188468.297 | Y127: 1231416.632 | Z127: 1255529.203 | AA127: 663010.2493 | AD127: =SUM(AD125:AD126) -> 1291636.465 | AE127: 1368517.326 | AF127: 1342749.786 | AG127: 1353684.433 | AH127: 1349535.143 | AI127: 1373368.721 | AJ127: 1386833.188 | AK127: 1404338.02 | AL127: 1418240.316 | AM127: 1425212.431
A128: =ROW() -> 128
A129: =ROW() -> 129 | D129: Modelled Band 1 | AI129: =AI118/AI$120 -> 0.3719796998 | AJ129: 0.3782318847 | AK129: 0.3845298918 | AL129: 0.3906345553 | AM129: 0.394817019
A130: =ROW() -> 130 | D130: Modelled Band 2 | AI130: 0.6280203002 | AJ130: 0.6217681153 | AK130: 0.6154701082 | AL130: 0.6093654447 | AM130: 0.605182981
A131: =ROW() -> 131 | D131: Total [GJ per Annum] | AI131: 1 | AJ131: 1 | AK131: 1 | AL131: 1 | AM131: 1
A132: =ROW() -> 132
A133: =ROW() -> 133 | C133: B3
A134: =ROW() -> 134 | D134: Modelled B3 Customers | O134: 517005 | P134: 536255 | Q134: 553005 | R134: 568255 | S134: 583955 | T134: =T47 -> 601246 | U134: 609162.8988 | V134: 614524 | W134: 614524 | X134: 629899.5833 | Y134: 642709.8333 | Z134: 657671.5 | AA134: 671181 | AD134: =AD47 -> 686909.5 | AE134: 705512 | AF134: 718910.5 | AG134: 728627 | AH134: 735064.5288 | AI134: 740372.081 | AJ134: 747882.7006 | AK134: 757221.4797 | AL134: 769292.6773 | AM134: 783000.3496
A135: =ROW() -> 135 | D135: Band 1 | O135: 5612594.867 | P135: 5804269.831 | Q135: 5947535.191 | R135: 6153433.466 | S135: 6175963.154 | T135: 3008688.118 | W135: 6231553.639 | X135: 4913980.424 | Y135: 5015651.234 | Z135: 5094684.331
A136: =ROW() -> 136 | D136: Band 2 | O136: 3447512.497 | P136: 3565248.028 | Q136: 3653248.165 | R136: 3601834.077 | S136: 3793559.069 | T136: 1249333.842 | W136: 2807463.61 | X136: 4731980.429 | Y136: 4888608.743 | Z136: 4772554.581
A137: =ROW() -> 137 | D137: Band 3 | O137: 1086632.898 | P137: 1123742.351 | Q137: 1151479.406 | R137: 1191342.579 | S137: 1195704.465 | T137: 331249.2265 | W137: 730749.4901
A138: =ROW() -> 138 | D138: Band 1* | AA138: 0 | AD138: 288522.8556 | AE138: 1180420.566 | AF138: 1198474.251 | AG138: 1219086.447 | AH138: 1246640.147 | AI138: 1274063.794 | AJ138: 1303296.041 | AK138: 1344062.463 | AL138: 1370890.578 | AM138: 1402201.098
A139: =ROW() -> 139 | D139: Band 2* | AA139: 2658352.316 | AD139: 4884879.333 | AE139: 4166565.797 | AF139: 4166780.088 | AG139: 4215164.047 | AH139: 4265567.55 | AI139: 4309376.913 | AJ139: 4341080.926 | AK139: 4387813.016 | AL139: 4401246.691 | AM139: 4430064.021
A140: =ROW() -> 140 | D140: Band 3* | AA140: 2568594.692 | AD140: 4623497.475 | AE140: 5527792.696 | AF140: 4566927.535 | AG140: 4643447.786 | AH140: 4477762.022 | AI140: 4389877.314 | AJ140: 4281620.357 | AK140: 4146907.329 | AL140: 4048031.859 | AM140: 3966686.398
A141: =ROW() -> 141 | D141: Total [GJ per Annum] | O141: =SUM(O135:O137) -> 10146740.26 | P141: 10493260.21 | Q141: 10752262.76 | R141: 10946610.12 | S141: 11165226.69 | T141: 4589271.187 | U141: 0 | V141: 0 | W141: 9769766.739 | X141: 9645960.853 | Y141: 9904259.977 | Z141: 9867238.912 | AA141: =SUM(AA135:AA140) -> 5226947.008 | AD141: =SUM(AD135:AD140) -> 9796899.664 | AE141: 10874779.06 | AF141: 9932181.873 | AG141: 10077698.28 | AH141: 9989969.718 | AI141: =SUM(AI135:AI140) -> 9973318.02 | AJ141: 9925997.324 | AK141: 9878782.808 | AL141: 9820169.127 | AM141: 9798951.517
A142: =ROW() -> 142 | D142: Total [GJ per Annum] Adjusted | T142: =T82*1000 -> 4589271.187 | U142: 5806000 | V142: 3963765.074 | W142: 9769765.074 | X142: 9645960.853 | Y142: 9905950.389 | Z142: 9840841.277 | AA142: 5226947.008 | AD142: =AD82*1000 -> 9796899.664 | AE142: 10874779.06 | AF142: 9932181.873 | AG142: 10077698.28 | AH142: 9989969.718 | AI142: 9973318.02 | AJ142: 9925997.324 | AK142: 9878782.808 | AL142: 9820169.127 | AM142: 9798951.517
A143: =ROW() -> 143 | D143: Volume per Customer [GJ per customer] | T143: =T142/T134 -> 7.632934251 | U143: =U142/U134 -> 9.531112305 | V143: 6.450138764 | W143: 15.89810174 | X143: 15.31348981 | Y143: 15.41278797 | Z143: 14.96315604 | AA143: 7.787686195 | AD143: 14.26228588 | AE143: 15.41402423 | AF143: 13.81560274 | AG143: 13.83107993 | AH143: 13.59060236 | AI143: =AI142/AI134 -> 13.47068356 | AJ143: 13.2721312 | AK143: 13.04609427 | AL143: 12.76519252 | AM143: 12.51461959
A144: =ROW() -> 144 | T144: Modelled - Estimate | AD144: Actuals | AG144: Forecast | AK144: Forecast
A145: =ROW() -> 145 | D145: Modelled Band 1 | T145: =T$142*T155 -> 3008688.118 | W145: =W$142*W155 -> 6231552.577 | X145: 4913980.424 | Y145: 5016507.282 | Z145: 5081054.62 | AA145: 0 | AD145: 0 | AE145: 0 | AF145: 0 | AG145: 0 | AH145: 0 | AI145: =AI$142*AI155 -> 0 | AJ145: 0 | AK145: 0 | AL145: 0 | AM145: 0
A146: =ROW() -> 146 | D146: Modelled Band 2 | T146: =T$142*T156 -> 1249333.842 | W146: =W$142*W156 -> 2807463.131 | X146: 4731980.429 | Y146: 4889443.108 | Z146: 4759786.657 | AA146: 0 | AD146: 0 | AE146: 0 | AF146: 0 | AG146: 0 | AH146: 0 | AI146: =AI$142*AI156 -> 0 | AJ146: 0 | AK146: 0 | AL146: 0 | AM146: 0
A147: =ROW() -> 147 | D147: Modelled Band 3 | T147: =T$142*T157 -> 331249.2265 | W147: =W$142*W157 -> 730749.3655 | X147: 0 | Y147: 0 | Z147: 0 | AA147: 0 | AD147: 0 | AE147: 0 | AF147: 0 | AG147: 0 | AH147: 0 | AI147: =AI$142*AI157 -> 0 | AJ147: 0 | AK147: 0 | AL147: 0 | AM147: 0
A148: =ROW() -> 148 | D148: Modelled Band 1* | AA148: =AA$142*AA158 -> 0 | AD148: 288522.8556 | AE148: 1180420.566 | AF148: 1198474.251 | AG148: 1219086.447 | AH148: 1246640.147 | AI148: =AI$142*AI158 -> 1274063.794 | AJ148: 1303296.041 | AK148: 1344062.463 | AL148: 1370890.578 | AM148: 1402201.098
A149: =ROW() -> 149 | D149: Modelled Band 2* | AA149: 2658352.316 | AD149: 4884879.333 | AE149: 4166565.797 | AF149: 4166780.088 | AG149: 4215164.047 | AH149: 4265567.55 | AI149: =AI$142*AI159 -> 4309376.913 | AJ149: 4341080.926 | AK149: 4387813.016 | AL149: 4401246.691 | AM149: 4430064.021
A150: =ROW() -> 150 | D150: Modelled Band 3* | AA150: 2568594.692 | AD150: 4623497.475 | AE150: 5527792.696 | AF150: 4566927.535 | AG150: 4643447.786 | AH150: 4477762.022 | AI150: =AI$142*AI160 -> 4389877.314 | AJ150: 4281620.357 | AK150: 4146907.329 | AL150: 4048031.859 | AM150: 3966686.398
A151: =ROW() -> 151 | D151: ERA adjustment [GJ per Annum] | T151: 0 | U151: 0 | V151: 0 | W151: 0 | X151: 0 | Y151: 0 | Z151: 0 | AA151: 0 | AD151: 0 | AE151: 0 | AF151: 0 | AG151: 0 | AH151: 0 | AI151: 0 | AJ151: 0 | AK151: 0 | AL151: 0 | AM151: 0
A152: =ROW() -> 152 | D152: Modelled Total [GJ per Annum] | O152: =O141 -> 10146740.26 | P152: =P141 -> 10493260.21 | Q152: =Q141 -> 10752262.76 | R152: =R141 -> 10946610.12 | S152: =S141 -> 11165226.69 | T152: =SUM(T145:T151) -> 4589271.187 | U152: =SUM(U145:U151) -> 0 | V152: 0 | W152: 9769765.074 | X152: 9645960.853 | Y152: 9905950.389 | Z152: 9840841.277 | AA152: 5226947.008 | AD152: =SUM(AD145:AD151) -> 9796899.664 | AE152: 10874779.06 | AF152: 9932181.873 | AG152: 10077698.28 | AH152: 9989969.718 | AI152: =SUM(AI145:AI151) -> 9973318.02 | AJ152: 9925997.324 | AK152: 9878782.808 | AL152: 9820169.127 | AM152: 9798951.517
A153: =ROW() -> 153 | D153: Volume per Customer | O153: =O152/O134 -> 19.62600026 | P153: 19.56766876 | Q153: 19.44333733 | R153: 19.26355267 | S153: 19.12001214 | T153: 7.632934251 | U153: 0 | V153: 0 | W153: 15.89810174 | X153: 15.31348981 | Y153: 15.41278797 | Z153: 14.96315604 | AA153: 7.787686195 | AD153: =AD152/AD134 -> 14.26228588 | AE153: 15.41402423 | AF153: 13.81560274 | AG153: 13.83107993 | AH153: 13.59060236 | AI153: =AI152/AI134 -> 13.47068356 | AJ153: 13.2721312 | AK153: 13.04609427 | AL153: 12.76519252 | AM153: 12.51461959
A154: =ROW() -> 154 | T154: =T144 -> Modelled - Estimate | AD154: Actuals | AG154: Forecast | AK154: Forecast
A155: =ROW() -> 155 | D155: Modelled Band 1 | T155: =T135/T$141 -> 0.6555917041 | W155: =W135/W$141 -> 0.6378405755 | X155: 0.5094340003 | Y155: 0.5064135277 | Z155: 0.5163231961
A156: =ROW() -> 156 | D156: Modelled Band 2 | T156: =T136/T$141 -> 0.2722292477 | W156: 0.2873623992 | X156: 0.4905659997 | Y156: 0.4935864723 | Z156: 0.4836768039
A157: =ROW() -> 157 | D157: Modelled Band 3 | T157: =T137/T$141 -> 0.07217904827 | W157: 0.07479702531 | X157: 0 | Y157: 0 | Z157: 0
A158: =ROW() -> 158 | D158: Modelled Band 1* | AA158: =AA138/AA$141 -> 0 | AD158: 0.02945042467 | AE158: 0.1085466251 | AF158: 0.1206657577 | AG158: 0.1209687384 | AH158: 0.1247891817 | AI158: =AI138/AI$141 -> 0.1277472343 | AJ158: 0.1313012686 | AK158: 0.1360554726 | AL158: 0.1395994875 | AM158: 0.1430970544
A159: =ROW() -> 159 | D159: Modelled Band 2* | AA159: 0.5085860469 | AD159: 0.498614817 | AE159: 0.3831402711 | AF159: 0.4195231361 | AG159: 0.4182665455 | AH159: 0.426985033 | AI159: =AI139/AI$141 -> 0.4320905945 | AJ159: 0.4373445594 | AK159: 0.4441653493 | AL159: 0.4481844084 | AM159: 0.4520957179
A160: =ROW() -> 160 | D160: Modelled Band 3* | AA160: 0.4914139531 | AD160: 0.4719347583 | AE160: 0.5083131038 | AF160: 0.4598111063 | AG160: 0.460764716 | AH160: 0.4482257853 | AI160: =AI140/AI$141 -> 0.4401621712 | AJ160: 0.4313541721 | AK160: 0.4197791782 | AL160: 0.412216104 | AM160: 0.4048072277
A161: =ROW() -> 161 | T161: =SUM(T155:T160) -> 1 | U161: =SUM(U155:U160) -> 0 | V161: 0 | W161: 1 | X161: 1 | Y161: 1 | Z161: 1 | AA161: 1 | AD161: 1 | AE161: 1 | AF161: 1 | AG161: 1 | AH161: 1 | AI161: =SUM(AI155:AI160) -> 1 | AJ161: 1 | AK161: 1 | AL161: 1 | AM161: 1
A162: Prudent Discounts
A163: =ROW() -> 163 | C163: Prudent Discounts | O163: Approved 2
A164: =ROW() -> 164 | D164: Discounted Revenue [m$ 31/12/2004] | O164: 3372.350687 | P164: 3367.643259 | Q164: 3361.38203 | R164: 3355.815836 | S164: 3367.626992
A165: =ROW() -> 165 | D165: ="Discounted Revenue [m$ "&Input!$G$43&"]" -> Discounted Revenue [m$ 31/12/2019] | O165: =O164*$N$16/1000 -> 4.775422173 | P165: =P164*$N$16/1000 -> 4.768756212 | Q165: =Q164*$N$16/1000 -> 4.75988999 | R165: =R164*$N$16/1000 -> 4.752007972 | S165: =S164*$N$16/1000 -> 4.768733178
A166: =ROW() -> 166 | C166: Prudent Discounts | O166: Actual 2 [m$ OD] | T166: ="Approved 3 [m$ 31/12/2009]" -> Approved 3 [m$ 31/12/2009] | AD166: Actuals [m$ OD] | AG166: Forecast [m$ OD] | AK166: Forecast [m$ OD]
A167: =ROW() -> 167 | D167: Discounted Revenue | O167: 4231.59836 | P167: 4558.284913 | Q167: 4561.407993 | R167: 3850.048486 | S167: 4029.130035 | T167: 1.61324818 | U167: 1.702819142 | V167: 1.56952495 | W167: 3.272344092 | X167: 3.28607519 | Y167: 3.250368184 | Z167: 3.160529652 | AA167: 0.9597968866 | AD167: 2.022598293 | AE167: 0.78735303 | AF167: 0.31370567 | AG167: 0.2477026774 | AH167: 0.2344 | AI167: 0.2344 | AJ167: 0.2404269136 | AK167: 0.2434982355 | AL167: 0.2466087918 | AM167: 0.2497590837
A168: =ROW() -> 168 | O168: ="Actual 2 [m$ "&Input!$G$43&"]" -> Actual 2 [m$ 31/12/2019] | T168: ="Approved 3 [m$ "&Input!$G$43&"]" -> Approved 3 [m$ 31/12/2019] | AD168: ="Actuals [m$ "&Input!$G$43&"]" -> Actuals [m$ 31/12/2019] | AG168: ="Forecast [m$ "&Input!$G$43&"]" -> Forecast [m$ 31/12/2019] | AK168: ="Forecast [m$ "&Input!$G$43&"]" -> Forecast [m$ 31/12/2019]
A169: =ROW() -> 169 | D169: ="Discounted Revenue [m$ "&Input!$G$43&"]" -> Discounted Revenue [m$ 31/12/2019] | O169: =O167*O$16/1000 -> 5.829027905 | P169: =P167*P$16/1000 -> 6.081178338 | Q169: 5.910500433 | R169: 4.811436705 | S169: 4.931263932 | T169: =T167*$S$16 -> 1.974459125 | U169: =U167*$S$16 -> 2.084085285 | V169: 1.920946137 | W169: 4.005031422 | X169: 4.021836953 | Y169: 3.978135044 | Z169: 3.868181405 | AA169: =AA167*AA$16 -> 1.039527488 | AD169: =AD167*AD$16 -> 2.154240567 | AE169: 0.8264006759 | AF169: 0.323095271 | AG169: 0.2506449173 | AH169: 0.2344 | AI169: =AI167*AI$16 -> 0.2317579593 | AJ169: =AJ167*AJ$16 -> 0.2350375128 | AK169: 0.2353569192 | AL169: 0.2356767596 | AM169: 0.2359970346
A170: =ROW() -> 170 | C170: Volume | O170: Actual 2 | T170: Actual 3 and est for 2013/14 | AD170: Actual | AG170: Forecast | AK170: ="Forecast [m$ "&Input!$G$43&"]" -> Forecast [m$ 31/12/2019]
A171: =ROW() -> 171 | D171: Volume [TJ] | O171: =O76 -> 11677.13241 | P171: 11112.86454 | Q171: 10411.34365 | R171: 6993.026199 | S171: 6745.648528 | T171: 3094.701782 | U171: 2891.935041 | V171: 2664.301299 | W171: 5556.23634 | X171: 3582.567595 | Y171: 2875.102834 | Z171: 2735.771464 | AA171: 1389.280505 | AD171: =AD76 -> 2605.250539 | AE171: 1352.817209 | AF171: 1066.656258 | AG171: 1300.164276 | AH171: 2000 | AI171: 2000 | AJ171: 2000 | AK171: 2000 | AL171: 2000 | AM171: 2000
A172: =ROW() -> 172 | D172: ="Discounted Notional Tariff [$ per GJ, "&Input!$G$43&"]" -> Discounted Notional Tariff [$ per GJ, 31/12/2019] | O172: =1000*O169/O171 -> 0.4991831643 | P172: 0.5472196943 | Q172: 0.5676981405 | R172: 0.6880335592 | S172: 0.7310288864 | T172: 0.6380127278 | U172: 0.7206542524 | V172: 0.7209943325 | W172: 0.720817326 | X172: 1.122612999 | Y172: 1.383649655 | Z172: 1.413927097 | AA172: 0.7482488127 | AD172: =1000*AD169/AD171 -> 0.8268842229 | AE172: =1000*AE169/AE171 -> 0.6108738643 | AF172: 0.3029047723 | AG172: 0.1927794218 | AH172: 0.1172 | AI172: 0.1158789796 | AJ172: =1000*AJ169/AJ171 -> 0.1175187564 | AK172: 0.1176784596 | AL172: 0.1178383798 | AM172: 0.1179985173
A173: =ROW() -> 173 | O173: Actual 2 [m$ OD] | T173: =T170&" [m$ OD]" -> Actual 3 and est for 2013/14 [m$ OD] | AD173: Actuals [m$ OD] | AG173: Forecast [m$ OD]
A174: =ROW() -> 174 | D174: Discounted Notional Tariff [$ per GJ, Nominal] | O174: =O172*O$17 -> 0.36238335 | P174: 0.410180912 | Q174: 0.4381190502 | R174: 0.5505554214 | S174: 0.5972932058 | T174: 0.5292898269 | U174: 0.6044488223 | V174: 0.619678642 | W174: 0.6195265089 | X174: 0.9762250194 | Y174: 1.231984966 | Z174: 1.296907889 | AA174: =AA172*AA$17 -> 0.6908589614 | AB174: 0 | AC174: 0 | AD174: 0.7763546204 | AE174: 0.5820099161 | AF174: 0.2941019355 | AG174: 0.1905164463 | AH174: 0.1172 | AI174: 0.1172 | AJ174: =AJ172*AJ$17 -> 0.1202134568 | AK174: 0.1217491177 | AL174: 0.1233043959 | AM174: 0.1248795419
A175: Tariff Revenue
A176: =ROW() -> 176 | C176: Proposed Tariff Revenue [Real] | O176: Actual 2 [m$ 31/12/2009] | T176: Approved 3 [m$ 31/12/2009] | AA176: Approved [m$ 30/6/2014] | AK176: ="Forecast [m$ "&Input!$G$43&"]" -> Forecast [m$ 31/12/2019]
A177: =ROW() -> 177 | D177: A1 | O177: 4.80139987 | P177: 4.2922495 | Q177: 4.3136383 | R177: 4.545798883 | S177: 4.826820838 | T177: 2.768748194 | U177: 3.182541018 | V177: 3.179597933 | W177: 6.362138951 | X177: 7.008674989 | Y177: 7.512294084 | Z177: 7.924159466 | AA177: 4.094850881 | AB177: 4.815685591 | AC177: 3.180525157 | AE177: 7.878421387 | AF177: 7.226269581 | AG177: 6.577223067 | AH177: 5.988655881 | AI177: =Revenue!AI$103 -> 6.816474902 | AJ177: =Revenue!AJ$103 -> 7.034853121 | AK177: =Revenue!AK$103 -> 6.783431535 | AL177: =Revenue!AL$103 -> 6.543081032 | AM177: =Revenue!AM$103 -> 6.623036368
A178: =ROW() -> 178 | D178: A2 | O178: 4.41869984 | P178: 4.72661995 | Q178: 4.93738968 | R178: 4.918677475 | S178: 5.203813145 | T178: 2.607760183 | U178: 2.759398225 | V178: 3.57409815 | W178: 6.333496375 | X178: 7.817500234 | Y178: 8.45458036 | Z178: 9.10643868 | AA178: 3.125233004 | AB178: 4.595120053 | AC178: 1.454069924 | AE178: 5.608288214 | AF178: 5.315696163 | AG178: 5.040065608 | AH178: 4.671191358 | AI178: =Revenue!AI$111 -> 4.283734644 | AJ178: =Revenue!AJ$111 -> 4.329781327 | AK178: =Revenue!AK$111 -> 4.376659258 | AL178: =Revenue!AL$111 -> 4.42438163 | AM178: =Revenue!AM$111 -> 4.472961842
A179: =ROW() -> 179 | D179: B1 | O179: 8.59801223 | P179: 8.413272871 | Q179: 8.711606538 | R179: 7.658183152 | S179: 8.299208156 | T179: 4.017820159 | U179: 4.721702136 | V179: 4.861209307 | W179: 9.582911443 | X179: 11.04703331 | Y179: 12.10981779 | Z179: 13.23535228 | AA179: 5.276063572 | AB179: 7.544028389 | AC179: 2.192048269 | AE179: 8.828295417 | AF179: 8.243961957 | AG179: 7.717327216 | AH179: 7.228097872 | AI179: =Revenue!AI$117 -> 8.908021958 | AJ179: =Revenue!AJ$117 -> 9.224745744 | AK179: =Revenue!AK$117 -> 9.550424681 | AL179: =Revenue!AL$117 -> 9.860383517 | AM179: =Revenue!AM$117 -> 10.13556047
A180: =ROW() -> 180 | D180: B2 | O180: 6.26021071 | P180: 6.501671833 | Q180: 6.979974896 | R180: 7.371811049 | S180: 7.523205351 | T180: 3.66696144 | U180: 4.031464526 | V180: 4.941080427 | W180: 8.972544953 | X180: 10.83174427 | Y180: 11.7801164 | Z180: 12.85390142 | AA180: 5.733021665 | AB180: 7.926108625 | AC180: 2.466590787 | AE180: 9.143368074 | AF180: 8.320907832 | AG180: 7.566229981 | AH180: 6.734082658 | AI180: =Revenue!AI$122 -> 8.820454864 | AJ180: =Revenue!AJ$122 -> 9.090324592 | AK180: =Revenue!AK$122 -> 9.384009815 | AL180: =Revenue!AL$122 -> 9.672959057 | AM180: =Revenue!AM$122 -> 9.930877588
A181: =ROW() -> 181 | D181: B3 | O181: 87.52746275 | P181: 87.12634889 | Q181: 90.54797867 | R181: 94.38861393 | S181: 97.8627623 | T181: 45.89263033 | U181: 56.02774359 | V181: 63.86178671 | W181: 119.8895303 | X181: 151.5492519 | Y181: 166.3879097 | Z181: 183.0571263 | AA181: 79.58052432 | AB181: 108.3592022 | AC181: 31.93360483 | AE181: 127.4029613 | AF181: 118.679674 | AG181: 112.0611405 | AH181: 106.2312504 | AI181: =Revenue!AI$131 -> 125.5361738 | AJ181: =Revenue!AJ$131 -> 126.740059 | AK181: =Revenue!AK$131 -> 128.1443699 | AL181: =Revenue!AL$131 -> 129.8163491 | AM181: =Revenue!AM$131 -> 131.8334604
A182: =ROW() -> 182 | D182: Total | O182: =SUM(O177:O181) -> 111.6057854 | P182: 111.060163 | Q182: 115.4905881 | R182: 118.8830845 | S182: 123.7158098 | T182: 58.9539203 | U182: 70.72284949 | V182: 80.41777252 | W182: 151.140622 | X182: 188.2542047 | Y182: 206.2447183 | Z182: 226.1769781 | AA182: =SUM(AA177:AA181) -> 97.80969344 | AB182: =SUM(AB177:AB181) -> 133.2401449 | AC182: 41.22683897 | AE182: 158.8613343 | AF182: 147.7865096 | AG182: 138.9619864 | AH182: 130.8532781 | AI182: =SUM(AI177:AI181) -> 154.3648602 | AJ182: 156.4197638 | AK182: 158.2388952 | AL182: 160.3171543 | AM182: 162.9958967
A183: =ROW() -> 183 | C183: Proposed Tariff Revenue [Nominal] | O183: Actual 2 [m$ OD] | T183: Approved 3 [m$ OD] | AA183: Approved [m$ OD] | AK183: Forecast [m$ OD]
A184: =ROW() -> 184 | D184: A1 | O184: =O177*O$17/$S$17 -> 4.266022539 | P184: =P177*P$17/$S$17 -> 3.937727417 | Q184: 4.074415881 | R184: 4.45193283 | S184: 4.826820838 | T184: =T177*T$17/$S$17 -> 2.811218667 | U184: =U177*U$17/$S$17 -> 3.267033257 | V184: 3.344674404 | W184: 6.69244469 | X184: 7.459380342 | Y184: 8.186510316 | Z184: 8.89574417 | AA184: =AA177*AA$17/$Z$17 -> 4.121917884 | AB184: =AB177*AB$17/$Z$17 -> 4.929370331 | AC184: 3.255608376 | AE184: =AE177*AE$17/$Z$17 -> 8.183440534 | AF184: 7.649337299 | AG184: 7.086507572 | AH184: 6.529008652 | AI184: =AI177*AI$17 -> 6.894182716 | AJ184: =AJ177*AJ$17 -> 7.196162021 | AK184: 7.018079667 | AL184: 6.846586446 | AM184: 7.009255423
A185: =ROW() -> 185 | D185: A2 | O185: =O178*O$17/$S$17 -> 3.925995256 | P185: 4.336220662 | Q185: 4.663575739 | R185: 4.817111863 | S185: 5.203813145 | T185: =T178*T$17/$S$17 -> 2.647761224 | U185: 2.832656585 | V185: 3.759656048 | W185: 6.662315065 | X185: 8.320218538 | Y185: 9.21336526 | Z185: 10.22298316 | AA185: =AA178*AA$17/$Z$17 -> 3.145890823 | AB185: 4.703597863 | AC185: 1.48839641 | AE185: =AE178*AE$17/$Z$17 -> 5.825417408 | AF185: 5.626907837 | AG185: 5.430325645 | AH185: 5.092670108 | AI185: =AI178*AI$17 -> 4.332569219 | AJ185: =AJ178*AJ$17 -> 4.42906304 | AK185: 4.528053861 | AL185: 4.629609682 | AM185: 4.733800376
A186: =ROW() -> 186 | D186: B1 | O186: =O179*O$17/$S$17 -> 7.639295822 | P186: 7.718371277 | Q186: 8.228484996 | R186: 7.500049577 | S186: 8.299208156 | T186: =T179*T$17/$S$17 -> 4.079450438 | U186: 4.84705706 | V186: 5.113590675 | W186: 10.08043133 | X186: 11.75743251 | Y186: 13.19665433 | Z186: 14.85814469 | AA186: =AA179*AA$17/$Z$17 -> 5.310938402 | AB186: 7.722121599 | AC186: 2.243796339 | AE186: =AE179*AE$17/$Z$17 -> 9.170089668 | AF186: 8.726611288 | AG186: 8.314891741 | AH186: 7.880284738 | AI186: =AI179*AI$17 -> 9.009573408 | AJ186: =AJ179*AJ$17 -> 9.436268795 | AK186: 9.880786874 | AL186: 10.31776434 | AM186: 10.72661061
A187: =ROW() -> 187 | D187: B2 | O187: =O180*O$17/$S$17 -> 5.562169516 | P187: 5.96466059 | Q187: 6.592884843 | R187: 7.219590762 | S187: 7.523205351 | T187: =T180*T$17/$S$17 -> 3.723209816 | U187: 4.138494557 | V187: 5.197608496 | W187: 9.438376195 | X187: 11.52829892 | Y187: 12.83736277 | Z187: 14.42992396 | AA187: =AA180*AA$17/$Z$17 -> 5.770916993 | AB187: 8.113221671 | AC187: 2.524820031 | AE187: =AE180*AE$17/$Z$17 -> 9.497360605 | AF187: 8.808062021 | AG187: 8.152094814 | AH187: 7.341694833 | AI187: =AI180*AI$17 -> 8.921008049 | AJ187: =AJ180*AJ$17 -> 9.298765372 | AK187: 9.708615491 | AL187: 10.12164606 | AM187: 10.50999175
A188: =ROW() -> 188 | D188: B3 | O188: =O181*O$17/$S$17 -> 77.76776336 | P188: 79.93007228 | Q188: 85.52643885 | R188: 92.4395865 | S188: 97.8627623 | T188: =T181*T$17/$S$17 -> 46.59658808 | U188: 57.51520581 | V188: 67.17732489 | W188: 126.1138835 | X188: 161.294897 | Y188: 181.3209552 | Z188: 205.5018417 | AA188: =AA181*AA$17/$Z$17 -> 80.10655234 | AB188: 110.9172571 | AC188: 32.68746708 | AE188: =AE181*AE$17/$Z$17 -> 132.335465 | AF188: 125.6278702 | AG188: 120.7382071 | AH188: 115.8164313 | AI188: =AI181*AI$17 -> 126.9672862 | AJ188: =AJ181*AJ$17 -> 129.6462035 | AK188: 132.5770581 | AL188: 135.8379717 | AM188: 139.5212627
A189: =ROW() -> 189 | D189: Total | O189: =SUM(O184:O188) -> 99.1612465 | P189: 101.8870522 | Q189: 109.0858003 | R189: 116.4282715 | S189: 123.7158098 | T189: 59.85822822 | U189: 72.60044727 | V189: 84.59285452 | W189: 158.9874508 | X189: 200.3602274 | Y189: 224.7548479 | Z189: 253.9086377 | AA189: 98.45621644 | AB189: 136.3855685 | AC189: 42.20008824 | AE189: =SUM(AE184:AE188) -> 165.0117732 | AF189: 156.4387887 | AG189: 149.7220269 | AH189: 142.6600897 | AI189: 156.1246196 | AJ189: 160.0064627 | AK189: 163.712594 | AL189: 167.7535782 | AM189: 172.5009209
A190: Ancillary Services
A191: =ROW() -> 191 | C191: Revenue | O191: Actual 22 [m$ OD] | T191: Approved 3 [m$ 31/12/2009] | AD191: Actual [$ OD] | AH191: Forecast [$ OD) | AK191: Forecast [m$ OD]
A192: =ROW() -> 192 | D192: Revenue | O192: 0.53 | P192: 0.525 | Q192: 0.548 | R192: 0.709 | S192: 0.706 | T192: =0.77/2 -> 0.385 | U192: =T192 -> 0.385 | V192: =T192 -> 0.385 | W192: =U192+V192 -> 0.77 | X192: =$T$192*2 -> 0.77 | Y192: =$T$192*2 -> 0.77 | Z192: =$T$192*2 -> 0.77 | AA192: =AA194*AA$17 -> 0.7949140618 | AB192: =AB194*AB$17 -> 0 | AC192: 0 | AD192: 1.960189415 | AE192: 2.666514901 | AF192: 3.876993455 | AG192: 4.004589973 | AH192: 4.026437676 | AI192: =AI384/1000000 -> 3.328436593 | AJ192: 3.402489472 | AK192: 3.490243659 | AL192: 3.592266507 | AM192: 3.698630537
A193: =ROW() -> 193 | T193: ="Approved 3 [m$ "&Input!$G$43&"]" -> Approved 3 [m$ 31/12/2019] | AD193: ="Actual [m$ "&Input!$G$43&"]" -> Actual [m$ 31/12/2019] | AH193: ="Forecast [m$ "&Input!$G$43&"]" -> Forecast [m$ 31/12/2019]
A194: =ROW() -> 194 | T194: =T354/1000000 -> 0.4502993338 | W194: =W354/1000000 -> 0.9235507622 | X194: 0.904865251 | Y194: 0.904865251 | Z194: 0.904865251 | AA194: 0.8609478001 | AB194: 0 | AC194: =AC354/1000000 -> 0 | AD194: 2.087769762 | AE194: 2.798756888 | AF194: 3.993036693 | AG194: 4.052156937 | AH194: 4.026437676 | AI194: =AI354/1000000 -> 3.290920104 | AJ194: 3.326219394 | AK194: 3.373548039 | AL194: 3.433023307 | AM194: 3.494831203
A195: =ROW() -> 195 | D195: Adjustment | O195: 0 | P195: 0 | Q195: 0 | R195: 0 | S195: 0 | T195: 0 | U195: 0 | V195: 0 | W195: 0 | X195: 0 | Y195: 0 | Z195: 0 | AA195: 0 | AB195: 0 | AC195: 0 | AD195: 0 | AE195: 0 | AF195: 0 | AG195: 0 | AH195: 0 | AI195: 0 | AJ195: 0 | AK195: 0 | AL195: 0 | AM195: 0
A196: =ROW() -> 196 | D196: ="Revenue [m$ "&Input!$G$43&"]" -> Revenue [m$ 31/12/2019] | O196: =O192*O$16+O195 -> 0.7300751458 | P196: =P192*P$16+P195 -> 0.7003990949 | Q196: =Q192*Q$16+Q195 -> 0.7100777308 | R196: =R192*R$16+R195 -> 0.8860430294 | S196: =S192*S$16+S195 -> 0.8640754469 | T196: =T194+T195 -> 0.4502993338 | W196: =W194+W195 -> 0.9235507622 | X196: =X194+X195 -> 0.904865251 | Y196: =Y194+Y195 -> 0.904865251 | Z196: =Z194+Z195 -> 0.904865251 | AA196: =AA194+AA195 -> 0.8609478001 | AB196: =AB194+AB195 -> 0 | AC196: 0 | AD196: =AD194+AD195 -> 2.087769762 | AE196: 2.798756888 | AF196: 3.993036693 | AG196: 4.052156937 | AH196: 4.026437676 | AI196: 3.290920104 | AJ196: 3.326219394 | AK196: 3.373548039 | AL196: 3.433023307 | AM196: 3.494831203
A197: =ROW() -> 197 | O197: Actual 2 [m$ OD] | T197: Approved 3 [m$ OD] | AA197: Forecast [m$ OD]
A198: =ROW() -> 198 | D198: Revenue [m$ OD] | O198: =O196*O$17 -> 0.53 | P198: 0.525 | Q198: 0.548 | R198: 0.709 | S198: 0.706 | T198: 0.3735644229 | W198: =W196*W$17 -> 0.793771402 | X198: =X196*X$17 -> 0.786871431 | Y198: =Y196*Y$17 -> 0.8056811066 | Z198: =Z196*Z$17 -> 0.8299769377 | AA198: =AA196*AA$17 -> 0.7949140618 | AB198: =AB196*AB$17 -> 0 | AC198: 0 | AD198: =AD196*AD$17 -> 1.960189415 | AE198: 2.666514901 | AF198: 3.876993455 | AG198: 4.004589973 | AH198: 4.026437676 | AI198: 3.328436593 | AJ198: 3.402489472 | AK198: 3.490243659 | AL198: 3.592266507 | AM198: 3.698630537
A199: Tariffs Excluding GST
A200: =ROW() -> 200 | C200: A1 | J200: Actual 1 (FA1) [$ OD] | O200: Actual 2 [$ OD] | T200: Actual 3 [$ Nominal] | AD200: Actual [$ OD] | AH200: Forecast [$ OD) | AK200: Forecast [$ Nominal)
... 185 more rows

Sheet Revenue
A1: =Main!A1 -> ERA, GDS Tariff Model, Final Decision, November 2019
A2: Revenue
A3: Ref | C3: =COLUMN() -> 3 | D3: =COLUMN() -> 4 | E3: =COLUMN() -> 5 | F3: =COLUMN() -> 6 | G3: =COLUMN() -> 7 | H3: =COLUMN() -> 8 | I3: =COLUMN() -> 9 | J3: =COLUMN() -> 10 | K3: =COLUMN() -> 11 | L3: =COLUMN() -> 12 | M3: =COLUMN() -> 13 | N3: =COLUMN() -> 14 | O3: =COLUMN() -> 15 | P3: =COLUMN() -> 16 | Q3: =COLUMN() -> 17 | R3: =COLUMN() -> 18 | S3: =COLUMN() -> 19 | T3: =COLUMN() -> 20 | U3: =COLUMN() -> 21 | V3: =COLUMN() -> 22 | W3: =COLUMN() -> 23 | X3: =COLUMN() -> 24 | Y3: =COLUMN() -> 25 | Z3: =COLUMN() -> 26 | AA3: =COLUMN() -> 27 | AD3: =COLUMN() -> 30 | AE3: =COLUMN() -> 31 | AF3: =COLUMN() -> 32 | AG3: =COLUMN() -> 33 | AH3: =COLUMN() -> 34 | AI3: =COLUMN() -> 35 | AJ3: =COLUMN() -> 36 | AK3: =COLUMN() -> 37 | AL3: =COLUMN() -> 38 | AM3: =COLUMN() -> 39
A4: =ROW() -> 4 | J4: Year ending 31 December | O4: Year ending 31 December | W4: Year Ending 30 June | AD4: Year Ending 31 December | AI4: Year Ending 31 December
A5: Regulatory Period | J5: 1 | K5: 1 | L5: 1 | M5: 1 | N5: 1 | O5: 2 | P5: 2 | Q5: 2 | R5: 2 | S5: 2 | T5: 3 | U5: 3 | V5: 3 | W5: 3 | X5: 3 | Y5: 3 | Z5: 3 | AA5: 4 | AB5: 4 | AC5: 4 | AD5: 4 | AE5: 4 | AF5: 4 | AG5: 4 | AH5: 4 | AI5: 4 | AJ5: 4 | AK5: 4 | AL5: 4 | AM5: 4
A6: Year ending | J6: =Load_Tariffs!J6 -> 2000 | K6: =Load_Tariffs!K6 -> 2001 | L6: =Load_Tariffs!L6 -> 2002 | M6: =Load_Tariffs!M6 -> 2003 | N6: =Load_Tariffs!N6 -> 2004 | O6: =Load_Tariffs!O6 -> 2005 | P6: =Load_Tariffs!P6 -> 2006 | Q6: =Load_Tariffs!Q6 -> 2007 | R6: =Load_Tariffs!R6 -> 2008 | S6: =Load_Tariffs!S6 -> 2009 | T6: =Load_Tariffs!T6 -> 2010 | U6: =Load_Tariffs!U6 -> 2010 | V6: =Load_Tariffs!V6 -> 2011 | W6: =Load_Tariffs!W6 -> 2011 | X6: =Load_Tariffs!X6 -> 2012 | Y6: =Load_Tariffs!Y6 -> 2013 | Z6: =Load_Tariffs!Z6 -> 2014 | AA6: =Load_Tariffs!AA6 -> 2014 | AB6: =Load_Tariffs!AB6 -> 2015 | AC6: =Load_Tariffs!AC6 -> 2015 | AD6: =Load_Tariffs!AD6 -> 2015 | AE6: =Load_Tariffs!AE6 -> 2016 | AF6: =Load_Tariffs!AF6 -> 2017 | AG6: =Load_Tariffs!AG6 -> 2018 | AH6: =Load_Tariffs!AH6 -> 2019 | AI6: =Load_Tariffs!AI6 -> 2020 | AJ6: =Load_Tariffs!AJ6 -> 2021 | AK6: =Load_Tariffs!AK6 -> 2022 | AL6: =Load_Tariffs!AL6 -> 2023 | AM6: =Load_Tariffs!AM6 -> 2024
A7: Months | J7: =Load_Tariffs!J7 -> 1 to 12 | K7: =Load_Tariffs!K7 -> 1 to 12 | L7: =Load_Tariffs!L7 -> 1 to 12 | M7: =Load_Tariffs!M7 -> 1 to 12 | N7: =Load_Tariffs!N7 -> 1 to 12 | O7: =Load_Tariffs!O7 -> 1 to 12 | P7: =Load_Tariffs!P7 -> 1 to 12 | Q7: =Load_Tariffs!Q7 -> 1 to 12 | R7: =Load_Tariffs!R7 -> 1 to 12 | S7: =Load_Tariffs!S7 -> 1 to 12 | T7: =Load_Tariffs!T7 -> 1 to 6 | U7: =Load_Tariffs!U7 -> 7 to 12 | V7: =Load_Tariffs!V7 -> 1 to 6 | W7: =Load_Tariffs!W7 -> 7 to 6 | X7: =Load_Tariffs!X7 -> 7 to 6 | Y7: =Load_Tariffs!Y7 -> 7 to 6 | Z7: =Load_Tariffs!Z7 -> 7 to 6 | AA7: =Load_Tariffs!AA7 -> 7 to 12 | AB7: =Load_Tariffs!AB7 -> 1 to 9 | AC7: =Load_Tariffs!AC7 -> 10 to 12 | AD7: =Load_Tariffs!AD7 -> 1 to 12 | AE7: =Load_Tariffs!AE7 -> 1 to 12 | AF7: =Load_Tariffs!AF7 -> 1 to 12 | AG7: =Load_Tariffs!AG7 -> 1 to 12 | AH7: =Load_Tariffs!AH7 -> 1 to 12 | AI7: =Load_Tariffs!AI7 -> 1 to 12 | AJ7: =Load_Tariffs!AJ7 -> 1 to 12 | AK7: =Load_Tariffs!AK7 -> 1 to 12 | AL7: =Load_Tariffs!AL7 -> 1 to 12 | AM7: =Load_Tariffs!AM7 -> 1 to 12
A8: Days | J8: =Load_Tariffs!J8 -> 366 | K8: =Load_Tariffs!K8 -> 365 | L8: =Load_Tariffs!L8 -> 365 | M8: =Load_Tariffs!M8 -> 365 | N8: =Load_Tariffs!N8 -> 366 | O8: =Load_Tariffs!O8 -> 365 | P8: =Load_Tariffs!P8 -> 365 | Q8: =Load_Tariffs!Q8 -> 365 | R8: =Load_Tariffs!R8 -> 366 | S8: =Load_Tariffs!S8 -> 365 | T8: =Load_Tariffs!T8 -> 181 | U8: =Load_Tariffs!U8 -> 184 | V8: =Load_Tariffs!V8 -> 181 | W8: =Load_Tariffs!W8 -> 365 | X8: =Load_Tariffs!X8 -> 366 | Y8: =Load_Tariffs!Y8 -> 365 | Z8: =Load_Tariffs!Z8 -> 365 | AA8: =Load_Tariffs!AA8 -> 184 | AB8: =Load_Tariffs!AB8 -> 273 | AC8: =Load_Tariffs!AC8 -> 92 | AD8: =Load_Tariffs!AD8 -> 365 | AE8: =Load_Tariffs!AE8 -> 366 | AF8: =Load_Tariffs!AF8 -> 365 | AG8: =Load_Tariffs!AG8 -> 365 | AH8: =Load_Tariffs!AH8 -> 365 | AI8: =Load_Tariffs!AI8 -> 366 | AJ8: =Load_Tariffs!AJ8 -> 365 | AK8: =Load_Tariffs!AK8 -> 365 | AL8: =Load_Tariffs!AL8 -> 365 | AM8: =Load_Tariffs!AM8 -> 366
A9: Year portion | J9: =Load_Tariffs!J9 -> 1 | K9: =Load_Tariffs!K9 -> 1 | L9: =Load_Tariffs!L9 -> 1 | M9: =Load_Tariffs!M9 -> 1 | N9: =Load_Tariffs!N9 -> 1 | O9: =Load_Tariffs!O9 -> 1 | P9: =Load_Tariffs!P9 -> 1 | Q9: =Load_Tariffs!Q9 -> 1 | R9: =Load_Tariffs!R9 -> 1 | S9: =Load_Tariffs!S9 -> 1 | T9: =Load_Tariffs!T9 -> 0.495890411 | U9: =Load_Tariffs!U9 -> 0.504109589 | V9: =Load_Tariffs!V9 -> 0.495890411 | W9: =Load_Tariffs!W9 -> 1 | X9: =Load_Tariffs!X9 -> 1 | Y9: =Load_Tariffs!Y9 -> 1 | Z9: =Load_Tariffs!Z9 -> 1 | AA9: =Load_Tariffs!AA9 -> 0.504109589 | AB9: =Load_Tariffs!AB9 -> 0.7479452055 | AC9: =Load_Tariffs!AC9 -> 0.2520547945 | AD9: =Load_Tariffs!AD9 -> 1 | AE9: =Load_Tariffs!AE9 -> 1 | AF9: =Load_Tariffs!AF9 -> 1 | AG9: =Load_Tariffs!AG9 -> 1 | AH9: =Load_Tariffs!AH9 -> 1 | AI9: =Load_Tariffs!AI9 -> 1 | AJ9: =Load_Tariffs!AJ9 -> 1 | AK9: =Load_Tariffs!AK9 -> 1 | AL9: =Load_Tariffs!AL9 -> 1 | AM9: =Load_Tariffs!AM9 -> 1
A10: Financial Parameters
A11: =ROW() -> 11 | C11: Inflation factor | J11: Actual 1 | O11: Actual 2 | T11: Actual 3 | Y11: FORECAST | AD11: Actual 4 up to Dec 2017 | AG11: Forecast | AK11: Forecast
A12: =ROW() -> 12 | D12: ="Inflation Factor (convert to real "&Input!$G$43&" $)" -> Inflation Factor (convert to real 31/12/2019 $) | T12: =Load_Tariffs!T16 -> 1.205412792 | U12: =Load_Tariffs!U16 -> 1.192250238 | V12: =Load_Tariffs!V16 -> 1.163497148 | W12: =Load_Tariffs!W16 -> 1.163497148 | X12: =Load_Tariffs!X16 -> 1.149953112 | Y12: =Load_Tariffs!Y16 -> 1.123105958 | Z12: =Load_Tariffs!Z16 -> 1.090229391 | AA12: =Load_Tariffs!AA16 -> 1.083070286 | AB12: =Load_Tariffs!AB16 -> 1.065085724 | AC12: =Load_Tariffs!AC16 -> 1.065085724 | AD12: =Load_Tariffs!AD16 -> 1.065085724 | AE12: =Load_Tariffs!AE16 -> 1.049593568 | AF12: =Load_Tariffs!AF16 -> 1.029931244 | AG12: =Load_Tariffs!AG16 -> 1.011878111 | AH12: =Load_Tariffs!AH16 -> 1 | AI12: =Load_Tariffs!AI16 -> 0.9887284952 | AJ12: =Load_Tariffs!AJ16 -> 0.9775840371 | AK12: =Load_Tariffs!AK16 -> 0.9665651939 | AL12: =Load_Tariffs!AL16 -> 0.9556705497 | AM12: =Load_Tariffs!AM16 -> 0.9448987044
A13: =ROW() -> 13 | D13: ="Inflation Factor (convert " &Input!$G$43& " $ to nominal $)" -> Inflation Factor (convert 31/12/2019 $ to nominal $) | T13: =Load_Tariffs!T17 -> 0.8295913292 | U13: =Load_Tariffs!U17 -> 0.8387500946 | V13: =Load_Tariffs!V17 -> 0.8594778268 | W13: =Load_Tariffs!W17 -> 0.8594778268 | X13: =Load_Tariffs!X17 -> 0.8696006728 | Y13: =Load_Tariffs!Y17 -> 0.8903879398 | Z13: =Load_Tariffs!Z17 -> 0.9172381598 | AA13: =Load_Tariffs!AA17 -> 0.9233011127 | AB13: =Load_Tariffs!AB17 -> 0.938891563 | AC13: =Load_Tariffs!AC17 -> 0.938891563 | AD13: =Load_Tariffs!AD17 -> 0.938891563 | AE13: =Load_Tariffs!AE17 -> 0.9527497411 | AF13: =Load_Tariffs!AF17 -> 0.9709385998 | AG13: =Load_Tariffs!AG17 -> 0.9882613223 | AH13: =Load_Tariffs!AH17 -> 1 | AI13: =Load_Tariffs!AI17 -> 1.0114 | AJ13: =Load_Tariffs!AJ17 -> 1.02292996 | AK13: =Load_Tariffs!AK17 -> 1.034591362 | AL13: =Load_Tariffs!AL17 -> 1.046385703 | AM13: =Load_Tariffs!AM17 -> 1.0583145
A14: =ROW() -> 14 | J14: Approved 1 | O14: Approved 2 | T14: Approved 3 | AD14: Actual 4 up to Dec 2017 | AG14: Forecast | AK14: Forecast
A15: =ROW() -> 15 | C15: Real Post-tax WACC
A16: =ROW() -> 16 | D16: WACC | T16: =(1+$W$19)^(T$8/365)-1 -> 0.04527784254 | U16: =(1+$W$19)^(U$8/365)-1 -> 0.04604532451 | V16: =(1+$W$19)^(V$8/365)-1 -> 0.04527784254 | W16: =WACC!$S$38 -> 0.06569980507 | X16: =W16 -> 0.06569980507 | Y16: =X16 -> 0.06569980507 | Z16: =Y16 -> 0.06569980507 | AA16: =(1+WACC!$U$38)^AA$9-1 -> 0.0198101078 | AB16: =AD16 -> 0.04010991168 | AC16: =AD16 -> 0.04010991168 | AD16: =WACC!V$38 -> 0.04010991168 | AE16: =WACC!W$38 -> 0.03990382728 | AF16: =WACC!X$38 -> 0.03907360157 | AG16: =WACC!Y$38 -> 0.03532286555 | AH16: =WACC!Z$38 -> 0.04245559673 | AI16: =WACC!AA$38 -> 0.02981411904 | AJ16: =WACC!AB$38 -> 0.02981411904 | AK16: =WACC!AC$38 -> 0.02981411904 | AL16: =WACC!AD$38 -> 0.02981411904 | AM16: =WACC!AE$38 -> 0.02981411904
A17: =ROW() -> 17 | D17: Discounting Factor | T17: =1/(1+T16) -> 0.9566834379 | U17: =T17/(1+U16) -> 0.9145716878 | V17: =U17/(1+V16) -> 0.8749555865 | W17: =T17/(1+W16) -> 0.8977044318 | X17: =W17/(1+X16) -> 0.8423614488 | Y17: =X17/(1+Y16) -> 0.7904303302 | Z17: =Y17/(1+Z16) -> 0.7417007364 | AA17: =1/(1+AA16) -> 0.9805747093 | AB17: =AD17 -> 0.9427606624 | AC17: =AD17 -> 0.9427606624 | AD17: =AA17/(1+AD16) -> 0.9427606624 | AE17: =AD17/(1+AE16) -> 0.9065844722 | AF17: =AE17/(1+AF16) -> 0.8724930273 | AG17: =AF17/(1+AG16) -> 0.8427255461 | AH17: =AG17/(1+AH16) -> 0.8084042608 | AI17: =1/(1+AI16) -> 0.9710490287 | AJ17: =AI17/(1+AJ16) -> 0.9429362161 | AK17: =AJ17/(1+AK16) -> 0.9156372967 | AL17: =AK17/(1+AL16) -> 0.8891287076 | AM17: =AL17/(1+AM16) -> 0.8633875678
A18: =ROW() -> 18 | C18: Nominal Post Tax WACC
A19: =ROW() -> 19 | D19: WACC | T19: =(1+$W$19)^(T$8/365)-1 -> 0.04527784254 | U19: =(1+$W$19)^(U$8/365)-1 -> 0.04604532451 | V19: =(1+$W$19)^(V$8/365)-1 -> 0.04527784254 | W19: =WACC!$S$37 -> 0.093408 | X19: =W19 -> 0.093408 | Y19: =X19 -> 0.093408 | Z19: =Y19 -> 0.093408 | AA19: =(1+WACC!$U$37)^AA$9-1 -> 0.02953234787 | AB19: =AD19 -> 0.059872 | AC19: =AD19 -> 0.059872 | AD19: =WACC!V$37 -> 0.059872 | AE19: =WACC!W$37 -> 0.059662 | AF19: =WACC!X$37 -> 0.058816 | AG19: =WACC!Y$37 -> 0.054994 | AH19: =WACC!Z$37 -> 0.054838 | AI19: =WACC!AA$37 -> 0.041554 | AJ19: =WACC!AB$37 -> 0.041554 | AK19: =WACC!AC$37 -> 0.041554 | AL19: =WACC!AD$37 -> 0.041554 | AM19: =WACC!AE$37 -> 0.041554
A20: =ROW() -> 20 | D20: Discounting Factor | T20: =1/(1+T19) -> 0.9566834379 | U20: =T20/(1+U19) -> 0.9145716878 | V20: =U20/(1+V19) -> 0.8749555865 | W20: =T20/(1+W19) -> 0.8749555865 | X20: =W20/(1+X19) -> 0.8002096075 | Y20: =X20/(1+Y19) -> 0.7318490513 | Z20: =Y20/(1+Z19) -> 0.6693284221 | AA20: =1/(1+AA19) -> 0.9713147936 | AB20: 0.9164453761 | AC20: 0.9164453761 | AD20: =AA20/(1+AD19) -> 0.9164453761 | AE20: =AD20/(1+AE19) -> 0.8648468814 | AF20: =AE20/(1+AF19) -> 0.8168056409 | AG20: =AF20/(1+AG19) -> 0.7742277595 | AH20: =AG20/(1+AH19) -> 0.7339778804 | AI20: =1/(1+AI19) -> 0.9601038448 | AJ20: =AI20/(1+AJ19) -> 0.9217993929 | AK20: =AJ20/(1+AK19) -> 0.8850231412 | AL20: =AK20/(1+AL19) -> 0.8497141207 | AM20: =AL20/(1+AM19) -> 0.8158137943
A21: Modelled Volume & Customer # (excluding prudent discount)
A22: =ROW() -> 22 | AD22: Actual 4 up to Dec 2017 | AG22: Forecast | AK22: Forecast
A23: =ROW() -> 23 | C23: A1
A24: =ROW() -> 24 | D24: Customers | T24: =Load_Tariffs!T87 -> 50.33333333 | U24: =Load_Tariffs!U87 -> 53 | V24: =Load_Tariffs!V87 -> 53.16666667 | W24: =Load_Tariffs!W87 -> 53.16666667 | X24: =Load_Tariffs!X87 -> 55.91666667 | Y24: =Load_Tariffs!Y87 -> 62.66666667 | Z24: =Load_Tariffs!Z87 -> 64.5 | AA24: =Load_Tariffs!AA87 -> 64.5 | AD24: =Load_Tariffs!AD87 -> 66.5 | AE24: =Load_Tariffs!AE87 -> 72 | AF24: =Load_Tariffs!AF87 -> 72.5 | AG24: =Load_Tariffs!AG87 -> 72.5 | AH24: =Load_Tariffs!AH87 -> 73 | AI24: =Load_Tariffs!AI87 -> 73 | AJ24: =Load_Tariffs!AJ87 -> 73 | AK24: =Load_Tariffs!AK87 -> 72.5 | AL24: =Load_Tariffs!AL87 -> 72 | AM24: =Load_Tariffs!AM87 -> 72
A25: =ROW() -> 25 | D25: Demand 1 [GJ km] | T25: =Load_Tariffs!T88 -> 4810.674978 | U25: =Load_Tariffs!U88 -> 0 | V25: =Load_Tariffs!V88 -> 0 | W25: =Load_Tariffs!W88 -> 9941.092845 | X25: =Load_Tariffs!X88 -> 11680.59719 | Y25: =Load_Tariffs!Y88 -> 12196.77594 | Z25: =Load_Tariffs!Z88 -> 12836.93546 | AA25: =Load_Tariffs!AA88 -> 6908.508355 | AD25: =Load_Tariffs!AD88 -> 13355.22104 | AE25: =Load_Tariffs!AE88 -> 15366.25762 | AF25: =Load_Tariffs!AF88 -> 15901.48185 | AG25: =Load_Tariffs!AG88 -> 16933.5405 | AH25: =Load_Tariffs!AH88 -> 16451.6396 | AI25: =Load_Tariffs!AI88 -> 17062.4266 | AJ25: =Load_Tariffs!AJ88 -> 17077.6136 | AK25: =Load_Tariffs!AK88 -> 15164.6136 | AL25: =Load_Tariffs!AL88 -> 13454.8136 | AM25: =Load_Tariffs!AM88 -> 13474.8136
A26: =ROW() -> 26 | D26: Demand 2 [GJ km] | T26: =Load_Tariffs!T89 -> 1022.982247 | U26: =Load_Tariffs!U89 -> 0 | V26: =Load_Tariffs!V89 -> 0 | W26: =Load_Tariffs!W89 -> 2395.216712 | X26: =Load_Tariffs!X89 -> 6559.023452 | Y26: =Load_Tariffs!Y89 -> 5974.018389 | Z26: =Load_Tariffs!Z89 -> 6077.220082 | AA26: =Load_Tariffs!AA89 -> 3742.059419 | AD26: =Load_Tariffs!AD89 -> 7362.087342 | AE26: =Load_Tariffs!AE89 -> 7594.702027 | AF26: =Load_Tariffs!AF89 -> 6938.869589 | AG26: =Load_Tariffs!AG89 -> 6587.707562 | AH26: =Load_Tariffs!AH89 -> 6375.082 | AI26: =Load_Tariffs!AI89 -> 6557.322 | AJ26: =Load_Tariffs!AJ89 -> 6562.522 | AK26: =Load_Tariffs!AK89 -> 6562.522 | AL26: =Load_Tariffs!AL89 -> 6159.422 | AM26: =Load_Tariffs!AM89 -> 6164.622
A27: =ROW() -> 27 | D27: Usage 1 [TJ km] | T27: =Load_Tariffs!T90 -> 10466.01377 | U27: =Load_Tariffs!U90 -> 0 | V27: =Load_Tariffs!V90 -> 0 | W27: =Load_Tariffs!W90 -> 23453.57172 | X27: =Load_Tariffs!X90 -> 30807.77556 | Y27: =Load_Tariffs!Y90 -> 28099.35376 | Z27: =Load_Tariffs!Z90 -> 29939.8747 | AA27: =Load_Tariffs!AA90 -> 16267.79064 | AD27: =Load_Tariffs!AD90 -> 31828.34975 | AE27: =Load_Tariffs!AE90 -> 37584.49962 | AF27: =Load_Tariffs!AF90 -> 37057.85173 | AG27: =Load_Tariffs!AG90 -> 42709.11395 | AH27: =Load_Tariffs!AH90 -> 39983.58965 | AI27: =Load_Tariffs!AI90 -> 41246.94015 | AJ27: =Load_Tariffs!AJ90 -> 44810.78326 | AK27: =Load_Tariffs!AK90 -> 42975.20601 | AL27: =Load_Tariffs!AL90 -> 41945.49333 | AM27: =Load_Tariffs!AM90 -> 41647.88055
A28: =ROW() -> 28 | D28: Usage 2 [TJ km] | T28: =Load_Tariffs!T91 -> 1432.245102 | U28: =Load_Tariffs!U91 -> 0 | V28: =Load_Tariffs!V91 -> 0 | W28: =Load_Tariffs!W91 -> 2792.582836 | X28: =Load_Tariffs!X91 -> 22417.44889 | Y28: =Load_Tariffs!Y91 -> 10456.27511 | Z28: =Load_Tariffs!Z91 -> 9608.150919 | AA28: =Load_Tariffs!AA91 -> 5860.346571 | AD28: =Load_Tariffs!AD91 -> 14173.39355 | AE28: =Load_Tariffs!AE91 -> 17215.38124 | AF28: =Load_Tariffs!AF91 -> 18631.62799 | AG28: =Load_Tariffs!AG91 -> 24799.91344 | AH28: =Load_Tariffs!AH91 -> 23537.28294 | AI28: =Load_Tariffs!AI91 -> 23927.09602 | AJ28: =Load_Tariffs!AJ91 -> 24860.07907 | AK28: =Load_Tariffs!AK91 -> 24541.18881 | AL28: =Load_Tariffs!AL91 -> 23972.87112 | AM28: =Load_Tariffs!AM91 -> 23586.1967
A29: =ROW() -> 29 | D29: Total Volume [GJ per Annum] | T29: =Load_Tariffs!T78*1000 -> 2989027.059 | U29: =Load_Tariffs!U78*1000 -> 3385705.709 | V29: =Load_Tariffs!V78*1000 -> 3676067.249 | W29: =Load_Tariffs!W78*1000 -> 7061772.958 | X29: =Load_Tariffs!X78*1000 -> 8562532.485 | Y29: =Load_Tariffs!Y78*1000 -> 8478528.824 | Z29: =Load_Tariffs!Z78*1000 -> 8669858.249 | AA29: =Load_Tariffs!AA78*1000 -> 4660411.482 | AD29: =Load_Tariffs!AD78*1000 -> 8842923.473 | AE29: =Load_Tariffs!AE78*1000 -> 9474734.76 | AF29: =Load_Tariffs!AF78*1000 -> 9292616.66 | AG29: =Load_Tariffs!AG78*1000 -> 9924907.241 | AH29: =Load_Tariffs!AH78*1000 -> 9611953.607 | AI29: =Load_Tariffs!AI78*1000 -> 9537737.393 | AJ29: =Load_Tariffs!AJ78*1000 -> 9850738.909 | AK29: =Load_Tariffs!AK78*1000 -> 9509453.86 | AL29: =Load_Tariffs!AL78*1000 -> 9200536.907 | AM29: =Load_Tariffs!AM78*1000 -> 9140729.14
A30: =ROW() -> 30 | C30: A2
A31: =ROW() -> 31 | D31: A2 Customers | T31: =Load_Tariffs!T44 -> 97.16666667 | U31: =Load_Tariffs!U44 -> 96.5 | V31: =Load_Tariffs!V44 -> 101 | W31: =Load_Tariffs!W44 -> 101 | X31: =Load_Tariffs!X44 -> 109.5 | Y31: =Load_Tariffs!Y44 -> 106.5833333 | Z31: =Load_Tariffs!Z44 -> 104.5 | AA31: =Load_Tariffs!AA44 -> 103 | AD31: =Load_Tariffs!AD44 -> 102.5 | AE31: =Load_Tariffs!AE44 -> 98.5 | AF31: =Load_Tariffs!AF44 -> 97 | AG31: =Load_Tariffs!AG44 -> 102 | AH31: =Load_Tariffs!AH44 -> 105 | AI31: =Load_Tariffs!AI44 -> 105.5 | AJ31: =Load_Tariffs!AJ44 -> 106 | AK31: =Load_Tariffs!AK44 -> 106.5 | AL31: =Load_Tariffs!AL44 -> 107 | AM31: =Load_Tariffs!AM44 -> 107.5
A32: =ROW() -> 32 | D32: GJ Band 1 | T32: =Load_Tariffs!T98 -> 228196.5464 | U32: =Load_Tariffs!U98 -> 0 | V32: =Load_Tariffs!V98 -> 0 | W32: =Load_Tariffs!W98 -> 439801.477 | X32: =Load_Tariffs!X98 -> 851175.004 | Y32: =Load_Tariffs!Y98 -> 838543.447 | Z32: =Load_Tariffs!Z98 -> 815846.866 | AA32: =Load_Tariffs!AA98 -> 0 | AD32: =Load_Tariffs!AD98 -> 0 | AE32: =Load_Tariffs!AE98 -> 0 | AF32: =Load_Tariffs!AF98 -> 0 | AG32: =Load_Tariffs!AG98 -> 0 | AH32: =Load_Tariffs!AH98 -> 0 | AI32: =Load_Tariffs!AI98 -> 0 | AJ32: =Load_Tariffs!AJ98 -> 0 | AK32: =Load_Tariffs!AK98 -> 0 | AL32: =Load_Tariffs!AL98 -> 0 | AM32: =Load_Tariffs!AM98 -> 0
A33: =ROW() -> 33 | D33: GJ Band 2 | T33: =Load_Tariffs!T99 -> 203649.7527 | U33: =Load_Tariffs!U99 -> 0 | V33: =Load_Tariffs!V99 -> 0 | W33: =Load_Tariffs!W99 -> 383576.215 | X33: =Load_Tariffs!X99 -> 1168877.416 | Y33: =Load_Tariffs!Y99 -> 1144950.279 | Z33: =Load_Tariffs!Z99 -> 1068670.536 | AA33: =Load_Tariffs!AA99 -> 0 | AD33: =Load_Tariffs!AD99 -> 0 | AE33: =Load_Tariffs!AE99 -> 0 | AF33: =Load_Tariffs!AF99 -> 0 | AG33: =Load_Tariffs!AG99 -> 0 | AH33: =Load_Tariffs!AH99 -> 0 | AI33: =Load_Tariffs!AI99 -> 0 | AJ33: =Load_Tariffs!AJ99 -> 0 | AK33: =Load_Tariffs!AK99 -> 0 | AL33: =Load_Tariffs!AL99 -> 0 | AM33: =Load_Tariffs!AM99 -> 0
A34: =ROW() -> 34 | D34: GJ Band 3 | T34: =Load_Tariffs!T100 -> 455151.0385 | U34: =Load_Tariffs!U100 -> 0 | V34: =Load_Tariffs!V100 -> 0 | W34: =Load_Tariffs!W100 -> 992837.4724 | X34: =Load_Tariffs!X100 -> 0 | Y34: =Load_Tariffs!Y100 -> 0 | Z34: =Load_Tariffs!Z100 -> 0 | AA34: =Load_Tariffs!AA100 -> 0 | AD34: =Load_Tariffs!AD100 -> 0 | AE34: =Load_Tariffs!AE100 -> 0 | AF34: =Load_Tariffs!AF100 -> 0 | AG34: =Load_Tariffs!AG100 -> 0 | AH34: =Load_Tariffs!AH100 -> 0 | AI34: =Load_Tariffs!AI100 -> 0 | AJ34: =Load_Tariffs!AJ100 -> 0 | AK34: =Load_Tariffs!AK100 -> 0 | AL34: =Load_Tariffs!AL100 -> 0 | AM34: =Load_Tariffs!AM100 -> 0
A35: =ROW() -> 35 | D35: GJ Band 1* | AA35: =Load_Tariffs!AA101 -> 405625.606 | AD35: =Load_Tariffs!AD101 -> 785654.977 | AE35: =Load_Tariffs!AE101 -> 762671.7419 | AF35: =Load_Tariffs!AF101 -> 768684.569 | AG35: =Load_Tariffs!AG101 -> 777864.024 | AH35: =Load_Tariffs!AH101 -> 792767.7198 | AI35: =Load_Tariffs!AI101 -> 784982.5789 | AJ35: =Load_Tariffs!AJ101 -> 777323.2998 | AK35: =Load_Tariffs!AK101 -> 769787.7917 | AL35: =Load_Tariffs!AL101 -> 762373.9981 | AM35: =Load_Tariffs!AM101 -> 755079.8954
A36: =ROW() -> 36 | D36: GJ Band 2* | AA36: =Load_Tariffs!AA102 -> 542794.279 | AD36: =Load_Tariffs!AD102 -> 1018804.015 | AE36: =Load_Tariffs!AE102 -> 1008052.483 | AF36: =Load_Tariffs!AF102 -> 1025065.958 | AG36: =Load_Tariffs!AG102 -> 1010103.254 | AH36: =Load_Tariffs!AH102 -> 1044266.011 | AI36: =Load_Tariffs!AI102 -> 1034011.106 | AJ36: =Load_Tariffs!AJ102 -> 1023921.99 | AK36: =Load_Tariffs!AK102 -> 1013995.911 | AL36: =Load_Tariffs!AL102 -> 1004230.16 | AM36: =Load_Tariffs!AM102 -> 994622.0699
A37: =ROW() -> 37 | D37: Total Volume [GJ per Annum] | T37: =SUM(T32:T36) -> 886997.3376 | U37: 0 | V37: 0 | W37: 1816215.164 | X37: 2020052.42 | Y37: 1983493.726 | Z37: 1884517.402 | AA37: =SUM(AA32:AA36) -> 948419.885 | AD37: =SUM(AD32:AD36) -> 1804458.992 | AE37: 1770724.225 | AF37: 1793750.527 | AG37: 1787967.278 | AH37: 1837033.731 | AI37: =SUM(AI32:AI36) -> 1818993.685 | AJ37: 1801245.29 | AK37: 1783783.703 | AL37: 1766604.158 | AM37: 1749701.965
A38: =ROW() -> 38 | C38: B1
A39: =ROW() -> 39 | D39: Customers | T39: =Load_Tariffs!T45 -> 1222.166667 | U39: =Load_Tariffs!U45 -> 1242 | V39: =Load_Tariffs!V45 -> 1256.333333 | W39: =Load_Tariffs!W45 -> 1256.333333 | X39: =Load_Tariffs!X45 -> 1297.416667 | Y39: =Load_Tariffs!Y45 -> 1334.416667 | Z39: =Load_Tariffs!Z45 -> 1364 | AA39: =Load_Tariffs!AA45 -> 1399 | AD39: =Load_Tariffs!AD45 -> 1444 | AE39: =Load_Tariffs!AE45 -> 1518.5 | AF39: =Load_Tariffs!AF45 -> 1599.5 | AG39: =Load_Tariffs!AG45 -> 1670.5 | AH39: =Load_Tariffs!AH45 -> 1728.409426 | AI39: =Load_Tariffs!AI45 -> 1780.006732 | AJ39: =Load_Tariffs!AJ45 -> 1834.193575 | AK39: =Load_Tariffs!AK45 -> 1888.489968 | AL39: =Load_Tariffs!AL45 -> 1943.392253 | AM39: =Load_Tariffs!AM45 -> 1998.918607
A40: =ROW() -> 40 | D40: GJ Band 1 | T40: =Load_Tariffs!T109 -> 649493.4631 | U40: =Load_Tariffs!U109 -> 0 | V40: =Load_Tariffs!V109 -> 0 | W40: =Load_Tariffs!W109 -> 1389540.322 | X40: =Load_Tariffs!X109 -> 1385587.464 | Y40: =Load_Tariffs!Y109 -> 1463332.441 | Z40: =Load_Tariffs!Z109 -> 1472170.211 | AA40: =Load_Tariffs!AA109 -> 791288.4815 | AD40: =Load_Tariffs!AD109 -> 1523036.72 | AE40: =Load_Tariffs!AE109 -> 1664051.405 | AF40: =Load_Tariffs!AF109 -> 1632990.466 | AG40: =Load_Tariffs!AG109 -> 1714526.397 | AH40: =Load_Tariffs!AH109 -> 1811006.692 | AI40: =Load_Tariffs!AI109 -> 1862188.325 | AJ40: =Load_Tariffs!AJ109 -> 1907538.198 | AK40: =Load_Tariffs!AK109 -> 1947553.394 | AL40: =Load_Tariffs!AL109 -> 1979324.775 | AM40: =Load_Tariffs!AM109 -> 2000485.254
A41: =ROW() -> 41 | D41: GJ Band 2 | T41: =Load_Tariffs!T110 -> 94260.5628 | U41: =Load_Tariffs!U110 -> 0 | V41: =Load_Tariffs!V110 -> 0 | W41: =Load_Tariffs!W110 -> 202653.3169 | X41: =Load_Tariffs!X110 -> 168076.3819 | Y41: =Load_Tariffs!Y110 -> 176654.1947 | Z41: =Load_Tariffs!Z110 -> 175019.4857 | AA41: =Load_Tariffs!AA110 -> 0 | AD41: =Load_Tariffs!AD110 -> 0 | AE41: =Load_Tariffs!AE110 -> 0 | AF41: =Load_Tariffs!AF110 -> 0 | AG41: =Load_Tariffs!AG110 -> 0 | AH41: =Load_Tariffs!AH110 -> 0 | AI41: =Load_Tariffs!AI110 -> 0 | AJ41: =Load_Tariffs!AJ110 -> 0 | AK41: =Load_Tariffs!AK110 -> 0 | AL41: =Load_Tariffs!AL110 -> 0 | AM41: =Load_Tariffs!AM110 -> 0
A42: =ROW() -> 42 | D42: GJ Band 2* | AA42: =Load_Tariffs!AA111 -> 97970.16121 | AD42: =Load_Tariffs!AD111 -> 197766.1523 | AE42: =Load_Tariffs!AE111 -> 266373.9094 | AF42: =Load_Tariffs!AF111 -> 241805.8528 | AG42: =Load_Tariffs!AG111 -> 290029.4973 | AH42: =Load_Tariffs!AH111 -> 251428.6675 | AI42: =Load_Tariffs!AI111 -> 249399.2756 | AJ42: =Load_Tariffs!AJ111 -> 242855.0933 | AK42: =Load_Tariffs!AK111 -> 243066.877 | AL42: =Load_Tariffs!AL111 -> 245335.2958 | AM42: =Load_Tariffs!AM111 -> 246678.7396
A43: =ROW() -> 43 | D43: Total Volume [GJ per Annum] | T43: =SUM(T40:T42) -> 743754.0259 | U43: =SUM(U40:U42) -> 0 | V43: 0 | W43: 1592193.639 | X43: 1553663.846 | Y43: 1639986.635 | Z43: 1647189.697 | AA43: 889258.6427 | AD43: 1720802.873 | AE43: 1930425.315 | AF43: 1874796.319 | AG43: 2004555.894 | AH43: 2062435.359 | AI43: =SUM(AI40:AI42) -> 2111587.6 | AJ43: 2150393.291 | AK43: 2190620.271 | AL43: 2224660.071 | AM43: 2247163.994
A44: =ROW() -> 44 | C44: B2
A45: =ROW() -> 45 | D45: Modelled B2 Customers | T45: =Load_Tariffs!T46 -> 7697.5 | U45: =Load_Tariffs!U46 -> 7893 | V45: =Load_Tariffs!V46 -> 8105.083333 | W45: =Load_Tariffs!W46 -> 8105.083333 | X45: =Load_Tariffs!X46 -> 8708.75 | Y45: =Load_Tariffs!Y46 -> 9262.25 | Z45: =Load_Tariffs!Z46 -> 9797 | AA45: =Load_Tariffs!AA46 -> 10221.5 | AD45: =Load_Tariffs!AD46 -> 10622.5 | AE45: =Load_Tariffs!AE46 -> 11112.5 | AF45: =Load_Tariffs!AF46 -> 11494.5 | AG45: =Load_Tariffs!AG46 -> 11738.5 | AH45: =Load_Tariffs!AH46 -> 11957.43869 | AI45: =Load_Tariffs!AI46 -> 12238.84289 | AJ45: =Load_Tariffs!AJ46 -> 12519.27429 | AK45: =Load_Tariffs!AK46 -> 12795.99349 | AL45: =Load_Tariffs!AL46 -> 13095.75427 | AM45: =Load_Tariffs!AM46 -> 13402.12108
A46: =ROW() -> 46 | D46: GJ Band 1 | T46: =Load_Tariffs!T125 -> 185987.7142 | U46: =Load_Tariffs!U125 -> 0 | V46: =Load_Tariffs!V125 -> 0 | W46: =Load_Tariffs!W125 -> 389585.8249 | X46: =Load_Tariffs!X125 -> 403522.1127 | Y46: =Load_Tariffs!Y125 -> 418531.9016 | Z46: =Load_Tariffs!Z125 -> 430255.2483 | AA46: =Load_Tariffs!AA125 -> 228811.0652 | AD46: =Load_Tariffs!AD125 -> 454358.7074 | AE46: =Load_Tariffs!AE125 -> 481672.4814 | AF46: =Load_Tariffs!AF125 -> 480578.9736 | AG46: =Load_Tariffs!AG125 -> 490073.3326 | AH46: =Load_Tariffs!AH125 -> 493541.6991 | AI46: =Load_Tariffs!AI125 -> 510865.2847 | AJ46: =Load_Tariffs!AJ125 -> 524544.5302 | AK46: =Load_Tariffs!AK125 -> 540009.9469 | AL46: =Load_Tariffs!AL125 -> 554013.675 | AM46: =Load_Tariffs!AM125 -> 562698.1234
A47: =ROW() -> 47 | D47: GJ Band 2 | T47: =Load_Tariffs!T126 -> 366118.5915 | U47: =Load_Tariffs!U126 -> 0 | V47: =Load_Tariffs!V126 -> 0 | W47: =Load_Tariffs!W126 -> 777541.4461 | X47: =Load_Tariffs!X126 -> 784946.1842 | Y47: =Load_Tariffs!Y126 -> 812884.7301 | Z47: =Load_Tariffs!Z126 -> 825273.9552 | AA47: =Load_Tariffs!AA126 -> 434199.1841 | AD47: =Load_Tariffs!AD126 -> 837277.7577 | AE47: =Load_Tariffs!AE126 -> 886844.8449 | AF47: =Load_Tariffs!AF126 -> 862170.8128 | AG47: =Load_Tariffs!AG126 -> 863611.1006 | AH47: =Load_Tariffs!AH126 -> 855993.4437 | AI47: =Load_Tariffs!AI126 -> 862503.4366 | AJ47: =Load_Tariffs!AJ126 -> 862288.6573 | AK47: =Load_Tariffs!AK126 -> 864328.0732 | AL47: =Load_Tariffs!AL126 -> 864226.6406 | AM47: =Load_Tariffs!AM126 -> 862514.3074
A48: =ROW() -> 48 | D48: Total Volume [GJ per Annum] | T48: =SUM(T46:T47) -> 552106.3057 | U48: =SUM(U46:U47) -> 0 | V48: 0 | W48: 1167127.271 | X48: 1188468.297 | Y48: 1231416.632 | Z48: 1255529.203 | AA48: =SUM(AA46:AA47) -> 663010.2493 | AD48: 1291636.465 | AE48: 1368517.326 | AF48: 1342749.786 | AG48: =SUM(AG46:AG47) -> 1353684.433 | AH48: =SUM(AH46:AH47) -> 1349535.143 | AI48: =SUM(AI46:AI47) -> 1373368.721 | AJ48: 1386833.188 | AK48: 1404338.02 | AL48: =SUM(AL46:AL47) -> 1418240.316 | AM48: =SUM(AM46:AM47) -> 1425212.431
A49: =ROW() -> 49 | C49: B3
A50: =ROW() -> 50 | D50: Modelled B3 Customers | T50: =Load_Tariffs!T47 -> 601246 | U50: =Load_Tariffs!U47 -> 609162.8988 | V50: =Load_Tariffs!V47 -> 614524 | W50: =Load_Tariffs!W47 -> 614524 | X50: =Load_Tariffs!X47 -> 629899.5833 | Y50: =Load_Tariffs!Y47 -> 642709.8333 | Z50: =Load_Tariffs!Z47 -> 657671.5 | AA50: =Load_Tariffs!AA47 -> 671181 | AD50: =Load_Tariffs!AD47 -> 686909.5 | AE50: =Load_Tariffs!AE47 -> 705512 | AF50: =Load_Tariffs!AF47 -> 718910.5 | AG50: =Load_Tariffs!AG47 -> 728627 | AH50: =Load_Tariffs!AH47 -> 735064.5288 | AI50: =Load_Tariffs!AI47 -> 740372.081 | AJ50: =Load_Tariffs!AJ47 -> 747882.7006 | AK50: =Load_Tariffs!AK47 -> 757221.4797 | AL50: =Load_Tariffs!AL47 -> 769292.6773 | AM50: =Load_Tariffs!AM47 -> 783000.3496
A51: =ROW() -> 51 | D51: GJ Band 1 | T51: =Load_Tariffs!T145 -> 3008688.118 | U51: =Load_Tariffs!U145 -> 0 | V51: =Load_Tariffs!V145 -> 0 | W51: =Load_Tariffs!W145 -> 6231552.577 | X51: =Load_Tariffs!X145 -> 4913980.424 | Y51: =Load_Tariffs!Y145 -> 5016507.282 | Z51: =Load_Tariffs!Z145 -> 5081054.62 | AA51: =Load_Tariffs!AA145 -> 0 | AD51: =Load_Tariffs!AD145 -> 0 | AE51: =Load_Tariffs!AE145 -> 0 | AF51: =Load_Tariffs!AF145 -> 0 | AG51: =Load_Tariffs!AG145 -> 0 | AH51: =Load_Tariffs!AH145 -> 0 | AI51: =Load_Tariffs!AI145 -> 0 | AJ51: =Load_Tariffs!AJ145 -> 0 | AK51: =Load_Tariffs!AK145 -> 0 | AL51: =Load_Tariffs!AL145 -> 0 | AM51: =Load_Tariffs!AM145 -> 0
A52: =ROW() -> 52 | D52: GJ Band 2 | T52: =Load_Tariffs!T146 -> 1249333.842 | U52: =Load_Tariffs!U146 -> 0 | V52: =Load_Tariffs!V146 -> 0 | W52: =Load_Tariffs!W146 -> 2807463.131 | X52: =Load_Tariffs!X146 -> 4731980.429 | Y52: =Load_Tariffs!Y146 -> 4889443.108 | Z52: =Load_Tariffs!Z146 -> 4759786.657 | AA52: =Load_Tariffs!AA146 -> 0 | AD52: =Load_Tariffs!AD146 -> 0 | AE52: =Load_Tariffs!AE146 -> 0 | AF52: =Load_Tariffs!AF146 -> 0 | AG52: =Load_Tariffs!AG146 -> 0 | AH52: =Load_Tariffs!AH146 -> 0 | AI52: =Load_Tariffs!AI146 -> 0 | AJ52: =Load_Tariffs!AJ146 -> 0 | AK52: =Load_Tariffs!AK146 -> 0 | AL52: =Load_Tariffs!AL146 -> 0 | AM52: =Load_Tariffs!AM146 -> 0
A53: =ROW() -> 53 | D53: GJ Band 3 | T53: =Load_Tariffs!T147 -> 331249.2265 | U53: =Load_Tariffs!U147 -> 0 | V53: =Load_Tariffs!V147 -> 0 | W53: =Load_Tariffs!W147 -> 730749.3655 | X53: =Load_Tariffs!X147 -> 0 | Y53: =Load_Tariffs!Y147 -> 0 | Z53: =Load_Tariffs!Z147 -> 0 | AA53: =Load_Tariffs!AA147 -> 0 | AD53: =Load_Tariffs!AD147 -> 0 | AE53: =Load_Tariffs!AE147 -> 0 | AF53: =Load_Tariffs!AF147 -> 0 | AG53: =Load_Tariffs!AG147 -> 0 | AH53: =Load_Tariffs!AH147 -> 0 | AI53: =Load_Tariffs!AI147 -> 0 | AJ53: =Load_Tariffs!AJ147 -> 0 | AK53: =Load_Tariffs!AK147 -> 0 | AL53: =Load_Tariffs!AL147 -> 0 | AM53: =Load_Tariffs!AM147 -> 0
A54: =ROW() -> 54 | D54: GJ Band 1* | AA54: =Load_Tariffs!AA148 -> 0 | AD54: =Load_Tariffs!AD148 -> 288522.8556 | AE54: =Load_Tariffs!AE148 -> 1180420.566 | AF54: =Load_Tariffs!AF148 -> 1198474.251 | AG54: =Load_Tariffs!AG148 -> 1219086.447 | AH54: =Load_Tariffs!AH148 -> 1246640.147 | AI54: =Load_Tariffs!AI148 -> 1274063.794 | AJ54: =Load_Tariffs!AJ148 -> 1303296.041 | AK54: =Load_Tariffs!AK148 -> 1344062.463 | AL54: =Load_Tariffs!AL148 -> 1370890.578 | AM54: =Load_Tariffs!AM148 -> 1402201.098
A55: =ROW() -> 55 | D55: GJ Band 2* | AA55: =Load_Tariffs!AA149 -> 2658352.316 | AD55: =Load_Tariffs!AD149 -> 4884879.333 | AE55: =Load_Tariffs!AE149 -> 4166565.797 | AF55: =Load_Tariffs!AF149 -> 4166780.088 | AG55: =Load_Tariffs!AG149 -> 4215164.047 | AH55: =Load_Tariffs!AH149 -> 4265567.55 | AI55: =Load_Tariffs!AI149 -> 4309376.913 | AJ55: =Load_Tariffs!AJ149 -> 4341080.926 | AK55: =Load_Tariffs!AK149 -> 4387813.016 | AL55: =Load_Tariffs!AL149 -> 4401246.691 | AM55: =Load_Tariffs!AM149 -> 4430064.021
A56: =ROW() -> 56 | D56: GJ Band 3* | AA56: =Load_Tariffs!AA150 -> 2568594.692 | AD56: =Load_Tariffs!AD150 -> 4623497.475 | AE56: =Load_Tariffs!AE150 -> 5527792.696 | AF56: =Load_Tariffs!AF150 -> 4566927.535 | AG56: =Load_Tariffs!AG150 -> 4643447.786 | AH56: =Load_Tariffs!AH150 -> 4477762.022 | AI56: =Load_Tariffs!AI150 -> 4389877.314 | AJ56: =Load_Tariffs!AJ150 -> 4281620.357 | AK56: =Load_Tariffs!AK150 -> 4146907.329 | AL56: =Load_Tariffs!AL150 -> 4048031.859 | AM56: =Load_Tariffs!AM150 -> 3966686.398
A57: =ROW() -> 57 | D57: Total Volume [GJ per Annum] | T57: =SUM(T51:T56) -> 4589271.187 | U57: 0 | V57: 0 | W57: 9769765.074 | X57: 9645960.853 | Y57: 9905950.389 | Z57: 9840841.277 | AA57: =SUM(AA51:AA56) -> 5226947.008 | AD57: =SUM(AD51:AD56) -> 9796899.664 | AE57: 10874779.06 | AF57: 9932181.873 | AG57: 10077698.28 | AH57: 9989969.718 | AI57: =SUM(AI51:AI56) -> 9973318.02 | AJ57: 9925997.324 | AK57: 9878782.808 | AL57: 9820169.127 | AM57: 9798951.517
A58: =ROW() -> 58
A59: ="Tariffs Excluding GST [$ "&Input!$G$43&"]" -> Tariffs Excluding GST [$ 31/12/2019] | E59: Calculation uses factor from first year of tariff change
A60: =ROW() -> 60 | AH60: ="Forecast [$ "&Input!$G$43&"]" -> Forecast [$ 31/12/2019] | AK60: ="Forecast [$ "&Input!$G$43&"]" -> Forecast [$ 31/12/2019]
A61: =ROW() -> 61 | C61: A1
A62: =ROW() -> 62 | D62: Fixed [$/year] | AH62: =Load_Tariffs!AH232 -> 32444.85 | AI62: =Price_path_AA5!G121 -> 32931.52 | AJ62: =Price_path_AA5!H121 -> 33394.09974 | AK62: =Price_path_AA5!I121 -> 33863.1772 | AL62: =Price_path_AA5!J121 -> 34338.84366 | AM62: =Price_path_AA5!K121 -> 34821.19167
A63: =ROW() -> 63 | D63: Demand 1 (<=10km) [$/GJ*km*year] | AH63: =Load_Tariffs!AH233 -> 136.75 | AI63: =Price_path_AA5!G123 -> 138.8 | AJ63: =Price_path_AA5!H123 -> 140.7496843 | AK63: =Price_path_AA5!I123 -> 142.7267552 | AL63: =Price_path_AA5!J123 -> 144.7315976 | AM63: =Price_path_AA5!K123 -> 146.7646013
A64: =ROW() -> 64 | D64: Demand 2 (>10km) [$/GJ*km*year] | AH64: =Load_Tariffs!AH234 -> 71.98 | AI64: =Price_path_AA5!G124 -> 73.06 | AJ64: =Price_path_AA5!H124 -> 74.08625313 | AK64: =Price_path_AA5!I124 -> 75.12692175 | AL64: =Price_path_AA5!J124 -> 76.18220834 | AM64: =Price_path_AA5!K124 -> 77.25231825
A65: =ROW() -> 65 | D65: Usage 1 (<=10km) [$/GJ*km] | AH65: =Load_Tariffs!AH235 -> 0.02893 | AI65: =Price_path_AA5!G126 -> 0.02936 | AJ65: =Price_path_AA5!H126 -> 0.02977241161 | AK65: =Price_path_AA5!I126 -> 0.03019061624 | AL65: =Price_path_AA5!J126 -> 0.03061469528 | AM65: =Price_path_AA5!K126 -> 0.03104473123
A66: =ROW() -> 66 | D66: Usage 2 (>10km) [$/GJ*km] | AH66: =Load_Tariffs!AH236 -> 0.01458 | AI66: =Price_path_AA5!G127 -> 0.0148 | AJ66: =Price_path_AA5!H127 -> 0.01500789141 | AK66: =Price_path_AA5!I127 -> 0.01521870301 | AL66: =Price_path_AA5!J127 -> 0.01543247582 | AM66: =Price_path_AA5!K127 -> 0.01564925144
A67: =ROW() -> 67 | C67: A2
A68: =ROW() -> 68 | D68: Fixed [$/year] | AH68: =Load_Tariffs!AH238 -> 17952 | AI68: =Price_path_AA5!G129 -> 18221.28 | AJ68: =Price_path_AA5!H129 -> 18477.22916 | AK68: =Price_path_AA5!I129 -> 18736.77357 | AL68: =Price_path_AA5!J129 -> 18999.96372 | AM68: =Price_path_AA5!K129 -> 19266.85083
A69: =ROW() -> 69 | D69: Usage 1 (Q<=5TJ/year) [$/GJ] | AH69: =Load_Tariffs!AH239 -> 0
A70: =ROW() -> 70 | D70: Usage 2 (5<Q<=10TJ/year) [$/GJ] | AH70: =Load_Tariffs!AH240 -> 0
A71: =ROW() -> 71 | D71: Usage 3 (Q>10TJ/year) [$/GJ] | AH71: =Load_Tariffs!AH241 -> 0
A72: =ROW() -> 72 | D72: Usage 1* (Q<=10TJ/year) [$/GJ] | AH72: =Load_Tariffs!AH242 -> 1.74 | AI72: =Price_path_AA5!G130 -> 1.77 | AJ72: =Price_path_AA5!H130 -> 1.794862689 | AK72: =Price_path_AA5!I130 -> 1.820074617 | AL72: =Price_path_AA5!J130 -> 1.845640689 | AM72: =Price_path_AA5!K130 -> 1.871565881
A73: =ROW() -> 73 | D73: Usage 2* (Q>10TJ/year) [$/GJ] | AH73: =Load_Tariffs!AH243 -> 0.93 | AI73: =Price_path_AA5!G131 -> 0.94 | AJ73: =Price_path_AA5!H131 -> 0.9532039138 | AK73: =Price_path_AA5!I131 -> 0.9665932992 | AL73: =Price_path_AA5!J131 -> 0.9801707616 | AM73: =Price_path_AA5!K131 -> 0.9939389427
A74: =ROW() -> 74 | C74: B1
A75: =ROW() -> 75 | D75: Fixed [$/year] | AH75: =Load_Tariffs!AH245 -> 907.55 | AI75: =Price_path_AA5!G133 -> 921.16 | AJ75: =Price_path_AA5!H133 -> 934.0992737 | AK75: =Price_path_AA5!I133 -> 947.2203016 | AL75: =Price_path_AA5!J133 -> 960.525637 | AM75: =Price_path_AA5!K133 -> 974.0178686
A76: =ROW() -> 76 | D76: Usage 1 (Q<=5TJ/year) [$/GJ], | AH76: =Load_Tariffs!AH246 -> 3.45 | AI76: =Price_path_AA5!G134 -> 3.5 | AJ76: =Price_path_AA5!H134 -> 3.549163509 | AK76: =Price_path_AA5!I134 -> 3.599017604 | AL76: =Price_path_AA5!J134 -> 3.649571985 | AM76: =Price_path_AA5!K134 -> 3.700836489
A77: =ROW() -> 77 | D77: Usage 2 (Q>5TJ/year) [$/GJ] | AH77: =Load_Tariffs!AH247 -> 0
A78: =ROW() -> 78 | D78: Usage 2* (Q>5TJ/year) [$/GJ] | AH78: =Load_Tariffs!AH248 -> 2.97 | AI78: =Price_path_AA5!G135 -> 3.01 | AJ78: =Price_path_AA5!H135 -> 3.052280618 | AK78: =Price_path_AA5!I135 -> 3.095155139 | AL78: =Price_path_AA5!J135 -> 3.138631907 | AM78: =Price_path_AA5!K135 -> 3.18271938
A79: =ROW() -> 79 | C79: B2
A80: =ROW() -> 80 | D80: Fixed [$/year] | AH80: =Load_Tariffs!AH250 -> 226.74 | AI80: =Price_path_AA5!G137 -> 230.14 | AJ80: =Price_path_AA5!H137 -> 233.3727114 | AK80: =Price_path_AA5!I137 -> 236.6508318 | AL80: =Price_path_AA5!J137 -> 239.974999 | AM80: =Price_path_AA5!K137 -> 243.3458599
A81: =ROW() -> 81 | D81: Usage 1 (Q<=100GJ/year) [$/GJ] | AH81: =Load_Tariffs!AH251 -> 5.77 | AI81: =Price_path_AA5!G138 -> 5.86 | AJ81: =Price_path_AA5!H138 -> 5.942313761 | AK81: =Price_path_AA5!I138 -> 6.025783759 | AL81: =Price_path_AA5!J138 -> 6.110426237 | AM81: =Price_path_AA5!K138 -> 6.196257664
A82: =ROW() -> 82 | D82: Usage 2 (Q>100GJ/year) [$/GJ] | AH82: =Load_Tariffs!AH252 -> 3.44 | AI82: =Price_path_AA5!G139 -> 3.49 | AJ82: =Price_path_AA5!H139 -> 3.539023042 | AK82: =Price_path_AA5!I139 -> 3.588734696 | AL82: =Price_path_AA5!J139 -> 3.639144636 | AM82: =Price_path_AA5!K139 -> 3.69026267
A83: =ROW() -> 83 | C83: B3
A84: =ROW() -> 84 | D84: Fixed [$/year] | AH84: =Load_Tariffs!AH254 -> 116.84 | AI84: =Price_path_AA5!G141 -> 116.84 | AJ84: =Price_path_AA5!H141 -> 116.84 | AK84: =Price_path_AA5!I141 -> 116.84 | AL84: =Price_path_AA5!J141 -> 116.84 | AM84: =Price_path_AA5!K141 -> 116.84
A85: =ROW() -> 85 | D85: Usage 1 (Q<=10GJ/year) [$/GJ] | AH85: =Load_Tariffs!AH255 -> 0
A86: =ROW() -> 86 | D86: Usage 2 (10<Q<=15GJ/year) [$/GJ] | AH86: =Load_Tariffs!AH256 -> 0
A87: =ROW() -> 87 | D87: Usage 3 (Q>15GJ/year) [$/GJ] | AH87: =Load_Tariffs!AH257 -> 0
A88: =ROW() -> 88 | D88: Usage 1* (Q<=2GJ/year to 2016); (Q<=1.825GJ/year, 2017 onwards) [$/GJ] | AH88: =Load_Tariffs!AH258 -> 0 | AI88: =Price_path_AA5!G142 -> 0 | AJ88: =Price_path_AA5!H142 -> 0 | AK88: =Price_path_AA5!I142 -> 0 | AL88: =Price_path_AA5!J142 -> 0 | AM88: =Price_path_AA5!K142 -> 0
A89: =ROW() -> 89 | D89: Usage 2* (2<Q<=10GJ/year to 2016); (1.825<Q<=9.855GJ/year, 2017 onwards) [$/GJ] | AH89: =Load_Tariffs!AH259 -> 4.89 | AI89: =Price_path_AA5!G143 -> 5.39 | AJ89: =Price_path_AA5!H143 -> 5.465711804 | AK89: =Price_path_AA5!I143 -> 5.542487109 | AL89: =Price_path_AA5!J143 -> 5.620340856 | AM89: =Price_path_AA5!K143 -> 5.699288193
A90: =ROW() -> 90 | D90: Usage 3* (Q>10GJ/year to 2016); (Q>9.855GJ/year, 2017 onwards) [$/GJ] | AH90: =Load_Tariffs!AH260 -> 2.11 | AI90: =Price_path_AA5!G144 -> 3.6 | AJ90: =Price_path_AA5!H144 -> 3.650568181 | AK90: =Price_path_AA5!I144 -> 3.701846678 | AL90: =Price_path_AA5!J144 -> 3.75384547 | AM90: =Price_path_AA5!K144 -> 3.806574674
A91: =ROW() -> 91
A92: =ROW() -> 92
A93: ="Revenue [m$ "&Input!$G$43&"]" -> Revenue [m$ 31/12/2019]
A94: =ROW() -> 94
A95: =ROW() -> 95 | C95: PV of Tariff Revenue
A96: =ROW() -> 96 | D96: Discounting Factor Real Post-tax | AI96: =AI17 -> 0.9710490287 | AJ96: =AJ17 -> 0.9429362161 | AK96: =AK17 -> 0.9156372967 | AL96: =AL17 -> 0.8891287076 | AM96: =AM17 -> 0.8633875678
A97: =ROW() -> 97 | C97: A1 | F97: PV
A98: =ROW() -> 98 | D98: Fixed | E98: =F98/$F$103 -> 0.3627119985 | F98: =SUMPRODUCT($AI$96:$AM$96,AI98:AM98) -> 11.24392704 | AI98: =AI24*AI62/1000000 -> 2.40400096 | AJ98: 2.437769281 | AK98: 2.455080347 | AL98: 2.472396743 | AM98: 2.5071258
A99: =ROW() -> 99 | D99: Demand 1 (<=10km) | E99: 0.3221622055 | F99: =SUMPRODUCT($AI$96:$AM$96,AI99:AM99) -> 9.986899657 | AI99: 2.368264813 | AJ99: 2.403668723 | AK99: 2.164396094 | AL99: 1.947336668 | AM99: 1.977625647
A100: =ROW() -> 100 | D100: Demand 2 (>10km) | E100: 0.07108065068 | F100: 2.203471772 | AI100: 0.4790779453 | AJ100: 0.4861926661 | AK100: 0.4930220768 | AL100: 0.4692383701 | AM100: 0.4762313406
A101: =ROW() -> 101 | D101: Usage 1 (<=10km) | E101: 0.1896806613 | F101: 5.880024717 | AI101: =AI27*AI65/1000 -> 1.211010163 | AJ101: 1.334125083 | AK101: 1.297447953 | AL101: 1.284148497 | AM101: 1.292947258
A102: =ROW() -> 102 | D102: Usage 2 (>10km) | E102: 0.05436448403 | F102: 1.685277285 | AI102: 0.354121021 | AJ102: 0.3730973671 | AK102: 0.373485064 | AL102: 0.369960754 | AM102: 0.3691063227
A103: =ROW() -> 103 | D103: Total | E103: 1 | F103: 30.99960047 | AI103: =SUM(AI98:AI102) -> 6.816474902 | AJ103: =SUM(AJ98:AJ102) -> 7.034853121 | AK103: 6.783431535 | AL103: 6.543081032 | AM103: 6.623036368
A104: =ROW() -> 104 | C104: A2
A105: =ROW() -> 105 | D105: Fixed | E105: =F105/$F$111 -> 0.4557842202 | F105: =SUMPRODUCT($AI$96:$AM$96,AI105:AM105) -> 9.13646853 | AI105: =AI31*AI68/1000000 -> 1.92234504 | AJ105: 1.958586291 | AK105: 1.995466385 | AL105: 2.032996118 | AM105: 2.071186464
A106: =ROW() -> 106 | D106: Usage 1 (Q<=5TJ/year) | E106: =F106/$F$111 -> 0 | F106: 0 | AI106: 0 | AJ106: 0 | AK106: 0 | AL106: 0 | AM106: 0
A107: =ROW() -> 107 | D107: Usage 2 (5<Q<=10TJ/year) | E107: =F107/$F$111 -> 0 | F107: 0 | AI107: 0 | AJ107: 0 | AK107: 0 | AL107: 0 | AM107: 0
A108: =ROW() -> 108 | D108: Usage 3 (Q>10TJ/year) | E108: =F108/$F$111 -> 0 | F108: 0 | AI108: 0 | AJ108: 0 | AK108: 0 | AL108: 0 | AM108: 0
A109: =ROW() -> 109 | D109: Usage 1* (Q<=10TJ/year) | E109: =F109/$F$111 -> 0.3202113844 | F109: 6.418829585 | AI109: 1.389419165 | AJ109: 1.395188588 | AK109: 1.40107122 | AL109: 1.407068471 | AM109: 1.41318177
A110: =ROW() -> 110 | D110: Usage 2* (Q>10TJ/year) | E110: 0.2240043954 | F110: 4.490302689 | AI110: 0.9719704393 | AJ110: 0.9760064486 | AK110: 0.9801216535 | AL110: 0.9843170405 | AM110: 0.9885936085
A111: =ROW() -> 111 | D111: Total | E111: =F111/$F$111 -> 1 | F111: 20.0456008 | AI111: =SUM(AI105:AI110) -> 4.283734644 | AJ111: =SUM(AJ105:AJ110) -> 4.329781327 | AK111: 4.376659258 | AL111: 4.42438163 | AM111: 4.472961842
A112: =ROW() -> 112 | C112: B1
A113: =ROW() -> 113 | D113: Fixed | E113: =F113/$F$117 -> 0.1877124078 | F113: =SUMPRODUCT($AI$96:$AM$96,AI113:AM113) -> 8.186375545 | AI113: =AI39*AI75/1000000 -> 1.639671001 | AJ113: 1.713318886 | AK113: 1.788816037 | AL113: 1.866678082 | AM113: 1.946982441
A114: =ROW() -> 114 | D114: Usage 1 (Q<=5TJ/year) | E114: =F114/$F$117 -> 0.7325081981 | F114: 31.94560908 | AI114: 6.517659137 | AJ114: 6.770164964 | AK114: 7.00927895 | AL114: 7.223688248 | AM114: 7.403468825
A115: =ROW() -> 115 | D115: Usage 2 (5<Q<=10TJ/year) | E115: =F115/$F$117 -> 0 | F115: 0 | AI115: 0 | AJ115: 0 | AK115: 0 | AL115: 0 | AM115: 0
A116: =ROW() -> 116 | D116: Usage 2* (Q>5TJ/year) | E116: =F116/$F$117 -> 0.07977939405 | F116: 3.479280288 | AI116: 0.7506918195 | AJ116: 0.7412618942 | AK116: 0.7523296934 | AL116: 0.7700171873 | AM116: 0.7851092054
A117: =ROW() -> 117 | D117: Total | E117: =F117/$F$117 -> 1 | F117: 43.61126491 | AI117: =SUM(AI113:AI116) -> 8.908021958 | AJ117: =SUM(AJ113:AJ116) -> 9.224745744 | AK117: 9.550424681 | AL117: 9.860383517 | AM117: 10.13556047
A118: =ROW() -> 118 | C118: B2
A119: =ROW() -> 119 | D119: Fixed | E119: =F119/$F$122 -> 0.3233468296 | F119: =SUMPRODUCT($AI$96:$AM$96,AI119:AM119) -> 13.87278883 | AI119: =AI45*AI80/1000000 -> 2.816647302 | AJ119: 2.921656986 | AK119: 3.028182502 | AL119: 3.142653618 | AM119: 3.261350677
A120: =ROW() -> 120 | D120: Usage 1 (Q<=100GJ/year) | E120: =F120/$F$122 -> 0.3460268671 | F120: 14.8458473 | AI120: 2.993670568 | AJ120: 3.11700818 | AK120: 3.253983168 | AL120: 3.385259696 | AM120: 3.48662256
A121: =ROW() -> 121 | D121: Usage 2 (Q>100GJ/year) | E121: =F121/$F$122 -> 0.3306263033 | F121: 14.18510549 | AI121: 3.010136994 | AJ121: 3.051659427 | AK121: 3.101844145 | AL121: 3.145045743 | AM121: 3.182904351
A122: =ROW() -> 122 | D122: Total | E122: =F122/$F$122 -> 1 | F122: 42.90374161 | AI122: =SUM(AI119:AI121) -> 8.820454864 | AJ122: =SUM(AJ119:AJ121) -> 9.090324592 | AK122: 9.384009815 | AL122: 9.672959057 | AM122: 9.930877588
A123: =ROW() -> 123 | C123: B3
A124: =ROW() -> 124 | D124: Fixed | E124: =F124/$F$131 -> 0.6910201223 | F124: =SUMPRODUCT($AI$96:$AM$96,AI124:AM124) -> 406.3130248 | AI124: =AI50*AI84/1000000 -> 86.50507395 | AJ124: 87.38261474 | AK124: 88.47375768 | AL124: 89.88415642 | AM124: 91.48576085
A125: =ROW() -> 125 | D125: Usage 1 (Q<=15GJ/year) | E125: =F125/$F$131 -> 0 | F125: 0 | AI125: 0 | AJ125: 0 | AK125: 0 | AL125: 0 | AM125: 0
A126: =ROW() -> 126 | D126: Usage 2 (15<Q<=45GJ/year) | E126: =F126/$F$131 -> 0 | F126: 0 | AI126: 0 | AJ126: 0 | AK126: 0 | AL126: 0 | AM126: 0
A127: =ROW() -> 127 | D127: Usage 3 (Q>45GJ/year) | E127: =F127/$F$131 -> 0 | F127: 0 | AI127: 0 | AJ127: 0 | AK127: 0 | AL127: 0 | AM127: 0
A128: =ROW() -> 128 | D128: Usage 1* (Q<=2GJ/year to 2016); (Q<=1.825GJ/year, 2017 onwards) | E128: =F128/$F$131 -> 0 | F128: 0 | AI128: 0 | AJ128: 0 | AK128: 0 | AL128: 0 | AM128: 0
A129: =ROW() -> 129 | D129: Usage 2* (2<Q<=10GJ/year to 2016); (1.825<Q<=9.855GJ/year, 2017 onwards) | E129: 0.1887597917 | F129: 110.9888981 | AI129: 23.22754156 | AJ129: 23.72709726 | AK129: 24.31939708 | AL129: 24.7365066 | AM129: 25.24821157
A130: =ROW() -> 130 | D130: Usage 3* (Q>10GJ/year to 2016); (Q>9.855GJ/year, 2017 onwards) | E130: 0.120220086 | F130: 70.68822628 | AI130: 15.80355833 | AJ130: 15.63034704 | AK130: 15.35121512 | AL130: 15.19568605 | AM130: 15.09948798
A131: =ROW() -> 131 | D131: Total | E131: =F131/$F$131 -> 1 | F131: 587.9901492 | AI131: =SUM(AI124:AI130) -> 125.5361738 | AJ131: =SUM(AJ124:AJ130) -> 126.740059 | AK131: 128.1443699 | AL131: 129.8163491 | AM131: 131.8334604
A132: =ROW() -> 132 | C132: Calculated Tariff Revenue | F132: PV | I132: Lower Bound Check per Rule 94 (3)(b) | N132: Upper Bound Check per Rule 94 (3)(a)
A133: =ROW() -> 133 | D133: A1 | E133: =F133/$F$141 -> 0.04177187126 | F133: 30.99960047 | I133: =IF(F168<F133,"Complies","Breach - Reset Tariffs") -> Complies | N133: =IF(F175>F133,"Complies","Breach - Reset Tariffs") -> Complies | AI133: =AI103 -> 6.816474902 | AJ133: =AJ103 -> 7.034853121 | AK133: 6.783431535 | AL133: =AL103 -> 6.543081032 | AM133: =AM103 -> 6.623036368
A134: =ROW() -> 134 | D134: A2 | E134: 0.02701138864 | F134: 20.0456008 | I134: =IF(F169<F134,"Complies","Breach - Reset Tariffs") -> Complies | N134: =IF(F176>F134,"Complies","Breach - Reset Tariffs") -> Complies | AI134: =AI111 -> 4.283734644 | AJ134: =AJ111 -> 4.329781327 | AK134: 4.376659258 | AL134: =AL111 -> 4.42438163 | AM134: =AM111 -> 4.472961842
A135: =ROW() -> 135 | D135: B1 | E135: 0.05876605232 | F135: 43.61126491 | I135: =IF(F170<F135,"Complies","Breach - Reset Tariffs") -> Complies | N135: =IF(F177>F135,"Complies","Breach - Reset Tariffs") -> Complies | AI135: =AI117 -> 8.908021958 | AJ135: =AJ117 -> 9.224745744 | AK135: 9.550424681 | AL135: =AL117 -> 9.860383517 | AM135: =AM117 -> 10.13556047
A136: =ROW() -> 136 | D136: B2 | E136: 0.05781266674 | F136: 42.90374161 | I136: =IF(F171<F136,"Complies","Breach - Reset Tariffs") -> Complies | N136: =IF(F178>F136,"Complies","Breach - Reset Tariffs") -> Complies | AI136: =AI122 -> 8.820454864 | AJ136: =AJ122 -> 9.090324592 | AK136: 9.384009815 | AL136: =AL122 -> 9.672959057 | AM136: =AM122 -> 9.930877588
A137: =ROW() -> 137 | D137: B3 | E137: 0.7923150118 | F137: 587.9901492 | I137: =IF(F172<F137,"Complies","Breach - Reset Tariffs") -> Complies | N137: =IF(F179>F137,"Complies","Breach - Reset Tariffs") -> Complies | AI137: =AI131 -> 125.5361738 | AJ137: =AJ131 -> 126.740059 | AK137: 128.1443699 | AL137: =AL131 -> 129.8163491 | AM137: =AM131 -> 131.8334604
A138: =ROW() -> 138 | D138: Total Tariff Revenue | E138: 0.9776769908 | F138: 725.550357 | AI138: =SUM(AI133:AI137) -> 154.3648602 | AJ138: =SUM(AJ133:AJ137) -> 156.4197638 | AK138: 158.2388952 | AL138: 160.3171543 | AM138: 162.9958967
A139: =ROW() -> 139 | D139: Revenue from Prudent Discounts | E139: 0.001449205054 | F139: 1.075479176 | AI139: =Load_Tariffs!AI169 -> 0.2317579593 | AJ139: =Load_Tariffs!AJ169 -> 0.2350375128 | AK139: =Load_Tariffs!AK169 -> 0.2353569192 | AL139: =Load_Tariffs!AL169 -> 0.2356767596 | AM139: =Load_Tariffs!AM169 -> 0.2359970346
A140: =ROW() -> 140 | D140: Revenue from Ancillary Services | E140: 0.02087380419 | F140: 15.49079729 | AI140: =Load_Tariffs!AI196 -> 3.290920104 | AJ140: =Load_Tariffs!AJ196 -> 3.326219394 | AK140: =Load_Tariffs!AK196 -> 3.373548039 | AL140: =Load_Tariffs!AL196 -> 3.433023307 | AM140: =Load_Tariffs!AM196 -> 3.494831203
A141: =ROW() -> 141 | D141: Total Smoothed Revenue | E141: 1 | F141: 742.1166334 | AI141: =SUM(AI138:AI140) -> 157.8875383 | AJ141: 159.9810207 | AK141: 161.8478001 | AL141: =SUM(AL138:AL140) -> 163.9858544 | AM141: =SUM(AM138:AM140) -> 166.7267249
A142: =ROW() -> 142
A143: =ROW() -> 143 | C143: Calculated Tariff Revenue | F143: PV | I143: Lower Bound Check per Rule 94 (3)(b) | N143: Upper Bound Check per Rule 94 (3)(a) | AI143: PV | AJ143: PV | AK143: PV | AL143: PV | AM143: PV
A144: =ROW() -> 144 | D144: A1 | E144: =F144/$F$141 -> 0.04177187126 | F144: =SUM(AI144:AM144) -> 30.99960047 | I144: =IF(F168<F144,"Complies","Breach - Reset Tariffs") -> Complies | N144: =IF(F175>F144,"Complies","Breach - Reset Tariffs") -> Complies | AI144: =AI$96*AI133 -> 6.619131332 | AJ144: 6.633417782 | AK144: 6.211162913 | AL144: 5.817641181 | AM144: 5.718247262
A145: =ROW() -> 145 | D145: A2 | E145: =F145/$F$141 -> 0.02701138864 | F145: =SUM(AI145:AM145) -> 20.0456008 | I145: =IF(F169<F145,"Complies","Breach - Reset Tariffs") -> Complies | N145: =IF(F176>F145,"Complies","Breach - Reset Tariffs") -> Complies | AI145: =AI$96*AI134 -> 4.159716365 | AJ145: 4.082707621 | AK145: 4.007432452 | AL145: 3.93384472 | AM145: 3.861899646
A146: =ROW() -> 146 | D146: B1 | E146: 0.05876605232 | F146: 43.61126491 | I146: Complies | N146: Complies | AI146: =AI$96*AI135 -> 8.650126069 | AJ146: 8.698346846 | AK146: 8.744725037 | AL146: 8.767150053 | AM146: 8.750916904
A147: =ROW() -> 147 | D147: B2 | E147: 0.05781266674 | F147: 42.90374161 | I147: Complies | N147: Complies | AI147: =AI$96*AI136 -> 8.565094128 | AJ147: 8.571596274 | AK147: 8.592349379 | AL147: 8.600505584 | AM147: 8.574196248
A148: =ROW() -> 148 | D148: B3 | E148: 0.7923150118 | F148: 587.9901492 | I148: Complies | N148: Complies | AI148: =AI$96*AI137 -> 121.9017797 | AJ148: 119.5077917 | AK148: 117.3337644 | AL148: 115.4234427 | AM148: 113.8233707
A149: =ROW() -> 149 | D149: Total Tariff Revenue | E149: =F149/$F$141 -> 0.9776769908 | F149: 725.550357 | AI149: =SUM(AI144:AI148) -> 149.8958476 | AJ149: 147.4938602 | AK149: 144.8894342 | AL149: 142.5425842 | AM149: 140.7286308
A150: =ROW() -> 150 | D150: Revenue from Prudent Discounts | E150: =F150/$F$141 -> 0.001449205054 | F150: 1.075479176 | AI150: =AI$96*AI139 -> 0.2250483412 | AJ150: 0.221625383 | AK150: 0.2155015732 | AL150: 0.2095469726 | AM150: 0.2037569057
A151: =ROW() -> 151 | D151: Revenue from Ancillary Services | E151: 0.02087380419 | F151: 15.49079729 | AI151: =AI$96*AI140 -> 3.19564477 | AJ151: 3.136412729 | AK151: 3.088946407 | AL151: 3.052399576 | AM151: 3.017393812
A152: =ROW() -> 152 | D152: Total Smoothed Revenue | E152: 1 | F152: 742.1166334 | AI152: =SUM(AI149:AI151) -> 153.3165407 | AJ152: 150.8518983 | AK152: 148.1938822 | AL152: =SUM(AL149:AL151) -> 145.8045308 | AM152: =SUM(AM149:AM151) -> 143.9497815
A153: =ROW() -> 153
A154: =ROW() -> 154
A155: =ROW() -> 155
A156: =ROW() -> 156
A157: =ROW() -> 157
A158: =ROW() -> 158
A159: =ROW() -> 159
A160: =ROW() -> 160 | C160: Avoidable OPEX plus UAFG Cost
A161: =ROW() -> 161 | D161: A1 | AI161: 1.374686538 | AJ161: 1.425754458 | AK161: 1.454568827 | AL161: 1.455834848 | AM161: 1.459690192
A162: =ROW() -> 162 | D162: A2 | AI162: 0.3275028399 | AJ162: 0.2921846892 | AK162: 0.2668675278 | AL162: 0.2326260211 | AM162: 0.1987416797
A163: =ROW() -> 163 | D163: B1 | AI163: 1.236320284 | AJ163: 1.273879812 | AK163: 1.250848747 | AL163: 1.216309882 | AM163: 1.188371962
A164: =ROW() -> 164 | D164: B2 | AI164: 1.058585486 | AJ164: 1.065503042 | AK164: 1.031763685 | AL164: 0.9828531289 | AM164: 0.9359147714
A165: =ROW() -> 165 | D165: B3 | AI165: 17.83385043 | AJ165: 17.53936649 | AK165: 17.16726512 | AL165: 16.57889153 | AM165: 15.87131
A166: =ROW() -> 166 | D166: Total | AI166: =SUM(AI161:AI165) -> 21.83094558 | AJ166: 21.59668849 | AK166: 21.1713139 | AL166: 20.46651541 | AM166: =SUM(AM161:AM165) -> 19.6540286
A167: =ROW() -> 167 | C167: Avoidable Return and Depreciation | F167: PV
A168: =ROW() -> 168 | D168: A1 | E168: =F168/$F$173 -> 0.05374107812 | F168: =SUMPRODUCT($AI$96:$AM$96,AI168:AM168) -> 7.842378555 | AI168: =AI161+Input!AE1641 -> 1.374686538 | AJ168: =AJ161+Input!AF1641 -> 1.571339979 | AK168: =AK161+Input!AG1641 -> 1.747562076 | AL168: =AL161+Input!AH1641 -> 1.887063882 | AM168: =AM161+Input!AI1641 -> 2.024399624
A169: =ROW() -> 169 | D169: A2 | E169: 0.02050625127 | F169: =SUMPRODUCT($AI$96:$AM$96,AI169:AM169) -> 2.992455508 | AI169: =AI162+Input!AE1642 -> 0.3275028399 | AJ169: =AJ162+Input!AF1642 -> 0.500727672 | AK169: =AK162+Input!AG1642 -> 0.6779525918 | AL169: =AL162+Input!AH1642 -> 0.830645448 | AM169: =AM162+Input!AI1642 -> 0.976352424
A170: =ROW() -> 170 | D170: B1 | E170: 0.05879722967 | F170: 8.580217391 | AI170: =AI163+Input!AE1643 -> 1.236320284 | AJ170: =AJ163+Input!AF1643 -> 1.635717518 | AK170: =AK163+Input!AG1643 -> 1.927152584 | AL170: =AL163+Input!AH1643 -> 2.194639553 | AM170: =AM163+Input!AI1643 -> 2.457091996
A171: =ROW() -> 171 | D171: B2 | E171: 0.05098061534 | F171: 7.439547149 | AI171: =AI164+Input!AE1644 -> 1.058585486 | AJ171: =AJ164+Input!AF1644 -> 1.367497456 | AK171: =AK164+Input!AG1644 -> 1.656551485 | AL171: =AL164+Input!AH1644 -> 1.927400124 | AM171: =AM164+Input!AI1644 -> 2.190949732
A172: =ROW() -> 172 | D172: B3 | E172: 0.8159748256 | F172: 119.0743412 | AI172: =AI165+Input!AE1645 -> 17.83385043 | AJ172: =AJ165+Input!AF1645 -> 22.24166306 | AK172: =AK165+Input!AG1645 -> 26.4553218 | AL172: =AL165+Input!AH1645 -> 30.40487918 | AM172: =AM165+Input!AI1645 -> 34.19900786
A173: =ROW() -> 173 | D173: Total | E173: 1 | F173: 145.9289398 | AI173: =SUM(AI168:AI172) -> 21.83094558 | AJ173: 27.31694568 | AK173: 32.46454053 | AL173: 37.24462819 | AM173: =SUM(AM168:AM172) -> 41.84780164
A174: =ROW() -> 174 | C174: Stand Alone Costs | F174: PV
A175: =ROW() -> 175 | D175: A1 | E175: =F175/$F$180 -> 0.08717326331 | F175: =SUMPRODUCT($AI$96:$AM$96,AI175:AM175) -> 190.1017904 | AI175: 38.71872389 | AJ175: 41.22848903 | AK175: 42.18178575 | AL175: 42.74488666 | AM175: 42.85358627
A176: =ROW() -> 176 | D176: A2 | E176: 0.1313582327 | F176: 286.4575017 | AI176: 59.9791605 | AJ176: 62.31618482 | AK176: 63.24568295 | AL176: 63.68467665 | AM176: 63.61063134
A177: =ROW() -> 177 | D177: B1 | E177: 0.2049015875 | F177: 446.8360728 | AI177: 95.30213025 | AJ177: 97.55730631 | AK177: 98.29003636 | AL177: 98.4856443 | AM177: 98.14627971
A178: =ROW() -> 178 | D178: B2 | E178: 0.2089211526 | F178: 455.6016793 | AI178: 97.26510753 | AJ178: 99.41684575 | AK178: 100.1922462 | AL178: 100.4049668 | AM178: 100.0663598
A179: =ROW() -> 179 | D179: B3 | E179: 0.3676457639 | F179: 801.7380019 | AI179: 164.4452463 | AJ179: 174.6948818 | AK179: 176.9491264 | AL179: 178.8374833 | AM179: 181.027293
A180: =ROW() -> 180 | D180: Total | E180: 1 | F180: 2180.735046 | AI180: =SUM(AI175:AI179) -> 455.7103685 | AJ180: =SUM(AJ175:AJ179) -> 475.2137077 | AK180: 480.8588777 | AL180: 484.1576577 | AM180: =SUM(AM175:AM179) -> 485.7041501
A181: =ROW() -> 181 | C181: PV of Volume [TJ] | F181: PV
A182: =ROW() -> 182 | D182: A1 | E182: =F182/$F$189 -> 0.3540726464 | F182: =SUMPRODUCT($AI$96:$AM$96,AI29:AM29)/1000 -> 43329.89312
A183: =ROW() -> 183 | D183: A2 | E183: 0.06683923996 | F183: =SUMPRODUCT($AI$96:$AM$96,AI37:AM37)/1000 -> 8179.499752
A184: =ROW() -> 184 | D184: B1 | E184: 0.081733006 | F184: =SUMPRODUCT($AI$96:$AM$96,AI43:AM43)/1000 -> 10002.13501
A185: =ROW() -> 185 | D185: B2 | E185: 0.0524505762 | F185: =SUMPRODUCT($AI$96:$AM$96,AI48:AM48)/1000 -> 6418.676743
A186: =ROW() -> 186 | D186: B3 | E186: 0.3700181239 | F186: =SUMPRODUCT($AI$96:$AM$96,AI57:AM57)/1000 -> 45281.23232
A187: =ROW() -> 187 | D187: Total | E187: 0.9251135925 | F187: =SUM(F182:F186) -> 113211.4369
A188: =ROW() -> 188 | D188: Prudent Discount Volume | E188: 0.07488640753 | F188: =SUMPRODUCT($AI$96:$AM$96,Load_Tariffs!AI76:AM76) -> 9164.277634
A189: =ROW() -> 189 | D189: Total Volume | E189: 1 | F189: =SUM(F187:F188) -> 122375.7146
A190: =ROW() -> 190
A191: Revenue [m$ nominal]
A192: =ROW() -> 192
A193: =ROW() -> 193 | C193: PV of Tariff Revenue
A194: =ROW() -> 194 | D194: Discounting Factor Nominal Post-tax (1 Half a Year & 5 Years) | AH194: 1 | AI194: =AI$20 -> 0.9601038448 | AJ194: =AJ$20 -> 0.9217993929 | AK194: =AK$20 -> 0.8850231412 | AL194: =AL$20 -> 0.8497141207 | AM194: =AM$20 -> 0.8158137943
A195: =ROW() -> 195 | C195: A1 | F195: PV
A196: =ROW() -> 196 | D196: Fixed [$/year] | E196: =F196/$F$201 -> 0.3627119985 | F196: =SUMPRODUCT($AI$194:$AM$194,AI196:AM196) -> 11.24392704 | AI196: =AI98*AI$13 -> 2.431406571 | AJ196: 2.493667233 | AK196: 2.540004919 | AL196: 2.587080605 | AM196: 2.653327588
A197: =ROW() -> 197 | D197: Demand 1 (<=10km) [$/GJ*km*year], | E197: 0.3221622055 | F197: =SUMPRODUCT($AI$194:$AM$194,AI197:AM197) -> 9.986899657 | AI197: 2.395263031 | AJ197: 2.458784751 | AK197: 2.239265502 | AL197: 2.037665248 | AM197: 2.092949897
A198: =ROW() -> 198 | D198: Demand 2 (>10km) [$/GJ*km*year], | E198: 0.07108065068 | F198: 2.203471772 | AI198: 0.4845394339 | AJ198: 0.4973410444 | AK198: 0.5100763817 | AL198: 0.4910043218 | AM198: 0.5040025332
A199: =ROW() -> 199 | D199: Usage 1 (<=10km) [$/GJ*km] | E199: 0.1896806613 | F199: 5.880024717 | AI199: 1.224815679 | AJ199: 1.364716518 | AK199: 1.342328444 | AL199: 1.343714627 | AM199: 1.368344831
A200: =ROW() -> 200 | D200: Usage 2 (>10km) [$/GJ*km] | E200: 0.05436448403 | F200: 1.685277285 | AI200: 0.3581580007 | AJ200: 0.3816524748 | AK200: 0.3864044209 | AL200: 0.3871216437 | AM200: 0.3906305733
... 88 more rows

Sheet Working_Capital
A1: =Main!A1 -> ERA, GDS Tariff Model, Final Decision, November 2019
A2: Working Capital [m$ nominal]
A3: Ref | C3: =COLUMN() -> 3 | D3: =COLUMN() -> 4 | E3: =COLUMN() -> 5 | F3: =COLUMN() -> 6 | G3: =COLUMN() -> 7 | H3: =COLUMN() -> 8 | I3: =COLUMN() -> 9 | J3: =COLUMN() -> 10 | K3: =COLUMN() -> 11 | L3: =COLUMN() -> 12 | M3: =COLUMN() -> 13 | N3: =COLUMN() -> 14 | O3: =COLUMN() -> 15 | P3: =COLUMN() -> 16 | Q3: =COLUMN() -> 17 | R3: =COLUMN() -> 18 | S3: =COLUMN() -> 19 | T3: =COLUMN() -> 20 | U3: =COLUMN() -> 21 | V3: =COLUMN() -> 22 | W3: =COLUMN() -> 23 | X3: =COLUMN() -> 24 | Y3: =COLUMN() -> 25 | Z3: =COLUMN() -> 26 | AA3: =COLUMN() -> 27 | AB3: =COLUMN() -> 28 | AC3: =COLUMN() -> 29 | AD3: =COLUMN() -> 30 | AE3: =COLUMN() -> 31 | AF3: =COLUMN() -> 32 | AG3: =COLUMN() -> 33 | AH3: =COLUMN() -> 34 | AI3: =COLUMN() -> 35
A4: Regulatory Period | J4: 1 | K4: 1 | L4: 1 | M4: 1 | N4: 1 | O4: 2 | P4: 2 | Q4: 2 | R4: 2 | S4: 2 | T4: 3 | U4: 3 | V4: 3 | W4: 3 | X4: 3 | Y4: 3 | Z4: 3 | AA4: 3 | AB4: 3 | AC4: 3 | AD4: 3 | AE4: 3 | AF4: 3 | AG4: 3 | AH4: 3 | AI4: 3
A5: Year ending | I5: 1999 | J5: 2000 | K5: 2001 | L5: 2002 | M5: 2003 | N5: 2004 | O5: 2005 | P5: 2006 | Q5: 2007 | R5: 2008 | S5: =1+R5 -> 2009 | T5: =1+S5 -> 2010 | U5: =T5+1 -> 2011 | V5: =U5+1 -> 2012 | W5: =V5+1 -> 2013 | X5: =W5+1 -> 2014 | Y5: 2014 | Z5: =Y5+1 -> 2015 | AA5: 2016 | AB5: 2017 | AC5: 2018 | AD5: 2019 | AE5: 2020 | AF5: 2021 | AG5: 2022 | AH5: 2023 | AI5: 2024
A6: Months | I6: 1 to 12 | J6: 1 to 12 | K6: 1 to 12 | L6: 1 to 12 | M6: 1 to 12 | N6: 1 to 12 | O6: 1 to 12 | P6: 1 to 12 | Q6: 1 to 12 | R6: 1 to 12 | S6: 1 to 12 | T6: 1 to 6 | U6: 7 to 6 | V6: 7 to 6 | W6: 7 to 6 | X6: 7 to 6 | Y6: 7 to 12 | Z6: 1 to 12 | AA6: 1 to 12 | AB6: 1 to 12 | AC6: 1 to 12 | AD6: 1 to 12 | AE6: 1 to 12 | AF6: 1 to 12 | AG6: 1 to 12 | AH6: 1 to 12 | AI6: 1 to 12
A7: Days | I7: =Input!I$8 -> 365 | J7: =Input!J$8 -> 366 | K7: =Input!K$8 -> 365 | L7: =Input!L$8 -> 365 | M7: =Input!M$8 -> 365 | N7: =Input!N$8 -> 366 | O7: =Input!O$8 -> 365 | P7: =Input!P$8 -> 365 | Q7: =Input!Q$8 -> 365 | R7: =Input!R$8 -> 366 | S7: =Input!S$8 -> 365 | T7: =Input!T$8 -> 181 | U7: =Input!U$8 -> 365 | V7: =Input!V$8 -> 366 | W7: =Input!W$8 -> 365 | X7: =Input!X$8 -> 365 | Y7: =Input!Y$8 -> 184 | Z7: =Input!Z$8 -> 365 | AA7: =Input!AA$8 -> 366 | AB7: =Input!AB$8 -> 365 | AC7: =Input!AC$8 -> 365 | AD7: =Input!AD$8 -> 365 | AE7: =Input!AE$8 -> 366 | AF7: =Input!AF$8 -> 365 | AG7: =Input!AG$8 -> 365 | AH7: =Input!AH$8 -> 365 | AI7: =Input!AI$8 -> 366
A8: Year portion | I8: =Input!I$9 -> 1 | J8: =Input!J$9 -> 1 | K8: =Input!K$9 -> 1 | L8: =Input!L$9 -> 1 | M8: =Input!M$9 -> 1 | N8: =Input!N$9 -> 1 | O8: =Input!O$9 -> 1 | P8: =Input!P$9 -> 1 | Q8: =Input!Q$9 -> 1 | R8: =Input!R$9 -> 1 | S8: =Input!S$9 -> 1 | T8: =Input!T$9 -> 0.495890411 | U8: =Input!U$9 -> 1 | V8: =Input!V$9 -> 1 | W8: =Input!W$9 -> 1 | X8: =Input!X$9 -> 1 | Y8: =Input!Y$9 -> 0.504109589 | Z8: =Input!Z$9 -> 1 | AA8: =Input!AA$9 -> 1 | AB8: =Input!AB$9 -> 1 | AC8: =Input!AC$9 -> 1 | AD8: =Input!AD$9 -> 1 | AE8: =Input!AE$9 -> 1 | AF8: =Input!AF$9 -> 1 | AG8: =Input!AG$9 -> 1 | AH8: =Input!AH$9 -> 1 | AI8: =Input!AI$9 -> 1
A9: Financial Parameters
A10: =ROW() -> 10 | C10: Modelled Inflation
A11: =ROW() -> 11 | D11: Inflation | J11: =Input!J$40 -> 0.05801772764 | K11: =Input!K$40 -> 0.03122619954 | L11: =Input!L$40 -> 0.03028064993 | M11: =Input!M$40 -> 0.02365591398 | N11: =Input!N$40 -> 0.02591036415 | O11: =Input!O$40 -> 0.02798634812 | P11: =Input!P$40 -> 0.03253652058 | Q11: =Input!Q$40 -> 0.02958199357 | R11: =Input!R$40 -> 0.03685196752 | S11: =Input!S$40 -> 0.02108433735 | T11: =Input!T$40 -> 0.01533923304 | U11: =Input!U$40 -> 0.03602556653 | V11: =Input!V$40 -> 0.01177790241 | W11: =Input!W$40 -> 0.02390438247 | X11: =Input!X$40 -> 0.03015564202 | Y11: =Input!Y$40 -> 0.006610009443 | Z11: =Input!Z$40 -> 0.01688555347 | AA11: =Input!AA$40 -> 0.0147601476 | AB11: =Input!AB$40 -> 0.01909090909 | AC11: =Input!AC$40 -> 0.0178412132 | AD11: =Input!AD$40 -> 0.01187811098 | AE11: =Input!AE$40 -> 0.0114 | AF11: =Input!AF$40 -> 0.0114 | AG11: =Input!AG$40 -> 0.0114 | AH11: =Input!AH$40 -> 0.0114 | AI11: =Input!AI$40 -> 0.0114
A12: =ROW() -> 12 | D12: Inflation Factor (convert to nominal $) | J12: =Input!J$44 -> 0.6329188932 | K12: =Input!K$44 -> 0.6526825449 | L12: =Input!L$44 -> 0.6724461965 | M12: =Input!M$44 -> 0.6883535259 | N12: =Input!N$44 -> 0.7061890164 | O12: =Input!O$44 -> 0.7259526681 | P12: =Input!P$44 -> 0.749572642 | Q12: =Input!Q$44 -> 0.7717464951 | R12: =Input!R$44 -> 0.8001868718 | S12: =Input!S$44 -> 0.8170582818 | T12: =Input!T$44 -> 0.8295913292 | U12: =Input!U$44 -> 0.8594778268 | V12: =Input!V$44 -> 0.8696006728 | W12: =Input!W$44 -> 0.8903879398 | X12: =Input!X$44 -> 0.9172381598 | Y12: =Input!Y$44 -> 0.9233011127 | Z12: =Input!Z$44 -> 0.938891563 | AA12: =Input!AA$44 -> 0.9527497411 | AB12: =Input!AB$44 -> 0.9709385998 | AC12: =Input!AC$44 -> 0.9882613223 | AD12: =Input!AD$44 -> 1 | AE12: =Input!AE$44 -> 1.0114 | AF12: =Input!AF$44 -> 1.02292996 | AG12: =Input!AG$44 -> 1.034591362 | AH12: =Input!AH$44 -> 1.046385703 | AI12: =Input!AI$44 -> 1.0583145
A13: =ROW() -> 13 | C13: Nominal Post Tax WACC
A14: =ROW() -> 14 | D14: WACC | T14: =Input!T$52 -> 0.04527784254 | U14: =Input!U$52 -> 0.093408 | V14: =Input!V$52 -> 0.093408 | W14: =Input!W$52 -> 0.093408 | X14: =Input!X$52 -> 0.093408 | Y14: =Input!Y$52 -> 0.02953234787 | Z14: =Input!Z$52 -> 0.059872 | AA14: =Input!AA$52 -> 0.059662 | AB14: =Input!AB$52 -> 0.058816 | AC14: =Input!AC$52 -> 0.054994 | AD14: =Input!AD$52 -> 0.054838 | AE14: =Input!AE$52 -> 0.041554 | AF14: =Input!AF$52 -> 0.041554 | AG14: =Input!AG$52 -> 0.041554 | AH14: =Input!AH$52 -> 0.041554 | AI14: =Input!AI$52 -> 0.041554
A15: =ROW() -> 15 | D15: Discounting Factor | T15: =Input!T$53 -> 0.9566834379 | U15: =Input!U$53 -> 0.8749555865 | V15: =Input!V$53 -> 0.8002096075 | W15: =Input!W$53 -> 0.7318490513 | X15: =Input!X$53 -> 0.6693284221 | Y15: =Input!Y$53 -> 0.9713147936 | Z15: =Input!Z$53 -> 0.9164453761 | AA15: =Input!AA$53 -> 0.8648468814 | AB15: =Input!AB$53 -> 0.8168056409 | AC15: =Input!AC$53 -> 0.7742277595 | AD15: =Input!AD$53 -> 0.7339778804 | AE15: =Input!AE$53 -> 0.9601038448 | AF15: =Input!AF$53 -> 0.9217993929 | AG15: =Input!AG$53 -> 0.8850231412 | AH15: =Input!AH$53 -> 0.8497141207 | AI15: =Input!AI$53 -> 0.8158137943
A16: Working Capital [m$ nominal]
A17: =ROW() -> 17 | C17: Revenue
A18: =ROW() -> 18 | D18: Total Unsmooth Revenue | AE18: =Tax_CoRE!AE41 -> 149.0863052 | AF18: =Tax_CoRE!AF41 -> 164.103231 | AG18: =Tax_CoRE!AG41 -> 169.9325052 | AH18: =Tax_CoRE!AH41 -> 175.5719937 | AI18: =Tax_CoRE!AI41 -> 181.5706465
A19: =ROW() -> 19 | C19: Expenses
A20: =ROW() -> 20 | D20: Opex | AE20: =Input!AE$1603 -> 62.20780145 | AF20: =Input!AF$1603 -> 64.40740973 | AG20: =Input!AG$1603 -> 66.52150407 | AH20: =Input!AH$1603 -> 68.9614954 | AI20: =Input!AI$1603 -> 70.46193863
A21: =ROW() -> 21 | D21: Capex | AE21: =CoS!AG31 -> 88.12665228 | AF21: =CoS!AH31 -> 83.7657807 | AG21: =CoS!AI31 -> 83.27367896 | AH21: =CoS!AJ31 -> 83.33397787 | AI21: =CoS!AK31 -> 85.7645205
A22: =ROW() -> 22 | D22: Total Expenses | AE22: =SUM(AE20:AE21) -> 150.3344537 | AF22: 148.1731904 | AG22: 149.795183 | AH22: 152.2954733 | AI22: 156.2264591
A23: =ROW() -> 23 | C23: Working Capital | E23: Base for Calculation
A24: =ROW() -> 24 | D24: Receivables | E24: =Input!$AE1698 -> 62 | F24: Days outstanding on receipts (billing plus credit) | AE24: =AE18/AE$7*$E24 -> 25.25505717 | AF24: 27.87506937 | AG24: 28.86524747 | AH24: 29.82318798 | AI24: 30.75786908
A25: =ROW() -> 25 | D25: Inventory | E25: =Input!$AE1699 -> 0.0089 | F25: (materials consumed / asset turnover) + insurance spares (ratio) | AE25: =AE21*$E25 -> 0.7843272053 | AF25: 0.7455154482 | AG25: 0.7411357427 | AH25: 0.741672403 | AI25: 0.7633042324
A26: =ROW() -> 26 | D26: Creditors | E26: =-Input!$AE1700 -> -19 | F26: Days outstanding on expenditure | AE26: =AE22/AE$7*$E26 -> -7.804247598 | AF26: -7.713124981 | AG26: -7.797557473 | AH26: -7.927709568 | AI26: -8.110116731
A27: =ROW() -> 27 | D27: End of the Year Working Capital | AE27: =SUM(AE24:AE26) -> 18.23513678 | AF27: 20.90745984 | AG27: 21.80882574 | AH27: 22.63715081 | AI27: 23.41105658
A28: =ROW() -> 28 | C28: Working Capital
A29: =ROW() -> 29 | D29: Opening Value | F29: =SUMPRODUCT(AE29,AE$15) -> 17.50762493 | AE29: =SolverSheet!I40 -> 18.23513678 | AF29: =AE31 -> 18.23513678 | AG29: =AF31 -> 20.90745984 | AH29: =AG31 -> 21.80882574 | AI29: =AH31 -> 22.63715081
A30: =ROW() -> 30 | D30: Variation | F30: =SUMPRODUCT(AE30:AI30,AE$15:AI$15) -> 4.596277964 | AE30: =AE27-AE29 -> 0 | AF30: =AF27-AF29 -> 2.67232306 | AG30: =AG27-AG29 -> 0.9013658965 | AH30: 0.8283250777 | AI30: 0.7739057641
A31: =ROW() -> 31 | D31: Closing Value | F31: =SUMPRODUCT(AE31:AI31,AE$15:AI$15) -> 94.41559377 | AE31: =SUM(AE29:AE30) -> 18.23513678 | AF31: =SUM(AF29:AF30) -> 20.90745984 | AG31: 21.80882574 | AH31: 22.63715081 | AI31: 23.41105658
A32: =ROW() -> 32
A33: =ROW() -> 33 | D33: WACC applied (Nominal after tax) | AE33: =AE$14 -> 0.041554 | AF33: 0.041554 | AG33: 0.041554 | AH33: 0.041554 | AI33: =AI$14 -> 0.041554
A34: =ROW() -> 34 | F34: PV
A35: =ROW() -> 35 | D35: Return on Working Capital (at Nominal after tax WACC) | F35: =SUMPRODUCT(AE35:AI35,AE$15:AI$15) -> 3.732351849 | AE35: =AE29*AE33 -> 0.7577428737 | AF35: =AF29*AF33 -> 0.7577428737 | AG35: 0.8687885861 | AH35: 0.9062439446 | AI35: 0.9406641649
A36: =ROW() -> 36 | D36: Inflationary gain: Double counted inflation

Sheet Tax_CoRE
A1: =Main!A1 -> ERA, GDS Tariff Model, Final Decision, November 2019
A2: Taxation Account and Equity Raising Cost
A3: Ref | C3: =COLUMN() -> 3 | D3: =COLUMN() -> 4 | E3: =COLUMN() -> 5 | F3: =COLUMN() -> 6 | G3: =COLUMN() -> 7 | H3: =COLUMN() -> 8 | I3: =COLUMN() -> 9 | J3: =COLUMN() -> 10 | K3: =COLUMN() -> 11 | L3: =COLUMN() -> 12 | M3: =COLUMN() -> 13 | N3: =COLUMN() -> 14 | O3: =COLUMN() -> 15 | P3: =COLUMN() -> 16 | Q3: =COLUMN() -> 17 | R3: =COLUMN() -> 18 | S3: =COLUMN() -> 19 | T3: =COLUMN() -> 20 | U3: =COLUMN() -> 21 | V3: =COLUMN() -> 22 | W3: =COLUMN() -> 23 | X3: =COLUMN() -> 24 | Y3: =COLUMN() -> 25 | Z3: =COLUMN() -> 26 | AA3: =COLUMN() -> 27 | AB3: =COLUMN() -> 28 | AC3: =COLUMN() -> 29 | AD3: =COLUMN() -> 30 | AE3: =COLUMN() -> 31 | AF3: =COLUMN() -> 32 | AG3: =COLUMN() -> 33 | AH3: =COLUMN() -> 34 | AI3: =COLUMN() -> 35 | AJ3: =COLUMN() -> 36
A4: Regulatory Period | J4: 1 | K4: 1 | L4: 1 | M4: 1 | N4: 1 | O4: 2 | P4: 2 | Q4: 2 | R4: 2 | S4: 2 | T4: 3 | U4: 3 | V4: 3 | W4: 3 | X4: 3 | Y4: 4 | Z4: 4 | AA4: 4 | AB4: 4 | AC4: 4 | AD4: 4 | AE4: 4 | AF4: 4 | AG4: 4 | AH4: 4 | AI4: 4 | AJ4: 5
A5: Year ending | I5: 1999 | J5: 2000 | K5: 2001 | L5: 2002 | M5: 2003 | N5: 2004 | O5: 2005 | P5: 2006 | Q5: 2007 | R5: 2008 | S5: =1+R5 -> 2009 | T5: =1+S5 -> 2010 | U5: =T5+1 -> 2011 | V5: 2012 | W5: 2013 | X5: 2014 | Y5: 2014 | Z5: 2015 | AA5: 2016 | AB5: 2017 | AC5: 2018 | AD5: =AC5+1 -> 2019 | AE5: =AD5+1 -> 2020 | AF5: =AE5+1 -> 2021 | AG5: =AF5+1 -> 2022 | AH5: =AG5+1 -> 2023 | AI5: =AH5+1 -> 2024 | AJ5: =AI5+1 -> 2025
A6: Months | I6: 1 to 12 | J6: 1 to 12 | K6: 1 to 12 | L6: 1 to 12 | M6: 1 to 12 | N6: 1 to 12 | O6: 1 to 12 | P6: 1 to 12 | Q6: 1 to 12 | R6: 1 to 12 | S6: 1 to 12 | T6: 1 to 6 | U6: 7 to 6 | V6: 7 to 6 | W6: 7 to 6 | X6: 7 to 6 | Y6: 7 to 12 | Z6: 1 to 12 | AA6: 1 to 12 | AB6: 1 to 12 | AC6: 1 to 12 | AD6: 1 to 12 | AE6: 1 to 12 | AF6: 1 to 12 | AG6: 1 to 12 | AH6: 1 to 12 | AI6: 1 to 12 | AJ6: =AI6 -> 1 to 12
A7: Days | I7: =Input!I8 -> 365 | J7: =Input!J8 -> 366 | K7: =Input!K8 -> 365 | L7: =Input!L8 -> 365 | M7: =Input!M8 -> 365 | N7: =Input!N8 -> 366 | O7: =Input!O8 -> 365 | P7: =Input!P8 -> 365 | Q7: =Input!Q8 -> 365 | R7: =Input!R8 -> 366 | S7: =Input!S8 -> 365 | T7: =Input!T8 -> 181 | U7: =Input!U8 -> 365 | V7: =Input!V8 -> 366 | W7: =Input!W8 -> 365 | X7: =Input!X8 -> 365 | Y7: =Input!Y8 -> 184 | Z7: =Input!Z8 -> 365 | AA7: =Input!AA8 -> 366 | AB7: =Input!AB8 -> 365 | AC7: =Input!AC8 -> 365 | AD7: =Input!AD8 -> 365 | AE7: =Input!AE8 -> 366 | AF7: =Input!AF8 -> 365 | AG7: =Input!AG8 -> 365 | AH7: =Input!AH8 -> 365 | AI7: =Input!AI8 -> 366 | AJ7: =AI7 -> 366
A8: Year portion | I8: =Input!I9 -> 1 | J8: =Input!J9 -> 1 | K8: =Input!K9 -> 1 | L8: =Input!L9 -> 1 | M8: =Input!M9 -> 1 | N8: =Input!N9 -> 1 | O8: =Input!O9 -> 1 | P8: =Input!P9 -> 1 | Q8: =Input!Q9 -> 1 | R8: =Input!R9 -> 1 | S8: =Input!S9 -> 1 | T8: =Input!T9 -> 0.495890411 | U8: =Input!U9 -> 1 | V8: =Input!V9 -> 1 | W8: =Input!W9 -> 1 | X8: =Input!X9 -> 1 | Y8: =Input!Y9 -> 0.504109589 | Z8: =Input!Z9 -> 1 | AA8: =Input!AA9 -> 1 | AB8: =Input!AB9 -> 1 | AC8: =Input!AC9 -> 1 | AD8: =Input!AD9 -> 1 | AE8: =Input!AE9 -> 1 | AF8: =Input!AF9 -> 1 | AG8: =Input!AG9 -> 1 | AH8: =Input!AH9 -> 1 | AI8: =Input!AI9 -> 1 | AJ8: =AI8 -> 1
A9: Financial Parameters
A10: =ROW() -> 10 | C10: Modelled Inflation
A11: =ROW() -> 11 | D11: Inflation | AE11: =Input!AE40 -> 0.0114 | AF11: =Input!AF40 -> 0.0114 | AG11: =Input!AG40 -> 0.0114 | AH11: =Input!AH40 -> 0.0114 | AI11: =Input!AI40 -> 0.0114 | AJ11: =AI11 -> 0.0114
A12: =ROW() -> 12 | D12: =Input!D44 -> Inflation Factor (convert 31/12/2019 $ to nominal $) | AD12: =Input!AD44 -> 1 | AE12: =Input!AE44 -> 1.0114 | AF12: =Input!AF44 -> 1.02292996 | AG12: =Input!AG44 -> 1.034591362 | AH12: =Input!AH44 -> 1.046385703 | AI12: =Input!AI44 -> 1.0583145
A13: =ROW() -> 13 | C13: Nominal Post Tax WACC
A14: =ROW() -> 14 | D14: WACC | AE14: =Input!AE52 -> 0.041554 | AF14: =Input!AF52 -> 0.041554 | AG14: =Input!AG52 -> 0.041554 | AH14: =Input!AH52 -> 0.041554 | AI14: =Input!AI52 -> 0.041554
A15: =ROW() -> 15 | D15: Discounting Factor | AD15: =Input!AD53 -> 0.7339778804 | AE15: =Input!AE53 -> 0.9601038448 | AF15: =Input!AF53 -> 0.9217993929 | AG15: =Input!AG53 -> 0.8850231412 | AH15: =Input!AH53 -> 0.8497141207 | AI15: =Input!AI53 -> 0.8158137943
A16: =ROW() -> 16
A17: Asset Value [m$ nominal]
A18: =ROW() -> 18 | C18: Asset Value
A19: =ROW() -> 19 | D19: Opening Asset Value | AE19: =Asset!AD$24*Input!AD$44 -> 1292.379265 | AF19: =Asset!AE$24*Input!AE$44 -> 1348.589416 | AG19: =Asset!AF$24*Input!AF$44 -> 1391.13417 | AH19: =Asset!AG$24*Input!AG$44 -> 1431.504863 | AI19: =Asset!AH$24*Input!AH$44 -> 1470.443243 | AJ19: =Asset!AI$24*Input!AI$44 -> 1509.105219
A20: =ROW() -> 20 | D20: Opening Working Capital | AE20: =Working_Capital!AD$31 -> 0 | AF20: =Working_Capital!AE$31 -> 18.23513678 | AG20: =Working_Capital!AF$31 -> 20.90745984 | AH20: =Working_Capital!AG$31 -> 21.80882574 | AI20: =Working_Capital!AH$31 -> 22.63715081 | AJ20: =Working_Capital!AI$31 -> 23.41105658
A21: =ROW() -> 21 | D21: Total Opening Value | AE21: =SUM(AE19:AE20) -> 1292.379265 | AF21: =SUM(AF19:AF20) -> 1366.824552 | AG21: 1412.04163 | AH21: 1453.313689 | AI21: 1493.080394 | AJ21: 1532.516275
A22: =ROW() -> 22 | C22: Equity
A23: =ROW() -> 23 | D23: Equity | AE23: =AE$21*WACC!AA$26 -> 581.5706691 | AF23: =AF$21*WACC!AB$26 -> 615.0710486 | AG23: =AG$21*WACC!AC$26 -> 635.4187334 | AH23: =AH$21*WACC!AD$26 -> 653.99116 | AI23: =AI$21*WACC!AE$26 -> 671.8861771
A24: =ROW() -> 24 | D24: Total Equity | AE24: =SUM(AE23:AE23) -> 581.5706691 | AF24: =SUM(AF23:AF23) -> 615.0710486 | AG24: 635.4187334 | AH24: 653.99116 | AI24: 671.8861771
A25: =ROW() -> 25 | C25: Debt
A26: =ROW() -> 26 | D26: Debt | AE26: =AE$21*WACC!AA$25 -> 710.8085955 | AF26: =AF$21*WACC!AB$25 -> 751.7535038 | AG26: =AG$21*WACC!AC$25 -> 776.6228964 | AH26: =AH$21*WACC!AD$25 -> 799.3225288 | AI26: =AI$21*WACC!AE$25 -> 821.1942165
A27: =ROW() -> 27 | D27: Total Debt | AE27: =SUM(AE26:AE26) -> 710.8085955 | AF27: =SUM(AF26:AF26) -> 751.7535038 | AG27: 776.6228964 | AH27: 799.3225288 | AI27: 821.1942165
A28: =ROW() -> 28 | C28: Check that A=D+E | AE28: =IF(ROUND(AE21-AE24-AE27,8)=0,"OK","CHECK") -> OK | AF28: =IF(ROUND(AF21-AF24-AF27,8)=0,"OK","CHECK") -> OK | AG28: OK | AH28: OK | AI28: OK
A29: =ROW() -> 29
A30: Calculation of Tax Expense - [m$ nominal]
A31: =ROW() -> 31 | C31: Revenue
A32: =ROW() -> 32 | D32: Revenue requirement
A33: =ROW() -> 33 | D33: Opex | AE33: =CoS!AG38 -> 62.20780145 | AF33: =CoS!AH38 -> 64.40740973 | AG33: =CoS!AI38 -> 66.52150407 | AH33: =CoS!AJ38 -> 68.9614954 | AI33: =CoS!AK38 -> 70.46193863
A34: =ROW() -> 34 | D34: Return of Asset (regulatory depreciation) | AE34: =CoS!AG39 -> 46.64962486 | AF34: =CoS!AH39 -> 56.59494569 | AG34: =CoS!AI39 -> 58.76191538 | AH34: =CoS!AJ39 -> 60.71475358 | AI34: =CoS!AK39 -> 63.86559771
A35: =ROW() -> 35 | D35: Inflationary Gain in Return on Asset | AE35: =CoS!AG40 -> -14.73312362 | AF35: =CoS!AH40 -> -15.37391934 | AG35: =CoS!AI40 -> -15.85892954 | AH35: =CoS!AJ40 -> -16.31915544 | AI35: =CoS!AK40 -> -16.76305297
A36: =ROW() -> 36 | D36: Asset Disposal | AE36: =CoS!AG41 -> 0 | AF36: =CoS!AH41 -> 0 | AG36: =CoS!AI41 -> 0 | AH36: =CoS!AJ41 -> 0 | AI36: =CoS!AK41 -> 0
A37: =ROW() -> 37 | D37: Return on Asset | AE37: =CoS!AG42 -> 53.70352796 | AF37: =CoS!AH42 -> 56.03928458 | AG37: =CoS!AI42 -> 57.8071893 | AH37: =CoS!AJ42 -> 59.48475308 | AI37: =CoS!AK42 -> 61.10279851
A38: =ROW() -> 38 | D38: Return on working capital | AE38: =CoS!AG43 -> 0.7577428737 | AF38: =CoS!AH43 -> 0.7577428737 | AG38: =CoS!AI43 -> 0.8687885861 | AH38: =CoS!AJ43 -> 0.9062439446 | AI38: =CoS!AK43 -> 0.9406641649
A39: =ROW() -> 39 | D39: Income tax expense | AE39: =-AE51 -> 1.001463431 | AF39: =-AF51 -> 3.355534884 | AG39: 3.664074885 | AH39: 3.64780634 | AI39: 3.925400846
A40: =ROW() -> 40 | D40: Imputation Credits | AE40: =-AE52 -> -0.5007317156 | AF40: =-AF52 -> -1.677767442 | AG40: -1.832037442 | AH40: -1.82390317 | AI40: -1.962700423
A41: =ROW() -> 41 | D41: Total Unsmooth Revenue | AE41: =SUM(AE33:AE40) -> 149.0863052 | AF41: =SUM(AF33:AF40) -> 164.103231 | AG41: 169.9325052 | AH41: 175.5719937 | AI41: 181.5706465
A42: =ROW() -> 42 | C42: Expenses
A43: =ROW() -> 43 | D43: Operating Expenditure | AE43: =-CoS!AG38 -> -62.20780145 | AF43: =-CoS!AH38 -> -64.40740973 | AG43: =-CoS!AI38 -> -66.52150407 | AH43: =-CoS!AJ38 -> -68.9614954 | AI43: =-CoS!AK38 -> -70.46193863
A44: =ROW() -> 44 | D44: Interest on Debt | AE44: =-Tax_CoRE!AE26*WACC!AA$15*AE$8 -> -24.50868037 | AF44: =-Tax_CoRE!AF26*WACC!AB$15*AF$8 -> -25.92046081 | AG44: =-Tax_CoRE!AG26*WACC!AC$15*AG$8 -> -26.77795747 | AH44: =-Tax_CoRE!AH26*WACC!AD$15*AH$8 -> -27.56064079 | AI44: =-Tax_CoRE!AI26*WACC!AE$15*AI$8 -> -28.31477658
A45: =ROW() -> 45 | D45: Tax Depreciation | AE45: =Tax_Asset!AE21 -> -59.03161198 | AF45: =Tax_Asset!AF21 -> -62.59024416 | AG45: =Tax_Asset!AG21 -> -64.41946075 | AH45: =Tax_Asset!AH21 -> -66.89050307 | AI45: =Tax_Asset!AI21 -> -69.70926177
A46: =ROW() -> 46 | D46: Total Expenses | AE46: =SUM(AE43:AE45) -> -145.7480938 | AF46: -152.9181147 | AG46: -157.7189223 | AH46: -163.4126393 | AI46: -168.485977
A47: =ROW() -> 47 | C47: Tax | AF47: =AF45-AE45 -> -3.558632178 | AG47: =AG45-AF45 -> -1.829216597 | AH47: -2.471042321 | AI47: -2.8187587
A48: =ROW() -> 48 | D48: Net Income | AE48: =AE41+AE46 -> 3.338211437 | AF48: 11.18511628 | AG48: 12.21358295 | AH48: 12.15935447 | AI48: 13.08466949
A49: =ROW() -> 49 | D49: Tax Loss Carried Forward | AE49: =IF(AE50<0,AE50,0) -> 0 | AF49: 0 | AG49: 0 | AH49: 0 | AI49: 0
A50: =ROW() -> 50 | D50: Taxable Income | AE50: =AE48+AD49 -> 3.338211437 | AF50: =AF48+AE49 -> 11.18511628 | AG50: =AG48+AF49 -> 12.21358295 | AH50: =AH48+AG49 -> 12.15935447 | AI50: =AI48+AH49 -> 13.08466949
A51: =ROW() -> 51 | D51: Income tax expense | AE51: =-IF((SUM(AE33:AE38)+AE46+AD49)>0,(SUM(AE33:AE38)+AE46+AD49)*WACC!AA$29/(1-(1-WACC!AA$30)*WACC!AA$29),0) -> -1.001463431 | AF51: =-IF((SUM(AF33:AF38)+AF46+AE49)>0,(SUM(AF33:AF38)+AF46+AE49)*WACC!AB$29/(1-(1-WACC!AB$30)*WACC!AB$29),0) -> -3.355534884 | AG51: =-IF((SUM(AG33:AG38)+AG46+AF49)>0,(SUM(AG33:AG38)+AG46+AF49)*WACC!AC$29/(1-(1-WACC!AC$30)*WACC!AC$29),0) -> -3.664074885 | AH51: =-IF((SUM(AH33:AH38)+AH46+AG49)>0,(SUM(AH33:AH38)+AH46+AG49)*WACC!AD$29/(1-(1-WACC!AD$30)*WACC!AD$29),0) -> -3.64780634 | AI51: =-IF((SUM(AI33:AI38)+AI46+AH49)>0,(SUM(AI33:AI38)+AI46+AH49)*WACC!AE$29/(1-(1-WACC!AE$30)*WACC!AE$29),0) -> -3.925400846
A52: =ROW() -> 52 | D52: Imputation Credits | AE52: =-AE51*WACC!AA$30 -> 0.5007317156 | AF52: =-AF51*WACC!AB$30 -> 1.677767442 | AG52: =-AG51*WACC!AC$30 -> 1.832037442 | AH52: =-AH51*WACC!AD$30 -> 1.82390317 | AI52: =-AI51*WACC!AE$30 -> 1.962700423
A53: =ROW() -> 53 | D53: Net Tax Expense | AE53: =SUM(AE51:AE52) -> -0.5007317156 | AF53: -1.677767442 | AG53: -1.832037442 | AH53: -1.82390317 | AI53: -1.962700423
A54: =ROW() -> 54
A55: Reconciliation on Return on Equity - [m$ nominal]
A56: =ROW() -> 56
A57: =ROW() -> 57 | C57: RAB | F57: =SUM(F58:F59) -> 1 | AE57: =CoS!AG$28 -> 1292.379265 | AF57: =CoS!AH$28 -> 1348.589416 | AG57: =CoS!AI$28 -> 1391.13417 | AH57: =CoS!AJ$28 -> 1431.504863 | AI57: =CoS!AK$28 -> 1470.443243
A58: =ROW() -> 58 | D58: Equity | F58: =WACC!$AA$26 -> 0.45 | AE58: =$F58*AE57 -> 581.5706691 | AF58: 606.865237 | AG58: 626.0103765 | AH58: 644.1771884 | AI58: 661.6994593
A59: =ROW() -> 59 | D59: Debt | F59: =WACC!$AA$25 -> 0.55 | AE59: =$F59*AE57 -> 710.8085955 | AF59: 741.7241786 | AG59: 765.1237935 | AH59: 787.3276747 | AI59: 808.7437835
A60: =ROW() -> 60 | C60: per Revenue Building Blocks
A61: =ROW() -> 61 | D61: Return on Asset (includes inflationary gain) | G61: PV
A62: =ROW() -> 62 | D62: Return on Equity % | AE62: =WACC!AA$22 -> 0.0502 | AF62: =WACC!AB$22 -> 0.0502 | AG62: =WACC!AC$22 -> 0.0502 | AH62: =WACC!AD$22 -> 0.0502 | AI62: =WACC!AE$22 -> 0.0502
A63: =ROW() -> 63 | D63: Return on Debt % | AE63: =WACC!AA$15 -> 0.03448 | AF63: =WACC!AB$15 -> 0.03448 | AG63: =WACC!AC$15 -> 0.03448 | AH63: =WACC!AD$15 -> 0.03448 | AI63: =WACC!AE$15 -> 0.03448
A64: =ROW() -> 64 | D64: Return on Equity | G64: =SUMPRODUCT($AE$15:$AI$15,AE64:AI64) -> 138.5017956 | AE64: =AE$58*AE$62 -> 29.19484759 | AF64: 30.4646349 | AG64: 31.4257209 | AH64: 32.33769486 | AI64: 33.21731285
A65: =ROW() -> 65 | D65: Return on Debt | G65: 116.2703874 | AE65: =AE$59*AE$63 -> 24.50868037 | AF65: 25.57464968 | AG65: 26.3814684 | AH65: 27.14705822 | AI65: 27.88548566
A66: =ROW() -> 66 | G66: 254.772183 | AE66: =SUM(AE64:AE65) -> 53.70352796 | AF66: 56.03928458 | AG66: 57.8071893 | AH66: 59.48475308 | AI66: 61.10279851
A67: =ROW() -> 67
A68: =ROW() -> 68 | C68: Reconciliation on Return on Equity: | F68: Expected PV | G68: PV
A69: =ROW() -> 69 | D69: Total Unsmooth Revenue | F69: =CoS!F60 -> 742.1166334 | G69: =SUMPRODUCT($AE$15:$AI$15,AE69:AI69) -> 742.1166334 | AE69: =AE$41 -> 149.0863052 | AF69: 164.103231 | AG69: 169.9325052 | AH69: 175.5719937 | AI69: 181.5706465
A70: =ROW() -> 70 | D70: Annual Revenue and CoS difference | F70: =G70 -> 0 | G70: 0 | AE70: =AE71-AE69 -> 0 | AF70: 0 | AG70: 0 | AH70: 0 | AI70: 0
A71: =ROW() -> 71 | D71: Net Cost of Service | F71: =CoS!F59 -> 742.1166334 | G71: 742.1166334 | AE71: =CoS!AG$46 -> 149.0863052 | AF71: =CoS!AH$46 -> 164.103231 | AG71: =CoS!AI$46 -> 169.9325052 | AH71: =CoS!AJ$46 -> 175.5719937 | AI71: =CoS!AK$46 -> 181.5706465
A72: =ROW() -> 72 | D72: Less:
A73: =ROW() -> 73 | D73: OPEX (Including UAFG) | F73: =CoS!F51 -> 294.051109 | G73: =SUMPRODUCT($AE$15:$AI$15,AE73:AI73) -> 294.051109 | AE73: =-AE43 -> 62.20780145 | AF73: =-AF43 -> 64.40740973 | AG73: =-AG43 -> 66.52150407 | AH73: =-AH43 -> 68.9614954 | AI73: =-AI43 -> 70.46193863
A74: =ROW() -> 74 | D74: Return on Debt (includes inflationary gain) | F74: =G74 -> 116.2703874 | G74: 116.2703874 | AE74: =AE65 -> 24.50868037 | AF74: 25.57464968 | AG74: 26.3814684 | AH74: 27.14705822 | AI74: 27.88548566
A75: =ROW() -> 75 | D75: Tax Payable | F75: =CoS!F57 -> 13.59941869 | G75: 13.59941869 | AE75: =CoS!AG44 -> 1.001463431 | AF75: =CoS!AH44 -> 3.355534884 | AG75: =CoS!AI44 -> 3.664074885 | AH75: =CoS!AJ44 -> 3.64780634 | AI75: =CoS!AK44 -> 3.925400846
A76: =ROW() -> 76 | D76: Imputation Credits | F76: =CoS!F58 -> -6.799709344 | G76: -6.799709344 | AE76: =CoS!AG45 -> -0.5007317156 | AF76: =CoS!AH45 -> -1.677767442 | AG76: =CoS!AI45 -> -1.832037442 | AH76: =CoS!AJ45 -> -1.82390317 | AI76: =CoS!AK45 -> -1.962700423
A77: =ROW() -> 77 | D77: Depreciation | F77: =CoS!F52 -> 252.6559447 | G77: 252.6559447 | AE77: =CoS!AG39 -> 46.64962486 | AF77: =CoS!AH39 -> 56.59494569 | AG77: =CoS!AI39 -> 58.76191538 | AH77: =CoS!AJ39 -> 60.71475358 | AI77: =CoS!AK39 -> 63.86559771
A78: =ROW() -> 78 | D78: Return of Asset Inflationary gain | F78: =CoS!F53 -> -69.89466444 | G78: -69.89466444 | AE78: =CoS!AG40 -> -14.73312362 | AF78: =CoS!AH40 -> -15.37391934 | AG78: =CoS!AI40 -> -15.85892954 | AH78: =CoS!AJ40 -> -16.31915544 | AI78: =CoS!AK40 -> -16.76305297
A79: =ROW() -> 79 | D79: Return on Working Capital | F79: =CoS!F56 -> 3.732351849 | G79: 3.732351849 | AE79: =CoS!AG43 -> 0.7577428737 | AF79: =CoS!AH43 -> 0.7577428737 | AG79: =CoS!AI43 -> 0.8687885861 | AH79: =CoS!AJ43 -> 0.9062439446 | AI79: =CoS!AK43 -> 0.9406641649
A80: =ROW() -> 80 | F80: =SUM(F73:F79) -> 603.6148379 | G80: 603.6148379 | AE80: =SUM(AE73:AE79) -> 119.8914577 | AF80: 133.6385961 | AG80: 138.5067843 | AH80: 143.2342989 | AI80: 148.3533336
A81: =ROW() -> 81 | D81: Return on Equity | F81: =F71-F80 -> 138.5017956 | G81: 138.5017956 | AE81: =AE71-AE80 -> 29.19484759 | AF81: 30.4646349 | AG81: 31.4257209 | AH81: 32.33769486 | AI81: 33.21731285
A82: =ROW() -> 82 | D82: Expected Return on Equity | F82: =G64 -> 138.5017956 | G82: 138.5017956 | AE82: =AE64 -> 29.19484759 | AF82: 30.4646349 | AG82: 31.4257209 | AH82: 32.33769486 | AI82: 33.21731285
A83: =ROW() -> 83 | D83: Difference (should be 0) | F83: =F81-F82 -> 0 | G83: 0 | AE83: =AE81-AE82 -> 0 | AF83: 0 | AG83: 0 | AH83: 0 | AI83: 0
A84: =ROW() -> 84
A85: =ROW() -> 85
A86: Equity Raising Costs, Nominal Calculations [m$ nominal]
A87: =ROW() -> 87 | C87: Yield / cost inputs (from AER 2010 Victorian DNSP decision)
A88: =ROW() -> 88 | D88: Dividend imputation/payout ratio | G88: 0.7
A89: =ROW() -> 89 | D89: Benchmark seasoned equity offering (SEO) raising cost | G89: 0.03
A90: =ROW() -> 90 | D90: Benchmark Dividend Re-investment Plan (DRP) cost | G90: 0.01
A91: =ROW() -> 91 | D91: Benchmark DRP take-up | G91: 0.25
A92: =ROW() -> 92
A93: =ROW() -> 93 | C93: Dividend assessment
A94: =ROW() -> 94 | D94: Tax payable | AE94: =-AE51 -> 1.001463431 | AF94: =-AF51 -> 3.355534884 | AG94: =-AG51 -> 3.664074885 | AH94: =-AH51 -> 3.64780634 | AI94: =-AI51 -> 3.925400846
A95: =ROW() -> 95 | D95: Dividends | AE95: =(AE94/WACC!AA$29*(1-WACC!AA$29)*$G$88) -> 1.635723604 | AF95: =(AF94/WACC!AB$29*(1-WACC!AB$29)*$G$88) -> 5.480706977 | AG95: =(AG94/WACC!AC$29*(1-WACC!AC$29)*$G$88) -> 5.984655645 | AH95: =(AH94/WACC!AD$29*(1-WACC!AD$29)*$G$88) -> 5.958083689 | AI95: =(AI94/WACC!AE$29*(1-WACC!AE$29)*$G$88) -> 6.411488049
A96: =ROW() -> 96 | D96: Dividend Re-investment | AE96: =AE95*$G$91 -> 0.4089309011 | AF96: 1.370176744 | AG96: 1.496163911 | AH96: 1.489520922 | AI96: 1.602872012
A97: =ROW() -> 97
A98: =ROW() -> 98 | C98: Benchmark Cash Flows
A99: =ROW() -> 99 | D99: Total Unsmooth Revenue | AE99: =AE41 -> 149.0863052 | AF99: =AF41 -> 164.103231 | AG99: =AG41 -> 169.9325052 | AH99: =AH41 -> 175.5719937 | AI99: =AI41 -> 181.5706465
A100: =ROW() -> 100 | D100: Opex | AE100: =AE43 -> -62.20780145 | AF100: -64.40740973 | AG100: -66.52150407 | AH100: -68.9614954 | AI100: -70.46193863
A101: =ROW() -> 101 | D101: Interest | AE101: -24.50868037 | AF101: -25.92046081 | AG101: -26.77795747 | AH101: -27.56064079 | AI101: -28.31477658
A102: =ROW() -> 102 | D102: Tax | AE102: =AE51 -> -1.001463431 | AF102: =AF51 -> -3.355534884 | AG102: =AG51 -> -3.664074885 | AH102: =AH51 -> -3.64780634 | AI102: =AI51 -> -3.925400846
A103: =ROW() -> 103 | D103: Internal cash flow | AE103: =SUM(AE99:AE102) -> 61.36835998 | AF103: 70.41982555 | AG103: 72.96896882 | AH103: 75.4020512 | AI103: 78.86853042
A104: =ROW() -> 104 | D104: Dividend | AE104: =-AE95 -> -1.635723604 | AF104: -5.480706977 | AG104: -5.984655645 | AH104: -5.958083689 | AI104: -6.411488049
A105: =ROW() -> 105 | D105: Dividend reinvestment | AE105: =AE96 -> 0.4089309011 | AF105: 1.370176744 | AG105: 1.496163911 | AH105: 1.489520922 | AI105: 1.602872012
A106: =ROW() -> 106 | D106: Retained cash flow | AE106: =SUM(AE103:AE105) -> 60.14156728 | AF106: 66.30929532 | AG106: 68.48047708 | AH106: 70.93348844 | AI106: 74.05991438
A107: =ROW() -> 107
A108: =ROW() -> 108 | C108: Benchmark capex funding
A109: =ROW() -> 109 | D109: Capex | AE109: =(Asset!AE17+Asset!AE18+Asset!AE19)*AE$12 -> 88.12665228 | AF109: =(Asset!AF17+Asset!AF18+Asset!AF19)*AF$12 -> 83.7657807 | AG109: =(Asset!AG17+Asset!AG18+Asset!AG19)*AG$12 -> 83.27367896 | AH109: =(Asset!AH17+Asset!AH18+Asset!AH19)*AH$12 -> 83.33397787 | AI109: =(Asset!AI17+Asset!AI18+Asset!AI19)*AI$12 -> 85.7645205
A110: =ROW() -> 110 | D110: less Debt Component | AE110: =(AF19-AE19)*WACC!AA$25 -> 30.91558307 | AF110: =(AG19-AF19)*WACC!AB$25 -> 23.39961489 | AG110: =(AH19-AG19)*WACC!AC$25 -> 22.20388121 | AH110: =(AI19-AH19)*WACC!AD$25 -> 21.41610885 | AI110: =(AJ19-AI19)*WACC!AE$25 -> 21.26408666
A111: =ROW() -> 111 | D111: Equity Component | AE111: =AE109-AE110 -> 57.21106921 | AF111: 60.36616581 | AG111: 61.06979775 | AH111: 61.91786902 | AI111: 64.50043383
A112: =ROW() -> 112 | D112: Retained cash flows | AE112: =AE106 -> 60.14156728 | AF112: 66.30929532 | AG112: 68.48047708 | AH112: 70.93348844 | AI112: 74.05991438
A113: =ROW() -> 113 | D113: Equity Required (SEO) | AE113: =AE111-AE112 -> -2.930498074 | AF113: -5.943129509 | AG113: -7.410679339 | AH113: -9.015619416 | AI113: -9.559480544
A114: =ROW() -> 114
A115: =ROW() -> 115 | C115: Equity raising costs
A116: =ROW() -> 116 | D116: External Equity Raising Costs | AE116: =AE113*$G$89 -> -0.08791494222 | AF116: -0.1782938853 | AG116: -0.2223203802 | AH116: -0.2704685825 | AI116: -0.2867844163
A117: =ROW() -> 117 | D117: DRP Cost | AE117: =AE96*$G$90 -> 0.004089309011 | AF117: 0.01370176744 | AG117: 0.01496163911 | AH117: 0.01489520922 | AI117: 0.01602872012
A118: =ROW() -> 118 | D118: Total Equity Raising Costs | AE118: =SUM(AE116:AE117) -> -0.08382563321 | AF118: =SUM(AF116:AF117) -> -0.1645921178 | AG118: -0.207358741 | AH118: -0.2555733733 | AI118: -0.2707556962
A119: =ROW() -> 119 | D119: Equity Raising Costs (capitalised and included in RAB) | AE119: =MAX(0,SUM(AE116:AE117)) -> 0 | AF119: 0 | AG119: 0 | AH119: 0 | AI119: 0
A120: =ROW() -> 120 | D120: Equity Raising Costs (manual entry) | AE120: =SolverSheet!I33 -> 0 | AF120: =SolverSheet!J33 -> 0 | AG120: =SolverSheet!K33 -> 0 | AH120: =SolverSheet!L33 -> 0 | AI120: =SolverSheet!M33 -> 0
A121: =ROW() -> 121 | D121: ="Total Equity Raising Costs [Real " & Input!$G$43 & " $M]" -> Total Equity Raising Costs [Real 31/12/2019 $M] | AE121: =AE119*Input!AE$43 -> 0 | AF121: =AF119*Input!AF$43 -> 0 | AG121: =AG119*Input!AG$43 -> 0 | AH121: =AH119*Input!AH$43 -> 0 | AI121: =AI119*Input!AI$43 -> 0
A122: =ROW() -> 122

Sheet Asset
A1: =Main!A1 -> ERA, GDS Tariff Model, Final Decision, November 2019
A2: ="Assets Account [Real m$ "&Input!$G$43&"]" -> Assets Account [Real m$ 31/12/2019]
A3: Ref | C3: =COLUMN() -> 3 | D3: =COLUMN() -> 4 | E3: =COLUMN() -> 5 | F3: =COLUMN() -> 6 | G3: =COLUMN() -> 7 | H3: =COLUMN() -> 8 | I3: =COLUMN() -> 9 | J3: =COLUMN() -> 10 | K3: =COLUMN() -> 11 | L3: =COLUMN() -> 12 | M3: =COLUMN() -> 13 | N3: =COLUMN() -> 14 | O3: =COLUMN() -> 15 | P3: =COLUMN() -> 16 | Q3: =COLUMN() -> 17 | R3: =COLUMN() -> 18 | S3: =COLUMN() -> 19 | T3: =COLUMN() -> 20 | U3: =COLUMN() -> 21 | V3: =COLUMN() -> 22 | W3: =COLUMN() -> 23 | X3: =COLUMN() -> 24 | Y3: =COLUMN() -> 25 | Z3: =COLUMN() -> 26 | AA3: =COLUMN() -> 27 | AB3: =COLUMN() -> 28 | AC3: =COLUMN() -> 29 | AD3: =COLUMN() -> 30 | AE3: =COLUMN() -> 31 | AF3: =COLUMN() -> 32 | AG3: =COLUMN() -> 33 | AH3: =COLUMN() -> 34 | AI3: =COLUMN() -> 35
A4: =ROW() -> 4 | J4: Year ending 31 December | O4: Year ending 31 December | T4: Year Ending 30 June | Y4: Year Ending 31 December
A5: Regulatory Period | J5: 1 | K5: 1 | L5: 1 | M5: 1 | N5: 1 | O5: 2 | P5: 2 | Q5: 2 | R5: 2 | S5: 2 | T5: 3 | U5: 3 | V5: 3 | W5: 3 | X5: 3 | Y5: 4 | Z5: 4 | AA5: 4 | AB5: 4 | AC5: 4 | AD5: 4 | AE5: 4 | AF5: 4 | AG5: 4 | AH5: 4 | AI5: 4
A6: Year ending | I6: 1999 | J6: 2000 | K6: 2001 | L6: 2002 | M6: 2003 | N6: 2004 | O6: 2005 | P6: 2006 | Q6: 2007 | R6: 2008 | S6: =1+R6 -> 2009 | T6: =1+S6 -> 2010 | U6: =T6+1 -> 2011 | V6: 2012 | W6: 2013 | X6: 2014 | Y6: 2014 | Z6: 2015 | AA6: 2016 | AB6: 2017 | AC6: 2018 | AD6: 2019 | AE6: =AD6+1 -> 2020 | AF6: =AE6+1 -> 2021 | AG6: =AF6+1 -> 2022 | AH6: =AG6+1 -> 2023 | AI6: =AH6+1 -> 2024
A7: Months | I7: 1 to 12 | J7: 1 to 12 | K7: 1 to 12 | L7: 1 to 12 | M7: 1 to 12 | N7: 1 to 12 | O7: 1 to 12 | P7: 1 to 12 | Q7: 1 to 12 | R7: 1 to 12 | S7: 1 to 12 | T7: 1 to 6 | U7: 7 to 6 | V7: 7 to 6 | W7: 7 to 6 | X7: 7 to 6 | Y7: 7 to 12 | Z7: 1 to 12 | AA7: 1 to 12 | AB7: 1 to 12 | AC7: 1 to 12 | AD7: 1 to 12 | AE7: 1 to 12 | AF7: 1 to 12 | AG7: 1 to 12 | AH7: 1 to 12 | AI7: 1 to 12
A8: Days | I8: =Input!I8 -> 365 | J8: =Input!J8 -> 366 | K8: =Input!K8 -> 365 | L8: =Input!L8 -> 365 | M8: =Input!M8 -> 365 | N8: =Input!N8 -> 366 | O8: =Input!O8 -> 365 | P8: =Input!P8 -> 365 | Q8: =Input!Q8 -> 365 | R8: =Input!R8 -> 366 | S8: =Input!S8 -> 365 | T8: =Input!T8 -> 181 | U8: =Input!U8 -> 365 | V8: =Input!V8 -> 366 | W8: =Input!W8 -> 365 | X8: =Input!X8 -> 365 | Y8: =Input!Y8 -> 184 | Z8: =Input!Z8 -> 365 | AA8: =Input!AA8 -> 366 | AB8: =Input!AB8 -> 365 | AC8: =Input!AC8 -> 365 | AD8: =Input!AD8 -> 365 | AE8: =Input!AE8 -> 366 | AF8: =Input!AF8 -> 365 | AG8: =Input!AG8 -> 365 | AH8: =Input!AH8 -> 365 | AI8: =Input!AI8 -> 366
A9: Year portion | I9: =Input!I9 -> 1 | J9: =Input!J9 -> 1 | K9: =Input!K9 -> 1 | L9: =Input!L9 -> 1 | M9: =Input!M9 -> 1 | N9: =Input!N9 -> 1 | O9: =Input!O9 -> 1 | P9: =Input!P9 -> 1 | Q9: =Input!Q9 -> 1 | R9: =Input!R9 -> 1 | S9: =Input!S9 -> 1 | T9: =ROUND(Input!T9,2) -> 0.5 | U9: =Input!U9 -> 1 | V9: =Input!V9 -> 1 | W9: =Input!W9 -> 1 | X9: =Input!X9 -> 1 | Y9: =ROUND(Input!Y9,2) -> 0.5 | Z9: =Input!Z9 -> 1 | AA9: =Input!AA9 -> 1 | AB9: =Input!AB9 -> 1 | AC9: =Input!AC9 -> 1 | AD9: =Input!AD9 -> 1 | AE9: =Input!AE9 -> 1 | AF9: =Input!AF9 -> 1 | AG9: =Input!AG9 -> 1 | AH9: =Input!AH9 -> 1 | AI9: =Input!AI9 -> 1
A10: Financial Parameters
A11: =ROW() -> 11 | C11: Inflation factor | J11: AA1 | O11: AA2 | T11: AA3 | Y11: AA4 | AG11: AA5
A12: =ROW() -> 12 | D12: ="Inflation Factor (convert to real "&Input!$G$43&" $)" -> Inflation Factor (convert to real 31/12/2019 $) | I12: =Input!I$43 -> 1.671648199 | J12: =Input!J$43 -> 1.579981275 | K12: =Input!K$43 -> 1.532138415 | L12: =Input!L$43 -> 1.487107824 | M12: =Input!M$43 -> 1.452741887 | N12: =Input!N$43 -> 1.416051477 | O12: =Input!O$43 -> 1.377500275 | P12: =Input!P$43 -> 1.334093514 | Q12: =Input!Q$43 -> 1.295762283 | R12: =Input!R$43 -> 1.249708081 | S12: =Input!S$43 -> 1.223902899 | T12: =Input!T$43 -> 1.205412792 | U12: =Input!U$43 -> 1.163497148 | V12: =Input!V$43 -> 1.149953112 | W12: =Input!W$43 -> 1.123105958 | X12: =Input!X$43 -> 1.090229391 | Y12: =Input!Y$43 -> 1.083070286 | Z12: =Input!Z$43 -> 1.065085724 | AA12: =Input!AA$43 -> 1.049593568 | AB12: =Input!AB$43 -> 1.029931244 | AC12: =Input!AC$43 -> 1.011878111 | AD12: =Input!AD$43 -> 1 | AE12: =Input!AE$43 -> 0.9887284952 | AF12: =Input!AF$43 -> 0.9775840371 | AG12: =Input!AG$43 -> 0.9665651939 | AH12: =Input!AH$43 -> 0.9556705497 | AI12: =Input!AI$43 -> 0.9448987044
A13: =ROW() -> 13 | D13: ="Inflation Factor (convert " &Input!$G$43& " $ to nominal $)" -> Inflation Factor (convert 31/12/2019 $ to nominal $) | I13: =Input!I$44 -> 0.5982119927 | J13: =Input!J$44 -> 0.6329188932 | K13: =Input!K$44 -> 0.6526825449 | L13: =Input!L$44 -> 0.6724461965 | M13: =Input!M$44 -> 0.6883535259 | N13: =Input!N$44 -> 0.7061890164 | O13: =Input!O$44 -> 0.7259526681 | P13: =Input!P$44 -> 0.749572642 | Q13: =Input!Q$44 -> 0.7717464951 | R13: =Input!R$44 -> 0.8001868718 | S13: =Input!S$44 -> 0.8170582818 | T13: =Input!T$44 -> 0.8295913292 | U13: =Input!U$44 -> 0.8594778268 | V13: =Input!V$44 -> 0.8696006728 | W13: =Input!W$44 -> 0.8903879398 | X13: =Input!X$44 -> 0.9172381598 | Y13: =Input!Y$44 -> 0.9233011127 | Z13: =Input!Z$44 -> 0.938891563 | AA13: =Input!AA$44 -> 0.9527497411 | AB13: =Input!AB$44 -> 0.9709385998 | AC13: =Input!AC$44 -> 0.9882613223 | AD13: =Input!AD$44 -> 1 | AE13: =Input!AE$44 -> 1.0114 | AF13: =Input!AF$44 -> 1.02292996 | AG13: =Input!AG$44 -> 1.034591362 | AH13: =Input!AH$44 -> 1.046385703 | AI13: =Input!AI$44 -> 1.0583145
A14: Summary of Capital Base
A15: =ROW() -> 15 | D15: Opening Value | O15: =N24 -> 941.2274478 | P15: =O24 -> 931.3199029 | Q15: 934.6017451 | R15: 937.8913953 | S15: 940.2993189 | T15: =S24 -> 956.9796693 | U15: =T24 -> 977.3890051 | V15: 993.5088594 | W15: 1004.065497 | X15: 1056.288373 | Y15: =X24 -> 1096.179473 | Z15: 1120.524302 | AA15: 1154.437088 | AB15: 1194.376622 | AC15: 1231.285938 | AD15: 1266.404369 | AE15: =AD24 -> 1292.379265 | AF15: =AE24 -> 1333.388783 | AG15: =AF24 -> 1359.950558 | AH15: =AG24 -> 1383.642776 | AI15: =AH24 -> 1405.259302
A16: =ROW() -> 16 | D16: Adjustment to opening balance (CAPEX over depreciation transferred to ICB assets) | O16: =O289 -> -8.521253675 | P16: =P289 -> 0 | Q16: 0 | R16: 0 | S16: 0 | T16: 0 | U16: 0 | V16: 0 | W16: 0 | X16: 0 | Y16: 0 | Z16: 0 | AA16: 0 | AB16: 0 | AC16: 0 | AD16: 0 | AE16: 0 | AF16: 0 | AG16: 0 | AH16: 0 | AI16: 0
A17: =ROW() -> 17 | D17: Capex | O17: =O47 -> 33.69195848 | P17: =P47 -> 40.59402756 | Q17: 42.66375051 | R17: 43.45808455 | S17: 51.93467917 | T17: 30.18987591 | U17: 45.15436748 | V17: 42.20759945 | W17: 86.44672586 | X17: 76.63326397 | Y17: 42.3197225 | Z17: 73.53482948 | AA17: 84.09309613 | AB17: 84.09700081 | AC17: 85.4114486 | AD17: 78.84082652 | AE17: =AE47 -> 87.13333229 | AF17: 81.88809007 | AG17: 80.48943965 | AH17: 79.63982843 | AI17: 81.0387843
A18: =ROW() -> 18 | D18: Vines (capex) | S18: =S38 -> 0.7096470508
A19: =ROW() -> 19 | D19: West Net (capex) | T19: =T44 -> 3.618355413
A20: =ROW() -> 20 | D20: Asset Adjustment, Redundant Assets & Asset Disposal | O20: =O29+O36+O42+O49 -> 0 | P20: 0 | Q20: 0 | R20: 0 | S20: -5.396697783 | T20: 0 | U20: 0 | V20: 0 | W20: 0 | X20: 0 | Y20: -0.0424773683 | Z20: -0.01546661101 | AA20: -0.2028672662 | AB20: -0.2136045275 | AC20: -0.5156300225 | AD20: 0 | AE20: 0 | AF20: 0 | AG20: 0 | AH20: 0 | AI20: 0
A21: =ROW() -> 21 | D21: Depreciation (including Depreciation per tariff variation) | O21: =O30+O37+O43+O48 -> -35.07824973 | P21: -37.31218534 | Q21: -39.37410031 | R21: -41.05016094 | S21: -43.19242396 | T21: -13.39889553 | U21: -29.03451315 | V21: -31.65096199 | W21: -34.22384968 | X21: -36.74216363 | Y21: -17.93241639 | Z21: -39.6065768 | AA21: -43.95069471 | AB21: -46.97408089 | AC21: -49.77738719 | AD21: -52.8659311 | AE21: -46.12381338 | AF21: -55.32631549 | AG21: -56.79722214 | AH21: -58.02330193 | AI21: -60.34652054
A22: =ROW() -> 22
A23: =ROW() -> 23 | D23: Over Depreciation | O23: =O205 -> 0 | P23: 0 | Q23: 0 | R23: 0 | S23: =S205 -> 12.62514592 | T23: =T205 -> 0 | U23: 0 | V23: 0 | W23: 0 | X23: 0
A24: =ROW() -> 24 | D24: Closing Value | N24: =N32+N52 -> 941.2274478 | O24: =SUM(O15:O23) -> 931.3199029 | P24: 934.6017451 | Q24: 937.8913953 | R24: 940.2993189 | S24: 956.9796693 | T24: 977.3890051 | U24: 993.5088594 | V24: 1004.065497 | W24: 1056.288373 | X24: 1096.179473 | Y24: 1120.524302 | Z24: 1154.437088 | AA24: 1194.376622 | AB24: 1231.285938 | AC24: 1266.404369 | AD24: 1292.379265 | AE24: 1333.388783 | AF24: 1359.950558 | AG24: 1383.642776 | AH24: 1405.259302 | AI24: 1425.951566
A25: Initial Asset
A26: =ROW() -> 26 | C26: ICB Account [m$ 30/6/2014]
A27: =ROW() -> 27 | D27: Opening Value | O27: =N32 -> 764.2682141 | P27: =O32 -> 731.0134556 | Q27: 706.2799509 | R27: 681.5464461 | S27: 656.8129414 | T27: 630.775391 | U27: 623.5152245 | V27: 608.9948916 | W27: 594.4745587 | X27: 579.9542258 | Y27: 565.4338929 | Z27: 558.1737265 | AA27: 543.6533936 | AB27: 529.1330607 | AC27: 514.6127278 | AD27: 500.0923949 | AE27: =AD32 -> 485.572062 | AF27: =AE32 -> 471.0517291 | AG27: =AF32 -> 456.5313962 | AH27: =AG32 -> 442.0110633 | AI27: =AH32 -> 427.5199611
A28: =ROW() -> 28 | D28: Adjustment to opening balance (CAPEX over depreciation transferred to ICB assets) | O28: =O289 -> -8.521253675
A29: =ROW() -> 29 | D29: Asset Adjustment, Redundant Assets & Asset Disposal | O29: =O327 -> 0 | P29: 0 | Q29: 0 | R29: 0 | S29: -5.396697783 | T29: 0 | U29: 0 | V29: 0 | W29: 0 | X29: 0 | Y29: 0 | Z29: 0 | AA29: 0 | AB29: 0 | AC29: 0 | AD29: 0 | AE29: 0 | AF29: 0 | AG29: 0 | AH29: 0 | AI29: 0
A30: =ROW() -> 30 | D30: Depreciation | O30: =O346 -> -24.73350475 | P30: -24.73350475 | Q30: -24.73350475 | R30: -24.73350475 | S30: -24.73350475 | T30: -7.260166447 | U30: -14.52033289 | V30: -14.52033289 | W30: -14.52033289 | X30: -14.52033289 | Y30: -7.260166447 | Z30: -14.52033289 | AA30: -14.52033289 | AB30: -14.52033289 | AC30: -14.52033289 | AD30: -14.52033289 | AE30: -14.52033289 | AF30: -14.52033289 | AG30: -14.52033289 | AH30: -14.49110228 | AI30: -14.35732341
A31: =ROW() -> 31 | D31: Over Depreciation | O31: =O365 -> 0 | P31: 0 | Q31: 0 | R31: 0 | S31: 4.092652111 | T31: 0 | U31: 0 | V31: 0 | W31: 0 | X31: 0 | Y31: 0 | Z31: 0 | AA31: 0 | AB31: 0 | AC31: 0 | AD31: 0 | AE31: 0 | AF31: 0 | AG31: 0 | AH31: 0 | AI31: 0
A32: =ROW() -> 32 | D32: Closing Value | N32: =N384 -> 764.2682141 | O32: =SUM(O27:O31) -> 731.0134556 | P32: 706.2799509 | Q32: 681.5464461 | R32: 656.8129414 | S32: 630.775391 | T32: 623.5152245 | U32: 608.9948916 | V32: 594.4745587 | W32: 579.9542258 | X32: 565.4338929 | Y32: 558.1737265 | Z32: 543.6533936 | AA32: 529.1330607 | AB32: 514.6127278 | AC32: 500.0923949 | AD32: 485.572062 | AE32: 471.0517291 | AF32: 456.5313962 | AG32: 442.0110633 | AH32: 427.5199611 | AI32: 413.1626376
A33: =ROW() -> 33 | C33: Vines Asset Account
A34: =ROW() -> 34 | D34: Opening Value | T34: =S38 -> 0.7096470508 | U34: 0.6983595365 | V34: 0.6757845079 | W34: 0.6532094794 | X34: 0.6306344508 | Y34: 0.6080594222 | Z34: 0.5967719079 | AA34: 0.5741968794 | AB34: 0.5516218508 | AC34: 0.5290468222 | AD34: 0.5064717936 | AE34: =AD38 -> 0.4838967651 | AF34: =AE38 -> 0.4613217365 | AG34: =AF38 -> 0.4387467079 | AH34: =AG38 -> 0.4161716793 | AI34: =AH38 -> 0.3935966507
A35: =ROW() -> 35 | D35: Assets rolled into asset base | S35: =S442 -> 0.7096470508 | T35: =T442 -> 0 | U35: =U442 -> 0 | V35: 0 | W35: 0 | X35: 0 | Y35: 0 | Z35: 0 | AA35: 0 | AB35: 0 | AC35: 0 | AD35: 0 | AE35: 0 | AF35: 0 | AG35: 0 | AH35: 0 | AI35: 0
A36: =ROW() -> 36 | D36: Redundant Assets & Asset Disposal | T36: =T461 -> 0 | U36: 0 | V36: 0 | W36: 0 | X36: 0 | Y36: 0 | Z36: 0 | AA36: 0 | AB36: 0 | AC36: 0 | AD36: 0 | AE36: 0 | AF36: 0 | AG36: 0 | AH36: 0 | AI36: 0
A37: =ROW() -> 37 | D37: Depreciation | T37: =T480+T499 -> -0.01128751429 | U37: -0.02257502858 | V37: -0.02257502858 | W37: -0.02257502858 | X37: -0.02257502858 | Y37: -0.01128751429 | Z37: -0.02257502858 | AA37: -0.02257502858 | AB37: -0.02257502858 | AC37: -0.02257502858 | AD37: -0.02257502858 | AE37: -0.02257502858 | AF37: -0.02257502858 | AG37: -0.02257502858 | AH37: -0.02257502858 | AI37: -0.02257502858
A38: =ROW() -> 38 | D38: Closing Value (Asset Added as at 31/12/2009) | S38: =SUM(S34:S37) -> 0.7096470508 | T38: 0.6983595365 | U38: 0.6757845079 | V38: 0.6532094794 | W38: 0.6306344508 | X38: 0.6080594222 | Y38: 0.5967719079 | Z38: 0.5741968794 | AA38: 0.5516218508 | AB38: 0.5290468222 | AC38: 0.5064717936 | AD38: 0.4838967651 | AE38: 0.4613217365 | AF38: 0.4387467079 | AG38: 0.4161716793 | AH38: 0.3935966507 | AI38: 0.3710216222
A39: =ROW() -> 39 | C39: West Net Energy Asset Account
A40: =ROW() -> 40 | D40: Opening Value | U40: =T44 -> 3.618355413 | V40: 2.881211644 | W40: 2.144067875 | X40: 1.406924106 | Y40: 0.6697803374 | Z40: 0.4930710681 | AA40: 0.250973361 | AB40: 0.008875653928 | AC40: 1.059916044e-15 | AD40: 1.059916044e-15 | AE40: =AD44 -> 1.059916044e-15 | AF40: =AE44 -> 5.548404492e-16 | AG40: =AF44 -> 5.545693861e-16 | AH40: =AG44 -> 5.54298323e-16 | AI40: =AH44 -> 5.540272599e-16
A41: =ROW() -> 41 | D41: Assets rolled into asset base | T41: =T576 -> 3.618355413 | U41: =U576 -> 0 | V41: =V576 -> 0 | W41: 0 | X41: 0 | Y41: 0 | Z41: 0 | AA41: 0 | AB41: 0 | AC41: 0 | AD41: 0 | AE41: 0 | AF41: 0 | AG41: 0 | AH41: 0 | AI41: 0
A42: =ROW() -> 42 | D42: Redundant Assets & Asset Disposal | U42: =U595 -> 0 | V42: 0 | W42: 0 | X42: 0 | Y42: 0 | Z42: 0 | AA42: 0 | AB42: 0 | AC42: 0 | AD42: 0 | AE42: 0 | AF42: 0 | AG42: 0 | AH42: 0 | AI42: 0
A43: =ROW() -> 43 | D43: Depreciation | U43: =U614+U633 -> -0.737143769 | V43: -0.737143769 | W43: -0.737143769 | X43: -0.737143769 | Y43: -0.1767092693 | Z43: -0.2420977071 | AA43: -0.2420977071 | AB43: -0.008875653928 | AC43: 0 | AD43: 0 | AE43: -5.050755946e-16 | AF43: -2.710631138e-19 | AG43: -2.710631138e-19 | AH43: -2.710631138e-19 | AI43: -2.710631138e-19
A44: =ROW() -> 44 | D44: Closing Value (Asset Added as at 30/06/2010) | T44: =SUM(T40:T43) -> 3.618355413 | U44: 2.881211644 | V44: 2.144067875 | W44: 1.406924106 | X44: 0.6697803374 | Y44: 0.4930710681 | Z44: 0.250973361 | AA44: 0.008875653928 | AB44: 1.059916044e-15 | AC44: 1.059916044e-15 | AD44: 1.059916044e-15 | AE44: 5.548404492e-16 | AF44: 5.545693861e-16 | AG44: 5.54298323e-16 | AH44: 5.540272599e-16 | AI44: 5.537561967e-16
A45: Capex Account
A46: =ROW() -> 46 | D46: Opening Value | O46: =N52 -> 176.9592337 | P46: =O52 -> 200.3064472 | Q46: 228.3217942 | R46: 256.3449492 | S46: 283.4863775 | T46: =S52 -> 325.4946313 | U46: =T52 -> 349.5570656 | V46: 380.9569717 | W46: 406.7936608 | X46: 474.2965887 | Y46: =X52 -> 529.4517926 | Z46: 561.2447846 | AA46: 609.9425763 | AB46: 664.6671161 | AC46: 716.128215 | AD46: 765.7895543 | AE46: =AD52 -> 806.3073577 | AF46: =AE52 -> 861.8597845 | AG46: =AF52 -> 902.964467 | AH46: =AG52 -> 941.1995924 | AI46: =AH52 -> 977.3297963
